Workbook

Sheet Home
B1: NCHRP 25-51 Roadside BMP Groundwater Mounding Assessment Tool | J1: PEAK GROUNDWATER MOUNDING CROSS SECTION | S1: GEOTECHNICAL RISK FACTORS
B2: Project Title | C2: I-555 Interchange | S2: Actual Drawdown Rate vs. Nominal Vertical Ksat
B3: Project Location | C3: Kennesaw, Georgia | S3: Modeled Vertical Ksat Value of Limiting Layer (in/hr) | T3: =Selection!G441 -> 0.3
B4: Company | C4: ABC Engineering | S4: Mean Actual Drawdown Rate from BMP (in/hr) | T4: =IF(Selection!G430+Selection!G430=0, "Not Applicable - No Ponding", (Selection!G430)) -> 0.902081383
S5: Notes
B6: Climate, Site, and BMP Configuration Selection | S6: For BMPs in sand with amended media the vertical Ksat is 5 in/hr because the media is the limiting layer. Otherwise, Ksat is assigned by soil type.
B7: Climate Type | C7: Birmingham, AL | H7: Select most similar location | S7: Average drawdown rate is reported in cases where ponding occurs. Actual drawdown rate greater than Ksat is common due to hydraulic gradient, soil suction and sidewall/lateral effects.
B8: BMP Type | C8: Linear Infiltration/Bioretention Swale | H8: Select BMP type
B9: Roadway Embankment Height | C9: None - At Grade | H9: Select embankment height
B10: Initial Groundwater Depth (ft) | C10: 8 | H10: Select representative groundwater depth | S10: Saturation below Pavement Edge
B11: Loading Ratio (imp. area to BMP area) | C11: 20:1 | H11: Select representative loading ratio | S11: Distance Below Subgrade Interface | T11: Saturation occurs? | U11: Time 90% Sat
B12: Soil Type and Modeled Vertical Ksat of Limiting Layer | C12: Silt (0.3 in/hr) | H12: Select representative soil type | S12: 0 Foot (Point A) | T12: =Selection!G443 -> No | U12: =(Selection!G445+Selection!F445)/2/100 -> 0
B13: Underdrain Presence (available for BB and IS BMPs with no embankment) | C13: No | H13: Select whether an underdrain is present (if supported) | S13: 1.5 Feet (Point B) | T13: =Selection!F444 -> No | U13: =(Selection!G446+Selection!F446)/2/100 -> 0
B14: Simulation Summary and Climate Inputs | S14: Notes
B15: Six month simulations were run in HYDRUS to estimate groundwater mounding from infiltration, BMP water balance, geotechnical risks, and the effect of mounding on infiltration rates. Summaries of these results are presented in this Tool. | S15: Depths are measured from the interface where the subbase meets the subgrade below the edge of pavement. The chart shows the location of Points A and B.
B17: Climate Location | C17: =C7 -> Birmingham, AL | H17: Explanation Precipitation inputs inlude approx. 10-year return interval precipitation depths for the 6-month, 1-month, 7-day, and 1-day duration. A base 6-month period was used from precipitation records. Real events from other periods were nested within the base 6-month period, if needed, to yield the constructed record. | S17: Saturation of Embankment
B18: Total Simulation Precipitation (in) (6 months) | C18: =VLOOKUP(C$17,Input!$D$2:$K$7,3)*12 -> 39.732
B19: Maximum 24-hour Precipitation (in) | C19: =VLOOKUP(C$17,Input!$D$2:$K$7,6, FALSE)*12 -> 5.94
B20: Maximum 7-day Precipitation (in) | C20: =VLOOKUP(C$17,Input!$D$2:$K$7,4, FALSE) -> 8.2
B21: Maximum 30-day Precipitation (in) | C21: =VLOOKUP(C$17,Input!$D$2:$K$7,5, FALSE) -> 14.5
B22: Total BMP loading depth (in) | C22: =C18*(1+0.85*loading) -> 715.176
B24: SIMULATED WATER BALANCE | L24: Explanation (above): This plot above shows the inferred shape of the peak groundwater mound. This is reported for lower and higher degrees of soil layering. Lower layering means that the horizontal Ksat is closer to the vertical Ksat. Higher layering means that the horizontal Ksat is substantially higher than the vertical Ksat allowing water to spread laterally more easily. Both lines are based on the same verticak Ksat.
K32: Explanation (right): This pane shows whether nodes experience saturation below the embankment at any point during the simulation. This is intended to support assessment of risk of slope failure as a result of infiltration BMPs. This is presented for filter strips and permeable shoulders only.
I38: Explanation (left): This plot reports the modeled water balance of the BMP. This is reported for lower and higher degrees of soil layering as discussed above. Both lines are based on the same vertical Ksat. For permeable shoulders and filter strips, this represents the total water balance of the embankment
B42: Water Balance Component | C42: Higher Layering | E42: Lower Layering
B43: =Selection!C434 -> BMP Overflow | C43: =Selection!F434/SUM(Selection!F$434:'Selection'!F$437) -> 0.1962885069 | E43: =Selection!G434/SUM(Selection!G$434:'Selection'!G$437) -> 0.3344942364
B44: =Selection!C435 -> BMP Infiltration | C44: =Selection!F435/SUM(Selection!F$434:'Selection'!F$437) -> 0.7958286838 | E44: =Selection!G435/SUM(Selection!G$434:'Selection'!G$437) -> 0.6580774311
B45: =Selection!C436 -> Evapotranspiration | C45: =Selection!F436/SUM(Selection!F$434:'Selection'!F$437) -> 0.007882809315 | E45: =Selection!G436/SUM(Selection!G$434:'Selection'!G$437) -> 0.007428332472
B46: =Selection!C437 -> Treated Discharge | C46: =Selection!F437/SUM(Selection!F$434:'Selection'!F$437) -> 0 | E46: =Selection!G437/SUM(Selection!G$434:'Selection'!G$437) -> 0
B48: Simulation Daily Time Series (all values are mean daily values)
C93: Explanation (above): This plot above shows hydraulic loading pattern (based on the precipitation pattern), the estimated groundwater response below the BMP, and the ponding depth in the BMP (if ponding occurs). All values are mean daily values. Mounding and ponding are bracketed by higher soil layering and lower soil layering. Higher layering results in less mounding because there is greater Ksat in the horizontal direction for the selected vertical Ksat, allowing greater opportunity for dissipation of the mound. | T93: =VLOOKUP(BMP_type,Geometry!S5:T9,2,FALSE) -> 1

Sheet ReadMe
A1: NCHRP 25-51: Groundwater Mounding Assessment Tool
A3: Readme Notes
A4: See the Appendix C of the Guidance Manual for a User Guide, technical documentation, and discussion of intended applications and limitations.
A5: The user is responsible for understanding the limitations and intended applications of the tool.
A6: This tool is for screening level evaluation only. NCHRP and the report authors provide no warrantee; expressed or implied.
A7: The user is responsible for ensuring that input parameters are reasonable. Negative numbers are never reasonable for populating the Tool and will not return valid results.
A8: The user should review default assumptions and confirm that they are valid for the intended site and BMP design.
A9: Where dropdown boxes are available for input parameters, values must be selected from the dropdown menu. The tool cannot accept custom inputs for these fields.
A10: Precision of outputs is not intended to imply a certain level of certainty.
A11: The tool requires macros to be enabled. If macros are not enabled, the Tool will not function.
A12: The Tool is intended to be operated with Excel set to "Auto Calculate" mode; not "Manual Calculate" mode. To change this setting, go to the "Formulas" ribbon and select "Calculation Options".
A13: The Tool is password protected. The password is "nchrp". Users are responsible for maintaining a functional workbook.
B15: Key to Cell Colors
C16: Project Information
C17: User Inputs
C18: Reference Values for Scenario
C19: Tool Results

Sheet Input (hidden)
A1: User Input | D1: StationDropDown | E1: Index | F1: Total Rainfall from Syntehsized Hyetograph (ft) | G1: Total Rainfall from 10-Year Weekly Event (in) | H1: Total Rainfall from 10-Year Monthly Event (in) | I1: Total Rainfall from 10-Year Daily Event (ft) | J1: Seasonality | K1: ET (in) | N1: BMP Type | O1: Index | Q1: Geometry | R1: Index | T1: Initial GW Depth | V1: Loading | W1: Loading_index | Y1: Soil_type | Z1: Index | AB1: Underdrain | AC1: index | AE1: Index | AF1: Ksat
A2: Station | B2: =VLOOKUP(Home!C7,$D$2:$E$7,2,FALSE) -> BIR | D2: Birmingham, AL | E2: BIR | F2: 3.311 | G2: 8.2 | H2: 14.5 | I2: 0.495 | J2: Sep - Mar | K2: 42.24 | N2: Bioretention Basin | O2: BB | Q2: High | R2: H | T2: 2 | V2: 2:1 | W2: 2 | Y2: Clay (0.1 in/hr) | Z2: CL | AB2: Yes | AC2: bmp | AE2: CL | AF2: 0.1
A3: BMP | B3: =VLOOKUP(Home!C8,$N$2:$O$6,2,FALSE) -> IS | D3: Denver, CO | E3: DEN | F3: 1.178 | G3: 4.2 | H3: 6.3 | I3: 0.269 | J3: May - Nov | K3: 45.38 | N3: Filter Strip | O3: FS | Q3: Low | R3: L | T3: 4 | V3: 4:1 | W3: 4 | Y3: Silt (0.3 in/hr) | Z3: SI | AB3: No | AC3: std | AE3: SI | AF3: 0.3
A4: Geometry | B4: =VLOOKUP(Home!C9,$Q$2:$R$4,2,FALSE) -> N | D4: Los Angeles, CA | E4: LA | F4: 1.84 | G4: 7.3 | H4: 11.6 | I4: 0.295 | J4: Dec - May | K4: 46.6 | N4: Linear Infiltration/Bioretention Swale | O4: IS | Q4: None - At Grade | R4: N | T4: 8 | V4: 8:1 | W4: 8 | Y4: Sandy Loam (1 in/hr) | Z4: SL | AB4: N/A | AC4: std | AE4: SL | AF4: 1
A5: Initial GW Depth | B5: =Home!C10 -> 8 | D5: Madison, WI | E5: MAD | F5: 2.626 | G5: 6.8 | H5: 10.9 | I5: 0.331 | J5: Apr - Oct | K5: 32.64 | N5: Infiltration Trench | O5: IT | T5: 16 | V5: 10:1 | W5: 10 | Y5: Loamy Sand (3 in/hr) | Z5: LS | AE5: LS | AF5: 3
A6: Loading | B6: =VLOOKUP(Home!C11,V2:W7,2,FALSE) -> 20 | D6: Philadelphia, PA | E6: PHI | F6: 2.775 | G6: 6.8 | H6: 10.9 | I6: 0.413 | J6: Apr - Oct | K6: 13.6 | N6: Permeable Shoulder | O6: PS | V6: 20:1 | W6: 20 | Y6: Sand (15 in/hr) | Z6: SA | AE6: SA | AF6: 15
A7: Soil | B7: =VLOOKUP(Home!C12,$Y$2:$Z$6,2,FALSE) -> SI | D7: Seattle, WA | E7: SEA | F7: 4.217 | G7: 8.5 | H7: 16.6 | I7: 0.364 | J7: Nov - May | K7: 4.35 | V7: 50:1 | W7: 50
A8: Underdrain | B8: =VLOOKUP(Home!C13,Input!AB1:AC4,2,FALSE) -> std
A11: UnderDrain Exist? | B11: =IF(ISNA(VLOOKUP(BMP_type&"_"&Geometry&"_"&GWL&"_"&station&"_"&loading&"_"&soil_type&"_--_bmp_High",Raw_model_output!$A$5:$A$11516,1,FALSE)),0,1) -> 1

Sheet Geometry (hidden)
X1: BASIC GEMOTRY | AN1: LOADING GEOMETRY
AN3: Applied Multiplier | AO3: =VLOOKUP(Home!C11,Input!V2:W7,2,FALSE) -> 20
B4: BMP Type | C4: Emb Type | D4: Line Type | E4: xy | F4: Comb | G4: Coordinates (ft) | S4: BMP_Type | T4: Depth | X4: Initial GW Level | Y4: =GWL -> 8 | AN4: BMP | AO4: =BMP_type -> IS
B5: BB | C5: H | D5: road | E5: x | F5: =B5&C5&D5&E5 -> BBHroadx | G5: 0 | H5: 73.32021232 | I5: 79.31758784 | J5: 79.31758784 | K5: 79.31758784 | L5: 79.31758784 | M5: 79.31758784 | N5: 79.31758784 | O5: 79.31758784 | P5: 79.31758784 | Q5: 79.31758784 | S5: BB | T5: 3 | X5: BMP_Depth | Y5: =VLOOKUP(BMP_type,$S$5:$T$9,2,FALSE) -> 1 | AN5: Linear | AO5: =IF(OR($AO$4="FS",$AO$4="PS"),1,0) -> 0
B6: BB | C6: H | D6: road | E6: y | F6: =B6&C6&D6&E6 -> BBHroady | G6: 14.22900308 | H6: 13.49580096 | I6: 11.99645708 | J6: 11.99645708 | K6: 11.99645708 | L6: 11.99645708 | M6: 11.99645708 | N6: 11.99645708 | O6: 11.99645708 | P6: 11.99645708 | Q6: 11.99645708 | S6: IT | T6: 6 | AN6: Non-Linear | AO6: =IF(OR($AO$4="FS",$AO$4="PS"),0,1) -> 1
B7: BB | C7: H | D7: emb | E7: x | F7: BBHembx | G7: 0 | H7: 79.31758784 | I7: 127.6377994 | J7: 262.467 | K7: 262.467 | L7: 262.467 | M7: 262.467 | N7: 262.467 | O7: 262.467 | P7: 262.467 | Q7: 262.467 | S7: IS | T7: 1
B8: BB | C8: H | D8: emb | E8: y | F8: BBHemby | G8: 12.7296592 | H8: 11.99645708 | I8: 0 | J8: 0 | K8: 0 | L8: 0 | M8: 0 | N8: 0 | O8: 0 | P8: 0 | Q8: 0 | S8: PS | T8: =IF(AND(Geometry="N",GWL=2),1,0) -> 0 | X8: Line Type | Y8: xy | Z8: Plotting Coordinates | AN8: Line Type | AO8: bmp_type | AP8: xy | AQ8: Plotting Coordinates
B9: BB | C9: H | D9: bmp | E9: x | F9: BBHbmpx | G9: 127.6377994 | H9: 136.463259 | I9: 158.484257 | J9: 167.3097166 | K9: 127.6377994 | L9: 127.6377994 | M9: 127.6377994 | N9: 127.6377994 | O9: 127.6377994 | P9: 127.6377994 | Q9: 127.6377994 | S9: FS | T9: 0 | X9: Road | Y9: x | Z9: =VLOOKUP(BMP_type&Geometry&Geometry!$X9&Geometry!$Y9,Geometry!$F$5:$Q$88,2,FALSE) -> 0 | AA9: =VLOOKUP(BMP_type&Geometry&Geometry!$X9&Geometry!$Y9,Geometry!$F$5:$Q$88,3,FALSE) -> 88.12008156 | AB9: =VLOOKUP(BMP_type&Geometry&Geometry!$X9&Geometry!$Y9,Geometry!$F$5:$Q$88,4,FALSE) -> 94.09777204 | AC9: =VLOOKUP(BMP_type&Geometry&Geometry!$X9&Geometry!$Y9,Geometry!$F$5:$Q$88,5,FALSE) -> 94.09777204 | AD9: =VLOOKUP(BMP_type&Geometry&Geometry!$X9&Geometry!$Y9,Geometry!$F$5:$Q$88,6,FALSE) -> 94.09777204 | AE9: =VLOOKUP(BMP_type&Geometry&Geometry!$X9&Geometry!$Y9,Geometry!$F$5:$Q$88,7,FALSE) -> 94.09777204 | AF9: =VLOOKUP(BMP_type&Geometry&Geometry!$X9&Geometry!$Y9,Geometry!$F$5:$Q$88,8,FALSE) -> 94.09777204 | AG9: =VLOOKUP(BMP_type&Geometry&Geometry!$X9&Geometry!$Y9,Geometry!$F$5:$Q$88,9,FALSE) -> 94.09777204 | AH9: =VLOOKUP(BMP_type&Geometry&Geometry!$X9&Geometry!$Y9,Geometry!$F$5:$Q$88,10,FALSE) -> 94.09777204 | AI9: =VLOOKUP(BMP_type&Geometry&Geometry!$X9&Geometry!$Y9,Geometry!$F$5:$Q$88,11,FALSE) -> 94.09777204 | AJ9: =VLOOKUP(BMP_type&Geometry&Geometry!$X9&Geometry!$Y9,Geometry!$F$5:$Q$88,12,FALSE) -> 94.09777204 | AN9: bmp | AO9: non-linear | AP9: x | AQ9: 1 | AR9: 2 | AS9: 2 | AT9: 1 | AU9: 1
B10: BB | C10: H | D10: bmp | E10: y | F10: BBHbmpy | G10: 0 | H10: -2.99868776 | I10: -2.99868776 | J10: 0 | K10: 0 | L10: 0 | M10: 0 | N10: 0 | O10: 0 | P10: 0 | Q10: 0 | X10: Road | Y10: y | Z10: =VLOOKUP(BMP_type&Geometry&Geometry!$X10&Geometry!$Y10,Geometry!$F$5:$Q$88,2,FALSE)+$Y$4+$Y$5 -> 11.37204732 | AA10: =VLOOKUP(BMP_type&Geometry&Geometry!$X10&Geometry!$Y10,Geometry!$F$5:$Q$88,3,FALSE)+$Y$4+$Y$5 -> 10.4908465 | AB10: =VLOOKUP(BMP_type&Geometry&Geometry!$X10&Geometry!$Y10,Geometry!$F$5:$Q$88,4,FALSE)+$Y$4+$Y$5 -> 9 | AC10: =VLOOKUP(BMP_type&Geometry&Geometry!$X10&Geometry!$Y10,Geometry!$F$5:$Q$88,5,FALSE)+$Y$4+$Y$5 -> 9 | AD10: =VLOOKUP(BMP_type&Geometry&Geometry!$X10&Geometry!$Y10,Geometry!$F$5:$Q$88,6,FALSE)+$Y$4+$Y$5 -> 9 | AE10: =VLOOKUP(BMP_type&Geometry&Geometry!$X10&Geometry!$Y10,Geometry!$F$5:$Q$88,7,FALSE)+$Y$4+$Y$5 -> 9 | AF10: =VLOOKUP(BMP_type&Geometry&Geometry!$X10&Geometry!$Y10,Geometry!$F$5:$Q$88,8,FALSE)+$Y$4+$Y$5 -> 9 | AG10: =VLOOKUP(BMP_type&Geometry&Geometry!$X10&Geometry!$Y10,Geometry!$F$5:$Q$88,9,FALSE)+$Y$4+$Y$5 -> 9 | AH10: =VLOOKUP(BMP_type&Geometry&Geometry!$X10&Geometry!$Y10,Geometry!$F$5:$Q$88,10,FALSE)+$Y$4+$Y$5 -> 9 | AI10: =VLOOKUP(BMP_type&Geometry&Geometry!$X10&Geometry!$Y10,Geometry!$F$5:$Q$88,11,FALSE)+$Y$4+$Y$5 -> 9 | AJ10: =VLOOKUP(BMP_type&Geometry&Geometry!$X10&Geometry!$Y10,Geometry!$F$5:$Q$88,12,FALSE)+$Y$4+$Y$5 -> 9 | AN10: bmp | AO10: non-linear | AP10: y | AQ10: 1 | AR10: 1 | AS10: =1+8*linear+1*nonlinear -> 2 | AT10: =1+8*linear+1*nonlinear -> 2 | AU10: 1
B11: BB | C11: L | D11: road | E11: x | F11: BBLroadx | G11: 0 | H11: 73.32021232 | I11: 78.51706288 | J11: 78.51706288 | K11: 78.51706288 | L11: 78.51706288 | M11: 78.51706288 | N11: 78.51706288 | O11: 78.51706288 | P11: 78.51706288 | Q11: 78.51706288 | X11: emb | Y11: x | Z11: =VLOOKUP(BMP_type&Geometry&Geometry!$X11&Geometry!$Y11,Geometry!$F$5:$Q$88,2,FALSE) -> 0 | AA11: =VLOOKUP(BMP_type&Geometry&Geometry!$X11&Geometry!$Y11,Geometry!$F$5:$Q$88,3,FALSE) -> 94.09777204 | AB11: =VLOOKUP(BMP_type&Geometry&Geometry!$X11&Geometry!$Y11,Geometry!$F$5:$Q$88,4,FALSE) -> 262.467 | AC11: =VLOOKUP(BMP_type&Geometry&Geometry!$X11&Geometry!$Y11,Geometry!$F$5:$Q$88,5,FALSE) -> 262.467 | AD11: =VLOOKUP(BMP_type&Geometry&Geometry!$X11&Geometry!$Y11,Geometry!$F$5:$Q$88,6,FALSE) -> 262.467 | AE11: =VLOOKUP(BMP_type&Geometry&Geometry!$X11&Geometry!$Y11,Geometry!$F$5:$Q$88,7,FALSE) -> 262.467 | AF11: =VLOOKUP(BMP_type&Geometry&Geometry!$X11&Geometry!$Y11,Geometry!$F$5:$Q$88,8,FALSE) -> 262.467 | AG11: =VLOOKUP(BMP_type&Geometry&Geometry!$X11&Geometry!$Y11,Geometry!$F$5:$Q$88,9,FALSE) -> 262.467 | AH11: =VLOOKUP(BMP_type&Geometry&Geometry!$X11&Geometry!$Y11,Geometry!$F$5:$Q$88,10,FALSE) -> 262.467 | AI11: =VLOOKUP(BMP_type&Geometry&Geometry!$X11&Geometry!$Y11,Geometry!$F$5:$Q$88,11,FALSE) -> 262.467 | AJ11: =VLOOKUP(BMP_type&Geometry&Geometry!$X11&Geometry!$Y11,Geometry!$F$5:$Q$88,12,FALSE) -> 262.467 | AN11: road | AO11: non-linear | AP11: x | AQ11: 3 | AR11: =3+linear*$AO$3+1*nonlinear -> 4 | AS11: =3+linear*$AO$3+1*nonlinear -> 4 | AT11: 3 | AU11: 3
B12: BB | C12: L | D12: road | E12: y | F12: BBLroady | G12: 6.13188996 | H12: 5.495407 | I12: 3.935958131 | J12: 3.935958131 | K12: 3.935958131 | L12: 3.935958131 | M12: 3.935958131 | N12: 3.935958131 | O12: 3.935958131 | P12: 3.935958131 | Q12: 3.935958131 | X12: emb | Y12: y | Z12: =VLOOKUP(BMP_type&Geometry&Geometry!$X12&Geometry!$Y12,Geometry!$F$5:$Q$88,2,FALSE)+$Y$4+$Y$5 -> 9.87270344 | AA12: =VLOOKUP(BMP_type&Geometry&Geometry!$X12&Geometry!$Y12,Geometry!$F$5:$Q$88,3,FALSE)+$Y$4+$Y$5 -> 9 | AB12: =VLOOKUP(BMP_type&Geometry&Geometry!$X12&Geometry!$Y12,Geometry!$F$5:$Q$88,4,FALSE)+$Y$4+$Y$5 -> 9 | AC12: =VLOOKUP(BMP_type&Geometry&Geometry!$X12&Geometry!$Y12,Geometry!$F$5:$Q$88,5,FALSE)+$Y$4+$Y$5 -> 9 | AD12: =VLOOKUP(BMP_type&Geometry&Geometry!$X12&Geometry!$Y12,Geometry!$F$5:$Q$88,6,FALSE)+$Y$4+$Y$5 -> 9 | AE12: =VLOOKUP(BMP_type&Geometry&Geometry!$X12&Geometry!$Y12,Geometry!$F$5:$Q$88,7,FALSE)+$Y$4+$Y$5 -> 9 | AF12: =VLOOKUP(BMP_type&Geometry&Geometry!$X12&Geometry!$Y12,Geometry!$F$5:$Q$88,8,FALSE)+$Y$4+$Y$5 -> 9 | AG12: =VLOOKUP(BMP_type&Geometry&Geometry!$X12&Geometry!$Y12,Geometry!$F$5:$Q$88,9,FALSE)+$Y$4+$Y$5 -> 9 | AH12: =VLOOKUP(BMP_type&Geometry&Geometry!$X12&Geometry!$Y12,Geometry!$F$5:$Q$88,10,FALSE)+$Y$4+$Y$5 -> 9 | AI12: =VLOOKUP(BMP_type&Geometry&Geometry!$X12&Geometry!$Y12,Geometry!$F$5:$Q$88,11,FALSE)+$Y$4+$Y$5 -> 9 | AJ12: =VLOOKUP(BMP_type&Geometry&Geometry!$X12&Geometry!$Y12,Geometry!$F$5:$Q$88,12,FALSE)+$Y$4+$Y$5 -> 9 | AN12: road | AO12: non-linear | AP12: y | AQ12: 1 | AR12: 1 | AS12: =1+$AO$3*nonlinear+8*linear -> 21 | AT12: =1+$AO$3*nonlinear+8*linear -> 21 | AU12: 1
B13: BB | C13: L | D13: emb | E13: x | F13: BBLembx | G13: 0 | H13: 78.51706288 | I13: 94.82939936 | J13: 262.467 | K13: 262.467 | L13: 262.467 | M13: 262.467 | N13: 262.467 | O13: 262.467 | P13: 262.467 | Q13: 262.467 | X13: bmp | Y13: x | Z13: =VLOOKUP(BMP_type&Geometry&Geometry!$X13&Geometry!$Y13,Geometry!$F$5:$Q$88,2,FALSE) -> 94.09777204 | AA13: =VLOOKUP(BMP_type&Geometry&Geometry!$X13&Geometry!$Y13,Geometry!$F$5:$Q$88,3,FALSE) -> 97.09974064 | AB13: =VLOOKUP(BMP_type&Geometry&Geometry!$X13&Geometry!$Y13,Geometry!$F$5:$Q$88,4,FALSE) -> 99.09449136 | AC13: =VLOOKUP(BMP_type&Geometry&Geometry!$X13&Geometry!$Y13,Geometry!$F$5:$Q$88,5,FALSE) -> 102.09646 | AD13: =VLOOKUP(BMP_type&Geometry&Geometry!$X13&Geometry!$Y13,Geometry!$F$5:$Q$88,6,FALSE) -> 94.09777204 | AE13: =VLOOKUP(BMP_type&Geometry&Geometry!$X13&Geometry!$Y13,Geometry!$F$5:$Q$88,7,FALSE) -> 94.09777204 | AF13: =VLOOKUP(BMP_type&Geometry&Geometry!$X13&Geometry!$Y13,Geometry!$F$5:$Q$88,8,FALSE) -> 94.09777204 | AG13: =VLOOKUP(BMP_type&Geometry&Geometry!$X13&Geometry!$Y13,Geometry!$F$5:$Q$88,9,FALSE) -> 94.09777204 | AH13: =VLOOKUP(BMP_type&Geometry&Geometry!$X13&Geometry!$Y13,Geometry!$F$5:$Q$88,10,FALSE) -> 94.09777204 | AI13: =VLOOKUP(BMP_type&Geometry&Geometry!$X13&Geometry!$Y13,Geometry!$F$5:$Q$88,11,FALSE) -> 94.09777204 | AJ13: =VLOOKUP(BMP_type&Geometry&Geometry!$X13&Geometry!$Y13,Geometry!$F$5:$Q$88,12,FALSE) -> 94.09777204
B14: BB | C14: L | D14: emb | E14: y | F14: BBLemby | G14: 4.72112876 | H14: 3.935958131 | I14: 0 | J14: 0 | K14: 0 | L14: 0 | M14: 0 | N14: 0 | O14: 0 | P14: 0 | Q14: 0 | X14: bmp | Y14: y | Z14: =VLOOKUP(BMP_type&Geometry&Geometry!$X14&Geometry!$Y14,Geometry!$F$5:$Q$88,2,FALSE)+$Y$4+$Y$5 -> 9 | AA14: =VLOOKUP(BMP_type&Geometry&Geometry!$X14&Geometry!$Y14,Geometry!$F$5:$Q$88,3,FALSE)+$Y$4+$Y$5 -> 7.9993438 | AB14: =VLOOKUP(BMP_type&Geometry&Geometry!$X14&Geometry!$Y14,Geometry!$F$5:$Q$88,4,FALSE)+$Y$4+$Y$5 -> 7.9993438 | AC14: =VLOOKUP(BMP_type&Geometry&Geometry!$X14&Geometry!$Y14,Geometry!$F$5:$Q$88,5,FALSE)+$Y$4+$Y$5 -> 9 | AD14: =VLOOKUP(BMP_type&Geometry&Geometry!$X14&Geometry!$Y14,Geometry!$F$5:$Q$88,6,FALSE)+$Y$4+$Y$5 -> 9 | AE14: =VLOOKUP(BMP_type&Geometry&Geometry!$X14&Geometry!$Y14,Geometry!$F$5:$Q$88,7,FALSE)+$Y$4+$Y$5 -> 9 | AF14: =VLOOKUP(BMP_type&Geometry&Geometry!$X14&Geometry!$Y14,Geometry!$F$5:$Q$88,8,FALSE)+$Y$4+$Y$5 -> 9 | AG14: =VLOOKUP(BMP_type&Geometry&Geometry!$X14&Geometry!$Y14,Geometry!$F$5:$Q$88,9,FALSE)+$Y$4+$Y$5 -> 9 | AH14: =VLOOKUP(BMP_type&Geometry&Geometry!$X14&Geometry!$Y14,Geometry!$F$5:$Q$88,10,FALSE)+$Y$4+$Y$5 -> 9 | AI14: =VLOOKUP(BMP_type&Geometry&Geometry!$X14&Geometry!$Y14,Geometry!$F$5:$Q$88,11,FALSE)+$Y$4+$Y$5 -> 9 | AJ14: =VLOOKUP(BMP_type&Geometry&Geometry!$X14&Geometry!$Y14,Geometry!$F$5:$Q$88,12,FALSE)+$Y$4+$Y$5 -> 9
B15: BB | C15: L | D15: bmp | E15: x | F15: BBLbmpx | G15: 94.82939936 | H15: 103.654859 | I15: 125.675857 | J15: 134.5013166 | K15: 94.82939936 | L15: 94.82939936 | M15: 94.82939936 | N15: 94.82939936 | O15: 94.82939936 | P15: 94.82939936 | Q15: 94.82939936 | X15: Initial GW Level | Y15: x | Z15: 0 | AA15: 262.467 | AB15: 262.467 | AC15: 262.467 | AD15: 262.467 | AE15: 262.467 | AF15: 262.467 | AG15: 262.467 | AH15: 262.467 | AI15: 262.467 | AJ15: 262.467
B16: BB | C16: L | D16: bmp | E16: y | F16: BBLbmpy | G16: 0 | H16: -2.99868776 | I16: -2.99868776 | J16: 0 | K16: 0 | L16: 0 | M16: 0 | N16: 0 | O16: 0 | P16: 0 | Q16: 0 | X16: Initial GW Level | Y16: y | Z16: 0 | AA16: 0 | AB16: 0 | AC16: 0 | AD16: 0 | AE16: 0 | AF16: 0 | AG16: 0 | AH16: 0 | AI16: 0 | AJ16: 0
B17: BB | C17: N | D17: road | E17: x | F17: BBNroadx | G17: 0 | H17: 88.52362488 | I17: 94.50131536 | J17: 262.467 | K17: 262.467 | L17: 262.467 | M17: 262.467 | N17: 262.467 | O17: 262.467 | P17: 262.467 | Q17: 262.467 | X17: Pavement Saturation Nodes | Y17: x | Z17: =AA9-1.64 -> 86.48008156 | AA17: =Z17 -> 86.48008156
B18: BB | C18: N | D18: road | E18: y | F18: BBNroady | G18: 2.37532816 | H18: 1.490091911 | I18: 0 | J18: 0 | K18: 0 | L18: 0 | M18: 0 | N18: 0 | O18: 0 | P18: 0 | Q18: 0 | X18: Pavement Saturation Nodes | Y18: y | Z18: =AA10-1.8 -> 8.690846504 | AA18: =Z18-1.5 -> 7.190846504
B19: BB | C19: N | D19: emb | E19: x | F19: BBNembx | G19: 0 | H19: 94.50131536 | I19: 262.467 | J19: 262.467 | K19: 262.467 | L19: 262.467 | M19: 262.467 | N19: 262.467 | O19: 262.467 | P19: 262.467 | Q19: 262.467
B20: BB | C20: N | D20: emb | E20: y | F20: BBNemby | G20: 0.87598428 | H20: 0 | I20: 0 | J20: 0 | K20: 0 | L20: 0 | M20: 0 | N20: 0 | O20: 0 | P20: 0 | Q20: 0 | X20: MAX MOUNDING
B21: BB | C21: N | D21: bmp | E21: x | F21: BBNbmpx | G21: 94.50131536 | H21: 103.326775 | I21: 125.347773 | J21: 134.1732326 | K21: 94.50131536 | L21: 94.50131536 | M21: 94.50131536 | N21: 94.50131536 | O21: 94.50131536 | P21: 94.50131536 | Q21: 94.50131536
B22: BB | C22: N | D22: bmp | E22: y | F22: BBNbmpy | G22: 0 | H22: -2.99868776 | I22: -2.99868776 | J22: 0 | K22: 0 | L22: 0 | M22: 0 | N22: 0 | O22: 0 | P22: 0 | Q22: 0 | W22: Row Index | X22: xy | Y22: x | Z22: y_high_AZ | AA22: y_low_AZ | AB22: Y_high_AZ | AC22: Y_low_AZ
B23: IT | C23: H | D23: road | E23: x | F23: ITHroadx | G23: 0 | H23: 72.916669 | I23: 78.91404452 | J23: 78.91404452 | K23: 78.91404452 | L23: 78.91404452 | M23: 78.91404452 | N23: 78.91404452 | O23: 78.91404452 | P23: 78.91404452 | Q23: 78.91404452 | W23: 2 | X23: Plotting Coordinates | Y23: 0 | Z23: 0 | AA23: 0 | AB23: =IFERROR(MAX(Z23,HLOOKUP($Y$43,$X$45:$AF$60,W23,FALSE)),Z23) -> 0 | AC23: =IFERROR(MAX(AA23,HLOOKUP($Y$43,$X$63:$AF$78,W23,FALSE)),AA23) -> 0
B24: IT | C24: H | D24: road | E24: y | F24: ITHroady | G24: 14.22572224 | H24: 13.49655555 | I24: 11.93723791 | J24: 11.93723791 | K24: 11.93723791 | L24: 11.93723791 | M24: 11.93723791 | N24: 11.93723791 | O24: 11.93723791 | P24: 11.93723791 | Q24: 11.93723791 | W24: 3 | Y24: 16.4042 | Z24: =Selection!F22 -> 0.51824 | AA24: =Selection!G22 -> 0.88232 | AB24: 0.51824 | AC24: 0.88232
B25: IT | C25: H | D25: emb | E25: x | F25: ITHembx | G25: 0 | H25: 78.91404452 | I25: 126.906172 | J25: 262.467 | K25: 262.467 | L25: 262.467 | M25: 262.467 | N25: 262.467 | O25: 262.467 | P25: 262.467 | Q25: 262.467 | W25: 4 | Y25: 32.8084 | Z25: =Selection!F23 -> 1.02008 | AA25: =Selection!G23 -> 1.70232 | AB25: 1.02008 | AC25: 1.70232
B26: IT | C26: H | D26: emb | E26: y | F26: ITHemby | G26: 12.72637836 | H26: 11.93723791 | I26: 0 | J26: 0 | K26: 0 | L26: 0 | M26: 0 | N26: 0 | O26: 0 | P26: 0 | Q26: 0 | W26: 5 | Y26: 49.2126 | Z26: =Selection!F24 -> 1.64 | AA26: =Selection!G24 -> 2.56168 | AB26: 1.64 | AC26: 2.56168
B27: IT | C27: H | D27: bmp | E27: x | F27: ITHbmpx | G27: 126.906172 | H27: 126.906172 | I27: 134.90486 | J27: 134.90486 | K27: 126.906172 | L27: 126.906172 | M27: 126.906172 | N27: 126.906172 | O27: 126.906172 | P27: 126.906172 | Q27: 126.906172 | W27: 6 | Y27: 65.6168 | Z27: =Selection!F25 -> 2.40752 | AA27: =Selection!G25 -> 3.56864 | AB27: 2.40752 | AC27: 3.56864
B28: IT | C28: H | D28: bmp | E28: y | F28: ITHbmpy | G28: 0 | H28: -6.00065636 | I28: -6.00065636 | J28: 0 | K28: 0 | L28: 0 | M28: 0 | N28: 0 | O28: 0 | P28: 0 | Q28: 0 | W28: 7 | Y28: 82.021 | Z28: =Selection!F26 -> 3.14552 | AA28: =Selection!G26 -> 4.80848 | AB28: 4.58384 | AC28: 5.1808
B29: IT | C29: L | D29: road | E29: x | F29: ITLroadx | G29: 0 | H29: 88.52034404 | I29: 94.51771956 | J29: 94.51771956 | K29: 94.51771956 | L29: 94.51771956 | M29: 94.51771956 | N29: 94.51771956 | O29: 94.51771956 | P29: 94.51771956 | Q29: 94.51771956 | W29: 8 | Y29: 98.4252 | Z29: =Selection!F27 -> 3.48008 | AA29: =Selection!G27 -> 5.65472 | AB29: 5.35464 | AC29: 6.93888
B30: IT | C30: L | D30: road | E30: y | F30: ITLroady | G30: 6.37795296 | H30: 5.49274952 | I30: 3.933431884 | J30: 3.933431884 | K30: 3.933431884 | L30: 3.933431884 | M30: 3.933431884 | N30: 3.933431884 | O30: 3.933431884 | P30: 3.933431884 | Q30: 3.933431884 | W30: 9 | Y30: 114.8294 | Z30: =Selection!F28 -> 3.22752 | AA30: =Selection!G28 -> 4.95608 | AB30: 4.60352 | AC30: 5.2956
B31: IT | C31: L | D31: emb | E31: x | F31: ITLembx | G31: 0 | H31: 94.51771956 | I31: 110.501972 | J31: 262.467 | K31: 262.467 | L31: 262.467 | M31: 262.467 | N31: 262.467 | O31: 262.467 | P31: 262.467 | Q31: 262.467 | W31: 10 | Y31: 131.2336 | Z31: =Selection!F29 -> 2.59776 | AA31: =Selection!G29 -> 3.91632 | AB31: 2.59776 | AC31: 3.91632
B32: IT | C32: L | D32: emb | E32: y | F32: ITLemby | G32: 4.87860908 | H32: 3.933431884 | I32: 0 | J32: 0 | K32: 0 | L32: 0 | M32: 0 | N32: 0 | O32: 0 | P32: 0 | Q32: 0 | W32: 11 | Y32: 147.6378 | Z32: =Selection!F30 -> 1.96472 | AA32: =Selection!G30 -> 3.14552 | AB32: 1.96472 | AC32: 3.14552
B33: IT | C33: L | D33: bmp | E33: x | F33: ITLbmpx | G33: 110.501972 | H33: 110.501972 | I33: 118.50066 | J33: 118.50066 | K33: 110.501972 | L33: 110.501972 | M33: 110.501972 | N33: 110.501972 | O33: 110.501972 | P33: 110.501972 | Q33: 110.501972 | W33: 12 | Y33: 164.042 | Z33: =Selection!F31 -> 1.50224 | AA33: =Selection!G31 -> 2.61088 | AB33: 1.50224 | AC33: 2.61088
B34: IT | C34: L | D34: bmp | E34: y | F34: ITLbmpy | G34: 0 | H34: -6.00065636 | I34: -6.00065636 | J34: 0 | K34: 0 | L34: 0 | M34: 0 | N34: 0 | O34: 0 | P34: 0 | Q34: 0 | W34: 13 | Y34: 180.4462 | Z34: =Selection!F32 -> 1.16768 | AA34: =Selection!G32 -> 2.1484 | AB34: 1.16768 | AC34: 2.1484
B35: IT | C35: N | D35: road | E35: x | F35: ITNroadx | G35: 0 | H35: 88.12008156 | I35: 94.09777204 | J35: 94.09777204 | K35: 94.09777204 | L35: 94.09777204 | M35: 94.09777204 | N35: 94.09777204 | O35: 94.09777204 | P35: 94.09777204 | Q35: 94.09777204 | W35: 14 | Y35: 196.8504 | Z35: =Selection!F33 -> 0.902 | AA35: =Selection!G33 -> 1.80728 | AB35: 0.902 | AC35: 1.80728
B36: IT | C36: N | D36: road | E36: y | F36: ITNroady | G36: 2.37204732 | H36: 1.490846504 | I36: 0 | J36: 0 | K36: 0 | L36: 0 | M36: 0 | N36: 0 | O36: 0 | P36: 0 | Q36: 0 | W36: 15 | Y36: 213.2546 | Z36: =Selection!F34 -> 0.69208 | AA36: =Selection!G34 -> 1.49896 | AB36: 0.69208 | AC36: 1.49896
B37: IT | C37: N | D37: emb | E37: x | F37: ITNembx | G37: 0 | H37: 94.09777204 | I37: 262.467 | J37: 262.467 | K37: 262.467 | L37: 262.467 | M37: 262.467 | N37: 262.467 | O37: 262.467 | P37: 262.467 | Q37: 262.467 | W37: 16 | Y37: 262.467 | Z37: 0 | AA37: 0 | AB37: 0 | AC37: 0
B38: IT | C38: N | D38: emb | E38: y | F38: ITNemby | G38: 0.87270344 | H38: 0 | I38: 0 | J38: 0 | K38: 0 | L38: 0 | M38: 0 | N38: 0 | O38: 0 | P38: 0 | Q38: 0
B39: IT | C39: N | D39: bmp | E39: x | F39: ITNbmpx | G39: 94.09777204 | H39: 94.09777204 | I39: 102.09646 | J39: 102.09646 | K39: 94.09777204 | L39: 94.09777204 | M39: 94.09777204 | N39: 94.09777204 | O39: 94.09777204 | P39: 94.09777204 | Q39: 94.09777204
B40: IT | C40: N | D40: bmp | E40: y | F40: ITNbmpy | G40: 0 | H40: -6.00065636 | I40: -6.00065636 | J40: 0 | K40: 0 | L40: 0 | M40: 0 | N40: 0 | O40: 0 | P40: 0 | Q40: 0
B41: IS | C41: H | D41: road | E41: x | F41: ISHroadx | G41: 0 | H41: 72.916669 | I41: 78.91404452 | J41: 78.91404452 | K41: 78.91404452 | L41: 78.91404452 | M41: 78.91404452 | N41: 78.91404452 | O41: 78.91404452 | P41: 78.91404452 | Q41: 78.91404452 | X41: REAL MAX MOUNDING (for IT, BB, IS)
B42: IS | C42: H | D42: road | E42: y | F42: ISHroady | G42: 14.22572224 | H42: 13.49655555 | I42: 11.93723791 | J42: 11.93723791 | K42: 11.93723791 | L42: 11.93723791 | M42: 11.93723791 | N42: 11.93723791 | O42: 11.93723791 | P42: 11.93723791 | Q42: 11.93723791
B43: IS | C43: H | D43: emb | E43: x | F43: ISHembx | G43: 0 | H43: 78.91404452 | I43: 126.906172 | J43: 262.467 | K43: 262.467 | L43: 262.467 | M43: 262.467 | N43: 262.467 | O43: 262.467 | P43: 262.467 | Q43: 262.467 | X43: BMP_GEOM | Y43: =BMP_type&"_"&Geometry -> IS_N
B44: IS | C44: H | D44: emb | E44: y | F44: ISHemby | G44: 12.72637836 | H44: 11.93723791 | I44: 0 | J44: 0 | K44: 0 | L44: 0 | M44: 0 | N44: 0 | O44: 0 | P44: 0 | Q44: 0 | X44: High AZ
B45: IS | C45: H | D45: bmp | E45: x | F45: ISHbmpx | G45: 126.906172 | H45: 129.9081406 | I45: 131.9028914 | J45: 134.90486 | K45: 126.906172 | L45: 126.906172 | M45: 126.906172 | N45: 126.906172 | O45: 126.906172 | P45: 126.906172 | Q45: 126.906172 | X45: BB_L | Y45: BB_H | Z45: BB_N | AA45: IS_L | AB45: IS_H | AC45: IS_N | AD45: IT_L | AE45: IT_H | AF45: IT_N | AH45: Col | AI45: High_AZ
B46: IS | C46: H | D46: bmp | E46: y | F46: ISHbmpy | G46: 0 | H46: -1.0006562 | I46: -1.0006562 | J46: 0 | K46: 0 | L46: 0 | M46: 0 | N46: 0 | O46: 0 | P46: 0 | Q46: 0 | W46: 5 | X46: 0 | Y46: 0 | Z46: 0 | AA46: 0 | AB46: 0 | AC46: 0 | AD46: 0 | AE46: 0 | AF46: 0 | AH46: 1 | AI46: =Selection!F438 -> 4.58384
B47: IS | C47: L | D47: road | E47: x | F47: ISLroadx | G47: 0 | H47: 88.52034404 | I47: 94.51771956 | J47: 94.51771956 | K47: 94.51771956 | L47: 94.51771956 | M47: 94.51771956 | N47: 94.51771956 | O47: 94.51771956 | P47: 94.51771956 | Q47: 94.51771956 | W47: 6 | X47: 0 | Y47: 0 | Z47: 0 | AA47: 0 | AB47: 0 | AC47: 0 | AD47: 0 | AE47: 0 | AF47: 0 | AH47: 2 | AI47: =IF(AND(Selection!F439<AI46,Selection!F439<AI48),MAX(AI46,AI48),Selection!F439) -> 5.35464
B48: IS | C48: L | D48: road | E48: y | F48: ISLroady | G48: 6.37795296 | H48: 5.49274952 | I48: 3.933431884 | J48: 3.933431884 | K48: 3.933431884 | L48: 3.933431884 | M48: 3.933431884 | N48: 3.933431884 | O48: 3.933431884 | P48: 3.933431884 | Q48: 3.933431884 | W48: 7 | X48: 0 | Y48: 0 | Z48: 0 | AA48: 0 | AB48: 0 | AC48: 0 | AD48: 0 | AE48: 0 | AF48: 0 | AH48: 3 | AI48: =Selection!F440 -> 4.60352
B49: IS | C49: L | D49: emb | E49: x | F49: ISLembx | G49: 0 | H49: 94.51771956 | I49: 110.501972 | J49: 262.467 | K49: 262.467 | L49: 262.467 | M49: 262.467 | N49: 262.467 | O49: 262.467 | P49: 262.467 | Q49: 262.467 | W49: 8 | X49: 0 | Y49: 0 | Z49: 0 | AA49: 0 | AB49: 0 | AC49: 0 | AD49: 0 | AE49: 0 | AF49: 0
B50: IS | C50: L | D50: emb | E50: y | F50: ISLemby | G50: 4.87860908 | H50: 3.933431884 | I50: 0 | J50: 0 | K50: 0 | L50: 0 | M50: 0 | N50: 0 | O50: 0 | P50: 0 | Q50: 0 | W50: 9 | X50: 0 | Y50: 0 | Z50: 0 | AA50: 0 | AB50: 0 | AC50: 0 | AD50: 0 | AE50: 0 | AF50: 0
B51: IS | C51: L | D51: bmp | E51: x | F51: ISLbmpx | G51: 110.501972 | H51: 113.5039406 | I51: 115.4986914 | J51: 118.50066 | K51: 110.501972 | L51: 110.501972 | M51: 110.501972 | N51: 110.501972 | O51: 110.501972 | P51: 110.501972 | Q51: 110.501972 | W51: 10 | X51: =$AI$46 -> 4.58384 | Y51: 0 | Z51: =AI46 -> 4.58384 | AA51: 0 | AB51: 0 | AC51: =AI46 -> 4.58384 | AD51: 0 | AE51: 0 | AF51: =AI46 -> 4.58384
B52: IS | C52: L | D52: bmp | E52: y | F52: ISLbmpy | G52: 0 | H52: -1.0006562 | I52: -1.0006562 | J52: 0 | K52: 0 | L52: 0 | M52: 0 | N52: 0 | O52: 0 | P52: 0 | Q52: 0 | W52: 11 | X52: =($X$51+$X$53)/2 -> 4.96924 | Y52: 0 | Z52: =(Z51+Z53)/2 -> 4.96924 | AA52: =AI46 -> 4.58384 | AB52: 0 | AC52: =AI47 -> 5.35464 | AD52: =AI46 -> 4.58384 | AE52: 0 | AF52: =AI47 -> 5.35464
B53: IS | C53: N | D53: road | E53: x | F53: ISNroadx | G53: 0 | H53: 88.12008156 | I53: 94.09777204 | J53: 94.09777204 | K53: 94.09777204 | L53: 94.09777204 | M53: 94.09777204 | N53: 94.09777204 | O53: 94.09777204 | P53: 94.09777204 | Q53: 94.09777204 | W53: 12 | X53: =$AI$47 -> 5.35464 | Y53: =AI46 -> 4.58384 | Z53: =AI47 -> 5.35464 | AA53: =AI47 -> 5.35464 | AB53: =AI46 -> 4.58384 | AC53: =AI48 -> 4.60352 | AD53: =AI47 -> 5.35464 | AE53: =AI46 -> 4.58384 | AF53: 4.60352
B54: IS | C54: N | D54: road | E54: y | F54: ISNroady | G54: 2.37204732 | H54: 1.490846504 | I54: 0 | J54: 0 | K54: 0 | L54: 0 | M54: 0 | N54: 0 | O54: 0 | P54: 0 | Q54: 0 | W54: 13 | X54: =($X$53+$X$55)/2 -> 4.97908 | Y54: =(Y53+Y55)/2 -> 4.96924 | Z54: =(Z53+Z55)/2 -> 4.97908 | AA54: =AI48 -> 4.60352 | AB54: =AI47 -> 5.35464 | AC54: 0 | AD54: =AI48 -> 4.60352 | AE54: =AI47 -> 5.35464 | AF54: 0
B55: IS | C55: N | D55: emb | E55: x | F55: ISNembx | G55: 0 | H55: 94.09777204 | I55: 262.467 | J55: 262.467 | K55: 262.467 | L55: 262.467 | M55: 262.467 | N55: 262.467 | O55: 262.467 | P55: 262.467 | Q55: 262.467 | W55: 14 | X55: =$AI$48 -> 4.60352 | Y55: =AI47 -> 5.35464 | Z55: =AI48 -> 4.60352 | AA55: 0 | AB55: =AI48 -> 4.60352 | AC55: 0 | AD55: 0 | AE55: 4.60352 | AF55: 0
B56: IS | C56: N | D56: emb | E56: y | F56: ISNemby | G56: 0.87270344 | H56: 0 | I56: 0 | J56: 0 | K56: 0 | L56: 0 | M56: 0 | N56: 0 | O56: 0 | P56: 0 | Q56: 0 | W56: 15 | X56: 0 | Y56: =(Y55+Y57)/2 -> 4.97908 | Z56: 0 | AA56: 0 | AB56: 0 | AC56: 0 | AD56: 0 | AE56: 0 | AF56: 0
B57: IS | C57: N | D57: bmp | E57: x | F57: ISNbmpx | G57: 94.09777204 | H57: 97.09974064 | I57: 99.09449136 | J57: 102.09646 | K57: 94.09777204 | L57: 94.09777204 | M57: 94.09777204 | N57: 94.09777204 | O57: 94.09777204 | P57: 94.09777204 | Q57: 94.09777204 | W57: 16 | X57: 0 | Y57: =AI48 -> 4.60352 | Z57: 0 | AA57: 0 | AB57: 0 | AC57: 0 | AD57: 0 | AE57: 0 | AF57: 0
B58: IS | C58: N | D58: bmp | E58: y | F58: ISNbmpy | G58: 0 | H58: -1.0006562 | I58: -1.0006562 | J58: 0 | K58: 0 | L58: 0 | M58: 0 | N58: 0 | O58: 0 | P58: 0 | Q58: 0 | W58: 17 | X58: 0 | Y58: 0 | Z58: 0 | AA58: 0 | AB58: 0 | AC58: 0 | AD58: 0 | AE58: 0 | AF58: 0
B59: PS | C59: H | D59: road | E59: x | F59: PSHroadx | G59: 0 | H59: 76.93897884 | I59: 76.93897884 | J59: 86.94226 | K59: 86.94226 | L59: 92.93963552 | M59: 92.93963552 | N59: 92.93963552 | O59: 92.93963552 | P59: 92.93963552 | Q59: 92.93963552 | W59: 18 | X59: 0 | Y59: 0 | Z59: 0 | AA59: 0 | AB59: 0 | AC59: 0 | AD59: 0 | AE59: 0 | AF59: 0
B60: PS | C60: H | D60: road | E60: y | F60: PSHroady | G60: 14.36679836 | H60: 13.59740857 | I60: 11.09740849 | J60: 11.09740849 | K60: 13.49737576 | L60: 11.93805812 | M60: 11.93805812 | N60: 11.93805812 | O60: 11.93805812 | P60: 11.93805812 | Q60: 11.93805812 | W60: 19 | X60: 0 | Y60: 0 | Z60: 0 | AA60: 0 | AB60: 0 | AC60: 0 | AD60: 0 | AE60: 0 | AF60: 0
B61: PS | C61: H | D61: emb | E61: x | F61: PSHembx | G61: 0 | H61: 76.93897884 | I61: 76.93897884 | J61: 86.94226 | K61: 86.94226 | L61: 92.93963552 | M61: 140.931763 | N61: 142.572183 | O61: 144.212603 | P61: 145.853023 | Q61: 262.467
B62: PS | C62: H | D62: emb | E62: y | F62: PSHemby | G62: 12.86745448 | H62: 12.09806469 | I62: 11.09740849 | J62: 11.09740849 | K62: 11.99803188 | L62: 11.93805812 | M62: 0 | N62: -1.1811024 | O62: -1.1811024 | P62: 0 | Q62: 0 | X62: Low AZ
B63: PS | C63: H | D63: bmp | E63: x | F63: PSHbmpx | G63: 76.93897884 | H63: 76.93897884 | I63: 86.94226 | J63: 86.94226 | K63: 76.93897884 | L63: 76.93897884 | M63: 76.93897884 | N63: 76.93897884 | O63: 76.93897884 | P63: 76.93897884 | Q63: 76.93897884 | X63: BB_L | Y63: BB_H | Z63: BB_N | AA63: IS_L | AB63: IS_H | AC63: IS_N | AD63: IT_L | AE63: IT_H | AF63: IT_N | AH63: Col | AI63: Low_AZ
B64: PS | C64: H | D64: bmp | E64: y | F64: PSHbmpy | G64: 13.59740857 | H64: 11.09740849 | I64: 11.09740849 | J64: 13.49737576 | K64: 13.59740857 | L64: 13.59740857 | M64: 13.59740857 | N64: 13.59740857 | O64: 13.59740857 | P64: 13.59740857 | Q64: 13.59740857 | X64: 0 | Y64: 0 | Z64: 0 | AA64: 0 | AB64: 0 | AC64: 0 | AD64: 0 | AE64: 0 | AF64: 0 | AH64: 1 | AI64: =Selection!G438 -> 5.1808
B65: PS | C65: L | D65: road | E65: x | F65: PSLroadx | G65: 0 | H65: 76.93897884 | I65: 76.93897884 | J65: 86.94226 | K65: 86.94226 | L65: 92.93963552 | M65: 92.93963552 | N65: 92.93963552 | O65: 92.93963552 | P65: 92.93963552 | Q65: 92.93963552 | X65: 0 | Y65: 0 | Z65: 0 | AA65: 0 | AB65: 0 | AC65: 0 | AD65: 0 | AE65: 0 | AF65: 0 | AH65: 2 | AI65: =IF(AND(Selection!G439<AI64,Selection!G439<AI66),MAX(AI64,AI66),Selection!G439) -> 6.93888
B66: PS | C66: L | D66: road | E66: y | F66: PSLroady | G66: 6.36154876 | H66: 5.592158972 | I66: 3.092158892 | J66: 3.092158892 | K66: 5.49212616 | L66: 3.932808525 | M66: 3.932808525 | N66: 3.932808525 | O66: 3.932808525 | P66: 3.932808525 | Q66: 3.932808525 | X66: 0 | Y66: 0 | Z66: 0 | AA66: 0 | AB66: 0 | AC66: 0 | AD66: 0 | AE66: 0 | AF66: 0 | AH66: 3 | AI66: =Selection!G440 -> 5.2956
B67: PS | C67: L | D67: emb | E67: x | F67: PSLembx | G67: 0 | H67: 76.93897884 | I67: 76.93897884 | J67: 86.94226 | K67: 86.94226 | L67: 92.93963552 | M67: 108.923888 | N67: 110.564308 | O67: 112.204728 | P67: 113.845148 | Q67: 262.467 | X67: 0 | Y67: 0 | Z67: 0 | AA67: 0 | AB67: 0 | AC67: 0 | AD67: 0 | AE67: 0 | AF67: 0
B68: PS | C68: L | D68: emb | E68: y | F68: PSLemby | G68: 4.86220488 | H68: 4.092815092 | I68: 3.092158892 | J68: 3.092158892 | K68: 3.99278228 | L68: 3.932808525 | M68: 0 | N68: -1.1811024 | O68: -1.1811024 | P68: 0 | Q68: 0 | X68: 0 | Y68: 0 | Z68: 0 | AA68: 0 | AB68: 0 | AC68: 0 | AD68: 0 | AE68: 0 | AF68: 0
B69: PS | C69: L | D69: bmp | E69: x | F69: PSLbmpx | G69: 76.93897884 | H69: 76.93897884 | I69: 86.94226 | J69: 86.94226 | K69: 76.93897884 | L69: 76.93897884 | M69: 76.93897884 | N69: 76.93897884 | O69: 76.93897884 | P69: 76.93897884 | Q69: 76.93897884 | X69: =AI64 -> 5.1808 | Y69: 0 | Z69: =AI64 -> 5.1808 | AA69: 0 | AB69: 0 | AC69: =AI64 -> 5.1808 | AD69: 0 | AE69: 0 | AF69: =AI64 -> 5.1808
B70: PS | C70: L | D70: bmp | E70: y | F70: =B70&C70&D70&E70 -> PSLbmpy | G70: 5.592158972 | H70: 3.092158892 | I70: 3.092158892 | J70: 5.49212616 | K70: 5.592158972 | L70: 5.592158972 | M70: 5.592158972 | N70: 5.592158972 | O70: 5.592158972 | P70: 5.592158972 | Q70: 5.592158972 | X70: =(X69+X71)/2 -> 6.05984 | Y70: 0 | Z70: =(Z69+Z71)/2 -> 6.05984 | AA70: =AI64 -> 5.1808 | AB70: 0 | AC70: =AI65 -> 6.93888 | AD70: =AI64 -> 5.1808 | AE70: 0 | AF70: =AI65 -> 6.93888
B71: PS | C71: N | D71: road | E71: x | F71: PSNroadx | G71: 0 | H71: 76.93897884 | I71: 76.93897884 | J71: 76.93897884 | K71: 76.93897884 | L71: 76.93897884 | M71: 76.93897884 | N71: 76.93897884 | O71: 76.93897884 | P71: 76.93897884 | Q71: 76.93897884 | X71: =AI65 -> 6.93888 | Y71: =AI64 -> 5.1808 | Z71: =AI65 -> 6.93888 | AA71: =AI65 -> 6.93888 | AB71: =AI64 -> 5.1808 | AC71: =AI66 -> 5.2956 | AD71: =AI65 -> 6.93888 | AE71: =AI64 -> 5.1808 | AF71: 5.2956
B72: PS | C72: N | D72: road | E72: y | F72: PSNroady | G72: 2.99934388 | H72: 1.49934388 | I72: 1.49934388 | J72: 1.49934388 | K72: 1.49934388 | L72: 1.49934388 | M72: 1.49934388 | N72: 1.49934388 | O72: 1.49934388 | P72: 1.49934388 | Q72: 1.49934388 | X72: =(X71+X73)/2 -> 6.11724 | Y72: =(Y71+Y73)/2 -> 6.05984 | Z72: =(Z71+Z73)/2 -> 6.11724 | AA72: =AI66 -> 5.2956 | AB72: =AI65 -> 6.93888 | AC72: 0 | AD72: =AI66 -> 5.2956 | AE72: =AI65 -> 6.93888 | AF72: 0
B73: PS | C73: N | D73: emb | E73: x | F73: PSNembx | G73: 0 | H73: 76.93897884 | I73: 76.93897884 | J73: 86.94226 | K73: 86.94226 | L73: 262.467 | M73: 262.467 | N73: 262.467 | O73: 262.467 | P73: 262.467 | Q73: 262.467 | X73: =AI66 -> 5.2956 | Y73: =AI65 -> 6.93888 | Z73: =AI66 -> 5.2956 | AA73: 0 | AB73: =AI66 -> 5.2956 | AC73: 0 | AD73: 0 | AE73: 5.2956 | AF73: 0
B74: PS | C74: N | D74: emb | E74: y | F74: PSNemby | G74: 1.49934388 | H74: 0 | I74: -1.0006562 | J74: -1.0006562 | K74: 1.399311068 | L74: 1.399311068 | M74: 1.399311068 | N74: 1.399311068 | O74: 1.399311068 | P74: 1.399311068 | Q74: 1.399311068 | X74: 0 | Y74: =(Y73+Y75)/2 -> 6.11724 | Z74: 0 | AA74: 0 | AB74: 0 | AC74: 0 | AD74: 0 | AE74: 0 | AF74: 0
B75: PS | C75: N | D75: bmp | E75: x | F75: PSNbmpx | G75: 76.93897884 | H75: 76.93897884 | I75: 86.94226 | J75: 86.94226 | K75: 76.93897884 | L75: 76.93897884 | M75: 76.93897884 | N75: 76.93897884 | O75: 76.93897884 | P75: 76.93897884 | Q75: 76.93897884 | X75: 0 | Y75: =AI66 -> 5.2956 | Z75: 0 | AA75: 0 | AB75: 0 | AC75: 0 | AD75: 0 | AE75: 0 | AF75: 0
B76: PS | C76: N | D76: bmp | E76: y | F76: PSNbmpy | G76: 1.49934388 | H76: -1.0006562 | I76: -1.0006562 | J76: 1.399311068 | K76: 1.49934388 | L76: 1.49934388 | M76: 1.49934388 | N76: 1.49934388 | O76: 1.49934388 | P76: 1.49934388 | Q76: 1.49934388 | X76: 0 | Y76: 0 | Z76: 0 | AA76: 0 | AB76: 0 | AC76: 0 | AD76: 0 | AE76: 0 | AF76: 0
B77: FS | C77: H | D77: road | E77: x | F77: FSHroadx | G77: 0 | H77: 85.15092136 | I77: 91.14829688 | J77: 91.14829688 | K77: 91.14829688 | L77: 91.14829688 | M77: 91.14829688 | N77: 91.14829688 | O77: 91.14829688 | P77: 91.14829688 | Q77: 91.14829688 | X77: 0 | Y77: 0 | Z77: 0 | AA77: 0 | AB77: 0 | AC77: 0 | AD77: 0 | AE77: 0 | AF77: 0
B78: FS | C78: H | D78: road | E78: y | F78: FSHroady | G78: 14.24868812 | H78: 13.39717891 | I78: 11.83786127 | J78: 11.83786127 | K78: 11.83786127 | L78: 11.83786127 | M78: 11.83786127 | N78: 11.83786127 | O78: 11.83786127 | P78: 11.83786127 | Q78: 11.83786127 | X78: 0 | Y78: 0 | Z78: 0 | AA78: 0 | AB78: 0 | AC78: 0 | AD78: 0 | AE78: 0 | AF78: 0
B79: FS | C79: H | D79: emb | E79: x | F79: FSHembx | G79: 0 | H79: 91.14829688 | I79: 139.1404244 | J79: 140.7808444 | K79: 142.4212644 | L79: 144.0616844 | M79: 262.467 | N79: 262.467 | O79: 262.467 | P79: 262.467 | Q79: 262.467
B80: FS | C80: H | D80: emb | E80: y | F80: FSHemby | G80: 12.74934424 | H80: 11.83786127 | I80: 0 | J80: -1.1811024 | K80: -1.1811024 | L80: 0 | M80: 0 | N80: 0 | O80: 0 | P80: 0 | Q80: 0
B81: FS | C81: H | D81: bmp | E81: x | F81: FSHbmpx | G81: 91.14829688 | H81: 107.0229899 | I81: 107.0229899 | J81: 107.0229899 | K81: 107.0229899 | L81: 107.0229899 | M81: 107.0229899 | N81: 107.0229899 | O81: 107.0229899 | P81: 107.0229899 | Q81: 107.0229899
B82: FS | C82: H | D82: bmp | E82: y | F82: FSHbmpy | G82: 11.83786127 | H82: 7.922168771 | I82: 7.922168771 | J82: 7.922168771 | K82: 7.922168771 | L82: 7.922168771 | M82: 7.922168771 | N82: 7.922168771 | O82: 7.922168771 | P82: 7.922168771 | Q82: 7.922168771
B83: FS | C83: L | D83: road | E83: x | F83: FSLroadx | G83: 0 | H83: 85.15092136 | I83: 91.14829688 | J83: 91.14829688 | K83: 91.14829688 | L83: 91.14829688 | M83: 91.14829688 | N83: 91.14829688 | O83: 91.14829688 | P83: 91.14829688 | Q83: 91.14829688
B84: FS | C84: L | D84: road | E84: y | F84: FSLroady | G84: 6.34514456 | H84: 5.493635346 | I84: 3.934317711 | J84: 3.934317711 | K84: 3.934317711 | L84: 3.934317711 | M84: 3.934317711 | N84: 3.934317711 | O84: 3.934317711 | P84: 3.934317711 | Q84: 3.934317711
B85: FS | C85: L | D85: emb | E85: x | F85: FSLembx | G85: 0 | H85: 91.14829688 | I85: 107.1325494 | J85: 108.7729694 | K85: 110.4133894 | L85: 112.0538094 | M85: 262.467 | N85: 262.467 | O85: 262.467 | P85: 262.467 | Q85: 262.467
B86: FS | C86: L | D86: emb | E86: y | F86: FSLemby | G86: 4.84580068 | H86: 3.934317711 | I86: 0 | J86: -1.1811024 | K86: -1.1811024 | L86: 0 | M86: 0 | N86: 0 | O86: 0 | P86: 0 | Q86: 0
B87: FS | C87: L | D87: bmp | E87: x | F87: FSLbmpx | G87: 91.14829688 | H87: 107.1325494 | I87: 107.1325494 | J87: 107.1325494 | K87: 107.1325494 | L87: 107.1325494 | M87: 107.1325494 | N87: 107.1325494 | O87: 107.1325494 | P87: 107.1325494 | Q87: 107.1325494
B88: FS | C88: L | D88: bmp | E88: y | F88: FSLbmpy | G88: 3.934317711 | H88: 0 | I88: 0 | J88: 0 | K88: 0 | L88: 0 | M88: 0 | N88: 0 | O88: 0 | P88: 0 | Q88: 0
B96: BMP | C96: Geom | D96: GWL | E96: 19 | G96: 20 | I96: 21 | K96: 22 | M96: 23 | O96: 24 | Q96: 25 | S96: 26 | U96: 27 | W96: 28 | Y96: 29 | AA96: 30
E97: x | F97: y | G97: x | H97: y | I97: x | J97: y | K97: x | L97: y | M97: x | N97: y | O97: x | P97: y | Q97: x | R97: y | S97: x | T97: y | U97: x | V97: y | W97: x | X97: y | Y97: x | Z97: y | AA97: x | AB97: y
A98: PSH2 | B98: PS | C98: H | D98: 2 | E98: 81.94061942 | F98: 11.09740849 | G98: 81.94061942 | H98: 9.097408492 | I98: 81.94061942 | J98: 7.097408492 | K98: 81.94061942 | L98: 5.097408492 | M98: 65.53661942 | N98: 11.09740849 | O98: 65.53661942 | P98: 9.097408492 | Q98: 65.53661942 | R98: 7.097408492 | S98: 65.53661942 | T98: 5.097408492 | U98: 98.34461942 | V98: 11.09740849 | W98: 98.34461942 | X98: 9.097408492 | Y98: 98.34461942 | Z98: 7.097408492 | AA98: 98.34461942 | AB98: 5.097408492
A99: PSH4 | B99: PS | C99: H | D99: 4 | E99: 81.94061942 | F99: 13.09740849 | G99: 81.94061942 | H99: 11.09740849 | I99: 81.94061942 | J99: 9.097408492 | K99: 81.94061942 | L99: 7.097408492 | M99: 65.53661942 | N99: 13.09740849 | O99: 65.53661942 | P99: 11.09740849 | Q99: 65.53661942 | R99: 9.097408492 | S99: 65.53661942 | T99: 7.097408492 | U99: 98.34461942 | V99: 13.09740849 | W99: 98.34461942 | X99: 11.09740849 | Y99: 98.34461942 | Z99: 9.097408492 | AA99: 98.34461942 | AB99: 7.097408492
A100: PSH8 | B100: PS | C100: H | D100: 8 | E100: 81.94061942 | F100: 17.09740849 | G100: 81.94061942 | H100: 15.09740849 | I100: 81.94061942 | J100: 13.09740849 | K100: 81.94061942 | L100: 11.09740849 | M100: 65.53661942 | N100: 17.09740849 | O100: 65.53661942 | P100: 15.09740849 | Q100: 65.53661942 | R100: 13.09740849 | S100: 65.53661942 | T100: 11.09740849 | U100: 98.34461942 | V100: 17.09740849 | W100: 98.34461942 | X100: 15.09740849 | Y100: 98.34461942 | Z100: 13.09740849 | AA100: 98.34461942 | AB100: 11.09740849
A101: PSH16 | B101: PS | C101: H | D101: 16 | E101: 81.94061942 | F101: 25.09740849 | G101: 81.94061942 | H101: 23.09740849 | I101: 81.94061942 | J101: 21.09740849 | K101: 81.94061942 | L101: 19.09740849 | M101: 65.53661942 | N101: 25.09740849 | O101: 65.53661942 | P101: 23.09740849 | Q101: 65.53661942 | R101: 21.09740849 | S101: 65.53661942 | T101: 19.09740849 | U101: 98.34461942 | V101: 25.09740849 | W101: 98.34461942 | X101: 23.09740849 | Y101: 98.34461942 | Z101: 21.09740849 | AA101: 98.34461942 | AB101: 19.09740849
A102: PSL2 | B102: PS | C102: L | D102: 2 | E102: 81.94061942 | F102: 3.092158892 | G102: 65.53661942 | H102: 3.092158892 | I102: 98.34461942 | J102: 3.092158892 | K102: -999 | L102: -999 | M102: -999 | N102: -999 | O102: -999 | P102: -999 | Q102: -999 | R102: -999 | S102: -999 | T102: -999 | U102: -999 | V102: -999 | W102: -999 | X102: -999 | Y102: -999 | Z102: -999 | AA102: -999 | AB102: -999
A103: PSL4 | B103: PS | C103: L | D103: 4 | E103: 81.94061942 | F103: 5.092158892 | G103: 81.94061942 | H103: 3.092158892 | I103: 65.53661942 | J103: 5.092158892 | K103: 65.53661942 | L103: 3.092158892 | M103: 98.34461942 | N103: 5.092158892 | O103: 98.34461942 | P103: 3.092158892 | Q103: -999 | R103: -999 | S103: -999 | T103: -999 | U103: -999 | V103: -999 | W103: -999 | X103: -999 | Y103: -999 | Z103: -999 | AA103: -999 | AB103: -999
A104: PSL8 | B104: PS | C104: L | D104: 8 | E104: 81.94061942 | F104: 9.092158892 | G104: 81.94061942 | H104: 7.092158892 | I104: 81.94061942 | J104: 5.092158892 | K104: 81.94061942 | L104: 3.092158892 | M104: 65.53661942 | N104: 9.092158892 | O104: 65.53661942 | P104: 7.092158892 | Q104: 65.53661942 | R104: 5.092158892 | S104: 65.53661942 | T104: 3.092158892 | U104: 98.34461942 | V104: 9.092158892 | W104: 98.34461942 | X104: 7.092158892 | Y104: 98.34461942 | Z104: 5.092158892 | AA104: 98.34461942 | AB104: 3.092158892
A105: PSL16 | B105: PS | C105: L | D105: 16 | E105: 81.94061942 | F105: 17.09215889 | G105: 81.94061942 | H105: 15.09215889 | I105: 81.94061942 | J105: 13.09215889 | K105: 81.94061942 | L105: 11.09215889 | M105: 65.53661942 | N105: 17.09215889 | O105: 65.53661942 | P105: 15.09215889 | Q105: 65.53661942 | R105: 13.09215889 | S105: 65.53661942 | T105: 11.09215889 | U105: 98.34461942 | V105: 17.09215889 | W105: 98.34461942 | X105: 15.09215889 | Y105: 98.34461942 | Z105: 13.09215889 | AA105: 98.34461942 | AB105: 11.09215889
A106: PSN2 | B106: PS | C106: N | D106: 2 | E106: -999 | F106: -999 | G106: -999 | H106: -999 | I106: -999 | J106: -999 | K106: -999 | L106: -999 | M106: -999 | N106: -999 | O106: -999 | P106: -999 | Q106: -999 | R106: -999 | S106: -999 | T106: -999 | U106: -999 | V106: -999 | W106: -999 | X106: -999 | Y106: -999 | Z106: -999 | AA106: -999 | AB106: -999
A107: PSN4 | B107: PS | C107: N | D107: 4 | E107: 81.94061942 | F107: 0.9993438 | G107: 65.53661942 | H107: 0.9993438 | I107: 98.34461942 | J107: 0.9993438 | K107: -999 | L107: -999 | M107: -999 | N107: -999 | O107: -999 | P107: -999 | Q107: -999 | R107: -999 | S107: -999 | T107: -999 | U107: -999 | V107: -999 | W107: -999 | X107: -999 | Y107: -999 | Z107: -999 | AA107: -999 | AB107: -999
A108: PSN8 | B108: PS | C108: N | D108: 8 | E108: 81.94061942 | F108: 4.9993438 | G108: 81.94061942 | H108: 2.9993438 | I108: 81.94061942 | J108: 0.9993438 | K108: 65.53661942 | L108: 4.9993438 | M108: 65.53661942 | N108: 2.9993438 | O108: 65.53661942 | P108: 0.9993438 | Q108: 98.34461942 | R108: 4.9993438 | S108: 98.34461942 | T108: 2.9993438 | U108: 98.34461942 | V108: 0.9993438 | W108: -999 | X108: -999 | Y108: -999 | Z108: -999 | AA108: -999 | AB108: -999
A109: PSN16 | B109: PS | C109: N | D109: 16 | E109: 81.94061942 | F109: 12.9993438 | G109: 81.94061942 | H109: 10.9993438 | I109: 81.94061942 | J109: 8.9993438 | K109: 81.94061942 | L109: 6.9993438 | M109: 65.53661942 | N109: 12.9993438 | O109: 65.53661942 | P109: 10.9993438 | Q109: 65.53661942 | R109: 8.9993438 | S109: 65.53661942 | T109: 6.9993438 | U109: 98.34461942 | V109: 12.9993438 | W109: 98.34461942 | X109: 10.9993438 | Y109: 98.34461942 | Z109: 8.9993438 | AA109: 98.34461942 | AB109: 6.9993438
A110: FSH2 | B110: FS | C110: H | D110: 2 | E110: 98.4 | F110: 9.880015021 | G110: 98.4 | H110: 7.880015021 | I110: 98.4 | J110: 5.880015021 | K110: 114.8294 | L110: 5.880015021 | M110: 114.8294 | N110: 3.880015021 | O110: 114.8294 | P110: 1.880015021 | Q110: 131.2336 | R110: 1.880015021 | S110: 131.2336 | T110: 0 | U110: -999 | V110: -999 | W110: -999 | X110: -999 | Y110: -999 | Z110: -999 | AA110: -999 | AB110: -999
A111: FSH4 | B111: FS | C111: H | D111: 4 | E111: 98.4 | F111: 11.88001502 | G111: 98.4 | H111: 9.880015021 | I111: 98.4 | J111: 7.880015021 | K111: 98.4 | L111: 5.880015021 | M111: 114.8294 | N111: 7.880015021 | O111: 114.8294 | P111: 5.880015021 | Q111: 114.8294 | R111: 3.880015021 | S111: 131.2336 | T111: 3.880015021 | U111: 131.2336 | V111: 1.880015021 | W111: 131.2336 | X111: 0 | Y111: -999 | Z111: -999 | AA111: -999 | AB111: -999
A112: FSH8 | B112: FS | C112: H | D112: 8 | E112: 98.4 | F112: 15.88001502 | G112: 98.4 | H112: 13.88001502 | I112: 98.4 | J112: 11.88001502 | K112: 98.4 | L112: 9.880015021 | M112: 114.8294 | N112: 11.88001502 | O112: 114.8294 | P112: 9.880015021 | Q112: 114.8294 | R112: 7.880015021 | S112: 114.8294 | T112: 5.880015021 | U112: 131.2336 | V112: 7.880015021 | W112: 131.2336 | X112: 5.880015021 | Y112: 131.2336 | Z112: 3.880015021 | AA112: 131.2336 | AB112: 1.880015021
A113: FSH16 | B113: FS | C113: H | D113: 16 | E113: 98.4 | F113: 23.88001502 | G113: 98.4 | H113: 21.88001502 | I113: 98.4 | J113: 19.88001502 | K113: 98.4 | L113: 17.88001502 | M113: 114.8294 | N113: 19.88001502 | O113: 114.8294 | P113: 17.88001502 | Q113: 114.8294 | R113: 15.88001502 | S113: 114.8294 | T113: 13.88001502 | U113: 131.2336 | V113: 15.88001502 | W113: 131.2336 | X113: 13.88001502 | Y113: 131.2336 | Z113: 11.88001502 | AA113: 131.2336 | AB113: 9.880015021
A114: FSL2 | B114: FS | C114: L | D114: 2 | E114: 98.4 | F114: 1.967158856 | G114: 90.4 | H114: 3.967158856 | I114: 106.4 | J114: 0 | K114: -999 | L114: -999 | M114: -999 | N114: -999 | O114: -999 | P114: -999 | Q114: -999 | R114: -999 | S114: -999 | T114: -999 | U114: -999 | V114: -999 | W114: -999 | X114: -999 | Y114: -999 | Z114: -999 | AA114: -999 | AB114: -999
A115: FSL4 | B115: FS | C115: L | D115: 4 | E115: 98.4 | F115: 3.967158856 | G115: 98.4 | H115: 1.967158856 | I115: 90.4 | J115: 5.967158856 | K115: 90.4 | L115: 3.967158856 | M115: 90.4 | N115: 1.967158856 | O115: 106.4 | P115: 1.967158856 | Q115: -999 | R115: -999 | S115: -999 | T115: -999 | U115: -999 | V115: -999 | W115: -999 | X115: -999 | Y115: -999 | Z115: -999 | AA115: -999 | AB115: -999
A116: FSL8 | B116: FS | C116: L | D116: 8 | E116: 98.4 | F116: 7.967158856 | G116: 98.4 | H116: 5.967158856 | I116: 98.4 | J116: 3.967158856 | K116: 98.4 | L116: 1.967158856 | M116: 90.4 | N116: 9.967158856 | O116: 90.4 | P116: 7.967158856 | Q116: 90.4 | R116: 5.967158856 | S116: 90.4 | T116: 3.967158856 | U116: 106.4 | V116: 5.967158856 | W116: 106.4 | X116: 3.967158856 | Y116: 106.4 | Z116: 1.967158856 | AA116: -999 | AB116: -999
A117: FSL16 | B117: FS | C117: L | D117: 16 | E117: 98.4 | F117: 15.96715886 | G117: 98.4 | H117: 13.96715886 | I117: 98.4 | J117: 11.96715886 | K117: 98.4 | L117: 9.967158856 | M117: 90.4 | N117: 17.96715886 | O117: 90.4 | P117: 15.96715886 | Q117: 90.4 | R117: 13.96715886 | S117: 90.4 | T117: 11.96715886 | U117: 106.4 | V117: 13.96715886 | W117: 106.4 | X117: 11.96715886 | Y117: 106.4 | Z117: 9.967158856 | AA117: 106.4 | AB117: 7.967158856
D120: Point | E120: x | F120: y | G120: Value | H120: GreenX | I120: GreenY | J120: RedX | K120: RedY
D121: 19 | E121: =VLOOKUP(BMP_type&Geometry&GWL,$A$98:$AB$117,(D121-19)*2+5,FALSE) ->  | F121: =VLOOKUP(BMP_type&Geometry&GWL,$A$98:$AB$117,(D121-19)*2+6,FALSE) ->  | G121: =Selection!G385 -> 2.296 | H121: =IF(G121<0,E121,0) -> 0 | I121: =IF(G121<0,F121,0) -> 0 | J121: =IF(G121>=0,E121,0) ->  | K121: =IF(G121>=0,F121,0) -> 
D122: 20 | G122: =Selection!G386 -> 2.95856 | H122: =IF(G122<0,E122,0) -> 0 | I122: =IF(G122<0,F122,0) -> 0 | J122: =IF(G122>=0,E122,0) ->  | K122: =IF(G122>=0,F122,0) -> 
D123: 21 | G123: =Selection!G387 -> 4.17216 | H123: 0 | I123: 0
D124: 22 | G124: =Selection!G388 -> -0.5904 | J124: 0 | K124: 0
D125: 23 | G125: =Selection!G389 -> 1.21688 | H125: 0 | I125: 0
D126: 24 | G126: =Selection!G390 -> 3.00448 | H126: 0 | I126: 0
D127: 25 | G127: =Selection!G391 -> -0.53464 | J127: 0 | K127: 0
D128: 26 | G128: =Selection!G392 -> 1.32184 | H128: 0 | I128: 0
D129: 27 | G129: =Selection!G393 -> 3.13568 | H129: 0 | I129: 0
D130: 28 | G130: =Selection!G394 -> 0 | H130: 0 | I130: 0
D131: 29 | G131: =Selection!G395 -> 0 | H131: 0 | I131: 0
D132: 30 | G132: =Selection!G396 -> 0 | H132: 0 | I132: 0

Sheet Selection (hidden)
A1: Selected Config | B1: =BMP_type&"_"&Geometry&"_"&GWL&"_"&station&"_"&loading&"_"&soil_type&"_--_"&Underdrain -> IS_N_8_BIR_20_SI_--_std | D1: Valid Config? | E1: =IF(ISNA($F$4),0,1) -> 1 | F1: (Check if the input configuration is valid)
A3: Category | B3: Parameter | C3: Location | D3: Note | E3: lookup_column | F3: high_AZ | G3: low_AZ
A4: 02_Ponding | B4: 001_Fraction Duration | C4: 1 | E4: 11 | F4: =VLOOKUP(selected_config&"_High",Raw_model_output!$A$1:$QO$11545,E4,FALSE) -> 6.220540809 | G4: =VLOOKUP(selected_config&"_Low",Raw_model_output!$A$1:$QO$11545,E4,FALSE) -> 11.24579509
A5: 02_Ponding | B5: 002_Maximum Duration | C5: 1 | E5: 12 | F5: =VLOOKUP(selected_config&"_High",Raw_model_output!$A$1:$QO$11545,E5,FALSE) -> 36.02 | G5: =VLOOKUP(selected_config&"_Low",Raw_model_output!$A$1:$QO$11545,E5,FALSE) -> 71
A6: 02_Ponding | B6: 003_Maximim Depth | C6: 1 | E6: 13 | F6: =VLOOKUP(selected_config&"_High",Raw_model_output!$A$1:$QO$11545,E6,FALSE) -> 0.31 | G6: =VLOOKUP(selected_config&"_Low",Raw_model_output!$A$1:$QO$11545,E6,FALSE) -> 0.31
A7: 02_Ponding | B7: 004_Fraction Duration Bypass | C7: 1 | E7: 14 | F7: =VLOOKUP(selected_config&"_High",Raw_model_output!$A$1:$QO$11545,E7,FALSE) -> 1.034730836 | G7: =VLOOKUP(selected_config&"_Low",Raw_model_output!$A$1:$QO$11545,E7,FALSE) -> 1.898784421
A8: 02_Ponding | B8: 005_Mean Daily | C8: 1 | E8: 15 | F8: =VLOOKUP(selected_config&"_High",Raw_model_output!$A$1:$QO$11545,E8,FALSE) -> 1.492559524 | G8: =VLOOKUP(selected_config&"_Low",Raw_model_output!$A$1:$QO$11545,E8,FALSE) -> 2.698321429
A9: 03_Roadway Saturation | B9: 001_Max_Saturation | C9: 2 | E9: 16 | F9: =VLOOKUP(selected_config&"_High",Raw_model_output!$A$1:$QO$11545,E9,FALSE) -> 0.3428 | G9: =VLOOKUP(selected_config&"_Low",Raw_model_output!$A$1:$QO$11545,E9,FALSE) -> 0.3428
A10: 03_Roadway Saturation | B10: 001_Max_Saturation | C10: 3 | E10: 17 | F10: =VLOOKUP(selected_config&"_High",Raw_model_output!$A$1:$QO$11545,E10,FALSE) -> 0.3428 | G10: =VLOOKUP(selected_config&"_Low",Raw_model_output!$A$1:$QO$11545,E10,FALSE) -> 0.3428
A11: 03_Roadway Saturation | B11: 001_Max_Saturation | C11: 4 | E11: 18 | F11: =VLOOKUP(selected_config&"_High",Raw_model_output!$A$1:$QO$11545,E11,FALSE) -> 0.3452 | G11: =VLOOKUP(selected_config&"_Low",Raw_model_output!$A$1:$QO$11545,E11,FALSE) -> 0.3428
A12: 03_Roadway Saturation | B12: 001_Max_Saturation | C12: 5 | E12: 19 | F12: =VLOOKUP(selected_config&"_High",Raw_model_output!$A$1:$QO$11545,E12,FALSE) -> 0.3428 | G12: =VLOOKUP(selected_config&"_Low",Raw_model_output!$A$1:$QO$11545,E12,FALSE) -> 0.3428
A13: 03_Roadway Saturation | B13: 002_Time_GE_50pct_Sat | C13: 2 | E13: 20 | F13: =VLOOKUP(selected_config&"_High",Raw_model_output!$A$1:$QO$11545,E13,FALSE) -> 100 | G13: =VLOOKUP(selected_config&"_Low",Raw_model_output!$A$1:$QO$11545,E13,FALSE) -> 100
A14: 03_Roadway Saturation | B14: 002_Time_GE_50pct_Sat | C14: 3 | E14: 21 | F14: =VLOOKUP(selected_config&"_High",Raw_model_output!$A$1:$QO$11545,E14,FALSE) -> 100 | G14: =VLOOKUP(selected_config&"_Low",Raw_model_output!$A$1:$QO$11545,E14,FALSE) -> 100
A15: 03_Roadway Saturation | B15: 002_Time_GE_50pct_Sat | C15: 4 | E15: 22 | F15: =VLOOKUP(selected_config&"_High",Raw_model_output!$A$1:$QO$11545,E15,FALSE) -> 100 | G15: =VLOOKUP(selected_config&"_Low",Raw_model_output!$A$1:$QO$11545,E15,FALSE) -> 100
A16: 03_Roadway Saturation | B16: 002_Time_GE_50pct_Sat | C16: 5 | E16: 23 | F16: =VLOOKUP(selected_config&"_High",Raw_model_output!$A$1:$QO$11545,E16,FALSE) -> 100 | G16: =VLOOKUP(selected_config&"_Low",Raw_model_output!$A$1:$QO$11545,E16,FALSE) -> 100
A17: 03_Roadway Saturation | B17: 003_Time_GE_90pct_Sat | C17: 2 | E17: 24 | F17: =VLOOKUP(selected_config&"_High",Raw_model_output!$A$1:$QO$11545,E17,FALSE) -> 0 | G17: =VLOOKUP(selected_config&"_Low",Raw_model_output!$A$1:$QO$11545,E17,FALSE) -> 0
A18: 03_Roadway Saturation | B18: 003_Time_GE_90pct_Sat | C18: 3 | E18: 25 | F18: =VLOOKUP(selected_config&"_High",Raw_model_output!$A$1:$QO$11545,E18,FALSE) -> 0 | G18: =VLOOKUP(selected_config&"_Low",Raw_model_output!$A$1:$QO$11545,E18,FALSE) -> 0
A19: 03_Roadway Saturation | B19: 003_Time_GE_90pct_Sat | C19: 4 | E19: 26 | F19: =VLOOKUP(selected_config&"_High",Raw_model_output!$A$1:$QO$11545,E19,FALSE) -> 0 | G19: =VLOOKUP(selected_config&"_Low",Raw_model_output!$A$1:$QO$11545,E19,FALSE) -> 0
A20: 03_Roadway Saturation | B20: 003_Time_GE_90pct_Sat | C20: 5 | E20: 27 | F20: =VLOOKUP(selected_config&"_High",Raw_model_output!$A$1:$QO$11545,E20,FALSE) -> 0 | G20: =VLOOKUP(selected_config&"_Low",Raw_model_output!$A$1:$QO$11545,E20,FALSE) -> 0
A21: 04_GW Mounding | B21: 001_Max_Head | C21: 5 | D21: Geom_graph | E21: 28 | F21: =VLOOKUP(selected_config&"_High",Raw_model_output!$A$1:$QO$11545,E21,FALSE) -> -1.64 | G21: =VLOOKUP(selected_config&"_Low",Raw_model_output!$A$1:$QO$11545,E21,FALSE) -> -1.64
A22: 04_GW Mounding | B22: 001_Max_Head | C22: 6 | D22: Geom_graph | E22: 29 | F22: =VLOOKUP(selected_config&"_High",Raw_model_output!$A$1:$QO$11545,E22,FALSE) -> 0.51824 | G22: =VLOOKUP(selected_config&"_Low",Raw_model_output!$A$1:$QO$11545,E22,FALSE) -> 0.88232
A23: 04_GW Mounding | B23: 001_Max_Head | C23: 7 | D23: Geom_graph | E23: 30 | F23: =VLOOKUP(selected_config&"_High",Raw_model_output!$A$1:$QO$11545,E23,FALSE) -> 1.02008 | G23: =VLOOKUP(selected_config&"_Low",Raw_model_output!$A$1:$QO$11545,E23,FALSE) -> 1.70232
A24: 04_GW Mounding | B24: 001_Max_Head | C24: 8 | D24: Geom_graph | E24: 31 | F24: =VLOOKUP(selected_config&"_High",Raw_model_output!$A$1:$QO$11545,E24,FALSE) -> 1.64 | G24: =VLOOKUP(selected_config&"_Low",Raw_model_output!$A$1:$QO$11545,E24,FALSE) -> 2.56168
A25: 04_GW Mounding | B25: 001_Max_Head | C25: 9 | D25: Geom_graph | E25: 32 | F25: =VLOOKUP(selected_config&"_High",Raw_model_output!$A$1:$QO$11545,E25,FALSE) -> 2.40752 | G25: =VLOOKUP(selected_config&"_Low",Raw_model_output!$A$1:$QO$11545,E25,FALSE) -> 3.56864
A26: 04_GW Mounding | B26: 001_Max_Head | C26: 10 | D26: Geom_graph | E26: 33 | F26: =VLOOKUP(selected_config&"_High",Raw_model_output!$A$1:$QO$11545,E26,FALSE) -> 3.14552 | G26: =VLOOKUP(selected_config&"_Low",Raw_model_output!$A$1:$QO$11545,E26,FALSE) -> 4.80848
A27: 04_GW Mounding | B27: 001_Max_Head | C27: 11 | D27: Geom_graph | E27: 34 | F27: =VLOOKUP(selected_config&"_High",Raw_model_output!$A$1:$QO$11545,E27,FALSE) -> 3.48008 | G27: =VLOOKUP(selected_config&"_Low",Raw_model_output!$A$1:$QO$11545,E27,FALSE) -> 5.65472
A28: 04_GW Mounding | B28: 001_Max_Head | C28: 12 | D28: Geom_graph | E28: 35 | F28: =VLOOKUP(selected_config&"_High",Raw_model_output!$A$1:$QO$11545,E28,FALSE) -> 3.22752 | G28: =VLOOKUP(selected_config&"_Low",Raw_model_output!$A$1:$QO$11545,E28,FALSE) -> 4.95608
A29: 04_GW Mounding | B29: 001_Max_Head | C29: 13 | D29: Geom_graph | E29: 36 | F29: =VLOOKUP(selected_config&"_High",Raw_model_output!$A$1:$QO$11545,E29,FALSE) -> 2.59776 | G29: =VLOOKUP(selected_config&"_Low",Raw_model_output!$A$1:$QO$11545,E29,FALSE) -> 3.91632
A30: 04_GW Mounding | B30: 001_Max_Head | C30: 14 | D30: Geom_graph | E30: 37 | F30: =VLOOKUP(selected_config&"_High",Raw_model_output!$A$1:$QO$11545,E30,FALSE) -> 1.96472 | G30: =VLOOKUP(selected_config&"_Low",Raw_model_output!$A$1:$QO$11545,E30,FALSE) -> 3.14552
A31: 04_GW Mounding | B31: 001_Max_Head | C31: 15 | D31: Geom_graph | E31: 38 | F31: =VLOOKUP(selected_config&"_High",Raw_model_output!$A$1:$QO$11545,E31,FALSE) -> 1.50224 | G31: =VLOOKUP(selected_config&"_Low",Raw_model_output!$A$1:$QO$11545,E31,FALSE) -> 2.61088
A32: 04_GW Mounding | B32: 001_Max_Head | C32: 16 | D32: Geom_graph | E32: 39 | F32: =VLOOKUP(selected_config&"_High",Raw_model_output!$A$1:$QO$11545,E32,FALSE) -> 1.16768 | G32: =VLOOKUP(selected_config&"_Low",Raw_model_output!$A$1:$QO$11545,E32,FALSE) -> 2.1484
A33: 04_GW Mounding | B33: 001_Max_Head | C33: 17 | D33: Geom_graph | E33: 40 | F33: =VLOOKUP(selected_config&"_High",Raw_model_output!$A$1:$QO$11545,E33,FALSE) -> 0.902 | G33: =VLOOKUP(selected_config&"_Low",Raw_model_output!$A$1:$QO$11545,E33,FALSE) -> 1.80728
A34: 04_GW Mounding | B34: 001_Max_Head | C34: 18 | D34: Geom_graph | E34: 41 | F34: =VLOOKUP(selected_config&"_High",Raw_model_output!$A$1:$QO$11545,E34,FALSE) -> 0.69208 | G34: =VLOOKUP(selected_config&"_Low",Raw_model_output!$A$1:$QO$11545,E34,FALSE) -> 1.49896
A35: 04_GW Mounding | B35: 002_Peak_Snapshot | C35: 5 | E35: 42 | F35: =VLOOKUP(selected_config&"_High",Raw_model_output!$A$1:$QO$11545,E35,FALSE) -> -3.92616 | G35: =VLOOKUP(selected_config&"_Low",Raw_model_output!$A$1:$QO$11545,E35,FALSE) -> -4.12624
A36: 04_GW Mounding | B36: 002_Peak_Snapshot | C36: 6 | E36: 43 | F36: =VLOOKUP(selected_config&"_High",Raw_model_output!$A$1:$QO$11545,E36,FALSE) -> 0.46904 | G36: =VLOOKUP(selected_config&"_Low",Raw_model_output!$A$1:$QO$11545,E36,FALSE) -> 0.81016
A37: 04_GW Mounding | B37: 002_Peak_Snapshot | C37: 7 | E37: 44 | F37: =VLOOKUP(selected_config&"_High",Raw_model_output!$A$1:$QO$11545,E37,FALSE) -> 0.94464 | G37: =VLOOKUP(selected_config&"_Low",Raw_model_output!$A$1:$QO$11545,E37,FALSE) -> 1.60064
A38: 04_GW Mounding | B38: 002_Peak_Snapshot | C38: 8 | E38: 45 | F38: =VLOOKUP(selected_config&"_High",Raw_model_output!$A$1:$QO$11545,E38,FALSE) -> 1.56128 | G38: =VLOOKUP(selected_config&"_Low",Raw_model_output!$A$1:$QO$11545,E38,FALSE) -> 2.4436
A39: 04_GW Mounding | B39: 002_Peak_Snapshot | C39: 9 | E39: 46 | F39: =VLOOKUP(selected_config&"_High",Raw_model_output!$A$1:$QO$11545,E39,FALSE) -> 2.3616 | G39: =VLOOKUP(selected_config&"_Low",Raw_model_output!$A$1:$QO$11545,E39,FALSE) -> 3.4768
A40: 04_GW Mounding | B40: 002_Peak_Snapshot | C40: 10 | E40: 47 | F40: =VLOOKUP(selected_config&"_High",Raw_model_output!$A$1:$QO$11545,E40,FALSE) -> 3.13896 | G40: =VLOOKUP(selected_config&"_Low",Raw_model_output!$A$1:$QO$11545,E40,FALSE) -> 4.79208
A41: 04_GW Mounding | B41: 002_Peak_Snapshot | C41: 11 | E41: 48 | F41: =VLOOKUP(selected_config&"_High",Raw_model_output!$A$1:$QO$11545,E41,FALSE) -> 3.48008 | G41: =VLOOKUP(selected_config&"_Low",Raw_model_output!$A$1:$QO$11545,E41,FALSE) -> 5.65472
A42: 04_GW Mounding | B42: 002_Peak_Snapshot | C42: 12 | E42: 49 | F42: =VLOOKUP(selected_config&"_High",Raw_model_output!$A$1:$QO$11545,E42,FALSE) -> 3.21768 | G42: =VLOOKUP(selected_config&"_Low",Raw_model_output!$A$1:$QO$11545,E42,FALSE) -> 4.94296
A43: 04_GW Mounding | B43: 002_Peak_Snapshot | C43: 13 | E43: 50 | F43: =VLOOKUP(selected_config&"_High",Raw_model_output!$A$1:$QO$11545,E43,FALSE) -> 2.54856 | G43: =VLOOKUP(selected_config&"_Low",Raw_model_output!$A$1:$QO$11545,E43,FALSE) -> 3.82776
A44: 04_GW Mounding | B44: 002_Peak_Snapshot | C44: 14 | E44: 51 | F44: =VLOOKUP(selected_config&"_High",Raw_model_output!$A$1:$QO$11545,E44,FALSE) -> 1.87288 | G44: =VLOOKUP(selected_config&"_Low",Raw_model_output!$A$1:$QO$11545,E44,FALSE) -> 3.02088
A45: 04_GW Mounding | B45: 002_Peak_Snapshot | C45: 15 | E45: 52 | F45: =VLOOKUP(selected_config&"_High",Raw_model_output!$A$1:$QO$11545,E45,FALSE) -> 1.394 | G45: =VLOOKUP(selected_config&"_Low",Raw_model_output!$A$1:$QO$11545,E45,FALSE) -> 2.4272
A46: 04_GW Mounding | B46: 002_Peak_Snapshot | C46: 16 | E46: 53 | F46: =VLOOKUP(selected_config&"_High",Raw_model_output!$A$1:$QO$11545,E46,FALSE) -> 1.05944 | G46: =VLOOKUP(selected_config&"_Low",Raw_model_output!$A$1:$QO$11545,E46,FALSE) -> 1.93848
A47: 04_GW Mounding | B47: 002_Peak_Snapshot | C47: 17 | E47: 54 | F47: =VLOOKUP(selected_config&"_High",Raw_model_output!$A$1:$QO$11545,E47,FALSE) -> 0.80032 | G47: =VLOOKUP(selected_config&"_Low",Raw_model_output!$A$1:$QO$11545,E47,FALSE) -> 1.51864
A48: 04_GW Mounding | B48: 002_Peak_Snapshot | C48: 18 | E48: 55 | F48: =VLOOKUP(selected_config&"_High",Raw_model_output!$A$1:$QO$11545,E48,FALSE) -> 0.58056 | G48: =VLOOKUP(selected_config&"_Low",Raw_model_output!$A$1:$QO$11545,E48,FALSE) -> 1.12504
A49: 04_GW Mounding | B49: 003_MeanDaily_Head_Day001 | C49: Critical Node | D49: TS_graph | E49: 56 | F49: =VLOOKUP(selected_config&"_High",Raw_model_output!$A$1:$QO$11545,E49,FALSE) -> 0.07032402 | G49: =VLOOKUP(selected_config&"_Low",Raw_model_output!$A$1:$QO$11545,E49,FALSE) -> 0.077396792
A50: 04_GW Mounding | B50: 003_MeanDaily_Head_Day002 | C50: Critical Node | D50: TS_graph | E50: 57 | F50: =VLOOKUP(selected_config&"_High",Raw_model_output!$A$1:$QO$11545,E50,FALSE) -> 0.308219412 | G50: =VLOOKUP(selected_config&"_Low",Raw_model_output!$A$1:$QO$11545,E50,FALSE) -> 0.356573992
A51: 04_GW Mounding | B51: 003_MeanDaily_Head_Day003 | C51: Critical Node | D51: TS_graph | E51: 58 | F51: =VLOOKUP(selected_config&"_High",Raw_model_output!$A$1:$QO$11545,E51,FALSE) -> 0.534616768 | G51: =VLOOKUP(selected_config&"_Low",Raw_model_output!$A$1:$QO$11545,E51,FALSE) -> 0.674120632
A52: 04_GW Mounding | B52: 003_MeanDaily_Head_Day004 | C52: Critical Node | D52: TS_graph | E52: 59 | F52: =VLOOKUP(selected_config&"_High",Raw_model_output!$A$1:$QO$11545,E52,FALSE) -> 0.713239008 | G52: =VLOOKUP(selected_config&"_Low",Raw_model_output!$A$1:$QO$11545,E52,FALSE) -> 0.982764808
A53: 04_GW Mounding | B53: 003_MeanDaily_Head_Day005 | C53: Critical Node | D53: TS_graph | E53: 60 | F53: =VLOOKUP(selected_config&"_High",Raw_model_output!$A$1:$QO$11545,E53,FALSE) -> 0.840014832 | G53: =VLOOKUP(selected_config&"_Low",Raw_model_output!$A$1:$QO$11545,E53,FALSE) -> 1.25777832
A54: 04_GW Mounding | B54: 003_MeanDaily_Head_Day006 | C54: Critical Node | D54: TS_graph | E54: 61 | F54: =VLOOKUP(selected_config&"_High",Raw_model_output!$A$1:$QO$11545,E54,FALSE) -> 0.918255952 | G54: =VLOOKUP(selected_config&"_Low",Raw_model_output!$A$1:$QO$11545,E54,FALSE) -> 1.48213524
A55: 04_GW Mounding | B55: 003_MeanDaily_Head_Day007 | C55: Critical Node | D55: TS_graph | E55: 62 | F55: =VLOOKUP(selected_config&"_High",Raw_model_output!$A$1:$QO$11545,E55,FALSE) -> 0.955830812 | G55: =VLOOKUP(selected_config&"_Low",Raw_model_output!$A$1:$QO$11545,E55,FALSE) -> 1.6574045
A56: 04_GW Mounding | B56: 003_MeanDaily_Head_Day008 | C56: Critical Node | D56: TS_graph | E56: 63 | F56: =VLOOKUP(selected_config&"_High",Raw_model_output!$A$1:$QO$11545,E56,FALSE) -> 0.966916668 | G56: =VLOOKUP(selected_config&"_Low",Raw_model_output!$A$1:$QO$11545,E56,FALSE) -> 1.787587428
A57: 04_GW Mounding | B57: 003_MeanDaily_Head_Day009 | C57: Critical Node | D57: TS_graph | E57: 64 | F57: =VLOOKUP(selected_config&"_High",Raw_model_output!$A$1:$QO$11545,E57,FALSE) -> 0.961723332 | G57: =VLOOKUP(selected_config&"_Low",Raw_model_output!$A$1:$QO$11545,E57,FALSE) -> 1.88169664
A58: 04_GW Mounding | B58: 003_MeanDaily_Head_Day010 | C58: Critical Node | D58: TS_graph | E58: 65 | F58: =VLOOKUP(selected_config&"_High",Raw_model_output!$A$1:$QO$11545,E58,FALSE) -> 0.942726668 | G58: =VLOOKUP(selected_config&"_Low",Raw_model_output!$A$1:$QO$11545,E58,FALSE) -> 1.94791
A59: 04_GW Mounding | B59: 003_MeanDaily_Head_Day011 | C59: Critical Node | D59: TS_graph | E59: 66 | F59: =VLOOKUP(selected_config&"_High",Raw_model_output!$A$1:$QO$11545,E59,FALSE) -> 0.914436668 | G59: =VLOOKUP(selected_config&"_Low",Raw_model_output!$A$1:$QO$11545,E59,FALSE) -> 1.991506668
A60: 04_GW Mounding | B60: 003_MeanDaily_Head_Day012 | C60: Critical Node | D60: TS_graph | E60: 67 | F60: =VLOOKUP(selected_config&"_High",Raw_model_output!$A$1:$QO$11545,E60,FALSE) -> 0.88111952 | G60: =VLOOKUP(selected_config&"_Low",Raw_model_output!$A$1:$QO$11545,E60,FALSE) -> 2.01679
A61: 04_GW Mounding | B61: 003_MeanDaily_Head_Day013 | C61: Critical Node | D61: TS_graph | E61: 68 | F61: =VLOOKUP(selected_config&"_High",Raw_model_output!$A$1:$QO$11545,E61,FALSE) -> 0.846143512 | G61: =VLOOKUP(selected_config&"_Low",Raw_model_output!$A$1:$QO$11545,E61,FALSE) -> 2.03114
A62: 04_GW Mounding | B62: 003_MeanDaily_Head_Day014 | C62: Critical Node | D62: TS_graph | E62: 69 | F62: =VLOOKUP(selected_config&"_High",Raw_model_output!$A$1:$QO$11545,E62,FALSE) -> 0.810023332 | G62: =VLOOKUP(selected_config&"_Low",Raw_model_output!$A$1:$QO$11545,E62,FALSE) -> 2.03688
A63: 04_GW Mounding | B63: 003_MeanDaily_Head_Day015 | C63: Critical Node | D63: TS_graph | E63: 70 | F63: =VLOOKUP(selected_config&"_High",Raw_model_output!$A$1:$QO$11545,E63,FALSE) -> 1.018688188 | G63: =VLOOKUP(selected_config&"_Low",Raw_model_output!$A$1:$QO$11545,E63,FALSE) -> 3.28918646
A64: 04_GW Mounding | B64: 003_MeanDaily_Head_Day016 | C64: Critical Node | D64: TS_graph | E64: 71 | F64: =VLOOKUP(selected_config&"_High",Raw_model_output!$A$1:$QO$11545,E64,FALSE) -> 1.502923332 | G64: =VLOOKUP(selected_config&"_Low",Raw_model_output!$A$1:$QO$11545,E64,FALSE) -> 3.74584774
A65: 04_GW Mounding | B65: 003_MeanDaily_Head_Day017 | C65: Critical Node | D65: TS_graph | E65: 72 | F65: =VLOOKUP(selected_config&"_High",Raw_model_output!$A$1:$QO$11545,E65,FALSE) -> 1.38801072 | G65: =VLOOKUP(selected_config&"_Low",Raw_model_output!$A$1:$QO$11545,E65,FALSE) -> 3.334436248
A66: 04_GW Mounding | B66: 003_MeanDaily_Head_Day018 | C66: Critical Node | D66: TS_graph | E66: 73 | F66: =VLOOKUP(selected_config&"_High",Raw_model_output!$A$1:$QO$11545,E66,FALSE) -> 1.26865398 | G66: =VLOOKUP(selected_config&"_Low",Raw_model_output!$A$1:$QO$11545,E66,FALSE) -> 3.118529152
A67: 04_GW Mounding | B67: 003_MeanDaily_Head_Day019 | C67: Critical Node | D67: TS_graph | E67: 74 | F67: =VLOOKUP(selected_config&"_High",Raw_model_output!$A$1:$QO$11545,E67,FALSE) -> 1.165694508 | G67: =VLOOKUP(selected_config&"_Low",Raw_model_output!$A$1:$QO$11545,E67,FALSE) -> 2.968294768
A68: 04_GW Mounding | B68: 003_MeanDaily_Head_Day020 | C68: Critical Node | D68: TS_graph | E68: 75 | F68: =VLOOKUP(selected_config&"_High",Raw_model_output!$A$1:$QO$11545,E68,FALSE) -> 1.075947692 | G68: =VLOOKUP(selected_config&"_Low",Raw_model_output!$A$1:$QO$11545,E68,FALSE) -> 2.850474432
A69: 04_GW Mounding | B69: 003_MeanDaily_Head_Day021 | C69: Critical Node | D69: TS_graph | E69: 76 | F69: =VLOOKUP(selected_config&"_High",Raw_model_output!$A$1:$QO$11545,E69,FALSE) -> 0.997743748 | G69: =VLOOKUP(selected_config&"_Low",Raw_model_output!$A$1:$QO$11545,E69,FALSE) -> 2.750826668
A70: 04_GW Mounding | B70: 003_MeanDaily_Head_Day022 | C70: Critical Node | D70: TS_graph | E70: 77 | F70: =VLOOKUP(selected_config&"_High",Raw_model_output!$A$1:$QO$11545,E70,FALSE) -> 0.9286541 | G70: =VLOOKUP(selected_config&"_Low",Raw_model_output!$A$1:$QO$11545,E70,FALSE) -> 2.662817432
A71: 04_GW Mounding | B71: 003_MeanDaily_Head_Day023 | C71: Critical Node | D71: TS_graph | E71: 78 | F71: =VLOOKUP(selected_config&"_High",Raw_model_output!$A$1:$QO$11545,E71,FALSE) -> 0.866939808 | G71: =VLOOKUP(selected_config&"_Low",Raw_model_output!$A$1:$QO$11545,E71,FALSE) -> 2.583716952
A72: 04_GW Mounding | B72: 003_MeanDaily_Head_Day024 | C72: Critical Node | D72: TS_graph | E72: 79 | F72: =VLOOKUP(selected_config&"_High",Raw_model_output!$A$1:$QO$11545,E72,FALSE) -> 0.81135474 | G72: =VLOOKUP(selected_config&"_Low",Raw_model_output!$A$1:$QO$11545,E72,FALSE) -> 2.51051446
A73: 04_GW Mounding | B73: 003_MeanDaily_Head_Day025 | C73: Critical Node | D73: TS_graph | E73: 80 | F73: =VLOOKUP(selected_config&"_High",Raw_model_output!$A$1:$QO$11545,E73,FALSE) -> 0.761578552 | G73: =VLOOKUP(selected_config&"_Low",Raw_model_output!$A$1:$QO$11545,E73,FALSE) -> 2.442578552
A74: 04_GW Mounding | B74: 003_MeanDaily_Head_Day026 | C74: Critical Node | D74: TS_graph | E74: 81 | F74: =VLOOKUP(selected_config&"_High",Raw_model_output!$A$1:$QO$11545,E74,FALSE) -> 0.716406668 | G74: =VLOOKUP(selected_config&"_Low",Raw_model_output!$A$1:$QO$11545,E74,FALSE) -> 2.3786355
A75: 04_GW Mounding | B75: 003_MeanDaily_Head_Day027 | C75: Critical Node | D75: TS_graph | E75: 82 | F75: =VLOOKUP(selected_config&"_High",Raw_model_output!$A$1:$QO$11545,E75,FALSE) -> 0.67568 | G75: =VLOOKUP(selected_config&"_Low",Raw_model_output!$A$1:$QO$11545,E75,FALSE) -> 2.318276668
A76: 04_GW Mounding | B76: 003_MeanDaily_Head_Day028 | C76: Critical Node | D76: TS_graph | E76: 83 | F76: =VLOOKUP(selected_config&"_High",Raw_model_output!$A$1:$QO$11545,E76,FALSE) -> 0.638108148 | G76: =VLOOKUP(selected_config&"_Low",Raw_model_output!$A$1:$QO$11545,E76,FALSE) -> 2.2641512
A77: 04_GW Mounding | B77: 003_MeanDaily_Head_Day029 | C77: Critical Node | D77: TS_graph | E77: 84 | F77: =VLOOKUP(selected_config&"_High",Raw_model_output!$A$1:$QO$11545,E77,FALSE) -> 0.6047869 | G77: =VLOOKUP(selected_config&"_Low",Raw_model_output!$A$1:$QO$11545,E77,FALSE) -> 2.33225958
A78: 04_GW Mounding | B78: 003_MeanDaily_Head_Day030 | C78: Critical Node | D78: TS_graph | E78: 85 | F78: =VLOOKUP(selected_config&"_High",Raw_model_output!$A$1:$QO$11545,E78,FALSE) -> 0.57564 | G78: =VLOOKUP(selected_config&"_Low",Raw_model_output!$A$1:$QO$11545,E78,FALSE) -> 2.35155746
A79: 04_GW Mounding | B79: 003_MeanDaily_Head_Day031 | C79: Critical Node | D79: TS_graph | E79: 86 | F79: =VLOOKUP(selected_config&"_High",Raw_model_output!$A$1:$QO$11545,E79,FALSE) -> 0.554046668 | G79: =VLOOKUP(selected_config&"_Low",Raw_model_output!$A$1:$QO$11545,E79,FALSE) -> 2.313356668
A80: 04_GW Mounding | B80: 003_MeanDaily_Head_Day032 | C80: Critical Node | D80: TS_graph | E80: 87 | F80: =VLOOKUP(selected_config&"_High",Raw_model_output!$A$1:$QO$11545,E80,FALSE) -> 0.538056668 | G80: =VLOOKUP(selected_config&"_Low",Raw_model_output!$A$1:$QO$11545,E80,FALSE) -> 2.258826668
A81: 04_GW Mounding | B81: 003_MeanDaily_Head_Day033 | C81: Critical Node | D81: TS_graph | E81: 88 | F81: =VLOOKUP(selected_config&"_High",Raw_model_output!$A$1:$QO$11545,E81,FALSE) -> 0.52398 | G81: =VLOOKUP(selected_config&"_Low",Raw_model_output!$A$1:$QO$11545,E81,FALSE) -> 2.201710388
A82: 04_GW Mounding | B82: 003_MeanDaily_Head_Day034 | C82: Critical Node | D82: TS_graph | E82: 89 | F82: =VLOOKUP(selected_config&"_High",Raw_model_output!$A$1:$QO$11545,E82,FALSE) -> 0.508700668 | G82: =VLOOKUP(selected_config&"_Low",Raw_model_output!$A$1:$QO$11545,E82,FALSE) -> 2.144655332
A83: 04_GW Mounding | B83: 003_MeanDaily_Head_Day035 | C83: Critical Node | D83: TS_graph | E83: 90 | F83: =VLOOKUP(selected_config&"_High",Raw_model_output!$A$1:$QO$11545,E83,FALSE) -> 0.49151456 | G83: =VLOOKUP(selected_config&"_Low",Raw_model_output!$A$1:$QO$11545,E83,FALSE) -> 2.178264128
A84: 04_GW Mounding | B84: 003_MeanDaily_Head_Day036 | C84: Critical Node | D84: TS_graph | E84: 91 | F84: =VLOOKUP(selected_config&"_High",Raw_model_output!$A$1:$QO$11545,E84,FALSE) -> 0.475053332 | G84: =VLOOKUP(selected_config&"_Low",Raw_model_output!$A$1:$QO$11545,E84,FALSE) -> 2.280556668
A85: 04_GW Mounding | B85: 003_MeanDaily_Head_Day037 | C85: Critical Node | D85: TS_graph | E85: 92 | F85: =VLOOKUP(selected_config&"_High",Raw_model_output!$A$1:$QO$11545,E85,FALSE) -> 0.464666668 | G85: =VLOOKUP(selected_config&"_Low",Raw_model_output!$A$1:$QO$11545,E85,FALSE) -> 2.240753592
A86: 04_GW Mounding | B86: 003_MeanDaily_Head_Day038 | C86: Critical Node | D86: TS_graph | E86: 93 | F86: =VLOOKUP(selected_config&"_High",Raw_model_output!$A$1:$QO$11545,E86,FALSE) -> 0.4605448 | G86: =VLOOKUP(selected_config&"_Low",Raw_model_output!$A$1:$QO$11545,E86,FALSE) -> 2.182011252
A87: 04_GW Mounding | B87: 003_MeanDaily_Head_Day039 | C87: Critical Node | D87: TS_graph | E87: 94 | F87: =VLOOKUP(selected_config&"_High",Raw_model_output!$A$1:$QO$11545,E87,FALSE) -> 0.460955892 | G87: =VLOOKUP(selected_config&"_Low",Raw_model_output!$A$1:$QO$11545,E87,FALSE) -> 2.13549484
A88: 04_GW Mounding | B88: 003_MeanDaily_Head_Day040 | C88: Critical Node | D88: TS_graph | E88: 95 | F88: =VLOOKUP(selected_config&"_High",Raw_model_output!$A$1:$QO$11545,E88,FALSE) -> 0.4547884 | G88: =VLOOKUP(selected_config&"_Low",Raw_model_output!$A$1:$QO$11545,E88,FALSE) -> 2.07486404
A89: 04_GW Mounding | B89: 003_MeanDaily_Head_Day041 | C89: Critical Node | D89: TS_graph | E89: 96 | F89: =VLOOKUP(selected_config&"_High",Raw_model_output!$A$1:$QO$11545,E89,FALSE) -> 0.445889212 | G89: =VLOOKUP(selected_config&"_Low",Raw_model_output!$A$1:$QO$11545,E89,FALSE) -> 2.017069892
A90: 04_GW Mounding | B90: 003_MeanDaily_Head_Day042 | C90: Critical Node | D90: TS_graph | E90: 97 | F90: =VLOOKUP(selected_config&"_High",Raw_model_output!$A$1:$QO$11545,E90,FALSE) -> 0.434530028 | G90: =VLOOKUP(selected_config&"_Low",Raw_model_output!$A$1:$QO$11545,E90,FALSE) -> 1.962939508
A91: 04_GW Mounding | B91: 003_MeanDaily_Head_Day043 | C91: Critical Node | D91: TS_graph | E91: 98 | F91: =VLOOKUP(selected_config&"_High",Raw_model_output!$A$1:$QO$11545,E91,FALSE) -> 0.421608468 | G91: =VLOOKUP(selected_config&"_Low",Raw_model_output!$A$1:$QO$11545,E91,FALSE) -> 1.911726132
A92: 04_GW Mounding | B92: 003_MeanDaily_Head_Day044 | C92: Critical Node | D92: TS_graph | E92: 99 | F92: =VLOOKUP(selected_config&"_High",Raw_model_output!$A$1:$QO$11545,E92,FALSE) -> 0.389166532 | G92: =VLOOKUP(selected_config&"_Low",Raw_model_output!$A$1:$QO$11545,E92,FALSE) -> 1.776838868
A93: 04_GW Mounding | B93: 003_MeanDaily_Head_Day045 | C93: Critical Node | D93: TS_graph | E93: 100 | F93: =VLOOKUP(selected_config&"_High",Raw_model_output!$A$1:$QO$11545,E93,FALSE) -> 0.391584168 | G93: =VLOOKUP(selected_config&"_Low",Raw_model_output!$A$1:$QO$11545,E93,FALSE) -> 1.804563068
A94: 04_GW Mounding | B94: 003_MeanDaily_Head_Day046 | C94: Critical Node | D94: TS_graph | E94: 101 | F94: =VLOOKUP(selected_config&"_High",Raw_model_output!$A$1:$QO$11545,E94,FALSE) -> 0.377883332 | G94: =VLOOKUP(selected_config&"_Low",Raw_model_output!$A$1:$QO$11545,E94,FALSE) -> 1.760727232
A95: 04_GW Mounding | B95: 003_MeanDaily_Head_Day047 | C95: Critical Node | D95: TS_graph | E95: 102 | F95: =VLOOKUP(selected_config&"_High",Raw_model_output!$A$1:$QO$11545,E95,FALSE) -> 0.36449 | G95: =VLOOKUP(selected_config&"_Low",Raw_model_output!$A$1:$QO$11545,E95,FALSE) -> 1.719206532
A96: 04_GW Mounding | B96: 003_MeanDaily_Head_Day048 | C96: Critical Node | D96: TS_graph | E96: 103 | F96: =VLOOKUP(selected_config&"_High",Raw_model_output!$A$1:$QO$11545,E96,FALSE) -> 0.351334468 | G96: =VLOOKUP(selected_config&"_Low",Raw_model_output!$A$1:$QO$11545,E96,FALSE) -> 1.67895
A97: 04_GW Mounding | B97: 003_MeanDaily_Head_Day049 | C97: Critical Node | D97: TS_graph | E97: 104 | F97: =VLOOKUP(selected_config&"_High",Raw_model_output!$A$1:$QO$11545,E97,FALSE) -> 0.338523332 | G97: =VLOOKUP(selected_config&"_Low",Raw_model_output!$A$1:$QO$11545,E97,FALSE) -> 1.64
A98: 04_GW Mounding | B98: 003_MeanDaily_Head_Day050 | C98: Critical Node | D98: TS_graph | E98: 105 | F98: =VLOOKUP(selected_config&"_High",Raw_model_output!$A$1:$QO$11545,E98,FALSE) -> 0.3252817 | G98: =VLOOKUP(selected_config&"_Low",Raw_model_output!$A$1:$QO$11545,E98,FALSE) -> 1.602167932
A99: 04_GW Mounding | B99: 003_MeanDaily_Head_Day051 | C99: Critical Node | D99: TS_graph | E99: 106 | F99: =VLOOKUP(selected_config&"_High",Raw_model_output!$A$1:$QO$11545,E99,FALSE) -> 0.312966668 | G99: =VLOOKUP(selected_config&"_Low",Raw_model_output!$A$1:$QO$11545,E99,FALSE) -> 2.3638632
A100: 04_GW Mounding | B100: 003_MeanDaily_Head_Day052 | C100: Critical Node | D100: TS_graph | E100: 107 | F100: =VLOOKUP(selected_config&"_High",Raw_model_output!$A$1:$QO$11545,E100,FALSE) -> 0.8010949 | G100: =VLOOKUP(selected_config&"_Low",Raw_model_output!$A$1:$QO$11545,E100,FALSE) -> 3.870471068
A101: 04_GW Mounding | B101: 003_MeanDaily_Head_Day053 | C101: Critical Node | D101: TS_graph | E101: 108 | F101: =VLOOKUP(selected_config&"_High",Raw_model_output!$A$1:$QO$11545,E101,FALSE) -> 1.118936468 | G101: =VLOOKUP(selected_config&"_Low",Raw_model_output!$A$1:$QO$11545,E101,FALSE) -> 3.4948113
A102: 04_GW Mounding | B102: 003_MeanDaily_Head_Day054 | C102: Critical Node | D102: TS_graph | E102: 109 | F102: =VLOOKUP(selected_config&"_High",Raw_model_output!$A$1:$QO$11545,E102,FALSE) -> 1.00983 | G102: =VLOOKUP(selected_config&"_Low",Raw_model_output!$A$1:$QO$11545,E102,FALSE) -> 3.038315932
A103: 04_GW Mounding | B103: 003_MeanDaily_Head_Day055 | C103: Critical Node | D103: TS_graph | E103: 110 | F103: =VLOOKUP(selected_config&"_High",Raw_model_output!$A$1:$QO$11545,E103,FALSE) -> 0.9126805 | G103: =VLOOKUP(selected_config&"_Low",Raw_model_output!$A$1:$QO$11545,E103,FALSE) -> 2.783536468
A104: 04_GW Mounding | B104: 003_MeanDaily_Head_Day056 | C104: Critical Node | D104: TS_graph | E104: 111 | F104: =VLOOKUP(selected_config&"_High",Raw_model_output!$A$1:$QO$11545,E104,FALSE) -> 0.829797632 | G104: =VLOOKUP(selected_config&"_Low",Raw_model_output!$A$1:$QO$11545,E104,FALSE) -> 2.601735632
A105: 04_GW Mounding | B105: 003_MeanDaily_Head_Day057 | C105: Critical Node | D105: TS_graph | E105: 112 | F105: =VLOOKUP(selected_config&"_High",Raw_model_output!$A$1:$QO$11545,E105,FALSE) -> 0.760880732 | G105: =VLOOKUP(selected_config&"_Low",Raw_model_output!$A$1:$QO$11545,E105,FALSE) -> 2.459285232
A106: 04_GW Mounding | B106: 003_MeanDaily_Head_Day058 | C106: Critical Node | D106: TS_graph | E106: 113 | F106: =VLOOKUP(selected_config&"_High",Raw_model_output!$A$1:$QO$11545,E106,FALSE) -> 0.700643532 | G106: =VLOOKUP(selected_config&"_Low",Raw_model_output!$A$1:$QO$11545,E106,FALSE) -> 2.341135532
A107: 04_GW Mounding | B107: 003_MeanDaily_Head_Day059 | C107: Critical Node | D107: TS_graph | E107: 114 | F107: =VLOOKUP(selected_config&"_High",Raw_model_output!$A$1:$QO$11545,E107,FALSE) -> 0.648483332 | G107: =VLOOKUP(selected_config&"_Low",Raw_model_output!$A$1:$QO$11545,E107,FALSE) -> 2.2398013
A108: 04_GW Mounding | B108: 003_MeanDaily_Head_Day060 | C108: Critical Node | D108: TS_graph | E108: 115 | F108: =VLOOKUP(selected_config&"_High",Raw_model_output!$A$1:$QO$11545,E108,FALSE) -> 0.6029788 | G108: =VLOOKUP(selected_config&"_Low",Raw_model_output!$A$1:$QO$11545,E108,FALSE) -> 2.151002132
A109: 04_GW Mounding | B109: 003_MeanDaily_Head_Day061 | C109: Critical Node | D109: TS_graph | E109: 116 | F109: =VLOOKUP(selected_config&"_High",Raw_model_output!$A$1:$QO$11545,E109,FALSE) -> 0.5625856 | G109: =VLOOKUP(selected_config&"_Low",Raw_model_output!$A$1:$QO$11545,E109,FALSE) -> 2.072175532
A110: 04_GW Mounding | B110: 003_MeanDaily_Head_Day062 | C110: Critical Node | D110: TS_graph | E110: 117 | F110: =VLOOKUP(selected_config&"_High",Raw_model_output!$A$1:$QO$11545,E110,FALSE) -> 0.5266245 | G110: =VLOOKUP(selected_config&"_Low",Raw_model_output!$A$1:$QO$11545,E110,FALSE) -> 2.000122132
A111: 04_GW Mounding | B111: 003_MeanDaily_Head_Day063 | C111: Critical Node | D111: TS_graph | E111: 118 | F111: =VLOOKUP(selected_config&"_High",Raw_model_output!$A$1:$QO$11545,E111,FALSE) -> 0.494403968 | G111: =VLOOKUP(selected_config&"_Low",Raw_model_output!$A$1:$QO$11545,E111,FALSE) -> 1.933905768
A112: 04_GW Mounding | B112: 003_MeanDaily_Head_Day064 | C112: Critical Node | D112: TS_graph | E112: 119 | F112: =VLOOKUP(selected_config&"_High",Raw_model_output!$A$1:$QO$11545,E112,FALSE) -> 0.464765068 | G112: =VLOOKUP(selected_config&"_Low",Raw_model_output!$A$1:$QO$11545,E112,FALSE) -> 1.87329
A113: 04_GW Mounding | B113: 003_MeanDaily_Head_Day065 | C113: Critical Node | D113: TS_graph | E113: 120 | F113: =VLOOKUP(selected_config&"_High",Raw_model_output!$A$1:$QO$11545,E113,FALSE) -> 0.440203332 | G113: =VLOOKUP(selected_config&"_Low",Raw_model_output!$A$1:$QO$11545,E113,FALSE) -> 2.8793316
A114: 04_GW Mounding | B114: 003_MeanDaily_Head_Day066 | C114: Critical Node | D114: TS_graph | E114: 121 | F114: =VLOOKUP(selected_config&"_High",Raw_model_output!$A$1:$QO$11545,E114,FALSE) -> 0.5231067 | G114: =VLOOKUP(selected_config&"_Low",Raw_model_output!$A$1:$QO$11545,E114,FALSE) -> 2.8049043
A115: 04_GW Mounding | B115: 003_MeanDaily_Head_Day067 | C115: Critical Node | D115: TS_graph | E115: 122 | F115: =VLOOKUP(selected_config&"_High",Raw_model_output!$A$1:$QO$11545,E115,FALSE) -> 0.616093332 | G115: =VLOOKUP(selected_config&"_Low",Raw_model_output!$A$1:$QO$11545,E115,FALSE) -> 2.567873732
A116: 04_GW Mounding | B116: 003_MeanDaily_Head_Day068 | C116: Critical Node | D116: TS_graph | E116: 123 | F116: =VLOOKUP(selected_config&"_High",Raw_model_output!$A$1:$QO$11545,E116,FALSE) -> 0.622243332 | G116: =VLOOKUP(selected_config&"_Low",Raw_model_output!$A$1:$QO$11545,E116,FALSE) -> 2.713456532
A117: 04_GW Mounding | B117: 003_MeanDaily_Head_Day069 | C117: Critical Node | D117: TS_graph | E117: 124 | F117: =VLOOKUP(selected_config&"_High",Raw_model_output!$A$1:$QO$11545,E117,FALSE) -> 1.045320968 | G117: =VLOOKUP(selected_config&"_Low",Raw_model_output!$A$1:$QO$11545,E117,FALSE) -> 3.879599032
A118: 04_GW Mounding | B118: 003_MeanDaily_Head_Day070 | C118: Critical Node | D118: TS_graph | E118: 125 | F118: =VLOOKUP(selected_config&"_High",Raw_model_output!$A$1:$QO$11545,E118,FALSE) -> 1.454490032 | G118: =VLOOKUP(selected_config&"_Low",Raw_model_output!$A$1:$QO$11545,E118,FALSE) -> 4.171378268
A119: 04_GW Mounding | B119: 003_MeanDaily_Head_Day071 | C119: Critical Node | D119: TS_graph | E119: 126 | F119: =VLOOKUP(selected_config&"_High",Raw_model_output!$A$1:$QO$11545,E119,FALSE) -> 1.9557164 | G119: =VLOOKUP(selected_config&"_Low",Raw_model_output!$A$1:$QO$11545,E119,FALSE) -> 4.858691332
A120: 04_GW Mounding | B120: 003_MeanDaily_Head_Day072 | C120: Critical Node | D120: TS_graph | E120: 127 | F120: =VLOOKUP(selected_config&"_High",Raw_model_output!$A$1:$QO$11545,E120,FALSE) -> 1.702263968 | G120: =VLOOKUP(selected_config&"_Low",Raw_model_output!$A$1:$QO$11545,E120,FALSE) -> 4.472541032
A121: 04_GW Mounding | B121: 003_MeanDaily_Head_Day073 | C121: Critical Node | D121: TS_graph | E121: 128 | F121: =VLOOKUP(selected_config&"_High",Raw_model_output!$A$1:$QO$11545,E121,FALSE) -> 1.455074968 | G121: =VLOOKUP(selected_config&"_Low",Raw_model_output!$A$1:$QO$11545,E121,FALSE) -> 3.8323233
A122: 04_GW Mounding | B122: 003_MeanDaily_Head_Day074 | C122: Critical Node | D122: TS_graph | E122: 129 | F122: =VLOOKUP(selected_config&"_High",Raw_model_output!$A$1:$QO$11545,E122,FALSE) -> 1.2679578 | G122: =VLOOKUP(selected_config&"_Low",Raw_model_output!$A$1:$QO$11545,E122,FALSE) -> 3.5495914
A123: 04_GW Mounding | B123: 003_MeanDaily_Head_Day075 | C123: Critical Node | D123: TS_graph | E123: 130 | F123: =VLOOKUP(selected_config&"_High",Raw_model_output!$A$1:$QO$11545,E123,FALSE) -> 1.9011536 | G123: =VLOOKUP(selected_config&"_Low",Raw_model_output!$A$1:$QO$11545,E123,FALSE) -> 4.965069932
A124: 04_GW Mounding | B124: 003_MeanDaily_Head_Day076 | C124: Critical Node | D124: TS_graph | E124: 131 | F124: =VLOOKUP(selected_config&"_High",Raw_model_output!$A$1:$QO$11545,E124,FALSE) -> 3.177681768 | G124: =VLOOKUP(selected_config&"_Low",Raw_model_output!$A$1:$QO$11545,E124,FALSE) -> 5.538023068
A125: 04_GW Mounding | B125: 003_MeanDaily_Head_Day077 | C125: Critical Node | D125: TS_graph | E125: 132 | F125: =VLOOKUP(selected_config&"_High",Raw_model_output!$A$1:$QO$11545,E125,FALSE) -> 3.047089932 | G125: =VLOOKUP(selected_config&"_Low",Raw_model_output!$A$1:$QO$11545,E125,FALSE) -> 5.495563468
A126: 04_GW Mounding | B126: 003_MeanDaily_Head_Day078 | C126: Critical Node | D126: TS_graph | E126: 133 | F126: =VLOOKUP(selected_config&"_High",Raw_model_output!$A$1:$QO$11545,E126,FALSE) -> 2.320835068 | G126: =VLOOKUP(selected_config&"_Low",Raw_model_output!$A$1:$QO$11545,E126,FALSE) -> 4.828247468
A127: 04_GW Mounding | B127: 003_MeanDaily_Head_Day079 | C127: Critical Node | D127: TS_graph | E127: 134 | F127: =VLOOKUP(selected_config&"_High",Raw_model_output!$A$1:$QO$11545,E127,FALSE) -> 1.924411532 | G127: =VLOOKUP(selected_config&"_Low",Raw_model_output!$A$1:$QO$11545,E127,FALSE) -> 4.2480633
A128: 04_GW Mounding | B128: 003_MeanDaily_Head_Day080 | C128: Critical Node | D128: TS_graph | E128: 135 | F128: =VLOOKUP(selected_config&"_High",Raw_model_output!$A$1:$QO$11545,E128,FALSE) -> 1.650260932 | G128: =VLOOKUP(selected_config&"_Low",Raw_model_output!$A$1:$QO$11545,E128,FALSE) -> 3.897651332
A129: 04_GW Mounding | B129: 003_MeanDaily_Head_Day081 | C129: Critical Node | D129: TS_graph | E129: 136 | F129: =VLOOKUP(selected_config&"_High",Raw_model_output!$A$1:$QO$11545,E129,FALSE) -> 1.441833332 | G129: =VLOOKUP(selected_config&"_Low",Raw_model_output!$A$1:$QO$11545,E129,FALSE) -> 3.86384
A130: 04_GW Mounding | B130: 003_MeanDaily_Head_Day082 | C130: Critical Node | D130: TS_graph | E130: 137 | F130: =VLOOKUP(selected_config&"_High",Raw_model_output!$A$1:$QO$11545,E130,FALSE) -> 1.301550468 | G130: =VLOOKUP(selected_config&"_Low",Raw_model_output!$A$1:$QO$11545,E130,FALSE) -> 3.764600868
A131: 04_GW Mounding | B131: 003_MeanDaily_Head_Day083 | C131: Critical Node | D131: TS_graph | E131: 138 | F131: =VLOOKUP(selected_config&"_High",Raw_model_output!$A$1:$QO$11545,E131,FALSE) -> 1.2064906 | G131: =VLOOKUP(selected_config&"_Low",Raw_model_output!$A$1:$QO$11545,E131,FALSE) -> 3.535882368
A132: 04_GW Mounding | B132: 003_MeanDaily_Head_Day084 | C132: Critical Node | D132: TS_graph | E132: 139 | F132: =VLOOKUP(selected_config&"_High",Raw_model_output!$A$1:$QO$11545,E132,FALSE) -> 1.148880132 | G132: =VLOOKUP(selected_config&"_Low",Raw_model_output!$A$1:$QO$11545,E132,FALSE) -> 4.216621768
A133: 04_GW Mounding | B133: 003_MeanDaily_Head_Day085 | C133: Critical Node | D133: TS_graph | E133: 140 | F133: =VLOOKUP(selected_config&"_High",Raw_model_output!$A$1:$QO$11545,E133,FALSE) -> 1.206112032 | G133: =VLOOKUP(selected_config&"_Low",Raw_model_output!$A$1:$QO$11545,E133,FALSE) -> 3.829991768
A134: 04_GW Mounding | B134: 003_MeanDaily_Head_Day086 | C134: Critical Node | D134: TS_graph | E134: 141 | F134: =VLOOKUP(selected_config&"_High",Raw_model_output!$A$1:$QO$11545,E134,FALSE) -> 1.142414432 | G134: =VLOOKUP(selected_config&"_Low",Raw_model_output!$A$1:$QO$11545,E134,FALSE) -> 3.539654368
A135: 04_GW Mounding | B135: 003_MeanDaily_Head_Day087 | C135: Critical Node | D135: TS_graph | E135: 142 | F135: =VLOOKUP(selected_config&"_High",Raw_model_output!$A$1:$QO$11545,E135,FALSE) -> 1.006981868 | G135: =VLOOKUP(selected_config&"_Low",Raw_model_output!$A$1:$QO$11545,E135,FALSE) -> 3.188015132
A136: 04_GW Mounding | B136: 003_MeanDaily_Head_Day088 | C136: Critical Node | D136: TS_graph | E136: 143 | F136: =VLOOKUP(selected_config&"_High",Raw_model_output!$A$1:$QO$11545,E136,FALSE) -> 0.9602692 | G136: =VLOOKUP(selected_config&"_Low",Raw_model_output!$A$1:$QO$11545,E136,FALSE) -> 3.142595332
A137: 04_GW Mounding | B137: 003_MeanDaily_Head_Day089 | C137: Critical Node | D137: TS_graph | E137: 144 | F137: =VLOOKUP(selected_config&"_High",Raw_model_output!$A$1:$QO$11545,E137,FALSE) -> 0.8822585 | G137: =VLOOKUP(selected_config&"_Low",Raw_model_output!$A$1:$QO$11545,E137,FALSE) -> 2.9985924
A138: 04_GW Mounding | B138: 003_MeanDaily_Head_Day090 | C138: Critical Node | D138: TS_graph | E138: 145 | F138: =VLOOKUP(selected_config&"_High",Raw_model_output!$A$1:$QO$11545,E138,FALSE) -> 0.8133785 | G138: =VLOOKUP(selected_config&"_Low",Raw_model_output!$A$1:$QO$11545,E138,FALSE) -> 2.872055468
A139: 04_GW Mounding | B139: 003_MeanDaily_Head_Day091 | C139: Critical Node | D139: TS_graph | E139: 146 | F139: =VLOOKUP(selected_config&"_High",Raw_model_output!$A$1:$QO$11545,E139,FALSE) -> 0.751803332 | G139: =VLOOKUP(selected_config&"_Low",Raw_model_output!$A$1:$QO$11545,E139,FALSE) -> 2.759392932
A140: 04_GW Mounding | B140: 003_MeanDaily_Head_Day092 | C140: Critical Node | D140: TS_graph | E140: 147 | F140: =VLOOKUP(selected_config&"_High",Raw_model_output!$A$1:$QO$11545,E140,FALSE) -> 0.697 | G140: =VLOOKUP(selected_config&"_Low",Raw_model_output!$A$1:$QO$11545,E140,FALSE) -> 2.656663332
A141: 04_GW Mounding | B141: 003_MeanDaily_Head_Day093 | C141: Critical Node | D141: TS_graph | E141: 148 | F141: =VLOOKUP(selected_config&"_High",Raw_model_output!$A$1:$QO$11545,E141,FALSE) -> 0.6487717 | G141: =VLOOKUP(selected_config&"_Low",Raw_model_output!$A$1:$QO$11545,E141,FALSE) -> 2.5644352
A142: 04_GW Mounding | B142: 003_MeanDaily_Head_Day094 | C142: Critical Node | D142: TS_graph | E142: 149 | F142: =VLOOKUP(selected_config&"_High",Raw_model_output!$A$1:$QO$11545,E142,FALSE) -> 0.605466132 | G142: =VLOOKUP(selected_config&"_Low",Raw_model_output!$A$1:$QO$11545,E142,FALSE) -> 2.797609032
A143: 04_GW Mounding | B143: 003_MeanDaily_Head_Day095 | C143: Critical Node | D143: TS_graph | E143: 150 | F143: =VLOOKUP(selected_config&"_High",Raw_model_output!$A$1:$QO$11545,E143,FALSE) -> 0.624722468 | G143: =VLOOKUP(selected_config&"_Low",Raw_model_output!$A$1:$QO$11545,E143,FALSE) -> 4.0133096
A144: 04_GW Mounding | B144: 003_MeanDaily_Head_Day096 | C144: Critical Node | D144: TS_graph | E144: 151 | F144: =VLOOKUP(selected_config&"_High",Raw_model_output!$A$1:$QO$11545,E144,FALSE) -> 0.862314732 | G144: =VLOOKUP(selected_config&"_Low",Raw_model_output!$A$1:$QO$11545,E144,FALSE) -> 3.8840571
A145: 04_GW Mounding | B145: 003_MeanDaily_Head_Day097 | C145: Critical Node | D145: TS_graph | E145: 152 | F145: =VLOOKUP(selected_config&"_High",Raw_model_output!$A$1:$QO$11545,E145,FALSE) -> 0.92127 | G145: =VLOOKUP(selected_config&"_Low",Raw_model_output!$A$1:$QO$11545,E145,FALSE) -> 3.584046432
A146: 04_GW Mounding | B146: 003_MeanDaily_Head_Day098 | C146: Critical Node | D146: TS_graph | E146: 153 | F146: =VLOOKUP(selected_config&"_High",Raw_model_output!$A$1:$QO$11545,E146,FALSE) -> 0.906373332 | G146: =VLOOKUP(selected_config&"_Low",Raw_model_output!$A$1:$QO$11545,E146,FALSE) -> 3.354773068
A147: 04_GW Mounding | B147: 003_MeanDaily_Head_Day099 | C147: Critical Node | D147: TS_graph | E147: 154 | F147: =VLOOKUP(selected_config&"_High",Raw_model_output!$A$1:$QO$11545,E147,FALSE) -> 0.861993568 | G147: =VLOOKUP(selected_config&"_Low",Raw_model_output!$A$1:$QO$11545,E147,FALSE) -> 3.142786668
A148: 04_GW Mounding | B148: 003_MeanDaily_Head_Day100 | C148: Critical Node | D148: TS_graph | E148: 155 | F148: =VLOOKUP(selected_config&"_High",Raw_model_output!$A$1:$QO$11545,E148,FALSE) -> 0.808069 | G148: =VLOOKUP(selected_config&"_Low",Raw_model_output!$A$1:$QO$11545,E148,FALSE) -> 2.970231332
A149: 04_GW Mounding | B149: 003_MeanDaily_Head_Day101 | C149: Critical Node | D149: TS_graph | E149: 156 | F149: =VLOOKUP(selected_config&"_High",Raw_model_output!$A$1:$QO$11545,E149,FALSE) -> 0.75358 | G149: =VLOOKUP(selected_config&"_Low",Raw_model_output!$A$1:$QO$11545,E149,FALSE) -> 2.826898068
A150: 04_GW Mounding | B150: 003_MeanDaily_Head_Day102 | C150: Critical Node | D150: TS_graph | E150: 157 | F150: =VLOOKUP(selected_config&"_High",Raw_model_output!$A$1:$QO$11545,E150,FALSE) -> 0.7020102 | G150: =VLOOKUP(selected_config&"_Low",Raw_model_output!$A$1:$QO$11545,E150,FALSE) -> 2.702856668
A151: 04_GW Mounding | B151: 003_MeanDaily_Head_Day103 | C151: Critical Node | D151: TS_graph | E151: 158 | F151: =VLOOKUP(selected_config&"_High",Raw_model_output!$A$1:$QO$11545,E151,FALSE) -> 0.658186668 | G151: =VLOOKUP(selected_config&"_Low",Raw_model_output!$A$1:$QO$11545,E151,FALSE) -> 3.348792532
A152: 04_GW Mounding | B152: 003_MeanDaily_Head_Day104 | C152: Critical Node | D152: TS_graph | E152: 159 | F152: =VLOOKUP(selected_config&"_High",Raw_model_output!$A$1:$QO$11545,E152,FALSE) -> 0.8353914 | G152: =VLOOKUP(selected_config&"_Low",Raw_model_output!$A$1:$QO$11545,E152,FALSE) -> 3.664517132
A153: 04_GW Mounding | B153: 003_MeanDaily_Head_Day105 | C153: Critical Node | D153: TS_graph | E153: 160 | F153: =VLOOKUP(selected_config&"_High",Raw_model_output!$A$1:$QO$11545,E153,FALSE) -> 0.902273332 | G153: =VLOOKUP(selected_config&"_Low",Raw_model_output!$A$1:$QO$11545,E153,FALSE) -> 3.281937932
A154: 04_GW Mounding | B154: 003_MeanDaily_Head_Day106 | C154: Critical Node | D154: TS_graph | E154: 161 | F154: =VLOOKUP(selected_config&"_High",Raw_model_output!$A$1:$QO$11545,E154,FALSE) -> 0.85608 | G154: =VLOOKUP(selected_config&"_Low",Raw_model_output!$A$1:$QO$11545,E154,FALSE) -> 3.051532968
A155: 04_GW Mounding | B155: 003_MeanDaily_Head_Day107 | C155: Critical Node | D155: TS_graph | E155: 162 | F155: =VLOOKUP(selected_config&"_High",Raw_model_output!$A$1:$QO$11545,E155,FALSE) -> 0.796573968 | G155: =VLOOKUP(selected_config&"_Low",Raw_model_output!$A$1:$QO$11545,E155,FALSE) -> 3.356836732
A156: 04_GW Mounding | B156: 003_MeanDaily_Head_Day108 | C156: Critical Node | D156: TS_graph | E156: 163 | F156: =VLOOKUP(selected_config&"_High",Raw_model_output!$A$1:$QO$11545,E156,FALSE) -> 0.872805268 | G156: =VLOOKUP(selected_config&"_Low",Raw_model_output!$A$1:$QO$11545,E156,FALSE) -> 3.713676132
A157: 04_GW Mounding | B157: 003_MeanDaily_Head_Day109 | C157: Critical Node | D157: TS_graph | E157: 164 | F157: =VLOOKUP(selected_config&"_High",Raw_model_output!$A$1:$QO$11545,E157,FALSE) -> 0.930307768 | G157: =VLOOKUP(selected_config&"_Low",Raw_model_output!$A$1:$QO$11545,E157,FALSE) -> 3.323227668
A158: 04_GW Mounding | B158: 003_MeanDaily_Head_Day110 | C158: Critical Node | D158: TS_graph | E158: 165 | F158: =VLOOKUP(selected_config&"_High",Raw_model_output!$A$1:$QO$11545,E158,FALSE) -> 0.879672768 | G158: =VLOOKUP(selected_config&"_Low",Raw_model_output!$A$1:$QO$11545,E158,FALSE) -> 3.0874353
A159: 04_GW Mounding | B159: 003_MeanDaily_Head_Day111 | C159: Critical Node | D159: TS_graph | E159: 166 | F159: =VLOOKUP(selected_config&"_High",Raw_model_output!$A$1:$QO$11545,E159,FALSE) -> 0.814998 | G159: =VLOOKUP(selected_config&"_Low",Raw_model_output!$A$1:$QO$11545,E159,FALSE) -> 2.909980468
A160: 04_GW Mounding | B160: 003_MeanDaily_Head_Day112 | C160: Critical Node | D160: TS_graph | E160: 167 | F160: =VLOOKUP(selected_config&"_High",Raw_model_output!$A$1:$QO$11545,E160,FALSE) -> 0.753135832 | G160: =VLOOKUP(selected_config&"_Low",Raw_model_output!$A$1:$QO$11545,E160,FALSE) -> 2.917068
A161: 04_GW Mounding | B161: 003_MeanDaily_Head_Day113 | C161: Critical Node | D161: TS_graph | E161: 168 | F161: =VLOOKUP(selected_config&"_High",Raw_model_output!$A$1:$QO$11545,E161,FALSE) -> 0.935700632 | G161: =VLOOKUP(selected_config&"_Low",Raw_model_output!$A$1:$QO$11545,E161,FALSE) -> 4.371503368
A162: 04_GW Mounding | B162: 003_MeanDaily_Head_Day114 | C162: Critical Node | D162: TS_graph | E162: 169 | F162: =VLOOKUP(selected_config&"_High",Raw_model_output!$A$1:$QO$11545,E162,FALSE) -> 2.701667668 | G162: =VLOOKUP(selected_config&"_Low",Raw_model_output!$A$1:$QO$11545,E162,FALSE) -> 5.237084432
A163: 04_GW Mounding | B163: 003_MeanDaily_Head_Day115 | C163: Critical Node | D163: TS_graph | E163: 170 | F163: =VLOOKUP(selected_config&"_High",Raw_model_output!$A$1:$QO$11545,E163,FALSE) -> 2.5358992 | G163: =VLOOKUP(selected_config&"_Low",Raw_model_output!$A$1:$QO$11545,E163,FALSE) -> 5.1334788
A164: 04_GW Mounding | B164: 003_MeanDaily_Head_Day116 | C164: Critical Node | D164: TS_graph | E164: 171 | F164: =VLOOKUP(selected_config&"_High",Raw_model_output!$A$1:$QO$11545,E164,FALSE) -> 1.973636132 | G164: =VLOOKUP(selected_config&"_Low",Raw_model_output!$A$1:$QO$11545,E164,FALSE) -> 4.4200706
A165: 04_GW Mounding | B165: 003_MeanDaily_Head_Day117 | C165: Critical Node | D165: TS_graph | E165: 172 | F165: =VLOOKUP(selected_config&"_High",Raw_model_output!$A$1:$QO$11545,E165,FALSE) -> 1.654211968 | G165: =VLOOKUP(selected_config&"_Low",Raw_model_output!$A$1:$QO$11545,E165,FALSE) -> 3.9468691
A166: 04_GW Mounding | B166: 003_MeanDaily_Head_Day118 | C166: Critical Node | D166: TS_graph | E166: 173 | F166: =VLOOKUP(selected_config&"_High",Raw_model_output!$A$1:$QO$11545,E166,FALSE) -> 1.429033132 | G166: =VLOOKUP(selected_config&"_Low",Raw_model_output!$A$1:$QO$11545,E166,FALSE) -> 3.6460398
A167: 04_GW Mounding | B167: 003_MeanDaily_Head_Day119 | C167: Critical Node | D167: TS_graph | E167: 174 | F167: =VLOOKUP(selected_config&"_High",Raw_model_output!$A$1:$QO$11545,E167,FALSE) -> 1.25747 | G167: =VLOOKUP(selected_config&"_Low",Raw_model_output!$A$1:$QO$11545,E167,FALSE) -> 3.4192237
A168: 04_GW Mounding | B168: 003_MeanDaily_Head_Day120 | C168: Critical Node | D168: TS_graph | E168: 175 | F168: =VLOOKUP(selected_config&"_High",Raw_model_output!$A$1:$QO$11545,E168,FALSE) -> 1.1216616 | G168: =VLOOKUP(selected_config&"_Low",Raw_model_output!$A$1:$QO$11545,E168,FALSE) -> 3.2345474
A169: 04_GW Mounding | B169: 003_MeanDaily_Head_Day121 | C169: Critical Node | D169: TS_graph | E169: 176 | F169: =VLOOKUP(selected_config&"_High",Raw_model_output!$A$1:$QO$11545,E169,FALSE) -> 1.011303268 | G169: =VLOOKUP(selected_config&"_Low",Raw_model_output!$A$1:$QO$11545,E169,FALSE) -> 3.078113268
A170: 04_GW Mounding | B170: 003_MeanDaily_Head_Day122 | C170: Critical Node | D170: TS_graph | E170: 177 | F170: =VLOOKUP(selected_config&"_High",Raw_model_output!$A$1:$QO$11545,E170,FALSE) -> 0.918460132 | G170: =VLOOKUP(selected_config&"_Low",Raw_model_output!$A$1:$QO$11545,E170,FALSE) -> 2.9425454
A171: 04_GW Mounding | B171: 003_MeanDaily_Head_Day123 | C171: Critical Node | D171: TS_graph | E171: 178 | F171: =VLOOKUP(selected_config&"_High",Raw_model_output!$A$1:$QO$11545,E171,FALSE) -> 0.839177068 | G171: =VLOOKUP(selected_config&"_Low",Raw_model_output!$A$1:$QO$11545,E171,FALSE) -> 2.8217061
A172: 04_GW Mounding | B172: 003_MeanDaily_Head_Day124 | C172: Critical Node | D172: TS_graph | E172: 179 | F172: =VLOOKUP(selected_config&"_High",Raw_model_output!$A$1:$QO$11545,E172,FALSE) -> 0.770219168 | G172: =VLOOKUP(selected_config&"_Low",Raw_model_output!$A$1:$QO$11545,E172,FALSE) -> 2.712398732
A173: 04_GW Mounding | B173: 003_MeanDaily_Head_Day125 | C173: Critical Node | D173: TS_graph | E173: 180 | F173: =VLOOKUP(selected_config&"_High",Raw_model_output!$A$1:$QO$11545,E173,FALSE) -> 0.7118256 | G173: =VLOOKUP(selected_config&"_Low",Raw_model_output!$A$1:$QO$11545,E173,FALSE) -> 2.619077268
A174: 04_GW Mounding | B174: 003_MeanDaily_Head_Day126 | C174: Critical Node | D174: TS_graph | E174: 181 | F174: =VLOOKUP(selected_config&"_High",Raw_model_output!$A$1:$QO$11545,E174,FALSE) -> 0.6623919 | G174: =VLOOKUP(selected_config&"_Low",Raw_model_output!$A$1:$QO$11545,E174,FALSE) -> 2.548144532
A175: 04_GW Mounding | B175: 003_MeanDaily_Head_Day127 | C175: Critical Node | D175: TS_graph | E175: 182 | F175: =VLOOKUP(selected_config&"_High",Raw_model_output!$A$1:$QO$11545,E175,FALSE) -> 0.615718868 | G175: =VLOOKUP(selected_config&"_Low",Raw_model_output!$A$1:$QO$11545,E175,FALSE) -> 2.800146932
A176: 04_GW Mounding | B176: 003_MeanDaily_Head_Day128 | C176: Critical Node | D176: TS_graph | E176: 183 | F176: =VLOOKUP(selected_config&"_High",Raw_model_output!$A$1:$QO$11545,E176,FALSE) -> 0.595038468 | G176: =VLOOKUP(selected_config&"_Low",Raw_model_output!$A$1:$QO$11545,E176,FALSE) -> 3.731776268
A177: 04_GW Mounding | B177: 003_MeanDaily_Head_Day129 | C177: Critical Node | D177: TS_graph | E177: 184 | F177: =VLOOKUP(selected_config&"_High",Raw_model_output!$A$1:$QO$11545,E177,FALSE) -> 0.744307168 | G177: =VLOOKUP(selected_config&"_Low",Raw_model_output!$A$1:$QO$11545,E177,FALSE) -> 3.383691732
A178: 04_GW Mounding | B178: 003_MeanDaily_Head_Day130 | C178: Critical Node | D178: TS_graph | E178: 185 | F178: =VLOOKUP(selected_config&"_High",Raw_model_output!$A$1:$QO$11545,E178,FALSE) -> 0.790485468 | G178: =VLOOKUP(selected_config&"_Low",Raw_model_output!$A$1:$QO$11545,E178,FALSE) -> 3.1082797
A179: 04_GW Mounding | B179: 003_MeanDaily_Head_Day131 | C179: Critical Node | D179: TS_graph | E179: 186 | F179: =VLOOKUP(selected_config&"_High",Raw_model_output!$A$1:$QO$11545,E179,FALSE) -> 0.7755519 | G179: =VLOOKUP(selected_config&"_Low",Raw_model_output!$A$1:$QO$11545,E179,FALSE) -> 3.876509
A180: 04_GW Mounding | B180: 003_MeanDaily_Head_Day132 | C180: Critical Node | D180: TS_graph | E180: 187 | F180: =VLOOKUP(selected_config&"_High",Raw_model_output!$A$1:$QO$11545,E180,FALSE) -> 1.0011462 | G180: =VLOOKUP(selected_config&"_Low",Raw_model_output!$A$1:$QO$11545,E180,FALSE) -> 3.737360468
A181: 04_GW Mounding | B181: 003_MeanDaily_Head_Day133 | C181: Critical Node | D181: TS_graph | E181: 188 | F181: =VLOOKUP(selected_config&"_High",Raw_model_output!$A$1:$QO$11545,E181,FALSE) -> 0.979556968 | G181: =VLOOKUP(selected_config&"_Low",Raw_model_output!$A$1:$QO$11545,E181,FALSE) -> 3.381555632
A182: 04_GW Mounding | B182: 003_MeanDaily_Head_Day134 | C182: Critical Node | D182: TS_graph | E182: 189 | F182: =VLOOKUP(selected_config&"_High",Raw_model_output!$A$1:$QO$11545,E182,FALSE) -> 0.909190032 | G182: =VLOOKUP(selected_config&"_Low",Raw_model_output!$A$1:$QO$11545,E182,FALSE) -> 3.1486237
A183: 04_GW Mounding | B183: 003_MeanDaily_Head_Day135 | C183: Critical Node | D183: TS_graph | E183: 190 | F183: =VLOOKUP(selected_config&"_High",Raw_model_output!$A$1:$QO$11545,E183,FALSE) -> 0.838176668 | G183: =VLOOKUP(selected_config&"_Low",Raw_model_output!$A$1:$QO$11545,E183,FALSE) -> 2.9690478
A184: 04_GW Mounding | B184: 003_MeanDaily_Head_Day136 | C184: Critical Node | D184: TS_graph | E184: 191 | F184: =VLOOKUP(selected_config&"_High",Raw_model_output!$A$1:$QO$11545,E184,FALSE) -> 0.772856832 | G184: =VLOOKUP(selected_config&"_Low",Raw_model_output!$A$1:$QO$11545,E184,FALSE) -> 2.8205294
A185: 04_GW Mounding | B185: 003_MeanDaily_Head_Day137 | C185: Critical Node | D185: TS_graph | E185: 192 | F185: =VLOOKUP(selected_config&"_High",Raw_model_output!$A$1:$QO$11545,E185,FALSE) -> 0.7277336 | G185: =VLOOKUP(selected_config&"_Low",Raw_model_output!$A$1:$QO$11545,E185,FALSE) -> 3.675177132
A186: 04_GW Mounding | B186: 003_MeanDaily_Head_Day138 | C186: Critical Node | D186: TS_graph | E186: 193 | F186: =VLOOKUP(selected_config&"_High",Raw_model_output!$A$1:$QO$11545,E186,FALSE) -> 0.828342132 | G186: =VLOOKUP(selected_config&"_Low",Raw_model_output!$A$1:$QO$11545,E186,FALSE) -> 3.401649732
A187: 04_GW Mounding | B187: 003_MeanDaily_Head_Day139 | C187: Critical Node | D187: TS_graph | E187: 194 | F187: =VLOOKUP(selected_config&"_High",Raw_model_output!$A$1:$QO$11545,E187,FALSE) -> 0.844736668 | G187: =VLOOKUP(selected_config&"_Low",Raw_model_output!$A$1:$QO$11545,E187,FALSE) -> 3.132488832
A188: 04_GW Mounding | B188: 003_MeanDaily_Head_Day140 | C188: Critical Node | D188: TS_graph | E188: 195 | F188: =VLOOKUP(selected_config&"_High",Raw_model_output!$A$1:$QO$11545,E188,FALSE) -> 0.855408968 | G188: =VLOOKUP(selected_config&"_Low",Raw_model_output!$A$1:$QO$11545,E188,FALSE) -> 4.0144371
A189: 04_GW Mounding | B189: 003_MeanDaily_Head_Day141 | C189: Critical Node | D189: TS_graph | E189: 196 | F189: =VLOOKUP(selected_config&"_High",Raw_model_output!$A$1:$QO$11545,E189,FALSE) -> 1.0255576 | G189: =VLOOKUP(selected_config&"_Low",Raw_model_output!$A$1:$QO$11545,E189,FALSE) -> 3.702532332
A190: 04_GW Mounding | B190: 003_MeanDaily_Head_Day142 | C190: Critical Node | D190: TS_graph | E190: 197 | F190: =VLOOKUP(selected_config&"_High",Raw_model_output!$A$1:$QO$11545,E190,FALSE) -> 0.984861 | G190: =VLOOKUP(selected_config&"_Low",Raw_model_output!$A$1:$QO$11545,E190,FALSE) -> 3.352261132
A191: 04_GW Mounding | B191: 003_MeanDaily_Head_Day143 | C191: Critical Node | D191: TS_graph | E191: 198 | F191: =VLOOKUP(selected_config&"_High",Raw_model_output!$A$1:$QO$11545,E191,FALSE) -> 0.9070389 | G191: =VLOOKUP(selected_config&"_Low",Raw_model_output!$A$1:$QO$11545,E191,FALSE) -> 3.121824732
A192: 04_GW Mounding | B192: 003_MeanDaily_Head_Day144 | C192: Critical Node | D192: TS_graph | E192: 199 | F192: =VLOOKUP(selected_config&"_High",Raw_model_output!$A$1:$QO$11545,E192,FALSE) -> 1.0073495 | G192: =VLOOKUP(selected_config&"_Low",Raw_model_output!$A$1:$QO$11545,E192,FALSE) -> 4.158828168
A193: 04_GW Mounding | B193: 003_MeanDaily_Head_Day145 | C193: Critical Node | D193: TS_graph | E193: 200 | F193: =VLOOKUP(selected_config&"_High",Raw_model_output!$A$1:$QO$11545,E193,FALSE) -> 1.2829884 | G193: =VLOOKUP(selected_config&"_Low",Raw_model_output!$A$1:$QO$11545,E193,FALSE) -> 4.103856732
A194: 04_GW Mounding | B194: 003_MeanDaily_Head_Day146 | C194: Critical Node | D194: TS_graph | E194: 201 | F194: =VLOOKUP(selected_config&"_High",Raw_model_output!$A$1:$QO$11545,E194,FALSE) -> 1.160826168 | G194: =VLOOKUP(selected_config&"_Low",Raw_model_output!$A$1:$QO$11545,E194,FALSE) -> 3.619007132
A195: 04_GW Mounding | B195: 003_MeanDaily_Head_Day147 | C195: Critical Node | D195: TS_graph | E195: 202 | F195: =VLOOKUP(selected_config&"_High",Raw_model_output!$A$1:$QO$11545,E195,FALSE) -> 1.040873832 | G195: =VLOOKUP(selected_config&"_Low",Raw_model_output!$A$1:$QO$11545,E195,FALSE) -> 3.336902532
A196: 04_GW Mounding | B196: 003_MeanDaily_Head_Day148 | C196: Critical Node | D196: TS_graph | E196: 203 | F196: =VLOOKUP(selected_config&"_High",Raw_model_output!$A$1:$QO$11545,E196,FALSE) -> 0.939536868 | G196: =VLOOKUP(selected_config&"_Low",Raw_model_output!$A$1:$QO$11545,E196,FALSE) -> 3.130052068
A197: 04_GW Mounding | B197: 003_MeanDaily_Head_Day149 | C197: Critical Node | D197: TS_graph | E197: 204 | F197: =VLOOKUP(selected_config&"_High",Raw_model_output!$A$1:$QO$11545,E197,FALSE) -> 0.8568098 | G197: =VLOOKUP(selected_config&"_Low",Raw_model_output!$A$1:$QO$11545,E197,FALSE) -> 3.634889168
A198: 04_GW Mounding | B198: 003_MeanDaily_Head_Day150 | C198: Critical Node | D198: TS_graph | E198: 205 | F198: =VLOOKUP(selected_config&"_High",Raw_model_output!$A$1:$QO$11545,E198,FALSE) -> 1.371553868 | G198: =VLOOKUP(selected_config&"_Low",Raw_model_output!$A$1:$QO$11545,E198,FALSE) -> 4.743008468
A199: 04_GW Mounding | B199: 003_MeanDaily_Head_Day151 | C199: Critical Node | D199: TS_graph | E199: 206 | F199: =VLOOKUP(selected_config&"_High",Raw_model_output!$A$1:$QO$11545,E199,FALSE) -> 1.5034003 | G199: =VLOOKUP(selected_config&"_Low",Raw_model_output!$A$1:$QO$11545,E199,FALSE) -> 4.361357232
A200: 04_GW Mounding | B200: 003_MeanDaily_Head_Day152 | C200: Critical Node | D200: TS_graph | E200: 207 | F200: =VLOOKUP(selected_config&"_High",Raw_model_output!$A$1:$QO$11545,E200,FALSE) -> 1.300252132 | G200: =VLOOKUP(selected_config&"_Low",Raw_model_output!$A$1:$QO$11545,E200,FALSE) -> 3.821074268
A201: 04_GW Mounding | B201: 003_MeanDaily_Head_Day153 | C201: Critical Node | D201: TS_graph | E201: 208 | F201: =VLOOKUP(selected_config&"_High",Raw_model_output!$A$1:$QO$11545,E201,FALSE) -> 1.147104832 | G201: =VLOOKUP(selected_config&"_Low",Raw_model_output!$A$1:$QO$11545,E201,FALSE) -> 3.512762468
... 249 more rows

Sheet Time Series (hidden)
A1: day_num | B1: BIR | C1: DEN | D1: LA | E1: MAD | F1: PHI | G1: SEA | H1: precip (ft) | I1: Loading (ft) | J1: Critical Point Head - High AZ (ft) | K1: Critical Point Head - Low AZ (ft) | L1: Bypass Depth (ft) | M1: Initial GW Depth (ft) | N1: Ponding Depth - High AZ (ft) | O1: Ponding Depth - Low AZ (ft) | P1: CP_bottom | Q1: CP_delta | R1: Ponding_bottom | S1: Ponding_delta | T1: BMP_Surface
A2: 1 | B2: 0.76 | C2: 2.54 | D2: 0 | E2: 14.23 | F2: 17.01 | G2: 8.37 | H2: =HLOOKUP(station,$B$1:$G$4032,A2+1,FALSE)*0.00328084 -> 0.0024934384 | I2: =(1+0.85*loading)*H2 -> 0.0448818912 | J2: =IF(Selection!F49*Selection!$F$450>T2,T2,Selection!F49*Selection!$F$450) -> 0.1082043546 | K2: =IF(Selection!G49*Selection!$G$450>T2,T2,Selection!G49*Selection!$G$450) -> 0.09497323512 | L2: =IF(BMP_type= "FS",-1,IF(BMP_type= "PS",GWL+IF(Geometry = "H",12, IF(Geometry = "L",4,1)),VLOOKUP(BMP_type,Geometry!$S$5:$T$9,2,FALSE)+GWL)) -> 9 | M2: 0 | N2: =IF(BMP_type="FS",-999,IF(Selection!F217<0,0,Selection!F217)+T2) -> 8 | O2: =IF(BMP_type="FS",-999,IF(Selection!G217<0,0,Selection!G217)+T2) -> 8 | P2: =J2 -> 0.1082043546 | Q2: =K2-J2 -> -0.01323111951 | R2: =N2 -> 8 | S2: =O2-N2 -> 0 | T2: =IF(BMP_type = "PS",L2-1,IF(BMP_type = "FS",GWL+IF(Geometry="H",9.7,1.8),GWL)) -> 8
A3: 2 | B3: 0 | C3: 0 | D3: 0 | E3: 26.4 | F3: 0 | G3: 1.01 | H3: 0 | I3: 0 | J3: =IF(Selection!F50*Selection!$F$450>T3,T3,Selection!F50*Selection!$F$450) -> 0.4742431186 | K3: =IF(Selection!G50*Selection!$G$450>T3,T3,Selection!G50*Selection!$G$450) -> 0.4375502486 | L3: =IF(BMP_type= "FS",-1,IF(BMP_type= "PS",GWL+IF(Geometry = "H",12, IF(Geometry = "L",4,1)),VLOOKUP(BMP_type,Geometry!$S$5:$T$9,2,FALSE)+GWL)) -> 9 | M3: 0 | N3: =IF(BMP_type="FS",-999,IF(Selection!F218<0,0,Selection!F218)+T3) -> 8 | O3: =IF(BMP_type="FS",-999,IF(Selection!G218<0,0,Selection!G218)+T3) -> 8 | P3: 0.4742431186 | Q3: -0.03669287005 | R3: =N3 -> 8 | S3: =O3-N3 -> 0 | T3: 8
A4: 3 | B4: 0 | C4: 0 | D4: 0 | E4: 0 | F4: 0 | G4: 0 | H4: 0 | I4: 0 | J4: =IF(Selection!F51*Selection!$F$450>T4,T4,Selection!F51*Selection!$F$450) -> 0.8225903803 | K4: =IF(Selection!G51*Selection!$G$450>T4,T4,Selection!G51*Selection!$G$450) -> 0.8272102192 | L4: =IF(BMP_type= "FS",-1,IF(BMP_type= "PS",GWL+IF(Geometry = "H",12, IF(Geometry = "L",4,1)),VLOOKUP(BMP_type,Geometry!$S$5:$T$9,2,FALSE)+GWL)) -> 9 | M4: 0 | N4: =IF(BMP_type="FS",-999,IF(Selection!F219<0,0,Selection!F219)+T4) -> 8 | O4: =IF(BMP_type="FS",-999,IF(Selection!G219<0,0,Selection!G219)+T4) -> 8 | P4: 0.8225903803 | Q4: 0.004619838966 | R4: 8 | S4: 0 | T4: 8
A5: 4 | B5: 0 | C5: 15.24 | D5: 0 | E5: 0 | F5: 0.76 | G5: 0.5 | H5: 0 | I5: 0 | J5: =IF(Selection!F52*Selection!$F$450>T5,T5,Selection!F52*Selection!$F$450) -> 1.097428255 | K5: =IF(Selection!G52*Selection!$G$450>T5,T5,Selection!G52*Selection!$G$450) -> 1.205946019 | L5: =IF(BMP_type= "FS",-1,IF(BMP_type= "PS",GWL+IF(Geometry = "H",12, IF(Geometry = "L",4,1)),VLOOKUP(BMP_type,Geometry!$S$5:$T$9,2,FALSE)+GWL)) -> 9 | M5: 0 | N5: =IF(BMP_type="FS",-999,IF(Selection!F220<0,0,Selection!F220)+T5) -> 8 | O5: =IF(BMP_type="FS",-999,IF(Selection!G220<0,0,Selection!G220)+T5) -> 8 | P5: 1.097428255 | Q5: 0.1085177637 | R5: 8 | S5: 0 | T5: 8
A6: 5 | B6: 0 | C6: 5.08 | D6: 0 | E6: 0 | F6: 4.06 | G6: 1.25 | H6: 0 | I6: 0 | J6: =IF(Selection!F53*Selection!$F$450>T6,T6,Selection!F53*Selection!$F$450) -> 1.29249242 | K6: =IF(Selection!G53*Selection!$G$450>T6,T6,Selection!G53*Selection!$G$450) -> 1.54341379 | L6: =IF(BMP_type= "FS",-1,IF(BMP_type= "PS",GWL+IF(Geometry = "H",12, IF(Geometry = "L",4,1)),VLOOKUP(BMP_type,Geometry!$S$5:$T$9,2,FALSE)+GWL)) -> 9 | M6: 0 | N6: =IF(BMP_type="FS",-999,IF(Selection!F221<0,0,Selection!F221)+T6) -> 8 | O6: =IF(BMP_type="FS",-999,IF(Selection!G221<0,0,Selection!G221)+T6) -> 8 | P6: 1.29249242 | Q6: 0.2509213707 | R6: 8 | S6: 0 | T6: 8
A7: 6 | B7: 0 | C7: 10.16 | D7: 0 | E7: 0.25 | F7: 0 | G7: 18.03 | H7: 0 | I7: 0 | J7: =IF(Selection!F54*Selection!$F$450>T7,T7,Selection!F54*Selection!$F$450) -> 1.412878454 | K7: =IF(Selection!G54*Selection!$G$450>T7,T7,Selection!G54*Selection!$G$450) -> 1.818721099 | L7: =IF(BMP_type= "FS",-1,IF(BMP_type= "PS",GWL+IF(Geometry = "H",12, IF(Geometry = "L",4,1)),VLOOKUP(BMP_type,Geometry!$S$5:$T$9,2,FALSE)+GWL)) -> 9 | M7: 0 | N7: =IF(BMP_type="FS",-999,IF(Selection!F222<0,0,Selection!F222)+T7) -> 8 | O7: =IF(BMP_type="FS",-999,IF(Selection!G222<0,0,Selection!G222)+T7) -> 8 | P7: 1.412878454 | Q7: 0.405842645 | R7: 8 | S7: 0 | T7: 8
A8: 7 | B8: 0 | C8: 0 | D8: 0 | E8: 0 | F8: 0 | G8: 18.8 | H8: 0 | I8: 0 | J8: =IF(Selection!F55*Selection!$F$450>T8,T8,Selection!F55*Selection!$F$450) -> 1.470693173 | K8: =IF(Selection!G55*Selection!$G$450>T8,T8,Selection!G55*Selection!$G$450) -> 2.033793174 | L8: =IF(BMP_type= "FS",-1,IF(BMP_type= "PS",GWL+IF(Geometry = "H",12, IF(Geometry = "L",4,1)),VLOOKUP(BMP_type,Geometry!$S$5:$T$9,2,FALSE)+GWL)) -> 9 | M8: 0 | N8: =IF(BMP_type="FS",-999,IF(Selection!F223<0,0,Selection!F223)+T8) -> 8 | O8: =IF(BMP_type="FS",-999,IF(Selection!G223<0,0,Selection!G223)+T8) -> 8 | P8: 1.470693173 | Q8: 0.5631000005 | R8: 8 | S8: 0 | T8: 8
A9: 8 | B9: 0 | C9: 0 | D9: 0 | E9: 0 | F9: 0 | G9: 5.32 | H9: 0 | I9: 0 | J9: =IF(Selection!F56*Selection!$F$450>T9,T9,Selection!F56*Selection!$F$450) -> 1.487750473 | K9: =IF(Selection!G56*Selection!$G$450>T9,T9,Selection!G56*Selection!$G$450) -> 2.193540025 | L9: =IF(BMP_type= "FS",-1,IF(BMP_type= "PS",GWL+IF(Geometry = "H",12, IF(Geometry = "L",4,1)),VLOOKUP(BMP_type,Geometry!$S$5:$T$9,2,FALSE)+GWL)) -> 9 | M9: 0 | N9: =IF(BMP_type="FS",-999,IF(Selection!F224<0,0,Selection!F224)+T9) -> 8 | O9: =IF(BMP_type="FS",-999,IF(Selection!G224<0,0,Selection!G224)+T9) -> 8 | P9: 1.487750473 | Q9: 0.7057895521 | R9: 8 | S9: 0 | T9: 8
A10: 9 | B10: 0 | C10: 5.08 | D10: 0 | E10: 0.51 | F10: 0 | G10: 0 | H10: 0 | I10: 0 | J10: =IF(Selection!F57*Selection!$F$450>T10,T10,Selection!F57*Selection!$F$450) -> 1.479759725 | K10: =IF(Selection!G57*Selection!$G$450>T10,T10,Selection!G57*Selection!$G$450) -> 2.309020992 | L10: =IF(BMP_type= "FS",-1,IF(BMP_type= "PS",GWL+IF(Geometry = "H",12, IF(Geometry = "L",4,1)),VLOOKUP(BMP_type,Geometry!$S$5:$T$9,2,FALSE)+GWL)) -> 9 | M10: 0 | N10: =IF(BMP_type="FS",-999,IF(Selection!F225<0,0,Selection!F225)+T10) -> 8 | O10: =IF(BMP_type="FS",-999,IF(Selection!G225<0,0,Selection!G225)+T10) -> 8 | P10: 1.479759725 | Q10: 0.8292612669 | R10: 8 | S10: 0 | T10: 8
A11: 10 | B11: 0 | C11: 0 | D11: 0 | E11: 7.11 | F11: 0 | G11: 15.24 | H11: 0 | I11: 0 | J11: =IF(Selection!F58*Selection!$F$450>T11,T11,Selection!F58*Selection!$F$450) -> 1.450530426 | K11: =IF(Selection!G58*Selection!$G$450>T11,T11,Selection!G58*Selection!$G$450) -> 2.39027109 | L11: =IF(BMP_type= "FS",-1,IF(BMP_type= "PS",GWL+IF(Geometry = "H",12, IF(Geometry = "L",4,1)),VLOOKUP(BMP_type,Geometry!$S$5:$T$9,2,FALSE)+GWL)) -> 9 | M11: 0 | N11: =IF(BMP_type="FS",-999,IF(Selection!F226<0,0,Selection!F226)+T11) -> 8 | O11: =IF(BMP_type="FS",-999,IF(Selection!G226<0,0,Selection!G226)+T11) -> 8 | P11: 1.450530426 | Q11: 0.9397406643 | R11: 8 | S11: 0 | T11: 8
A12: 11 | B12: 0 | C12: 0 | D12: 0 | E12: 2.03 | F12: 0 | G12: 31.48 | H12: 0 | I12: 0 | J12: =IF(Selection!F59*Selection!$F$450>T12,T12,Selection!F59*Selection!$F$450) -> 1.407001896 | K12: =IF(Selection!G59*Selection!$G$450>T12,T12,Selection!G59*Selection!$G$450) -> 2.443768354 | L12: =IF(BMP_type= "FS",-1,IF(BMP_type= "PS",GWL+IF(Geometry = "H",12, IF(Geometry = "L",4,1)),VLOOKUP(BMP_type,Geometry!$S$5:$T$9,2,FALSE)+GWL)) -> 9 | M12: 0 | N12: =IF(BMP_type="FS",-999,IF(Selection!F227<0,0,Selection!F227)+T12) -> 8 | O12: =IF(BMP_type="FS",-999,IF(Selection!G227<0,0,Selection!G227)+T12) -> 8 | P12: 1.407001896 | Q12: 1.036766458 | R12: 8 | S12: 0 | T12: 8
A13: 12 | B13: 0 | C13: 0 | D13: 0 | E13: 0 | F13: 0 | G13: 11.93 | H13: 0 | I13: 0 | J13: =IF(Selection!F60*Selection!$F$450>T13,T13,Selection!F60*Selection!$F$450) -> 1.355738324 | K13: =IF(Selection!G60*Selection!$G$450>T13,T13,Selection!G60*Selection!$G$450) -> 2.474793411 | L13: =IF(BMP_type= "FS",-1,IF(BMP_type= "PS",GWL+IF(Geometry = "H",12, IF(Geometry = "L",4,1)),VLOOKUP(BMP_type,Geometry!$S$5:$T$9,2,FALSE)+GWL)) -> 9 | M13: 0 | N13: =IF(BMP_type="FS",-999,IF(Selection!F228<0,0,Selection!F228)+T13) -> 8 | O13: =IF(BMP_type="FS",-999,IF(Selection!G228<0,0,Selection!G228)+T13) -> 8 | P13: 1.355738324 | Q13: 1.119055087 | R13: 8 | S13: 0 | T13: 8
A14: 13 | B14: 0 | C14: 0 | D14: 0 | E14: 0 | F14: 0 | G14: 2.04 | H14: 0 | I14: 0 | J14: =IF(Selection!F61*Selection!$F$450>T14,T14,Selection!F61*Selection!$F$450) -> 1.301922339 | K14: =IF(Selection!G61*Selection!$G$450>T14,T14,Selection!G61*Selection!$G$450) -> 2.492402227 | L14: =IF(BMP_type= "FS",-1,IF(BMP_type= "PS",GWL+IF(Geometry = "H",12, IF(Geometry = "L",4,1)),VLOOKUP(BMP_type,Geometry!$S$5:$T$9,2,FALSE)+GWL)) -> 9 | M14: 0 | N14: =IF(BMP_type="FS",-999,IF(Selection!F229<0,0,Selection!F229)+T14) -> 8 | O14: =IF(BMP_type="FS",-999,IF(Selection!G229<0,0,Selection!G229)+T14) -> 8 | P14: 1.301922339 | Q14: 1.190479888 | R14: 8 | S14: 0 | T14: 8
A15: 14 | B15: 31.49 | C15: 0 | D15: 0 | E15: 13.2 | F15: 0 | G15: 6.85 | H15: 0.1033136516 | I15: 1.859645729 | J15: =IF(Selection!F62*Selection!$F$450>T15,T15,Selection!F62*Selection!$F$450) -> 1.24634587 | K15: =IF(Selection!G62*Selection!$G$450>T15,T15,Selection!G62*Selection!$G$450) -> 2.499445754 | L15: =IF(BMP_type= "FS",-1,IF(BMP_type= "PS",GWL+IF(Geometry = "H",12, IF(Geometry = "L",4,1)),VLOOKUP(BMP_type,Geometry!$S$5:$T$9,2,FALSE)+GWL)) -> 9 | M15: 0 | N15: =IF(BMP_type="FS",-999,IF(Selection!F230<0,0,Selection!F230)+T15) -> 8 | O15: =IF(BMP_type="FS",-999,IF(Selection!G230<0,0,Selection!G230)+T15) -> 8 | P15: 1.24634587 | Q15: 1.253099884 | R15: 8 | S15: 0 | T15: 8
A16: 15 | B16: 27.93 | C16: 0 | D16: 0 | E16: 3.55 | F16: 7.6 | G16: 2.78 | H16: 0.0916338612 | I16: 1.649409502 | J16: =IF(Selection!F63*Selection!$F$450>T16,T16,Selection!F63*Selection!$F$450) -> 1.567408944 | K16: =IF(Selection!G63*Selection!$G$450>T16,T16,Selection!G63*Selection!$G$450) -> 4.036145051 | L16: =IF(BMP_type= "FS",-1,IF(BMP_type= "PS",GWL+IF(Geometry = "H",12, IF(Geometry = "L",4,1)),VLOOKUP(BMP_type,Geometry!$S$5:$T$9,2,FALSE)+GWL)) -> 9 | M16: 0 | N16: =IF(BMP_type="FS",-999,IF(Selection!F231<0,0,Selection!F231)+T16) -> 8.2010804 | O16: =IF(BMP_type="FS",-999,IF(Selection!G231<0,0,Selection!G231)+T16) -> 8.532383088 | P16: 1.567408944 | Q16: 2.468736107 | R16: 8.2010804 | S16: 0.331302688 | T16: 8
A17: 16 | B17: 0 | C17: 0 | D17: 0 | E17: 6.08 | F17: 2.79 | G17: 25.9 | H17: 0 | I17: 0 | J17: =IF(Selection!F64*Selection!$F$450>T17,T17,Selection!F64*Selection!$F$450) -> 2.312479423 | K17: =IF(Selection!G64*Selection!$G$450>T17,T17,Selection!G64*Selection!$G$450) -> 4.596511934 | L17: =IF(BMP_type= "FS",-1,IF(BMP_type= "PS",GWL+IF(Geometry = "H",12, IF(Geometry = "L",4,1)),VLOOKUP(BMP_type,Geometry!$S$5:$T$9,2,FALSE)+GWL)) -> 9 | M17: 0 | N17: =IF(BMP_type="FS",-999,IF(Selection!F232<0,0,Selection!F232)+T17) -> 8 | O17: =IF(BMP_type="FS",-999,IF(Selection!G232<0,0,Selection!G232)+T17) -> 8 | P17: 2.312479423 | Q17: 2.284032511 | R17: 8 | S17: 0 | T17: 8
A18: 17 | B18: 0.5 | C18: 0 | D18: 0 | E18: 8.13 | F18: 9.14 | G18: 0.25 | H18: 0.00164042 | I18: 0.02952756 | J18: =IF(Selection!F65*Selection!$F$450>T18,T18,Selection!F65*Selection!$F$450) -> 2.13566864 | K18: =IF(Selection!G65*Selection!$G$450>T18,T18,Selection!G65*Selection!$G$450) -> 4.091670851 | L18: =IF(BMP_type= "FS",-1,IF(BMP_type= "PS",GWL+IF(Geometry = "H",12, IF(Geometry = "L",4,1)),VLOOKUP(BMP_type,Geometry!$S$5:$T$9,2,FALSE)+GWL)) -> 9 | M18: 0 | N18: =IF(BMP_type="FS",-999,IF(Selection!F233<0,0,Selection!F233)+T18) -> 8 | O18: =IF(BMP_type="FS",-999,IF(Selection!G233<0,0,Selection!G233)+T18) -> 8 | P18: 2.13566864 | Q18: 1.95600221 | R18: 8 | S18: 0 | T18: 8
A19: 18 | B19: 0 | C19: 0 | D19: 0 | E19: 0 | F19: 63.24 | G19: 2.51 | H19: 0 | I19: 0 | J19: =IF(Selection!F66*Selection!$F$450>T19,T19,Selection!F66*Selection!$F$450) -> 1.952019881 | K19: =IF(Selection!G66*Selection!$G$450>T19,T19,Selection!G66*Selection!$G$450) -> 3.826732281 | L19: =IF(BMP_type= "FS",-1,IF(BMP_type= "PS",GWL+IF(Geometry = "H",12, IF(Geometry = "L",4,1)),VLOOKUP(BMP_type,Geometry!$S$5:$T$9,2,FALSE)+GWL)) -> 9 | M19: 0 | N19: =IF(BMP_type="FS",-999,IF(Selection!F234<0,0,Selection!F234)+T19) -> 8 | O19: =IF(BMP_type="FS",-999,IF(Selection!G234<0,0,Selection!G234)+T19) -> 8 | P19: 1.952019881 | Q19: 1.8747124 | R19: 8 | S19: 0 | T19: 8
A20: 19 | B20: 0 | C20: 7.62 | D20: 0 | E20: 1.78 | F20: 0 | G20: 5.81 | H20: 0 | I20: 0 | J20: =IF(Selection!F67*Selection!$F$450>T20,T20,Selection!F67*Selection!$F$450) -> 1.793600848 | K20: =IF(Selection!G67*Selection!$G$450>T20,T20,Selection!G67*Selection!$G$450) -> 3.642380383 | L20: =IF(BMP_type= "FS",-1,IF(BMP_type= "PS",GWL+IF(Geometry = "H",12, IF(Geometry = "L",4,1)),VLOOKUP(BMP_type,Geometry!$S$5:$T$9,2,FALSE)+GWL)) -> 9 | M20: 0 | N20: =IF(BMP_type="FS",-999,IF(Selection!F235<0,0,Selection!F235)+T20) -> 8 | O20: =IF(BMP_type="FS",-999,IF(Selection!G235<0,0,Selection!G235)+T20) -> 8 | P20: 1.793600848 | Q20: 1.848779535 | R20: 8 | S20: 0 | T20: 8
A21: 20 | B21: 0 | C21: 2.54 | D21: 0 | E21: 10.67 | F21: 0 | G21: 5.33 | H21: 0 | I21: 0 | J21: =IF(Selection!F68*Selection!$F$450>T21,T21,Selection!F68*Selection!$F$450) -> 1.655511525 | K21: =IF(Selection!G68*Selection!$G$450>T21,T21,Selection!G68*Selection!$G$450) -> 3.49780361 | L21: =IF(BMP_type= "FS",-1,IF(BMP_type= "PS",GWL+IF(Geometry = "H",12, IF(Geometry = "L",4,1)),VLOOKUP(BMP_type,Geometry!$S$5:$T$9,2,FALSE)+GWL)) -> 9 | M21: 0 | N21: =IF(BMP_type="FS",-999,IF(Selection!F236<0,0,Selection!F236)+T21) -> 8 | O21: =IF(BMP_type="FS",-999,IF(Selection!G236<0,0,Selection!G236)+T21) -> 8 | P21: 1.655511525 | Q21: 1.842292084 | R21: 8 | S21: 0 | T21: 8
A22: 21 | B22: 0 | C22: 5.08 | D22: 2.79 | E22: 1.27 | F22: 8.63 | G22: 0 | H22: 0 | I22: 0 | J22: =IF(Selection!F69*Selection!$F$450>T22,T22,Selection!F69*Selection!$F$450) -> 1.535182692 | K22: =IF(Selection!G69*Selection!$G$450>T22,T22,Selection!G69*Selection!$G$450) -> 3.375526313 | L22: =IF(BMP_type= "FS",-1,IF(BMP_type= "PS",GWL+IF(Geometry = "H",12, IF(Geometry = "L",4,1)),VLOOKUP(BMP_type,Geometry!$S$5:$T$9,2,FALSE)+GWL)) -> 9 | M22: 0 | N22: =IF(BMP_type="FS",-999,IF(Selection!F237<0,0,Selection!F237)+T22) -> 8 | O22: =IF(BMP_type="FS",-999,IF(Selection!G237<0,0,Selection!G237)+T22) -> 8 | P22: 1.535182692 | Q22: 1.840343621 | R22: 8 | S22: 0 | T22: 8
A23: 22 | B23: 0 | C23: 0 | D23: 0 | E23: 0 | F23: 13.47 | G23: 3.56 | H23: 0 | I23: 0 | J23: =IF(Selection!F70*Selection!$F$450>T23,T23,Selection!F70*Selection!$F$450) -> 1.428877609 | K23: =IF(Selection!G70*Selection!$G$450>T23,T23,Selection!G70*Selection!$G$450) -> 3.267530598 | L23: =IF(BMP_type= "FS",-1,IF(BMP_type= "PS",GWL+IF(Geometry = "H",12, IF(Geometry = "L",4,1)),VLOOKUP(BMP_type,Geometry!$S$5:$T$9,2,FALSE)+GWL)) -> 9 | M23: 0 | N23: =IF(BMP_type="FS",-999,IF(Selection!F238<0,0,Selection!F238)+T23) -> 8 | O23: =IF(BMP_type="FS",-999,IF(Selection!G238<0,0,Selection!G238)+T23) -> 8 | P23: 1.428877609 | Q23: 1.838652989 | R23: 8 | S23: 0 | T23: 8
A24: 23 | B24: 0 | C24: 2.54 | D24: 0 | E24: 0.25 | F24: 0 | G24: 24.62 | H24: 0 | I24: 0 | J24: =IF(Selection!F71*Selection!$F$450>T24,T24,Selection!F71*Selection!$F$450) -> 1.333920649 | K24: =IF(Selection!G71*Selection!$G$450>T24,T24,Selection!G71*Selection!$G$450) -> 3.170466775 | L24: =IF(BMP_type= "FS",-1,IF(BMP_type= "PS",GWL+IF(Geometry = "H",12, IF(Geometry = "L",4,1)),VLOOKUP(BMP_type,Geometry!$S$5:$T$9,2,FALSE)+GWL)) -> 9 | M24: 0 | N24: =IF(BMP_type="FS",-999,IF(Selection!F239<0,0,Selection!F239)+T24) -> 8 | O24: =IF(BMP_type="FS",-999,IF(Selection!G239<0,0,Selection!G239)+T24) -> 8 | P24: 1.333920649 | Q24: 1.836546126 | R24: 8 | S24: 0 | T24: 8
A25: 24 | B25: 0.5 | C25: 5.08 | D25: 5.84 | E25: 0 | F25: 0 | G25: 22.34 | H25: 0.00164042 | I25: 0.02952756 | J25: =IF(Selection!F72*Selection!$F$450>T25,T25,Selection!F72*Selection!$F$450) -> 1.248394446 | K25: =IF(Selection!G72*Selection!$G$450>T25,T25,Selection!G72*Selection!$G$450) -> 3.080640346 | L25: =IF(BMP_type= "FS",-1,IF(BMP_type= "PS",GWL+IF(Geometry = "H",12, IF(Geometry = "L",4,1)),VLOOKUP(BMP_type,Geometry!$S$5:$T$9,2,FALSE)+GWL)) -> 9 | M25: 0 | N25: =IF(BMP_type="FS",-999,IF(Selection!F240<0,0,Selection!F240)+T25) -> 8 | O25: =IF(BMP_type="FS",-999,IF(Selection!G240<0,0,Selection!G240)+T25) -> 8 | P25: 1.248394446 | Q25: 1.832245899 | R25: 8 | S25: 0 | T25: 8
A26: 25 | B26: 0 | C26: 7.62 | D26: 2.03 | E26: 0 | F26: 1.02 | G26: 3.8 | H26: 0 | I26: 0 | J26: =IF(Selection!F73*Selection!$F$450>T26,T26,Selection!F73*Selection!$F$450) -> 1.171806101 | K26: =IF(Selection!G73*Selection!$G$450>T26,T26,Selection!G73*Selection!$G$450) -> 2.997276516 | L26: =IF(BMP_type= "FS",-1,IF(BMP_type= "PS",GWL+IF(Geometry = "H",12, IF(Geometry = "L",4,1)),VLOOKUP(BMP_type,Geometry!$S$5:$T$9,2,FALSE)+GWL)) -> 9 | M26: 0 | N26: =IF(BMP_type="FS",-999,IF(Selection!F241<0,0,Selection!F241)+T26) -> 8 | O26: =IF(BMP_type="FS",-999,IF(Selection!G241<0,0,Selection!G241)+T26) -> 8 | P26: 1.171806101 | Q26: 1.825470415 | R26: 8 | S26: 0 | T26: 8
A27: 26 | B27: 0 | C27: 0 | D27: 0 | E27: 0.25 | F27: 34.28 | G27: 4.81 | H27: 0 | I27: 0 | J27: =IF(Selection!F74*Selection!$F$450>T27,T27,Selection!F74*Selection!$F$450) -> 1.102302189 | K27: =IF(Selection!G74*Selection!$G$450>T27,T27,Selection!G74*Selection!$G$450) -> 2.918812302 | L27: =IF(BMP_type= "FS",-1,IF(BMP_type= "PS",GWL+IF(Geometry = "H",12, IF(Geometry = "L",4,1)),VLOOKUP(BMP_type,Geometry!$S$5:$T$9,2,FALSE)+GWL)) -> 9 | M27: 0 | N27: =IF(BMP_type="FS",-999,IF(Selection!F242<0,0,Selection!F242)+T27) -> 8 | O27: =IF(BMP_type="FS",-999,IF(Selection!G242<0,0,Selection!G242)+T27) -> 8 | P27: 1.102302189 | Q27: 1.816510113 | R27: 8 | S27: 0 | T27: 8
A28: 27 | B28: 0.25 | C28: 0 | D28: 0 | E28: 0 | F28: 1.78 | G28: 8.62 | H28: 0.00082021 | I28: 0.01476378 | J28: =IF(Selection!F75*Selection!$F$450>T28,T28,Selection!F75*Selection!$F$450) -> 1.039637926 | K28: =IF(Selection!G75*Selection!$G$450>T28,T28,Selection!G75*Selection!$G$450) -> 2.844746266 | L28: =IF(BMP_type= "FS",-1,IF(BMP_type= "PS",GWL+IF(Geometry = "H",12, IF(Geometry = "L",4,1)),VLOOKUP(BMP_type,Geometry!$S$5:$T$9,2,FALSE)+GWL)) -> 9 | M28: 0 | N28: =IF(BMP_type="FS",-999,IF(Selection!F243<0,0,Selection!F243)+T28) -> 8 | O28: =IF(BMP_type="FS",-999,IF(Selection!G243<0,0,Selection!G243)+T28) -> 8 | P28: 1.039637926 | Q28: 1.80510834 | R28: 8 | S28: 0 | T28: 8
A29: 28 | B29: 7.88 | C29: 0 | D29: 0 | E29: 0 | F29: 0 | G29: 3.03 | H29: 0.0258530192 | I29: 0.4653543456 | J29: =IF(Selection!F76*Selection!$F$450>T29,T29,Selection!F76*Selection!$F$450) -> 0.9818278355 | K29: =IF(Selection!G76*Selection!$G$450>T29,T29,Selection!G76*Selection!$G$450) -> 2.778329162 | L29: =IF(BMP_type= "FS",-1,IF(BMP_type= "PS",GWL+IF(Geometry = "H",12, IF(Geometry = "L",4,1)),VLOOKUP(BMP_type,Geometry!$S$5:$T$9,2,FALSE)+GWL)) -> 9 | M29: 0 | N29: =IF(BMP_type="FS",-999,IF(Selection!F244<0,0,Selection!F244)+T29) -> 8 | O29: =IF(BMP_type="FS",-999,IF(Selection!G244<0,0,Selection!G244)+T29) -> 8 | P29: 0.9818278355 | Q29: 1.796501326 | R29: 8 | S29: 0 | T29: 8
A30: 29 | B30: 0 | C30: 5.08 | D30: 0 | E30: 0.5 | F30: 0 | G30: 0 | H30: 0 | I30: 0 | J30: =IF(Selection!F77*Selection!$F$450>T30,T30,Selection!F77*Selection!$F$450) -> 0.9305579545 | K30: =IF(Selection!G77*Selection!$G$450>T30,T30,Selection!G77*Selection!$G$450) -> 2.861904631 | L30: =IF(BMP_type= "FS",-1,IF(BMP_type= "PS",GWL+IF(Geometry = "H",12, IF(Geometry = "L",4,1)),VLOOKUP(BMP_type,Geometry!$S$5:$T$9,2,FALSE)+GWL)) -> 9 | M30: 0 | N30: =IF(BMP_type="FS",-999,IF(Selection!F245<0,0,Selection!F245)+T30) -> 8 | O30: =IF(BMP_type="FS",-999,IF(Selection!G245<0,0,Selection!G245)+T30) -> 8 | P30: 0.9305579545 | Q30: 1.931346676 | R30: 8 | S30: 0 | T30: 8
A31: 30 | B31: 0 | C31: 0 | D31: 0 | E31: 6.84 | F31: 0.51 | G31: 0.76 | H31: 0 | I31: 0 | J31: =IF(Selection!F78*Selection!$F$450>T31,T31,Selection!F78*Selection!$F$450) -> 0.8857109519 | K31: =IF(Selection!G78*Selection!$G$450>T31,T31,Selection!G78*Selection!$G$450) -> 2.885584968 | L31: =IF(BMP_type= "FS",-1,IF(BMP_type= "PS",GWL+IF(Geometry = "H",12, IF(Geometry = "L",4,1)),VLOOKUP(BMP_type,Geometry!$S$5:$T$9,2,FALSE)+GWL)) -> 9 | M31: 0 | N31: =IF(BMP_type="FS",-999,IF(Selection!F246<0,0,Selection!F246)+T31) -> 8 | O31: =IF(BMP_type="FS",-999,IF(Selection!G246<0,0,Selection!G246)+T31) -> 8 | P31: 0.8857109519 | Q31: 1.999874016 | R31: 8 | S31: 0 | T31: 8
A32: 31 | B32: 0 | C32: 0 | D32: 0 | E32: 2.53 | F32: 0 | G32: 4.79 | H32: 0 | I32: 0 | J32: =IF(Selection!F79*Selection!$F$450>T32,T32,Selection!F79*Selection!$F$450) -> 0.8524862791 | K32: =IF(Selection!G79*Selection!$G$450>T32,T32,Selection!G79*Selection!$G$450) -> 2.838708958 | L32: =IF(BMP_type= "FS",-1,IF(BMP_type= "PS",GWL+IF(Geometry = "H",12, IF(Geometry = "L",4,1)),VLOOKUP(BMP_type,Geometry!$S$5:$T$9,2,FALSE)+GWL)) -> 9 | M32: 0 | N32: =IF(BMP_type="FS",-999,IF(Selection!F247<0,0,Selection!F247)+T32) -> 8 | O32: =IF(BMP_type="FS",-999,IF(Selection!G247<0,0,Selection!G247)+T32) -> 8 | P32: 0.8524862791 | Q32: 1.986222678 | R32: 8 | S32: 0 | T32: 8
A33: 32 | B33: 0 | C33: 0 | D33: 0 | E33: 2.28 | F33: 14.47 | G33: 0.25 | H33: 0 | I33: 0 | J33: =IF(Selection!F80*Selection!$F$450>T33,T33,Selection!F80*Selection!$F$450) -> 0.8278831972 | K33: =IF(Selection!G80*Selection!$G$450>T33,T33,Selection!G80*Selection!$G$450) -> 2.771795454 | L33: =IF(BMP_type= "FS",-1,IF(BMP_type= "PS",GWL+IF(Geometry = "H",12, IF(Geometry = "L",4,1)),VLOOKUP(BMP_type,Geometry!$S$5:$T$9,2,FALSE)+GWL)) -> 9 | M33: 0 | N33: =IF(BMP_type="FS",-999,IF(Selection!F248<0,0,Selection!F248)+T33) -> 8 | O33: =IF(BMP_type="FS",-999,IF(Selection!G248<0,0,Selection!G248)+T33) -> 8 | P33: 0.8278831972 | Q33: 1.943912257 | R33: 8 | S33: 0 | T33: 8
A34: 33 | B34: 0 | C34: 0 | D34: 0 | E34: 0 | F34: 0.76 | G34: 2.27 | H34: =HLOOKUP(station,$B$1:$G$4032,A34+1,FALSE)*0.00328084 -> 0 | I34: =(1+0.85*loading)*H34 -> 0 | J34: =IF(Selection!F81*Selection!$F$450>T34,T34,Selection!F81*Selection!$F$450) -> 0.8062240716 | K34: =IF(Selection!G81*Selection!$G$450>T34,T34,Selection!G81*Selection!$G$450) -> 2.701708339 | L34: =IF(BMP_type= "FS",-1,IF(BMP_type= "PS",GWL+IF(Geometry = "H",12, IF(Geometry = "L",4,1)),VLOOKUP(BMP_type,Geometry!$S$5:$T$9,2,FALSE)+GWL)) -> 9 | M34: 0 | N34: =IF(BMP_type="FS",-999,IF(Selection!F249<0,0,Selection!F249)+T34) -> 8 | O34: =IF(BMP_type="FS",-999,IF(Selection!G249<0,0,Selection!G249)+T34) -> 8 | P34: =J34 -> 0.8062240716 | Q34: =K34-J34 -> 1.895484267 | R34: 8 | S34: 0 | T34: =IF(BMP_type = "PS",L34-1,IF(BMP_type = "FS",GWL+IF(Geometry="H",9.7,1.8),GWL)) -> 8
A35: 34 | B35: 9.14 | C35: 10.16 | D35: 0 | E35: 0 | F35: 0 | G35: 0.75 | H35: 0.0299868776 | I35: 0.5397637968 | J35: =IF(Selection!F82*Selection!$F$450>T35,T35,Selection!F82*Selection!$F$450) -> 0.782714462 | K35: =IF(Selection!G82*Selection!$G$450>T35,T35,Selection!G82*Selection!$G$450) -> 2.631696351 | L35: =IF(BMP_type= "FS",-1,IF(BMP_type= "PS",GWL+IF(Geometry = "H",12, IF(Geometry = "L",4,1)),VLOOKUP(BMP_type,Geometry!$S$5:$T$9,2,FALSE)+GWL)) -> 9 | M35: 0 | N35: =IF(BMP_type="FS",-999,IF(Selection!F250<0,0,Selection!F250)+T35) -> 8 | O35: =IF(BMP_type="FS",-999,IF(Selection!G250<0,0,Selection!G250)+T35) -> 8 | P35: 0.782714462 | Q35: 1.848981889 | R35: 8 | S35: 0 | T35: 8
A36: 35 | B36: 0 | C36: 0 | D36: 0 | E36: 10.15 | F36: 0 | G36: 0.5 | H36: 0 | I36: 0 | J36: =IF(Selection!F83*Selection!$F$450>T36,T36,Selection!F83*Selection!$F$450) -> 0.7562709833 | K36: =IF(Selection!G83*Selection!$G$450>T36,T36,Selection!G83*Selection!$G$450) -> 2.672937545 | L36: =IF(BMP_type= "FS",-1,IF(BMP_type= "PS",GWL+IF(Geometry = "H",12, IF(Geometry = "L",4,1)),VLOOKUP(BMP_type,Geometry!$S$5:$T$9,2,FALSE)+GWL)) -> 9 | M36: 0 | N36: =IF(BMP_type="FS",-999,IF(Selection!F251<0,0,Selection!F251)+T36) -> 8 | O36: =IF(BMP_type="FS",-999,IF(Selection!G251<0,0,Selection!G251)+T36) -> 8 | P36: 0.7562709833 | Q36: 1.916666561 | R36: 8 | S36: 0 | T36: 8
A37: 36 | B37: 0 | C37: 0 | D37: 0 | E37: 3.04 | F37: 0 | G37: 0 | H37: 0 | I37: 0 | J37: =IF(Selection!F84*Selection!$F$450>T37,T37,Selection!F84*Selection!$F$450) -> 0.7309428443 | K37: =IF(Selection!G84*Selection!$G$450>T37,T37,Selection!G84*Selection!$G$450) -> 2.798460234 | L37: =IF(BMP_type= "FS",-1,IF(BMP_type= "PS",GWL+IF(Geometry = "H",12, IF(Geometry = "L",4,1)),VLOOKUP(BMP_type,Geometry!$S$5:$T$9,2,FALSE)+GWL)) -> 9 | M37: 0 | N37: =IF(BMP_type="FS",-999,IF(Selection!F252<0,0,Selection!F252)+T37) -> 8 | O37: =IF(BMP_type="FS",-999,IF(Selection!G252<0,0,Selection!G252)+T37) -> 8 | P37: 0.7309428443 | Q37: 2.067517389 | R37: 8 | S37: 0 | T37: 8
A38: 37 | B38: 0 | C38: 0 | D38: 0 | E38: 0.25 | F38: 0 | G38: 0 | H38: 0 | I38: 0 | J38: =IF(Selection!F85*Selection!$F$450>T38,T38,Selection!F85*Selection!$F$450) -> 0.7149613593 | K38: =IF(Selection!G85*Selection!$G$450>T38,T38,Selection!G85*Selection!$G$450) -> 2.749618069 | L38: =IF(BMP_type= "FS",-1,IF(BMP_type= "PS",GWL+IF(Geometry = "H",12, IF(Geometry = "L",4,1)),VLOOKUP(BMP_type,Geometry!$S$5:$T$9,2,FALSE)+GWL)) -> 9 | M38: 0 | N38: =IF(BMP_type="FS",-999,IF(Selection!F253<0,0,Selection!F253)+T38) -> 8 | O38: =IF(BMP_type="FS",-999,IF(Selection!G253<0,0,Selection!G253)+T38) -> 8 | P38: 0.7149613593 | Q38: 2.034656709 | R38: 8 | S38: 0 | T38: 8
A39: 38 | B39: 0 | C39: 0 | D39: 1.77 | E39: 0 | F39: 0 | G39: 3.03 | H39: 0 | I39: 0 | J39: =IF(Selection!F86*Selection!$F$450>T39,T39,Selection!F86*Selection!$F$450) -> 0.7086192294 | K39: =IF(Selection!G86*Selection!$G$450>T39,T39,Selection!G86*Selection!$G$450) -> 2.677535623 | L39: =IF(BMP_type= "FS",-1,IF(BMP_type= "PS",GWL+IF(Geometry = "H",12, IF(Geometry = "L",4,1)),VLOOKUP(BMP_type,Geometry!$S$5:$T$9,2,FALSE)+GWL)) -> 9 | M39: 0 | N39: =IF(BMP_type="FS",-999,IF(Selection!F254<0,0,Selection!F254)+T39) -> 8 | O39: =IF(BMP_type="FS",-999,IF(Selection!G254<0,0,Selection!G254)+T39) -> 8 | P39: 0.7086192294 | Q39: 1.968916393 | R39: 8 | S39: 0 | T39: 8
A40: 39 | B40: 0 | C40: 0 | D40: 1.77 | E40: 4.31 | F40: 14.72 | G40: 1.01 | H40: 0 | I40: 0 | J40: =IF(Selection!F87*Selection!$F$450>T40,T40,Selection!F87*Selection!$F$450) -> 0.7092517579 | K40: =IF(Selection!G87*Selection!$G$450>T40,T40,Selection!G87*Selection!$G$450) -> 2.620455555 | L40: =IF(BMP_type= "FS",-1,IF(BMP_type= "PS",GWL+IF(Geometry = "H",12, IF(Geometry = "L",4,1)),VLOOKUP(BMP_type,Geometry!$S$5:$T$9,2,FALSE)+GWL)) -> 9 | M40: 0 | N40: =IF(BMP_type="FS",-999,IF(Selection!F255<0,0,Selection!F255)+T40) -> 8 | O40: =IF(BMP_type="FS",-999,IF(Selection!G255<0,0,Selection!G255)+T40) -> 8 | P40: 0.7092517579 | Q40: 1.911203797 | R40: 8 | S40: 0 | T40: 8
A41: 40 | B41: 0 | C41: 0 | D41: 62.24 | E41: 0.25 | F41: 1.01 | G41: 5.33 | H41: 0 | I41: 0 | J41: =IF(Selection!F88*Selection!$F$450>T41,T41,Selection!F88*Selection!$F$450) -> 0.6997621199 | K41: =IF(Selection!G88*Selection!$G$450>T41,T41,Selection!G88*Selection!$G$450) -> 2.546055789 | L41: =IF(BMP_type= "FS",-1,IF(BMP_type= "PS",GWL+IF(Geometry = "H",12, IF(Geometry = "L",4,1)),VLOOKUP(BMP_type,Geometry!$S$5:$T$9,2,FALSE)+GWL)) -> 9 | M41: 0 | N41: =IF(BMP_type="FS",-999,IF(Selection!F256<0,0,Selection!F256)+T41) -> 8 | O41: =IF(BMP_type="FS",-999,IF(Selection!G256<0,0,Selection!G256)+T41) -> 8 | P41: 0.6997621199 | Q41: 1.846293669 | R41: 8 | S41: 0 | T41: 8
A42: 41 | B42: 0 | C42: 0 | D42: 0.5 | E42: 0 | F42: 0 | G42: 15.97 | H42: 0 | I42: 0 | J42: =IF(Selection!F89*Selection!$F$450>T42,T42,Selection!F89*Selection!$F$450) -> 0.6860693461 | K42: =IF(Selection!G89*Selection!$G$450>T42,T42,Selection!G89*Selection!$G$450) -> 2.475136865 | L42: =IF(BMP_type= "FS",-1,IF(BMP_type= "PS",GWL+IF(Geometry = "H",12, IF(Geometry = "L",4,1)),VLOOKUP(BMP_type,Geometry!$S$5:$T$9,2,FALSE)+GWL)) -> 9 | M42: 0 | N42: =IF(BMP_type="FS",-999,IF(Selection!F257<0,0,Selection!F257)+T42) -> 8 | O42: =IF(BMP_type="FS",-999,IF(Selection!G257<0,0,Selection!G257)+T42) -> 8 | P42: 0.6860693461 | Q42: 1.789067519 | R42: 8 | S42: 0 | T42: 8
A43: 42 | B43: 0 | C43: 0 | D43: 37.06 | E43: 19.54 | F43: 0 | G43: 7.35 | H43: 0 | I43: 0 | J43: =IF(Selection!F90*Selection!$F$450>T43,T43,Selection!F90*Selection!$F$450) -> 0.668591489 | K43: =IF(Selection!G90*Selection!$G$450>T43,T43,Selection!G90*Selection!$G$450) -> 2.408713728 | L43: =IF(BMP_type= "FS",-1,IF(BMP_type= "PS",GWL+IF(Geometry = "H",12, IF(Geometry = "L",4,1)),VLOOKUP(BMP_type,Geometry!$S$5:$T$9,2,FALSE)+GWL)) -> 9 | M43: 0 | N43: =IF(BMP_type="FS",-999,IF(Selection!F258<0,0,Selection!F258)+T43) -> 8 | O43: =IF(BMP_type="FS",-999,IF(Selection!G258<0,0,Selection!G258)+T43) -> 8 | P43: 0.668591489 | Q43: 1.740122239 | R43: 8 | S43: 0 | T43: 8
A44: 43 | B44: 0 | C44: 0 | D44: 7.1 | E44: 1.52 | F44: 8.63 | G44: 4.32 | H44: 0 | I44: 0 | J44: =IF(Selection!F91*Selection!$F$450>T44,T44,Selection!F91*Selection!$F$450) -> 0.6487096754 | K44: =IF(Selection!G91*Selection!$G$450>T44,T44,Selection!G91*Selection!$G$450) -> 2.345870038 | L44: =IF(BMP_type= "FS",-1,IF(BMP_type= "PS",GWL+IF(Geometry = "H",12, IF(Geometry = "L",4,1)),VLOOKUP(BMP_type,Geometry!$S$5:$T$9,2,FALSE)+GWL)) -> 9 | M44: 0 | N44: =IF(BMP_type="FS",-999,IF(Selection!F259<0,0,Selection!F259)+T44) -> 8 | O44: =IF(BMP_type="FS",-999,IF(Selection!G259<0,0,Selection!G259)+T44) -> 8 | P44: 0.6487096754 | Q44: 1.697160363 | R44: 8 | S44: 0 | T44: 8
A45: 44 | B45: 0 | C45: 0 | D45: 0.76 | E45: 0.25 | F45: 0 | G45: 43.69 | H45: 0 | I45: 0 | J45: =IF(Selection!F92*Selection!$F$450>T45,T45,Selection!F92*Selection!$F$450) -> 0.5987927516 | K45: =IF(Selection!G92*Selection!$G$450>T45,T45,Selection!G92*Selection!$G$450) -> 2.180350519 | L45: =IF(BMP_type= "FS",-1,IF(BMP_type= "PS",GWL+IF(Geometry = "H",12, IF(Geometry = "L",4,1)),VLOOKUP(BMP_type,Geometry!$S$5:$T$9,2,FALSE)+GWL)) -> 9 | M45: 0 | N45: =IF(BMP_type="FS",-999,IF(Selection!F260<0,0,Selection!F260)+T45) -> 8 | O45: =IF(BMP_type="FS",-999,IF(Selection!G260<0,0,Selection!G260)+T45) -> 8 | P45: 0.5987927516 | Q45: 1.581557767 | R45: 8 | S45: 0 | T45: 8
A46: 45 | B46: 0 | C46: 0 | D46: 5.58 | E46: 2.78 | F46: 0 | G46: 2.03 | H46: 0 | I46: 0 | J46: =IF(Selection!F93*Selection!$F$450>T46,T46,Selection!F93*Selection!$F$450) -> 0.6025126576 | K46: =IF(Selection!G93*Selection!$G$450>T46,T46,Selection!G93*Selection!$G$450) -> 2.214370752 | L46: =IF(BMP_type= "FS",-1,IF(BMP_type= "PS",GWL+IF(Geometry = "H",12, IF(Geometry = "L",4,1)),VLOOKUP(BMP_type,Geometry!$S$5:$T$9,2,FALSE)+GWL)) -> 9 | M46: 0 | N46: =IF(BMP_type="FS",-999,IF(Selection!F261<0,0,Selection!F261)+T46) -> 8 | O46: =IF(BMP_type="FS",-999,IF(Selection!G261<0,0,Selection!G261)+T46) -> 8 | P46: 0.6025126576 | Q46: 1.611858095 | R46: 8 | S46: 0 | T46: 8
A47: 46 | B47: 0 | C47: 0 | D47: 0.25 | E47: 4.82 | F47: 0 | G47: 0 | H47: 0 | I47: 0 | J47: =IF(Selection!F94*Selection!$F$450>T47,T47,Selection!F94*Selection!$F$450) -> 0.5814318076 | K47: =IF(Selection!G94*Selection!$G$450>T47,T47,Selection!G94*Selection!$G$450) -> 2.160580007 | L47: =IF(BMP_type= "FS",-1,IF(BMP_type= "PS",GWL+IF(Geometry = "H",12, IF(Geometry = "L",4,1)),VLOOKUP(BMP_type,Geometry!$S$5:$T$9,2,FALSE)+GWL)) -> 9 | M47: 0 | N47: =IF(BMP_type="FS",-999,IF(Selection!F262<0,0,Selection!F262)+T47) -> 8 | O47: =IF(BMP_type="FS",-999,IF(Selection!G262<0,0,Selection!G262)+T47) -> 8 | P47: 0.5814318076 | Q47: 1.579148199 | R47: 8 | S47: 0 | T47: 8
A48: 47 | B48: 0 | C48: 0 | D48: 1.27 | E48: 0.51 | F48: 0 | G48: 0.25 | H48: 0 | I48: 0 | J48: =IF(Selection!F95*Selection!$F$450>T48,T48,Selection!F95*Selection!$F$450) -> 0.5608240999 | K48: =IF(Selection!G95*Selection!$G$450>T48,T48,Selection!G95*Selection!$G$450) -> 2.109630153 | L48: =IF(BMP_type= "FS",-1,IF(BMP_type= "PS",GWL+IF(Geometry = "H",12, IF(Geometry = "L",4,1)),VLOOKUP(BMP_type,Geometry!$S$5:$T$9,2,FALSE)+GWL)) -> 9 | M48: 0 | N48: =IF(BMP_type="FS",-999,IF(Selection!F263<0,0,Selection!F263)+T48) -> 8 | O48: =IF(BMP_type="FS",-999,IF(Selection!G263<0,0,Selection!G263)+T48) -> 8 | P48: 0.5608240999 | Q48: 1.548806053 | R48: 8 | S48: 0 | T48: 8
A49: 48 | B49: 0 | C49: 0 | D49: 2.54 | E49: 3.56 | F49: 0 | G49: 0 | H49: 0 | I49: 0 | J49: =IF(Selection!F96*Selection!$F$450>T49,T49,Selection!F96*Selection!$F$450) -> 0.5405822842 | K49: =IF(Selection!G96*Selection!$G$450>T49,T49,Selection!G96*Selection!$G$450) -> 2.060231555 | L49: =IF(BMP_type= "FS",-1,IF(BMP_type= "PS",GWL+IF(Geometry = "H",12, IF(Geometry = "L",4,1)),VLOOKUP(BMP_type,Geometry!$S$5:$T$9,2,FALSE)+GWL)) -> 9 | M49: 0 | N49: =IF(BMP_type="FS",-999,IF(Selection!F264<0,0,Selection!F264)+T49) -> 8 | O49: =IF(BMP_type="FS",-999,IF(Selection!G264<0,0,Selection!G264)+T49) -> 8 | P49: 0.5405822842 | Q49: 1.51964927 | R49: 8 | S49: 0 | T49: 8
A50: 49 | B50: 1.01 | C50: 0 | D50: 5.08 | E50: 0 | F50: 0 | G50: 0.5 | H50: 0.0033136484 | I50: 0.0596456712 | J50: =IF(Selection!F97*Selection!$F$450>T50,T50,Selection!F97*Selection!$F$450) -> 0.520870375 | K50: =IF(Selection!G97*Selection!$G$450>T50,T50,Selection!G97*Selection!$G$450) -> 2.012436195 | L50: =IF(BMP_type= "FS",-1,IF(BMP_type= "PS",GWL+IF(Geometry = "H",12, IF(Geometry = "L",4,1)),VLOOKUP(BMP_type,Geometry!$S$5:$T$9,2,FALSE)+GWL)) -> 9 | M50: 0 | N50: =IF(BMP_type="FS",-999,IF(Selection!F265<0,0,Selection!F265)+T50) -> 8 | O50: =IF(BMP_type="FS",-999,IF(Selection!G265<0,0,Selection!G265)+T50) -> 8 | P50: 0.520870375 | Q50: 1.49156582 | R50: 8 | S50: 0 | T50: 8
A51: 50 | B51: 21.31 | C51: 0 | D51: 0 | E51: 48.76 | F51: 0 | G51: 8.88 | H51: 0.0699147004 | I51: 1.258464607 | J51: =IF(Selection!F98*Selection!$F$450>T51,T51,Selection!F98*Selection!$F$450) -> 0.5004960811 | K51: =IF(Selection!G98*Selection!$G$450>T51,T51,Selection!G98*Selection!$G$450) -> 1.966012644 | L51: =IF(BMP_type= "FS",-1,IF(BMP_type= "PS",GWL+IF(Geometry = "H",12, IF(Geometry = "L",4,1)),VLOOKUP(BMP_type,Geometry!$S$5:$T$9,2,FALSE)+GWL)) -> 9 | M51: 0 | N51: =IF(BMP_type="FS",-999,IF(Selection!F266<0,0,Selection!F266)+T51) -> 8 | O51: =IF(BMP_type="FS",-999,IF(Selection!G266<0,0,Selection!G266)+T51) -> 8 | P51: 0.5004960811 | Q51: 1.465516563 | R51: 8 | S51: 0 | T51: 8
A52: 51 | B52: 42.42 | C52: 0 | D52: 0 | E52: 15.24 | F52: 0 | G52: 12.44 | H52: 0.1391732328 | I52: 2.50511819 | J52: =IF(Selection!F99*Selection!$F$450>T52,T52,Selection!F99*Selection!$F$450) -> 0.4815475044 | K52: =IF(Selection!G99*Selection!$G$450>T52,T52,Selection!G99*Selection!$G$450) -> 2.900685283 | L52: =IF(BMP_type= "FS",-1,IF(BMP_type= "PS",GWL+IF(Geometry = "H",12, IF(Geometry = "L",4,1)),VLOOKUP(BMP_type,Geometry!$S$5:$T$9,2,FALSE)+GWL)) -> 9 | M52: 0 | N52: =IF(BMP_type="FS",-999,IF(Selection!F267<0,0,Selection!F267)+T52) -> 8 | O52: =IF(BMP_type="FS",-999,IF(Selection!G267<0,0,Selection!G267)+T52) -> 8.063645668 | P52: 0.4815475044 | Q52: 2.419137778 | R52: 8 | S52: 0.063645668 | T52: 8
A53: 52 | B53: 5.08 | C53: 0 | D53: 0 | E53: 1.27 | F53: 6.35 | G53: 23.33 | H53: 0.0166666672 | I53: 0.3000000096 | J53: =IF(Selection!F100*Selection!$F$450>T53,T53,Selection!F100*Selection!$F$450) -> 1.2326081 | K53: =IF(Selection!G100*Selection!$G$450>T53,T53,Selection!G100*Selection!$G$450) -> 4.749436627 | L53: =IF(BMP_type= "FS",-1,IF(BMP_type= "PS",GWL+IF(Geometry = "H",12, IF(Geometry = "L",4,1)),VLOOKUP(BMP_type,Geometry!$S$5:$T$9,2,FALSE)+GWL)) -> 9 | M53: 0 | N53: =IF(BMP_type="FS",-999,IF(Selection!F268<0,0,Selection!F268)+T53) -> 8 | O53: =IF(BMP_type="FS",-999,IF(Selection!G268<0,0,Selection!G268)+T53) -> 8.2594972 | P53: 1.2326081 | Q53: 3.516828528 | R53: 8 | S53: 0.2594972 | T53: 8
A54: 53 | B54: 0 | C54: 0 | D54: 0 | E54: 0 | F54: 9.64 | G54: 79.99 | H54: 0 | I54: 0 | J54: =IF(Selection!F101*Selection!$F$450>T54,T54,Selection!F101*Selection!$F$450) -> 1.72165639 | K54: =IF(Selection!G101*Selection!$G$450>T54,T54,Selection!G101*Selection!$G$450) -> 4.288466314 | L54: =IF(BMP_type= "FS",-1,IF(BMP_type= "PS",GWL+IF(Geometry = "H",12, IF(Geometry = "L",4,1)),VLOOKUP(BMP_type,Geometry!$S$5:$T$9,2,FALSE)+GWL)) -> 9 | M54: 0 | N54: =IF(BMP_type="FS",-999,IF(Selection!F269<0,0,Selection!F269)+T54) -> 8 | O54: =IF(BMP_type="FS",-999,IF(Selection!G269<0,0,Selection!G269)+T54) -> 8 | P54: 1.72165639 | Q54: 2.566809924 | R54: 8 | S54: 0 | T54: 8
A55: 54 | B55: 0 | C55: 0 | D55: 0 | E55: 0 | F55: 20.31 | G55: 23.07 | H55: 0 | I55: 0 | J55: =IF(Selection!F102*Selection!$F$450>T55,T55,Selection!F102*Selection!$F$450) -> 1.553779255 | K55: =IF(Selection!G102*Selection!$G$450>T55,T55,Selection!G102*Selection!$G$450) -> 3.72830302 | L55: =IF(BMP_type= "FS",-1,IF(BMP_type= "PS",GWL+IF(Geometry = "H",12, IF(Geometry = "L",4,1)),VLOOKUP(BMP_type,Geometry!$S$5:$T$9,2,FALSE)+GWL)) -> 9 | M55: 0 | N55: =IF(BMP_type="FS",-999,IF(Selection!F270<0,0,Selection!F270)+T55) -> 8 | O55: =IF(BMP_type="FS",-999,IF(Selection!G270<0,0,Selection!G270)+T55) -> 8 | P55: 1.553779255 | Q55: 2.174523765 | R55: 8 | S55: 0 | T55: 8
A56: 55 | B56: 0 | C56: 0 | D56: 0 | E56: 0 | F56: 0 | G56: 12.68 | H56: 0 | I56: 0 | J56: =IF(Selection!F103*Selection!$F$450>T56,T56,Selection!F103*Selection!$F$450) -> 1.404299761 | K56: =IF(Selection!G103*Selection!$G$450>T56,T56,Selection!G103*Selection!$G$450) -> 3.415664352 | L56: =IF(BMP_type= "FS",-1,IF(BMP_type= "PS",GWL+IF(Geometry = "H",12, IF(Geometry = "L",4,1)),VLOOKUP(BMP_type,Geometry!$S$5:$T$9,2,FALSE)+GWL)) -> 9 | M56: 0 | N56: =IF(BMP_type="FS",-999,IF(Selection!F271<0,0,Selection!F271)+T56) -> 8 | O56: =IF(BMP_type="FS",-999,IF(Selection!G271<0,0,Selection!G271)+T56) -> 8 | P56: 1.404299761 | Q56: 2.011364591 | R56: 8 | S56: 0 | T56: 8
A57: 56 | B57: 0 | C57: 0 | D57: 0 | E57: 0 | F57: 45.21 | G57: 15.49 | H57: 0 | I57: 0 | J57: =IF(Selection!F104*Selection!$F$450>T57,T57,Selection!F104*Selection!$F$450) -> 1.276771681 | K57: =IF(Selection!G104*Selection!$G$450>T57,T57,Selection!G104*Selection!$G$450) -> 3.192577412 | L57: =IF(BMP_type= "FS",-1,IF(BMP_type= "PS",GWL+IF(Geometry = "H",12, IF(Geometry = "L",4,1)),VLOOKUP(BMP_type,Geometry!$S$5:$T$9,2,FALSE)+GWL)) -> 9 | M57: 0 | N57: =IF(BMP_type="FS",-999,IF(Selection!F272<0,0,Selection!F272)+T57) -> 8 | O57: =IF(BMP_type="FS",-999,IF(Selection!G272<0,0,Selection!G272)+T57) -> 8 | P57: 1.276771681 | Q57: 1.915805731 | R57: 8 | S57: 0 | T57: 8
A58: 57 | B58: 0 | C58: 0 | D58: 0 | E58: 0.25 | F58: 0 | G58: 11.92 | H58: 0 | I58: 0 | J58: =IF(Selection!F105*Selection!$F$450>T58,T58,Selection!F105*Selection!$F$450) -> 1.170732398 | K58: =IF(Selection!G105*Selection!$G$450>T58,T58,Selection!G105*Selection!$G$450) -> 3.017777204 | L58: =IF(BMP_type= "FS",-1,IF(BMP_type= "PS",GWL+IF(Geometry = "H",12, IF(Geometry = "L",4,1)),VLOOKUP(BMP_type,Geometry!$S$5:$T$9,2,FALSE)+GWL)) -> 9 | M58: 0 | N58: =IF(BMP_type="FS",-999,IF(Selection!F273<0,0,Selection!F273)+T58) -> 8 | O58: =IF(BMP_type="FS",-999,IF(Selection!G273<0,0,Selection!G273)+T58) -> 8 | P58: 1.170732398 | Q58: 1.847044806 | R58: 8 | S58: 0 | T58: 8
A59: 58 | B59: 0 | C59: 0 | D59: 0.25 | E59: 0.25 | F59: 0 | G59: 39.89 | H59: 0 | I59: 0 | J59: =IF(Selection!F106*Selection!$F$450>T59,T59,Selection!F106*Selection!$F$450) -> 1.078048172 | K59: =IF(Selection!G106*Selection!$G$450>T59,T59,Selection!G106*Selection!$G$450) -> 2.872796269 | L59: =IF(BMP_type= "FS",-1,IF(BMP_type= "PS",GWL+IF(Geometry = "H",12, IF(Geometry = "L",4,1)),VLOOKUP(BMP_type,Geometry!$S$5:$T$9,2,FALSE)+GWL)) -> 9 | M59: 0 | N59: =IF(BMP_type="FS",-999,IF(Selection!F274<0,0,Selection!F274)+T59) -> 8 | O59: =IF(BMP_type="FS",-999,IF(Selection!G274<0,0,Selection!G274)+T59) -> 8 | P59: 1.078048172 | Q59: 1.794748097 | R59: 8 | S59: 0 | T59: 8
A60: 59 | B60: 0 | C60: 0 | D60: 10.65 | E60: 1.01 | F60: 0 | G60: 2.27 | H60: 0 | I60: 0 | J60: =IF(Selection!F107*Selection!$F$450>T60,T60,Selection!F107*Selection!$F$450) -> 0.9977916568 | K60: =IF(Selection!G107*Selection!$G$450>T60,T60,Selection!G107*Selection!$G$450) -> 2.748449516 | L60: =IF(BMP_type= "FS",-1,IF(BMP_type= "PS",GWL+IF(Geometry = "H",12, IF(Geometry = "L",4,1)),VLOOKUP(BMP_type,Geometry!$S$5:$T$9,2,FALSE)+GWL)) -> 9 | M60: 0 | N60: =IF(BMP_type="FS",-999,IF(Selection!F275<0,0,Selection!F275)+T60) -> 8 | O60: =IF(BMP_type="FS",-999,IF(Selection!G275<0,0,Selection!G275)+T60) -> 8 | P60: 0.9977916568 | Q60: 1.750657859 | R60: 8 | S60: 0 | T60: 8
A61: 60 | B61: 0 | C61: 5.08 | D61: 39.1 | E61: 24.39 | F61: 0 | G61: 0 | H61: 0 | I61: 0 | J61: =IF(Selection!F108*Selection!$F$450>T61,T61,Selection!F108*Selection!$F$450) -> 0.9277759137 | K61: =IF(Selection!G108*Selection!$G$450>T61,T61,Selection!G108*Selection!$G$450) -> 2.639484479 | L61: =IF(BMP_type= "FS",-1,IF(BMP_type= "PS",GWL+IF(Geometry = "H",12, IF(Geometry = "L",4,1)),VLOOKUP(BMP_type,Geometry!$S$5:$T$9,2,FALSE)+GWL)) -> 9 | M61: 0 | N61: =IF(BMP_type="FS",-999,IF(Selection!F276<0,0,Selection!F276)+T61) -> 8 | O61: =IF(BMP_type="FS",-999,IF(Selection!G276<0,0,Selection!G276)+T61) -> 8 | P61: 0.9277759137 | Q61: 1.711708565 | R61: 8 | S61: 0 | T61: 8
A62: 61 | B62: 0 | C62: 0 | D62: 1.01 | E62: 6.34 | F62: 0 | G62: 0 | H62: 0 | I62: 0 | J62: =IF(Selection!F109*Selection!$F$450>T62,T62,Selection!F109*Selection!$F$450) -> 0.8656247434 | K62: =IF(Selection!G109*Selection!$G$450>T62,T62,Selection!G109*Selection!$G$450) -> 2.542756733 | L62: =IF(BMP_type= "FS",-1,IF(BMP_type= "PS",GWL+IF(Geometry = "H",12, IF(Geometry = "L",4,1)),VLOOKUP(BMP_type,Geometry!$S$5:$T$9,2,FALSE)+GWL)) -> 9 | M62: 0 | N62: =IF(BMP_type="FS",-999,IF(Selection!F277<0,0,Selection!F277)+T62) -> 8 | O62: =IF(BMP_type="FS",-999,IF(Selection!G277<0,0,Selection!G277)+T62) -> 8 | P62: 0.8656247434 | Q62: 1.67713199 | R62: 8 | S62: 0 | T62: 8
A63: 62 | B63: 0 | C63: 2.54 | D63: 0 | E63: 1.02 | F63: 7.11 | G63: 0 | H63: 0 | I63: 0 | J63: =IF(Selection!F110*Selection!$F$450>T63,T63,Selection!F110*Selection!$F$450) -> 0.8102930429 | K63: =IF(Selection!G110*Selection!$G$450>T63,T63,Selection!G110*Selection!$G$450) -> 2.454340349 | L63: =IF(BMP_type= "FS",-1,IF(BMP_type= "PS",GWL+IF(Geometry = "H",12, IF(Geometry = "L",4,1)),VLOOKUP(BMP_type,Geometry!$S$5:$T$9,2,FALSE)+GWL)) -> 9 | M63: 0 | N63: =IF(BMP_type="FS",-999,IF(Selection!F278<0,0,Selection!F278)+T63) -> 8 | O63: =IF(BMP_type="FS",-999,IF(Selection!G278<0,0,Selection!G278)+T63) -> 8 | P63: 0.8102930429 | Q63: 1.644047306 | R63: 8 | S63: 0 | T63: 8
A64: 63 | B64: 3.81 | C64: 0 | D64: 0 | E64: 1.52 | F64: 2.79 | G64: 0 | H64: 0.0125000004 | I64: 0.2250000072 | J64: =IF(Selection!F111*Selection!$F$450>T64,T64,Selection!F111*Selection!$F$450) -> 0.7607167833 | K64: =IF(Selection!G111*Selection!$G$450>T64,T64,Selection!G111*Selection!$G$450) -> 2.373086564 | L64: =IF(BMP_type= "FS",-1,IF(BMP_type= "PS",GWL+IF(Geometry = "H",12, IF(Geometry = "L",4,1)),VLOOKUP(BMP_type,Geometry!$S$5:$T$9,2,FALSE)+GWL)) -> 9 | M64: 0 | N64: =IF(BMP_type="FS",-999,IF(Selection!F279<0,0,Selection!F279)+T64) -> 8 | O64: =IF(BMP_type="FS",-999,IF(Selection!G279<0,0,Selection!G279)+T64) -> 8 | P64: 0.7607167833 | Q64: 1.612369781 | R64: 8 | S64: 0 | T64: 8
A65: 64 | B65: 20.3 | C65: 0 | D65: 0 | E65: 8.38 | F65: 7.61 | G65: 0.75 | H65: 0.066601052 | I65: 1.198818936 | J65: =IF(Selection!F112*Selection!$F$450>T65,T65,Selection!F112*Selection!$F$450) -> 0.7151127628 | K65: =IF(Selection!G112*Selection!$G$450>T65,T65,Selection!G112*Selection!$G$450) -> 2.298705244 | L65: =IF(BMP_type= "FS",-1,IF(BMP_type= "PS",GWL+IF(Geometry = "H",12, IF(Geometry = "L",4,1)),VLOOKUP(BMP_type,Geometry!$S$5:$T$9,2,FALSE)+GWL)) -> 9 | M65: 0 | N65: =IF(BMP_type="FS",-999,IF(Selection!F280<0,0,Selection!F280)+T65) -> 8 | O65: =IF(BMP_type="FS",-999,IF(Selection!G280<0,0,Selection!G280)+T65) -> 8 | P65: 0.7151127628 | Q65: 1.583592481 | R65: 8 | S65: 0 | T65: 8
A66: 65 | B66: 3.05 | C66: 15.24 | D66: 0 | E66: 12.46 | F66: 0 | G66: 0 | H66: =HLOOKUP(station,$B$1:$G$4032,A66+1,FALSE)*0.00328084 -> 0.010006562 | I66: =(1+0.85*loading)*H66 -> 0.180118116 | J66: =IF(Selection!F113*Selection!$F$450>T66,T66,Selection!F113*Selection!$F$450) -> 0.6773207425 | K66: =IF(Selection!G113*Selection!$G$450>T66,T66,Selection!G113*Selection!$G$450) -> 3.533214103 | L66: =IF(BMP_type= "FS",-1,IF(BMP_type= "PS",GWL+IF(Geometry = "H",12, IF(Geometry = "L",4,1)),VLOOKUP(BMP_type,Geometry!$S$5:$T$9,2,FALSE)+GWL)) -> 9 | M66: 0 | N66: =IF(BMP_type="FS",-999,IF(Selection!F281<0,0,Selection!F281)+T66) -> 8 | O66: =IF(BMP_type="FS",-999,IF(Selection!G281<0,0,Selection!G281)+T66) -> 8 | P66: =J66 -> 0.6773207425 | Q66: =K66-J66 -> 2.85589336 | R66: 8 | S66: 0 | T66: =IF(BMP_type = "PS",L66-1,IF(BMP_type = "FS",GWL+IF(Geometry="H",9.7,1.8),GWL)) -> 8
A67: 66 | B67: 0 | C67: 0 | D67: 0 | E67: 0 | F67: 0 | G67: 0 | H67: 0 | I67: 0 | J67: =IF(Selection!F114*Selection!$F$450>T67,T67,Selection!F114*Selection!$F$450) -> 0.8048803648 | K67: =IF(Selection!G114*Selection!$G$450>T67,T67,Selection!G114*Selection!$G$450) -> 3.441884717 | L67: =IF(BMP_type= "FS",-1,IF(BMP_type= "PS",GWL+IF(Geometry = "H",12, IF(Geometry = "L",4,1)),VLOOKUP(BMP_type,Geometry!$S$5:$T$9,2,FALSE)+GWL)) -> 9 | M67: 0 | N67: =IF(BMP_type="FS",-999,IF(Selection!F282<0,0,Selection!F282)+T67) -> 8 | O67: =IF(BMP_type="FS",-999,IF(Selection!G282<0,0,Selection!G282)+T67) -> 8 | P67: 0.8048803648 | Q67: 2.637004353 | R67: =N67 -> 8 | S67: =O67-N67 -> 0 | T67: 8
A68: 67 | B68: 3.04 | C68: 2.54 | D68: 0 | E68: 0 | F68: 4.06 | G68: 0 | H68: 0.0099737536 | I68: 0.1795275648 | J68: =IF(Selection!F115*Selection!$F$450>T68,T68,Selection!F115*Selection!$F$450) -> 0.9479546445 | K68: =IF(Selection!G115*Selection!$G$450>T68,T68,Selection!G115*Selection!$G$450) -> 3.151025635 | L68: =IF(BMP_type= "FS",-1,IF(BMP_type= "PS",GWL+IF(Geometry = "H",12, IF(Geometry = "L",4,1)),VLOOKUP(BMP_type,Geometry!$S$5:$T$9,2,FALSE)+GWL)) -> 9 | M68: 0 | N68: =IF(BMP_type="FS",-999,IF(Selection!F283<0,0,Selection!F283)+T68) -> 8 | O68: =IF(BMP_type="FS",-999,IF(Selection!G283<0,0,Selection!G283)+T68) -> 8 | P68: 0.9479546445 | Q68: 2.203070991 | R68: 8 | S68: 0 | T68: 8
A69: 68 | B69: 35.55 | C69: 0 | D69: 0 | E69: 0.51 | F69: 5.33 | G69: 0 | H69: 0.116633862 | I69: 2.099409516 | J69: =IF(Selection!F116*Selection!$F$450>T69,T69,Selection!F116*Selection!$F$450) -> 0.9574173684 | K69: =IF(Selection!G116*Selection!$G$450>T69,T69,Selection!G116*Selection!$G$450) -> 3.329669597 | L69: =IF(BMP_type= "FS",-1,IF(BMP_type= "PS",GWL+IF(Geometry = "H",12, IF(Geometry = "L",4,1)),VLOOKUP(BMP_type,Geometry!$S$5:$T$9,2,FALSE)+GWL)) -> 9 | M69: 0 | N69: =IF(BMP_type="FS",-999,IF(Selection!F284<0,0,Selection!F284)+T69) -> 8.013929068 | O69: =IF(BMP_type="FS",-999,IF(Selection!G284<0,0,Selection!G284)+T69) -> 8.1699368 | P69: 0.9574173684 | Q69: 2.372252228 | R69: 8.013929068 | S69: 0.156007732 | T69: 8
A70: 69 | B70: 0 | C70: 0 | D70: 0 | E70: 104.9 | F70: 1.52 | G70: 6.59 | H70: 0 | I70: 0 | J70: =IF(Selection!F117*Selection!$F$450>T70,T70,Selection!F117*Selection!$F$450) -> 1.608387585 | K70: =IF(Selection!G117*Selection!$G$450>T70,T70,Selection!G117*Selection!$G$450) -> 4.760637508 | L70: =IF(BMP_type= "FS",-1,IF(BMP_type= "PS",GWL+IF(Geometry = "H",12, IF(Geometry = "L",4,1)),VLOOKUP(BMP_type,Geometry!$S$5:$T$9,2,FALSE)+GWL)) -> 9 | M70: 0 | N70: =IF(BMP_type="FS",-999,IF(Selection!F285<0,0,Selection!F285)+T70) -> 8 | O70: =IF(BMP_type="FS",-999,IF(Selection!G285<0,0,Selection!G285)+T70) -> 8 | P70: 1.608387585 | Q70: 3.152249923 | R70: 8 | S70: 0 | T70: 8
A71: 70 | B71: 37.35 | C71: 18.03 | D71: 0 | E71: 0 | F71: 2.78 | G71: 3.78 | H71: 0.122539374 | I71: 2.205708732 | J71: =IF(Selection!F118*Selection!$F$450>T71,T71,Selection!F118*Selection!$F$450) -> 2.237957318 | K71: =IF(Selection!G118*Selection!$G$450>T71,T71,Selection!G118*Selection!$G$450) -> 5.11867842 | L71: =IF(BMP_type= "FS",-1,IF(BMP_type= "PS",GWL+IF(Geometry = "H",12, IF(Geometry = "L",4,1)),VLOOKUP(BMP_type,Geometry!$S$5:$T$9,2,FALSE)+GWL)) -> 9 | M71: 0 | N71: =IF(BMP_type="FS",-999,IF(Selection!F286<0,0,Selection!F286)+T71) -> 8.1353656 | O71: =IF(BMP_type="FS",-999,IF(Selection!G286<0,0,Selection!G286)+T71) -> 8.500620932 | P71: 2.237957318 | Q71: 2.880721102 | R71: 8.1353656 | S71: 0.365255332 | T71: 8
A72: 71 | B72: 7.87 | C72: 71.87 | D72: 0 | E72: 8.13 | F72: 3.8 | G72: 4.56 | H72: 0.0258202108 | I72: 0.4647637944 | J72: =IF(Selection!F119*Selection!$F$450>T72,T72,Selection!F119*Selection!$F$450) -> 3.009171417 | K72: =IF(Selection!G119*Selection!$G$450>T72,T72,Selection!G119*Selection!$G$450) -> 5.96207701 | L72: =IF(BMP_type= "FS",-1,IF(BMP_type= "PS",GWL+IF(Geometry = "H",12, IF(Geometry = "L",4,1)),VLOOKUP(BMP_type,Geometry!$S$5:$T$9,2,FALSE)+GWL)) -> 9 | M72: 0 | N72: =IF(BMP_type="FS",-999,IF(Selection!F287<0,0,Selection!F287)+T72) -> 8 | O72: =IF(BMP_type="FS",-999,IF(Selection!G287<0,0,Selection!G287)+T72) -> 8.257665868 | P72: 3.009171417 | Q72: 2.952905593 | R72: 8 | S72: 0.257665868 | T72: 8
A73: 72 | B73: 0 | C73: 0 | D73: 0 | E73: 4.06 | F73: 0 | G73: 4.31 | H73: 0 | I73: 0 | J73: =IF(Selection!F120*Selection!$F$450>T73,T73,Selection!F120*Selection!$F$450) -> 2.619195747 | K73: =IF(Selection!G120*Selection!$G$450>T73,T73,Selection!G120*Selection!$G$450) -> 5.488233815 | L73: =IF(BMP_type= "FS",-1,IF(BMP_type= "PS",GWL+IF(Geometry = "H",12, IF(Geometry = "L",4,1)),VLOOKUP(BMP_type,Geometry!$S$5:$T$9,2,FALSE)+GWL)) -> 9 | M73: 0 | N73: =IF(BMP_type="FS",-999,IF(Selection!F288<0,0,Selection!F288)+T73) -> 8 | O73: =IF(BMP_type="FS",-999,IF(Selection!G288<0,0,Selection!G288)+T73) -> 8 | P73: 2.619195747 | Q73: 2.869038068 | R73: 8 | S73: 0 | T73: 8
A74: 73 | B74: 0 | C74: 0 | D74: 0 | E74: 49.02 | F74: 0 | G74: 0 | H74: 0 | I74: 0 | J74: =IF(Selection!F121*Selection!$F$450>T74,T74,Selection!F121*Selection!$F$450) -> 2.238857333 | K74: =IF(Selection!G121*Selection!$G$450>T74,T74,Selection!G121*Selection!$G$450) -> 4.702625683 | L74: =IF(BMP_type= "FS",-1,IF(BMP_type= "PS",GWL+IF(Geometry = "H",12, IF(Geometry = "L",4,1)),VLOOKUP(BMP_type,Geometry!$S$5:$T$9,2,FALSE)+GWL)) -> 9 | M74: 0 | N74: =IF(BMP_type="FS",-999,IF(Selection!F289<0,0,Selection!F289)+T74) -> 8 | O74: =IF(BMP_type="FS",-999,IF(Selection!G289<0,0,Selection!G289)+T74) -> 8 | P74: 2.238857333 | Q74: 2.46376835 | R74: 8 | S74: 0 | T74: 8
A75: 74 | B75: 23.62 | C75: 0 | D75: 0 | E75: 10.92 | F75: 0 | G75: 0 | H75: 0.0774934408 | I75: 1.394881934 | J75: =IF(Selection!F122*Selection!$F$450>T75,T75,Selection!F122*Selection!$F$450) -> 1.950948701 | K75: =IF(Selection!G122*Selection!$G$450>T75,T75,Selection!G122*Selection!$G$450) -> 4.355686714 | L75: =IF(BMP_type= "FS",-1,IF(BMP_type= "PS",GWL+IF(Geometry = "H",12, IF(Geometry = "L",4,1)),VLOOKUP(BMP_type,Geometry!$S$5:$T$9,2,FALSE)+GWL)) -> 9 | M75: 0 | N75: =IF(BMP_type="FS",-999,IF(Selection!F290<0,0,Selection!F290)+T75) -> 8 | O75: =IF(BMP_type="FS",-999,IF(Selection!G290<0,0,Selection!G290)+T75) -> 8 | P75: 1.950948701 | Q75: 2.404738013 | R75: 8 | S75: 0 | T75: 8
A76: 75 | B76: 48.53 | C76: 2.54 | D76: 14.21 | E76: 3.03 | F76: 3.56 | G76: 2.01 | H76: 0.1592191652 | I76: 2.865944974 | J76: =IF(Selection!F123*Selection!$F$450>T76,T76,Selection!F123*Selection!$F$450) -> 2.925218131 | K76: =IF(Selection!G123*Selection!$G$450>T76,T76,Selection!G123*Selection!$G$450) -> 6.092613684 | L76: =IF(BMP_type= "FS",-1,IF(BMP_type= "PS",GWL+IF(Geometry = "H",12, IF(Geometry = "L",4,1)),VLOOKUP(BMP_type,Geometry!$S$5:$T$9,2,FALSE)+GWL)) -> 9 | M76: 0 | N76: =IF(BMP_type="FS",-999,IF(Selection!F291<0,0,Selection!F291)+T76) -> 8.332141 | O76: =IF(BMP_type="FS",-999,IF(Selection!G291<0,0,Selection!G291)+T76) -> 8.8147192 | P76: 2.925218131 | Q76: 3.167395553 | R76: 8.332141 | S76: 0.4825782 | T76: 8
A77: 76 | B77: 123.43 | C77: 5.08 | D77: 3.3 | E77: 1.52 | F77: 0 | G77: 21.59 | H77: 0.4049540812 | I77: 7.289173462 | J77: =IF(Selection!F124*Selection!$F$450>T77,T77,Selection!F124*Selection!$F$450) -> 4.889353665 | K77: =IF(Selection!G124*Selection!$G$450>T77,T77,Selection!G124*Selection!$G$450) -> 6.79568175 | L77: =IF(BMP_type= "FS",-1,IF(BMP_type= "PS",GWL+IF(Geometry = "H",12, IF(Geometry = "L",4,1)),VLOOKUP(BMP_type,Geometry!$S$5:$T$9,2,FALSE)+GWL)) -> 9 | M77: 0 | N77: =IF(BMP_type="FS",-999,IF(Selection!F292<0,0,Selection!F292)+T77) -> 8.874842968 | O77: =IF(BMP_type="FS",-999,IF(Selection!G292<0,0,Selection!G292)+T77) -> 8.985245032 | P77: 4.889353665 | Q77: 1.906328085 | R77: 8.874842968 | S77: 0.110402064 | T77: 8
A78: 77 | B78: 0 | C78: 10.16 | D78: 15.49 | E78: 0 | F78: 0 | G78: 27.68 | H78: 0 | I78: 0 | J78: =IF(Selection!F125*Selection!$F$450>T78,T78,Selection!F125*Selection!$F$450) -> 4.688417977 | K78: =IF(Selection!G125*Selection!$G$450>T78,T78,Selection!G125*Selection!$G$450) -> 6.743579777 | L78: =IF(BMP_type= "FS",-1,IF(BMP_type= "PS",GWL+IF(Geometry = "H",12, IF(Geometry = "L",4,1)),VLOOKUP(BMP_type,Geometry!$S$5:$T$9,2,FALSE)+GWL)) -> 9 | M78: 0 | N78: =IF(BMP_type="FS",-999,IF(Selection!F293<0,0,Selection!F293)+T78) -> 8 | O78: =IF(BMP_type="FS",-999,IF(Selection!G293<0,0,Selection!G293)+T78) -> 8.229127132 | P78: 4.688417977 | Q78: 2.0551618 | R78: 8 | S78: 0.229127132 | T78: 8
A79: 78 | B79: 0 | C79: 0 | D79: 0 | E79: 0 | F79: 0 | G79: 32 | H79: 0 | I79: 0 | J79: =IF(Selection!F126*Selection!$F$450>T79,T79,Selection!F126*Selection!$F$450) -> 3.570962819 | K79: =IF(Selection!G126*Selection!$G$450>T79,T79,Selection!G126*Selection!$G$450) -> 5.924719489 | L79: =IF(BMP_type= "FS",-1,IF(BMP_type= "PS",GWL+IF(Geometry = "H",12, IF(Geometry = "L",4,1)),VLOOKUP(BMP_type,Geometry!$S$5:$T$9,2,FALSE)+GWL)) -> 9 | M79: 0 | N79: =IF(BMP_type="FS",-999,IF(Selection!F294<0,0,Selection!F294)+T79) -> 8 | O79: =IF(BMP_type="FS",-999,IF(Selection!G294<0,0,Selection!G294)+T79) -> 8 | P79: 3.570962819 | Q79: 2.35375667 | R79: 8 | S79: 0 | T79: 8
A80: 79 | B80: 0 | C80: 5.08 | D80: 0 | E80: 0 | F80: 0 | G80: 7.88 | H80: 0 | I80: 0 | J80: =IF(Selection!F127*Selection!$F$450>T80,T80,Selection!F127*Selection!$F$450) -> 2.961004048 | K80: =IF(Selection!G127*Selection!$G$450>T80,T80,Selection!G127*Selection!$G$450) -> 5.212778258 | L80: =IF(BMP_type= "FS",-1,IF(BMP_type= "PS",GWL+IF(Geometry = "H",12, IF(Geometry = "L",4,1)),VLOOKUP(BMP_type,Geometry!$S$5:$T$9,2,FALSE)+GWL)) -> 9 | M80: 0 | N80: =IF(BMP_type="FS",-999,IF(Selection!F295<0,0,Selection!F295)+T80) -> 8 | O80: =IF(BMP_type="FS",-999,IF(Selection!G295<0,0,Selection!G295)+T80) -> 8 | P80: 2.961004048 | Q80: 2.25177421 | R80: 8 | S80: 0 | T80: 8
A81: 80 | B81: 0 | C81: 7.62 | D81: 10.65 | E81: 9.39 | F81: 0 | G81: 9.4 | H81: 0 | I81: 0 | J81: =IF(Selection!F128*Selection!$F$450>T81,T81,Selection!F128*Selection!$F$450) -> 2.539181052 | K81: =IF(Selection!G128*Selection!$G$450>T81,T81,Selection!G128*Selection!$G$450) -> 4.7827894 | L81: =IF(BMP_type= "FS",-1,IF(BMP_type= "PS",GWL+IF(Geometry = "H",12, IF(Geometry = "L",4,1)),VLOOKUP(BMP_type,Geometry!$S$5:$T$9,2,FALSE)+GWL)) -> 9 | M81: 0 | N81: =IF(BMP_type="FS",-999,IF(Selection!F296<0,0,Selection!F296)+T81) -> 8 | O81: =IF(BMP_type="FS",-999,IF(Selection!G296<0,0,Selection!G296)+T81) -> 8 | P81: 2.539181052 | Q81: 2.243608347 | R81: 8 | S81: 0 | T81: 8
A82: 81 | B82: 7.11 | C82: 2.54 | D82: 0.51 | E82: 20.83 | F82: 16.26 | G82: 2.28 | H82: 0.0233267724 | I82: 0.4198819032 | J82: =IF(Selection!F129*Selection!$F$450>T82,T82,Selection!F129*Selection!$F$450) -> 2.218483033 | K82: =IF(Selection!G129*Selection!$G$450>T82,T82,Selection!G129*Selection!$G$450) -> 4.741299675 | L82: =IF(BMP_type= "FS",-1,IF(BMP_type= "PS",GWL+IF(Geometry = "H",12, IF(Geometry = "L",4,1)),VLOOKUP(BMP_type,Geometry!$S$5:$T$9,2,FALSE)+GWL)) -> 9 | M82: 0 | N82: =IF(BMP_type="FS",-999,IF(Selection!F297<0,0,Selection!F297)+T82) -> 8 | O82: =IF(BMP_type="FS",-999,IF(Selection!G297<0,0,Selection!G297)+T82) -> 8 | P82: 2.218483033 | Q82: 2.522816642 | R82: 8 | S82: 0 | T82: 8
A83: 82 | B83: 0 | C83: 0 | D83: 0 | E83: 8.38 | F83: 110.72 | G83: 17.02 | H83: 0 | I83: 0 | J83: =IF(Selection!F130*Selection!$F$450>T83,T83,Selection!F130*Selection!$F$450) -> 2.002636203 | K83: =IF(Selection!G130*Selection!$G$450>T83,T83,Selection!G130*Selection!$G$450) -> 4.619523809 | L83: =IF(BMP_type= "FS",-1,IF(BMP_type= "PS",GWL+IF(Geometry = "H",12, IF(Geometry = "L",4,1)),VLOOKUP(BMP_type,Geometry!$S$5:$T$9,2,FALSE)+GWL)) -> 9 | M83: 0 | N83: =IF(BMP_type="FS",-999,IF(Selection!F298<0,0,Selection!F298)+T83) -> 8 | O83: =IF(BMP_type="FS",-999,IF(Selection!G298<0,0,Selection!G298)+T83) -> 8 | P83: 2.002636203 | Q83: 2.616887605 | R83: 8 | S83: 0 | T83: 8
A84: 83 | B84: 14.99 | C84: 17.78 | D84: 0 | E84: 0.25 | F84: 10.16 | G84: 38.86 | H84: 0.0491797916 | I84: 0.8852362488 | J84: =IF(Selection!F131*Selection!$F$450>T84,T84,Selection!F131*Selection!$F$450) -> 1.85637193 | K84: =IF(Selection!G131*Selection!$G$450>T84,T84,Selection!G131*Selection!$G$450) -> 4.338864426 | L84: =IF(BMP_type= "FS",-1,IF(BMP_type= "PS",GWL+IF(Geometry = "H",12, IF(Geometry = "L",4,1)),VLOOKUP(BMP_type,Geometry!$S$5:$T$9,2,FALSE)+GWL)) -> 9 | M84: 0 | N84: =IF(BMP_type="FS",-999,IF(Selection!F299<0,0,Selection!F299)+T84) -> 8 | O84: =IF(BMP_type="FS",-999,IF(Selection!G299<0,0,Selection!G299)+T84) -> 8 | P84: 1.85637193 | Q84: 2.482492496 | R84: 8 | S84: 0 | T84: 8
A85: 84 | B85: 0 | C85: 5.08 | D85: 2.03 | E85: 0.5 | F85: 51.05 | G85: 4.83 | H85: 0 | I85: 0 | J85: =IF(Selection!F132*Selection!$F$450>T85,T85,Selection!F132*Selection!$F$450) -> 1.767729337 | K85: =IF(Selection!G132*Selection!$G$450>T85,T85,Selection!G132*Selection!$G$450) -> 5.174196504 | L85: =IF(BMP_type= "FS",-1,IF(BMP_type= "PS",GWL+IF(Geometry = "H",12, IF(Geometry = "L",4,1)),VLOOKUP(BMP_type,Geometry!$S$5:$T$9,2,FALSE)+GWL)) -> 9 | M85: 0 | N85: =IF(BMP_type="FS",-999,IF(Selection!F300<0,0,Selection!F300)+T85) -> 8 | O85: =IF(BMP_type="FS",-999,IF(Selection!G300<0,0,Selection!G300)+T85) -> 8 | P85: 1.767729337 | Q85: 3.406467167 | R85: 8 | S85: 0 | T85: 8
A86: 85 | B86: 0 | C86: 0 | D86: 106.41 | E86: 0 | F86: 0 | G86: 2.79 | H86: 0 | I86: 0 | J86: =IF(Selection!F133*Selection!$F$450>T86,T86,Selection!F133*Selection!$F$450) -> 1.855789445 | K86: =IF(Selection!G133*Selection!$G$450>T86,T86,Selection!G133*Selection!$G$450) -> 4.699764671 | L86: =IF(BMP_type= "FS",-1,IF(BMP_type= "PS",GWL+IF(Geometry = "H",12, IF(Geometry = "L",4,1)),VLOOKUP(BMP_type,Geometry!$S$5:$T$9,2,FALSE)+GWL)) -> 9 | M86: 0 | N86: =IF(BMP_type="FS",-999,IF(Selection!F301<0,0,Selection!F301)+T86) -> 8 | O86: =IF(BMP_type="FS",-999,IF(Selection!G301<0,0,Selection!G301)+T86) -> 8 | P86: 1.855789445 | Q86: 2.843975226 | R86: 8 | S86: 0 | T86: 8
A87: 86 | B87: 0 | C87: 0 | D87: 23.38 | E87: 2.79 | F87: 7.36 | G87: 5.08 | H87: 0 | I87: 0 | J87: =IF(Selection!F134*Selection!$F$450>T87,T87,Selection!F134*Selection!$F$450) -> 1.75778086 | K87: =IF(Selection!G134*Selection!$G$450>T87,T87,Selection!G134*Selection!$G$450) -> 4.343493029 | L87: =IF(BMP_type= "FS",-1,IF(BMP_type= "PS",GWL+IF(Geometry = "H",12, IF(Geometry = "L",4,1)),VLOOKUP(BMP_type,Geometry!$S$5:$T$9,2,FALSE)+GWL)) -> 9 | M87: 0 | N87: =IF(BMP_type="FS",-999,IF(Selection!F302<0,0,Selection!F302)+T87) -> 8 | O87: =IF(BMP_type="FS",-999,IF(Selection!G302<0,0,Selection!G302)+T87) -> 8 | P87: 1.75778086 | Q87: 2.585712169 | R87: 8 | S87: 0 | T87: 8
A88: 87 | B88: 0 | C88: 0 | D88: 0 | E88: 3.31 | F88: 12.18 | G88: 14.74 | H88: 0 | I88: 0 | J88: =IF(Selection!F135*Selection!$F$450>T88,T88,Selection!F135*Selection!$F$450) -> 1.549396965 | K88: =IF(Selection!G135*Selection!$G$450>T88,T88,Selection!G135*Selection!$G$450) -> 3.911998196 | L88: =IF(BMP_type= "FS",-1,IF(BMP_type= "PS",GWL+IF(Geometry = "H",12, IF(Geometry = "L",4,1)),VLOOKUP(BMP_type,Geometry!$S$5:$T$9,2,FALSE)+GWL)) -> 9 | M88: 0 | N88: =IF(BMP_type="FS",-999,IF(Selection!F303<0,0,Selection!F303)+T88) -> 8 | O88: =IF(BMP_type="FS",-999,IF(Selection!G303<0,0,Selection!G303)+T88) -> 8 | P88: 1.549396965 | Q88: 2.362601231 | R88: 8 | S88: 0 | T88: 8
A89: 88 | B89: 0 | C89: 17.78 | D89: 19.04 | E89: 0 | F89: 0 | G89: 0 | H89: 0 | I89: 0 | J89: =IF(Selection!F136*Selection!$F$450>T89,T89,Selection!F136*Selection!$F$450) -> 1.477522318 | K89: =IF(Selection!G136*Selection!$G$450>T89,T89,Selection!G136*Selection!$G$450) -> 3.856263776 | L89: =IF(BMP_type= "FS",-1,IF(BMP_type= "PS",GWL+IF(Geometry = "H",12, IF(Geometry = "L",4,1)),VLOOKUP(BMP_type,Geometry!$S$5:$T$9,2,FALSE)+GWL)) -> 9 | M89: 0 | N89: =IF(BMP_type="FS",-999,IF(Selection!F304<0,0,Selection!F304)+T89) -> 8 | O89: =IF(BMP_type="FS",-999,IF(Selection!G304<0,0,Selection!G304)+T89) -> 8 | P89: 1.477522318 | Q89: 2.378741457 | R89: 8 | S89: 0 | T89: 8
A90: 89 | B90: 0 | C90: 2.54 | D90: 0 | E90: 0 | F90: 0 | G90: 0 | H90: 0 | I90: 0 | J90: =IF(Selection!F137*Selection!$F$450>T90,T90,Selection!F137*Selection!$F$450) -> 1.35749082 | K90: =IF(Selection!G137*Selection!$G$450>T90,T90,Selection!G137*Selection!$G$450) -> 3.679558463 | L90: =IF(BMP_type= "FS",-1,IF(BMP_type= "PS",GWL+IF(Geometry = "H",12, IF(Geometry = "L",4,1)),VLOOKUP(BMP_type,Geometry!$S$5:$T$9,2,FALSE)+GWL)) -> 9 | M90: 0 | N90: =IF(BMP_type="FS",-999,IF(Selection!F305<0,0,Selection!F305)+T90) -> 8 | O90: =IF(BMP_type="FS",-999,IF(Selection!G305<0,0,Selection!G305)+T90) -> 8 | P90: 1.35749082 | Q90: 2.322067643 | R90: 8 | S90: 0 | T90: 8
A91: 90 | B91: 1.27 | C91: 12.7 | D91: 7.87 | E91: 12.19 | F91: 0 | G91: 0 | H91: 0.0041666668 | I91: 0.0750000024 | J91: =IF(Selection!F138*Selection!$F$450>T91,T91,Selection!F138*Selection!$F$450) -> 1.251508313 | K91: =IF(Selection!G138*Selection!$G$450>T91,T91,Selection!G138*Selection!$G$450) -> 3.524285596 | L91: =IF(BMP_type= "FS",-1,IF(BMP_type= "PS",GWL+IF(Geometry = "H",12, IF(Geometry = "L",4,1)),VLOOKUP(BMP_type,Geometry!$S$5:$T$9,2,FALSE)+GWL)) -> 9 | M91: 0 | N91: =IF(BMP_type="FS",-999,IF(Selection!F306<0,0,Selection!F306)+T91) -> 8 | O91: =IF(BMP_type="FS",-999,IF(Selection!G306<0,0,Selection!G306)+T91) -> 8 | P91: 1.251508313 | Q91: 2.272777283 | R91: 8 | S91: 0 | T91: 8
A92: 91 | B92: 0 | C92: 0 | D92: 39.87 | E92: 2.03 | F92: 4.57 | G92: 0 | H92: 0 | I92: 0 | J92: =IF(Selection!F139*Selection!$F$450>T92,T92,Selection!F139*Selection!$F$450) -> 1.156765417 | K92: =IF(Selection!G139*Selection!$G$450>T92,T92,Selection!G139*Selection!$G$450) -> 3.386037934 | L92: =IF(BMP_type= "FS",-1,IF(BMP_type= "PS",GWL+IF(Geometry = "H",12, IF(Geometry = "L",4,1)),VLOOKUP(BMP_type,Geometry!$S$5:$T$9,2,FALSE)+GWL)) -> 9 | M92: 0 | N92: =IF(BMP_type="FS",-999,IF(Selection!F307<0,0,Selection!F307)+T92) -> 8 | O92: =IF(BMP_type="FS",-999,IF(Selection!G307<0,0,Selection!G307)+T92) -> 8 | P92: 1.156765417 | Q92: 2.229272517 | R92: 8 | S92: 0 | T92: 8
A93: 92 | B93: 0 | C93: 0 | D93: 20.05 | E93: 0 | F93: 0 | G93: 0 | H93: 0 | I93: 0 | J93: =IF(Selection!F140*Selection!$F$450>T93,T93,Selection!F140*Selection!$F$450) -> 1.072442036 | K93: =IF(Selection!G140*Selection!$G$450>T93,T93,Selection!G140*Selection!$G$450) -> 3.259978931 | L93: =IF(BMP_type= "FS",-1,IF(BMP_type= "PS",GWL+IF(Geometry = "H",12, IF(Geometry = "L",4,1)),VLOOKUP(BMP_type,Geometry!$S$5:$T$9,2,FALSE)+GWL)) -> 9 | M93: 0 | N93: =IF(BMP_type="FS",-999,IF(Selection!F308<0,0,Selection!F308)+T93) -> 8 | O93: =IF(BMP_type="FS",-999,IF(Selection!G308<0,0,Selection!G308)+T93) -> 8 | P93: 1.072442036 | Q93: 2.187536895 | R93: 8 | S93: 0 | T93: 8
A94: 93 | B94: 0.5 | C94: 0 | D94: 3.3 | E94: 0 | F94: 0 | G94: 0 | H94: 0.00164042 | I94: 0.02952756 | J94: =IF(Selection!F141*Selection!$F$450>T94,T94,Selection!F141*Selection!$F$450) -> 0.9982353554 | K94: =IF(Selection!G141*Selection!$G$450>T94,T94,Selection!G141*Selection!$G$450) -> 3.146806229 | L94: =IF(BMP_type= "FS",-1,IF(BMP_type= "PS",GWL+IF(Geometry = "H",12, IF(Geometry = "L",4,1)),VLOOKUP(BMP_type,Geometry!$S$5:$T$9,2,FALSE)+GWL)) -> 9 | M94: 0 | N94: =IF(BMP_type="FS",-999,IF(Selection!F309<0,0,Selection!F309)+T94) -> 8 | O94: =IF(BMP_type="FS",-999,IF(Selection!G309<0,0,Selection!G309)+T94) -> 8 | P94: 0.9982353554 | Q94: 2.148570874 | R94: 8 | S94: 0 | T94: 8
A95: 94 | B95: 24.38 | C95: 0 | D95: 28.69 | E95: 0 | F95: 0 | G95: 14.98 | H95: 0.0799868792 | I95: 1.439763826 | J95: =IF(Selection!F142*Selection!$F$450>T95,T95,Selection!F142*Selection!$F$450) -> 0.9316030577 | K95: =IF(Selection!G142*Selection!$G$450>T95,T95,Selection!G142*Selection!$G$450) -> 3.432932729 | L95: =IF(BMP_type= "FS",-1,IF(BMP_type= "PS",GWL+IF(Geometry = "H",12, IF(Geometry = "L",4,1)),VLOOKUP(BMP_type,Geometry!$S$5:$T$9,2,FALSE)+GWL)) -> 9 | M95: 0 | N95: =IF(BMP_type="FS",-999,IF(Selection!F310<0,0,Selection!F310)+T95) -> 8 | O95: =IF(BMP_type="FS",-999,IF(Selection!G310<0,0,Selection!G310)+T95) -> 8 | P95: 0.9316030577 | Q95: 2.501329671 | R95: 8 | S95: 0 | T95: 8
A96: 95 | B96: 7.37 | C96: 0 | D96: 11.94 | E96: 0 | F96: 0 | G96: 28.45 | H96: 0.0241797908 | I96: 0.4352362344 | J96: =IF(Selection!F143*Selection!$F$450>T96,T96,Selection!F143*Selection!$F$450) -> 0.9612319016 | K96: =IF(Selection!G143*Selection!$G$450>T96,T96,Selection!G143*Selection!$G$450) -> 4.92471311 | L96: =IF(BMP_type= "FS",-1,IF(BMP_type= "PS",GWL+IF(Geometry = "H",12, IF(Geometry = "L",4,1)),VLOOKUP(BMP_type,Geometry!$S$5:$T$9,2,FALSE)+GWL)) -> 9 | M96: 0 | N96: =IF(BMP_type="FS",-999,IF(Selection!F311<0,0,Selection!F311)+T96) -> 8 | O96: =IF(BMP_type="FS",-999,IF(Selection!G311<0,0,Selection!G311)+T96) -> 8 | P96: 0.9612319016 | Q96: 3.963481208 | R96: 8 | S96: 0 | T96: 8
A97: 96 | B97: 5.84 | C97: 0 | D97: 19.3 | E97: 0.76 | F97: 0.75 | G97: 11.18 | H97: 0.0191601056 | I97: 0.3448819008 | J97: =IF(Selection!F144*Selection!$F$450>T97,T97,Selection!F144*Selection!$F$450) -> 1.326804256 | K97: =IF(Selection!G144*Selection!$G$450>T97,T97,Selection!G144*Selection!$G$450) -> 4.766107982 | L97: =IF(BMP_type= "FS",-1,IF(BMP_type= "PS",GWL+IF(Geometry = "H",12, IF(Geometry = "L",4,1)),VLOOKUP(BMP_type,Geometry!$S$5:$T$9,2,FALSE)+GWL)) -> 9 | M97: 0 | N97: =IF(BMP_type="FS",-999,IF(Selection!F312<0,0,Selection!F312)+T97) -> 8 | O97: =IF(BMP_type="FS",-999,IF(Selection!G312<0,0,Selection!G312)+T97) -> 8 | P97: 1.326804256 | Q97: 3.439303726 | R97: 8 | S97: 0 | T97: 8
A98: 97 | B98: 1.52 | C98: 10.16 | D98: 23.1 | E98: 0 | F98: 1.01 | G98: 86.1 | H98: =HLOOKUP(station,$B$1:$G$4032,A98+1,FALSE)*0.00328084 -> 0.0049868768 | I98: =(1+0.85*loading)*H98 -> 0.0897637824 | J98: =IF(Selection!F145*Selection!$F$450>T98,T98,Selection!F145*Selection!$F$450) -> 1.417516032 | K98: =IF(Selection!G145*Selection!$G$450>T98,T98,Selection!G145*Selection!$G$450) -> 4.397966319 | L98: =IF(BMP_type= "FS",-1,IF(BMP_type= "PS",GWL+IF(Geometry = "H",12, IF(Geometry = "L",4,1)),VLOOKUP(BMP_type,Geometry!$S$5:$T$9,2,FALSE)+GWL)) -> 9 | M98: 0 | N98: =IF(BMP_type="FS",-999,IF(Selection!F313<0,0,Selection!F313)+T98) -> 8 | O98: =IF(BMP_type="FS",-999,IF(Selection!G313<0,0,Selection!G313)+T98) -> 8 | P98: =J98 -> 1.417516032 | Q98: =K98-J98 -> 2.980450287 | R98: 8 | S98: 0 | T98: =IF(BMP_type = "PS",L98-1,IF(BMP_type = "FS",GWL+IF(Geometry="H",9.7,1.8),GWL)) -> 8
A99: 98 | B99: 0 | C99: 0 | D99: 0 | E99: 28.95 | F99: 0 | G99: 29.72 | H99: 0 | I99: 0 | J99: =IF(Selection!F146*Selection!$F$450>T99,T99,Selection!F146*Selection!$F$450) -> 1.39459521 | K99: =IF(Selection!G146*Selection!$G$450>T99,T99,Selection!G146*Selection!$G$450) -> 4.116626066 | L99: =IF(BMP_type= "FS",-1,IF(BMP_type= "PS",GWL+IF(Geometry = "H",12, IF(Geometry = "L",4,1)),VLOOKUP(BMP_type,Geometry!$S$5:$T$9,2,FALSE)+GWL)) -> 9 | M99: 0 | N99: =IF(BMP_type="FS",-999,IF(Selection!F314<0,0,Selection!F314)+T99) -> 8 | O99: =IF(BMP_type="FS",-999,IF(Selection!G314<0,0,Selection!G314)+T99) -> 8 | P99: 1.39459521 | Q99: 2.722030856 | R99: 8 | S99: 0 | T99: 8
A100: 99 | B100: 0 | C100: 0 | D100: 0 | E100: 0 | F100: 59.67 | G100: 4.32 | H100: 0 | I100: 0 | J100: =IF(Selection!F147*Selection!$F$450>T100,T100,Selection!F147*Selection!$F$450) -> 1.326310096 | K100: =IF(Selection!G147*Selection!$G$450>T100,T100,Selection!G147*Selection!$G$450) -> 3.856498563 | L100: =IF(BMP_type= "FS",-1,IF(BMP_type= "PS",GWL+IF(Geometry = "H",12, IF(Geometry = "L",4,1)),VLOOKUP(BMP_type,Geometry!$S$5:$T$9,2,FALSE)+GWL)) -> 9 | M100: 0 | N100: =IF(BMP_type="FS",-999,IF(Selection!F315<0,0,Selection!F315)+T100) -> 8 | O100: =IF(BMP_type="FS",-999,IF(Selection!G315<0,0,Selection!G315)+T100) -> 8 | P100: 1.326310096 | Q100: 2.530188467 | R100: 8 | S100: 0 | T100: 8
A101: 100 | B101: 0 | C101: 12.7 | D101: 0 | E101: 0.5 | F101: 0 | G101: 0 | H101: 0 | I101: 0 | J101: =IF(Selection!F148*Selection!$F$450>T101,T101,Selection!F148*Selection!$F$450) -> 1.243338828 | K101: =IF(Selection!G148*Selection!$G$450>T101,T101,Selection!G148*Selection!$G$450) -> 3.644756732 | L101: =IF(BMP_type= "FS",-1,IF(BMP_type= "PS",GWL+IF(Geometry = "H",12, IF(Geometry = "L",4,1)),VLOOKUP(BMP_type,Geometry!$S$5:$T$9,2,FALSE)+GWL)) -> 9 | M101: 0 | N101: =IF(BMP_type="FS",-999,IF(Selection!F316<0,0,Selection!F316)+T101) -> 8 | O101: =IF(BMP_type="FS",-999,IF(Selection!G316<0,0,Selection!G316)+T101) -> 8 | P101: 1.243338828 | Q101: 2.401417903 | R101: 8 | S101: 0 | T101: 8
A102: 101 | B102: 0 | C102: 0 | D102: 0.25 | E102: 11.43 | F102: 0 | G102: 0 | H102: 0 | I102: 0 | J102: =IF(Selection!F149*Selection!$F$450>T102,T102,Selection!F149*Selection!$F$450) -> 1.159499095 | K102: =IF(Selection!G149*Selection!$G$450>T102,T102,Selection!G149*Selection!$G$450) -> 3.468873165 | L102: =IF(BMP_type= "FS",-1,IF(BMP_type= "PS",GWL+IF(Geometry = "H",12, IF(Geometry = "L",4,1)),VLOOKUP(BMP_type,Geometry!$S$5:$T$9,2,FALSE)+GWL)) -> 9 | M102: 0 | N102: =IF(BMP_type="FS",-999,IF(Selection!F317<0,0,Selection!F317)+T102) -> 8 | O102: =IF(BMP_type="FS",-999,IF(Selection!G317<0,0,Selection!G317)+T102) -> 8 | P102: 1.159499095 | Q102: 2.30937407 | R102: 8 | S102: 0 | T102: 8
A103: 102 | B103: 0 | C103: 0 | D103: 0 | E103: 0 | F103: 0 | G103: 18.54 | H103: 0 | I103: 0 | J103: =IF(Selection!F150*Selection!$F$450>T103,T103,Selection!F150*Selection!$F$450) -> 1.080151002 | K103: =IF(Selection!G150*Selection!$G$450>T103,T103,Selection!G150*Selection!$G$450) -> 3.316662554 | L103: =IF(BMP_type= "FS",-1,IF(BMP_type= "PS",GWL+IF(Geometry = "H",12, IF(Geometry = "L",4,1)),VLOOKUP(BMP_type,Geometry!$S$5:$T$9,2,FALSE)+GWL)) -> 9 | M103: 0 | N103: =IF(BMP_type="FS",-999,IF(Selection!F318<0,0,Selection!F318)+T103) -> 8 | O103: =IF(BMP_type="FS",-999,IF(Selection!G318<0,0,Selection!G318)+T103) -> 8 | P103: 1.080151002 | Q103: 2.236511552 | R103: 8 | S103: 0 | T103: 8
A104: 103 | B104: 26.67 | C104: 0 | D104: 0 | E104: 0 | F104: 15.74 | G104: 59.69 | H104: 0.0875000028 | I104: 1.57500005 | J104: =IF(Selection!F151*Selection!$F$450>T104,T104,Selection!F151*Selection!$F$450) -> 1.012721736 | K104: =IF(Selection!G151*Selection!$G$450>T104,T104,Selection!G151*Selection!$G$450) -> 4.109287378 | L104: =IF(BMP_type= "FS",-1,IF(BMP_type= "PS",GWL+IF(Geometry = "H",12, IF(Geometry = "L",4,1)),VLOOKUP(BMP_type,Geometry!$S$5:$T$9,2,FALSE)+GWL)) -> 9 | M104: 0 | N104: =IF(BMP_type="FS",-999,IF(Selection!F319<0,0,Selection!F319)+T104) -> 8 | O104: =IF(BMP_type="FS",-999,IF(Selection!G319<0,0,Selection!G319)+T104) -> 8.110139668 | P104: 1.012721736 | Q104: 3.096565642 | R104: 8 | S104: 0.110139668 | T104: 8
A105: 104 | B105: 0 | C105: 0 | D105: 0 | E105: 0.51 | F105: 0.25 | G105: 31.23 | H105: 0 | I105: 0 | J105: =IF(Selection!F152*Selection!$F$450>T105,T105,Selection!F152*Selection!$F$450) -> 1.285378556 | K105: =IF(Selection!G152*Selection!$G$450>T105,T105,Selection!G152*Selection!$G$450) -> 4.496711532 | L105: =IF(BMP_type= "FS",-1,IF(BMP_type= "PS",GWL+IF(Geometry = "H",12, IF(Geometry = "L",4,1)),VLOOKUP(BMP_type,Geometry!$S$5:$T$9,2,FALSE)+GWL)) -> 9 | M105: 0 | N105: =IF(BMP_type="FS",-999,IF(Selection!F320<0,0,Selection!F320)+T105) -> 8 | O105: =IF(BMP_type="FS",-999,IF(Selection!G320<0,0,Selection!G320)+T105) -> 8 | P105: 1.285378556 | Q105: 3.211332976 | R105: 8 | S105: 0 | T105: 8
A106: 105 | B106: 0 | C106: 0 | D106: 0 | E106: 0 | F106: 1.01 | G106: 19.54 | H106: 0 | I106: 0 | J106: =IF(Selection!F153*Selection!$F$450>T106,T106,Selection!F153*Selection!$F$450) -> 1.388286727 | K106: =IF(Selection!G153*Selection!$G$450>T106,T106,Selection!G153*Selection!$G$450) -> 4.027250417 | L106: =IF(BMP_type= "FS",-1,IF(BMP_type= "PS",GWL+IF(Geometry = "H",12, IF(Geometry = "L",4,1)),VLOOKUP(BMP_type,Geometry!$S$5:$T$9,2,FALSE)+GWL)) -> 9 | M106: 0 | N106: =IF(BMP_type="FS",-999,IF(Selection!F321<0,0,Selection!F321)+T106) -> 8 | O106: =IF(BMP_type="FS",-999,IF(Selection!G321<0,0,Selection!G321)+T106) -> 8 | P106: 1.388286727 | Q106: 2.638963689 | R106: 8 | S106: 0 | T106: 8
A107: 106 | B107: 0 | C107: 0 | D107: 0 | E107: 0 | F107: 5.57 | G107: 9.9 | H107: 0 | I107: 0 | J107: =IF(Selection!F154*Selection!$F$450>T107,T107,Selection!F154*Selection!$F$450) -> 1.317211159 | K107: =IF(Selection!G154*Selection!$G$450>T107,T107,Selection!G154*Selection!$G$450) -> 3.744521582 | L107: =IF(BMP_type= "FS",-1,IF(BMP_type= "PS",GWL+IF(Geometry = "H",12, IF(Geometry = "L",4,1)),VLOOKUP(BMP_type,Geometry!$S$5:$T$9,2,FALSE)+GWL)) -> 9 | M107: 0 | N107: =IF(BMP_type="FS",-999,IF(Selection!F322<0,0,Selection!F322)+T107) -> 8 | O107: =IF(BMP_type="FS",-999,IF(Selection!G322<0,0,Selection!G322)+T107) -> 8 | P107: 1.317211159 | Q107: 2.427310423 | R107: 8 | S107: 0 | T107: 8
A108: 107 | B108: 19.05 | C108: 2.54 | D108: 0 | E108: 2.03 | F108: 12.19 | G108: 0 | H108: 0.062500002 | I108: 1.125000036 | J108: =IF(Selection!F155*Selection!$F$450>T108,T108,Selection!F155*Selection!$F$450) -> 1.225651948 | K108: =IF(Selection!G155*Selection!$G$450>T108,T108,Selection!G155*Selection!$G$450) -> 4.119158378 | L108: =IF(BMP_type= "FS",-1,IF(BMP_type= "PS",GWL+IF(Geometry = "H",12, IF(Geometry = "L",4,1)),VLOOKUP(BMP_type,Geometry!$S$5:$T$9,2,FALSE)+GWL)) -> 9 | M108: 0 | N108: =IF(BMP_type="FS",-999,IF(Selection!F323<0,0,Selection!F323)+T108) -> 8 | O108: =IF(BMP_type="FS",-999,IF(Selection!G323<0,0,Selection!G323)+T108) -> 8 | P108: 1.225651948 | Q108: 2.89350643 | R108: 8 | S108: 0 | T108: 8
A109: 108 | B109: 0 | C109: 2.54 | D109: 0 | E109: 0 | F109: 3.3 | G109: 0.25 | H109: 0 | I109: 0 | J109: =IF(Selection!F156*Selection!$F$450>T109,T109,Selection!F156*Selection!$F$450) -> 1.342945565 | K109: =IF(Selection!G156*Selection!$G$450>T109,T109,Selection!G156*Selection!$G$450) -> 4.557034307 | L109: =IF(BMP_type= "FS",-1,IF(BMP_type= "PS",GWL+IF(Geometry = "H",12, IF(Geometry = "L",4,1)),VLOOKUP(BMP_type,Geometry!$S$5:$T$9,2,FALSE)+GWL)) -> 9 | M109: 0 | N109: =IF(BMP_type="FS",-999,IF(Selection!F324<0,0,Selection!F324)+T109) -> 8 | O109: =IF(BMP_type="FS",-999,IF(Selection!G324<0,0,Selection!G324)+T109) -> 8 | P109: 1.342945565 | Q109: 3.214088743 | R109: 8 | S109: 0 | T109: 8
A110: 109 | B110: 0 | C110: 0 | D110: 5.84 | E110: 0 | F110: 0 | G110: 0 | H110: 0 | I110: 0 | J110: =IF(Selection!F157*Selection!$F$450>T110,T110,Selection!F157*Selection!$F$450) -> 1.431422032 | K110: =IF(Selection!G157*Selection!$G$450>T110,T110,Selection!G157*Selection!$G$450) -> 4.077916855 | L110: =IF(BMP_type= "FS",-1,IF(BMP_type= "PS",GWL+IF(Geometry = "H",12, IF(Geometry = "L",4,1)),VLOOKUP(BMP_type,Geometry!$S$5:$T$9,2,FALSE)+GWL)) -> 9 | M110: 0 | N110: =IF(BMP_type="FS",-999,IF(Selection!F325<0,0,Selection!F325)+T110) -> 8 | O110: =IF(BMP_type="FS",-999,IF(Selection!G325<0,0,Selection!G325)+T110) -> 8 | P110: 1.431422032 | Q110: 2.646494823 | R110: 8 | S110: 0 | T110: 8
A111: 110 | B111: 0 | C111: 0 | D111: 0.25 | E111: 3.3 | F111: 0.51 | G111: 0 | H111: 0 | I111: 0 | J111: =IF(Selection!F158*Selection!$F$450>T111,T111,Selection!F158*Selection!$F$450) -> 1.353512273 | K111: =IF(Selection!G158*Selection!$G$450>T111,T111,Selection!G158*Selection!$G$450) -> 3.788577163 | L111: =IF(BMP_type= "FS",-1,IF(BMP_type= "PS",GWL+IF(Geometry = "H",12, IF(Geometry = "L",4,1)),VLOOKUP(BMP_type,Geometry!$S$5:$T$9,2,FALSE)+GWL)) -> 9 | M111: 0 | N111: =IF(BMP_type="FS",-999,IF(Selection!F326<0,0,Selection!F326)+T111) -> 8 | O111: =IF(BMP_type="FS",-999,IF(Selection!G326<0,0,Selection!G326)+T111) -> 8 | P111: 1.353512273 | Q111: 2.43506489 | R111: 8 | S111: 0 | T111: 8
A112: 111 | B112: 0 | C112: 0 | D112: 0 | E112: 0 | F112: 0 | G112: 4.82 | H112: 0 | I112: 0 | J112: =IF(Selection!F159*Selection!$F$450>T112,T112,Selection!F159*Selection!$F$450) -> 1.254000164 | K112: =IF(Selection!G159*Selection!$G$450>T112,T112,Selection!G159*Selection!$G$450) -> 3.570823183 | L112: =IF(BMP_type= "FS",-1,IF(BMP_type= "PS",GWL+IF(Geometry = "H",12, IF(Geometry = "L",4,1)),VLOOKUP(BMP_type,Geometry!$S$5:$T$9,2,FALSE)+GWL)) -> 9 | M112: 0 | N112: =IF(BMP_type="FS",-999,IF(Selection!F327<0,0,Selection!F327)+T112) -> 8 | O112: =IF(BMP_type="FS",-999,IF(Selection!G327<0,0,Selection!G327)+T112) -> 8 | P112: 1.254000164 | Q112: 2.316823019 | R112: 8 | S112: 0 | T112: 8
A113: 112 | B113: 22.85 | C113: 0 | D113: 0 | E113: 0 | F113: 0 | G113: 2.79 | H113: 0.074967194 | I113: 1.349409492 | J113: =IF(Selection!F160*Selection!$F$450>T113,T113,Selection!F160*Selection!$F$450) -> 1.158815674 | K113: =IF(Selection!G160*Selection!$G$450>T113,T113,Selection!G160*Selection!$G$450) -> 3.57952026 | L113: =IF(BMP_type= "FS",-1,IF(BMP_type= "PS",GWL+IF(Geometry = "H",12, IF(Geometry = "L",4,1)),VLOOKUP(BMP_type,Geometry!$S$5:$T$9,2,FALSE)+GWL)) -> 9 | M113: 0 | N113: =IF(BMP_type="FS",-999,IF(Selection!F328<0,0,Selection!F328)+T113) -> 8 | O113: =IF(BMP_type="FS",-999,IF(Selection!G328<0,0,Selection!G328)+T113) -> 8 | P113: 1.158815674 | Q113: 2.420704586 | R113: 8 | S113: 0 | T113: 8
A114: 113 | B114: 61.98 | C114: 0 | D114: 0 | E114: 23.62 | F114: 0 | G114: 0 | H114: 0.2033464632 | I114: 3.660236338 | J114: =IF(Selection!F161*Selection!$F$450>T114,T114,Selection!F161*Selection!$F$450) -> 1.439719786 | K114: =IF(Selection!G161*Selection!$G$450>T114,T114,Selection!G161*Selection!$G$450) -> 5.364250978 | L114: =IF(BMP_type= "FS",-1,IF(BMP_type= "PS",GWL+IF(Geometry = "H",12, IF(Geometry = "L",4,1)),VLOOKUP(BMP_type,Geometry!$S$5:$T$9,2,FALSE)+GWL)) -> 9 | M114: 0 | N114: =IF(BMP_type="FS",-999,IF(Selection!F329<0,0,Selection!F329)+T114) -> 8.174170732 | O114: =IF(BMP_type="FS",-999,IF(Selection!G329<0,0,Selection!G329)+T114) -> 8.420505568 | P114: 1.439719786 | Q114: 3.924531192 | R114: 8.174170732 | S114: 0.246334836 | T114: 8
A115: 114 | B115: 104.4 | C115: 0 | D115: 0 | E115: 0 | F115: 0 | G115: 8.39 | H115: 0.342519696 | I115: 6.165354528 | J115: =IF(Selection!F162*Selection!$F$450>T115,T115,Selection!F162*Selection!$F$450) -> 4.156932531 | K115: =IF(Selection!G162*Selection!$G$450>T115,T115,Selection!G162*Selection!$G$450) -> 6.426401382 | L115: =IF(BMP_type= "FS",-1,IF(BMP_type= "PS",GWL+IF(Geometry = "H",12, IF(Geometry = "L",4,1)),VLOOKUP(BMP_type,Geometry!$S$5:$T$9,2,FALSE)+GWL)) -> 9 | M115: 0 | N115: =IF(BMP_type="FS",-999,IF(Selection!F330<0,0,Selection!F330)+T115) -> 8.779144868 | O115: =IF(BMP_type="FS",-999,IF(Selection!G330<0,0,Selection!G330)+T115) -> 8.934974932 | P115: 4.156932531 | Q115: 2.269468851 | R115: 8.779144868 | S115: 0.155830064 | T115: 8
A116: 115 | B116: 0 | C116: 0 | D116: 0 | E116: 0 | F116: 0.51 | G116: 12.7 | H116: 0 | I116: 0 | J116: =IF(Selection!F163*Selection!$F$450>T116,T116,Selection!F163*Selection!$F$450) -> 3.901872167 | K116: =IF(Selection!G163*Selection!$G$450>T116,T116,Selection!G163*Selection!$G$450) -> 6.299267404 | L116: =IF(BMP_type= "FS",-1,IF(BMP_type= "PS",GWL+IF(Geometry = "H",12, IF(Geometry = "L",4,1)),VLOOKUP(BMP_type,Geometry!$S$5:$T$9,2,FALSE)+GWL)) -> 9 | M116: 0 | N116: =IF(BMP_type="FS",-999,IF(Selection!F331<0,0,Selection!F331)+T116) -> 8 | O116: =IF(BMP_type="FS",-999,IF(Selection!G331<0,0,Selection!G331)+T116) -> 8 | P116: 3.901872167 | Q116: 2.397395237 | R116: 8 | S116: 0 | T116: 8
A117: 116 | B117: 0 | C117: 0 | D117: 0 | E117: 0 | F117: 0 | G117: 0.51 | H117: 0 | I117: 0 | J117: =IF(Selection!F164*Selection!$F$450>T117,T117,Selection!F164*Selection!$F$450) -> 3.036743689 | K117: =IF(Selection!G164*Selection!$G$450>T117,T117,Selection!G164*Selection!$G$450) -> 5.423847597 | L117: =IF(BMP_type= "FS",-1,IF(BMP_type= "PS",GWL+IF(Geometry = "H",12, IF(Geometry = "L",4,1)),VLOOKUP(BMP_type,Geometry!$S$5:$T$9,2,FALSE)+GWL)) -> 9 | M117: 0 | N117: =IF(BMP_type="FS",-999,IF(Selection!F332<0,0,Selection!F332)+T117) -> 8 | O117: =IF(BMP_type="FS",-999,IF(Selection!G332<0,0,Selection!G332)+T117) -> 8 | P117: 3.036743689 | Q117: 2.387103908 | R117: 8 | S117: 0 | T117: 8
A118: 117 | B118: 0 | C118: 0 | D118: 12.2 | E118: 0 | F118: 0 | G118: 14.21 | H118: 0 | I118: 0 | J118: =IF(Selection!F165*Selection!$F$450>T118,T118,Selection!F165*Selection!$F$450) -> 2.545260331 | K118: =IF(Selection!G165*Selection!$G$450>T118,T118,Selection!G165*Selection!$G$450) -> 4.843184289 | L118: =IF(BMP_type= "FS",-1,IF(BMP_type= "PS",GWL+IF(Geometry = "H",12, IF(Geometry = "L",4,1)),VLOOKUP(BMP_type,Geometry!$S$5:$T$9,2,FALSE)+GWL)) -> 9 | M118: 0 | N118: =IF(BMP_type="FS",-999,IF(Selection!F333<0,0,Selection!F333)+T118) -> 8 | O118: =IF(BMP_type="FS",-999,IF(Selection!G333<0,0,Selection!G333)+T118) -> 8 | P118: 2.545260331 | Q118: 2.297923958 | R118: 8 | S118: 0 | T118: 8
A119: 118 | B119: 0 | C119: 0 | D119: 0 | E119: 0 | F119: 0 | G119: 6.1 | H119: 0 | I119: 0 | J119: =IF(Selection!F166*Selection!$F$450>T119,T119,Selection!F166*Selection!$F$450) -> 2.19878795 | K119: =IF(Selection!G166*Selection!$G$450>T119,T119,Selection!G166*Selection!$G$450) -> 4.474038086 | L119: =IF(BMP_type= "FS",-1,IF(BMP_type= "PS",GWL+IF(Geometry = "H",12, IF(Geometry = "L",4,1)),VLOOKUP(BMP_type,Geometry!$S$5:$T$9,2,FALSE)+GWL)) -> 9 | M119: 0 | N119: =IF(BMP_type="FS",-999,IF(Selection!F334<0,0,Selection!F334)+T119) -> 8 | O119: =IF(BMP_type="FS",-999,IF(Selection!G334<0,0,Selection!G334)+T119) -> 8 | P119: 2.19878795 | Q119: 2.275250136 | R119: 8 | S119: 0 | T119: 8
A120: 119 | B120: 0 | C120: 0 | D120: 0 | E120: 67.81 | F120: 6.84 | G120: 0.76 | H120: 0 | I120: 0 | J120: =IF(Selection!F167*Selection!$F$450>T120,T120,Selection!F167*Selection!$F$450) -> 1.934811602 | K120: =IF(Selection!G167*Selection!$G$450>T120,T120,Selection!G167*Selection!$G$450) -> 4.195713129 | L120: =IF(BMP_type= "FS",-1,IF(BMP_type= "PS",GWL+IF(Geometry = "H",12, IF(Geometry = "L",4,1)),VLOOKUP(BMP_type,Geometry!$S$5:$T$9,2,FALSE)+GWL)) -> 9 | M120: 0 | N120: =IF(BMP_type="FS",-999,IF(Selection!F335<0,0,Selection!F335)+T120) -> 8 | O120: =IF(BMP_type="FS",-999,IF(Selection!G335<0,0,Selection!G335)+T120) -> 8 | P120: 1.934811602 | Q120: 2.260901527 | R120: 8 | S120: 0 | T120: 8
A121: 120 | B121: 0 | C121: 0 | D121: 0 | E121: 0 | F121: 65.78 | G121: 0 | H121: 0 | I121: 0 | J121: =IF(Selection!F168*Selection!$F$450>T121,T121,Selection!F168*Selection!$F$450) -> 1.725849426 | K121: =IF(Selection!G168*Selection!$G$450>T121,T121,Selection!G168*Selection!$G$450) -> 3.969097721 | L121: =IF(BMP_type= "FS",-1,IF(BMP_type= "PS",GWL+IF(Geometry = "H",12, IF(Geometry = "L",4,1)),VLOOKUP(BMP_type,Geometry!$S$5:$T$9,2,FALSE)+GWL)) -> 9 | M121: 0 | N121: =IF(BMP_type="FS",-999,IF(Selection!F336<0,0,Selection!F336)+T121) -> 8 | O121: =IF(BMP_type="FS",-999,IF(Selection!G336<0,0,Selection!G336)+T121) -> 8 | P121: 1.725849426 | Q121: 2.243248295 | R121: 8 | S121: 0 | T121: 8
A122: 121 | B122: 0 | C122: 0 | D122: 0 | E122: 0 | F122: 2.54 | G122: 0 | H122: 0 | I122: 0 | J122: =IF(Selection!F169*Selection!$F$450>T122,T122,Selection!F169*Selection!$F$450) -> 1.556046106 | K122: =IF(Selection!G169*Selection!$G$450>T122,T122,Selection!G169*Selection!$G$450) -> 3.777138142 | L122: =IF(BMP_type= "FS",-1,IF(BMP_type= "PS",GWL+IF(Geometry = "H",12, IF(Geometry = "L",4,1)),VLOOKUP(BMP_type,Geometry!$S$5:$T$9,2,FALSE)+GWL)) -> 9 | M122: 0 | N122: =IF(BMP_type="FS",-999,IF(Selection!F337<0,0,Selection!F337)+T122) -> 8 | O122: =IF(BMP_type="FS",-999,IF(Selection!G337<0,0,Selection!G337)+T122) -> 8 | P122: 1.556046106 | Q122: 2.221092036 | R122: 8 | S122: 0 | T122: 8
A123: 122 | B123: 0 | C123: 2.54 | D123: 0 | E123: 0 | F123: 0 | G123: 0 | H123: 0 | I123: 0 | J123: =IF(Selection!F170*Selection!$F$450>T123,T123,Selection!F170*Selection!$F$450) -> 1.413192617 | K123: =IF(Selection!G170*Selection!$G$450>T123,T123,Selection!G170*Selection!$G$450) -> 3.610783456 | L123: =IF(BMP_type= "FS",-1,IF(BMP_type= "PS",GWL+IF(Geometry = "H",12, IF(Geometry = "L",4,1)),VLOOKUP(BMP_type,Geometry!$S$5:$T$9,2,FALSE)+GWL)) -> 9 | M123: 0 | N123: =IF(BMP_type="FS",-999,IF(Selection!F338<0,0,Selection!F338)+T123) -> 8 | O123: =IF(BMP_type="FS",-999,IF(Selection!G338<0,0,Selection!G338)+T123) -> 8 | P123: 1.413192617 | Q123: 2.19759084 | R123: 8 | S123: 0 | T123: 8
A124: 123 | B124: 0.25 | C124: 0 | D124: 0 | E124: 0 | F124: 0 | G124: 0 | H124: 0.00082021 | I124: 0.01476378 | J124: =IF(Selection!F171*Selection!$F$450>T124,T124,Selection!F171*Selection!$F$450) -> 1.291203391 | K124: =IF(Selection!G171*Selection!$G$450>T124,T124,Selection!G171*Selection!$G$450) -> 3.462502126 | L124: =IF(BMP_type= "FS",-1,IF(BMP_type= "PS",GWL+IF(Geometry = "H",12, IF(Geometry = "L",4,1)),VLOOKUP(BMP_type,Geometry!$S$5:$T$9,2,FALSE)+GWL)) -> 9 | M124: 0 | N124: =IF(BMP_type="FS",-999,IF(Selection!F339<0,0,Selection!F339)+T124) -> 8 | O124: =IF(BMP_type="FS",-999,IF(Selection!G339<0,0,Selection!G339)+T124) -> 8 | P124: 1.291203391 | Q124: 2.171298736 | R124: 8 | S124: 0 | T124: 8
A125: 124 | B125: 0 | C125: 0 | D125: 0 | E125: 0 | F125: 0 | G125: 0 | H125: 0 | I125: 0 | J125: =IF(Selection!F172*Selection!$F$450>T125,T125,Selection!F172*Selection!$F$450) -> 1.185101022 | K125: =IF(Selection!G172*Selection!$G$450>T125,T125,Selection!G172*Selection!$G$450) -> 3.328371575 | L125: =IF(BMP_type= "FS",-1,IF(BMP_type= "PS",GWL+IF(Geometry = "H",12, IF(Geometry = "L",4,1)),VLOOKUP(BMP_type,Geometry!$S$5:$T$9,2,FALSE)+GWL)) -> 9 | M125: 0 | N125: =IF(BMP_type="FS",-999,IF(Selection!F340<0,0,Selection!F340)+T125) -> 8 | O125: =IF(BMP_type="FS",-999,IF(Selection!G340<0,0,Selection!G340)+T125) -> 8 | P125: 1.185101022 | Q125: 2.143270553 | R125: 8 | S125: 0 | T125: 8
A126: 125 | B126: 0 | C126: 0 | D126: 0 | E126: 0 | F126: 0 | G126: 10.92 | H126: 0 | I126: 0 | J126: =IF(Selection!F173*Selection!$F$450>T126,T126,Selection!F173*Selection!$F$450) -> 1.095253509 | K126: =IF(Selection!G173*Selection!$G$450>T126,T126,Selection!G173*Selection!$G$450) -> 3.213857251 | L126: =IF(BMP_type= "FS",-1,IF(BMP_type= "PS",GWL+IF(Geometry = "H",12, IF(Geometry = "L",4,1)),VLOOKUP(BMP_type,Geometry!$S$5:$T$9,2,FALSE)+GWL)) -> 9 | M126: 0 | N126: =IF(BMP_type="FS",-999,IF(Selection!F341<0,0,Selection!F341)+T126) -> 8 | O126: =IF(BMP_type="FS",-999,IF(Selection!G341<0,0,Selection!G341)+T126) -> 8 | P126: 1.095253509 | Q126: 2.118603742 | R126: 8 | S126: 0 | T126: 8
A127: 126 | B127: 11.17 | C127: 0 | D127: 0 | E127: 0 | F127: 0.5 | G127: 0 | H127: 0.0366469828 | I127: 0.6596456904 | J127: =IF(Selection!F174*Selection!$F$450>T127,T127,Selection!F174*Selection!$F$450) -> 1.019192134 | K127: =IF(Selection!G174*Selection!$G$450>T127,T127,Selection!G174*Selection!$G$450) -> 3.126816028 | L127: =IF(BMP_type= "FS",-1,IF(BMP_type= "PS",GWL+IF(Geometry = "H",12, IF(Geometry = "L",4,1)),VLOOKUP(BMP_type,Geometry!$S$5:$T$9,2,FALSE)+GWL)) -> 9 | M127: 0 | N127: =IF(BMP_type="FS",-999,IF(Selection!F342<0,0,Selection!F342)+T127) -> 8 | O127: =IF(BMP_type="FS",-999,IF(Selection!G342<0,0,Selection!G342)+T127) -> 8 | P127: 1.019192134 | Q127: 2.107623894 | R127: 8 | S127: 0 | T127: 8
A128: 127 | B128: 17.01 | C128: 0 | D128: 0 | E128: 12.69 | F128: 12.44 | G128: 0 | H128: 0.0558070884 | I128: 1.004527591 | J128: =IF(Selection!F175*Selection!$F$450>T128,T128,Selection!F175*Selection!$F$450) -> 0.9473784739 | K128: =IF(Selection!G175*Selection!$G$450>T128,T128,Selection!G175*Selection!$G$450) -> 3.436046974 | L128: =IF(BMP_type= "FS",-1,IF(BMP_type= "PS",GWL+IF(Geometry = "H",12, IF(Geometry = "L",4,1)),VLOOKUP(BMP_type,Geometry!$S$5:$T$9,2,FALSE)+GWL)) -> 9 | M128: 0 | N128: =IF(BMP_type="FS",-999,IF(Selection!F343<0,0,Selection!F343)+T128) -> 8 | O128: =IF(BMP_type="FS",-999,IF(Selection!G343<0,0,Selection!G343)+T128) -> 8 | P128: 0.9473784739 | Q128: 2.4886685 | R128: 8 | S128: 0 | T128: 8
A129: 128 | B129: 0 | C129: 0 | D129: 0 | E129: 13.46 | F129: 0 | G129: 7.6 | H129: 0 | I129: 0 | J129: =IF(Selection!F176*Selection!$F$450>T129,T129,Selection!F176*Selection!$F$450) -> 0.9155584878 | K129: =IF(Selection!G176*Selection!$G$450>T129,T129,Selection!G176*Selection!$G$450) -> 4.579244898 | L129: =IF(BMP_type= "FS",-1,IF(BMP_type= "PS",GWL+IF(Geometry = "H",12, IF(Geometry = "L",4,1)),VLOOKUP(BMP_type,Geometry!$S$5:$T$9,2,FALSE)+GWL)) -> 9 | M129: 0 | N129: =IF(BMP_type="FS",-999,IF(Selection!F344<0,0,Selection!F344)+T129) -> 8 | O129: =IF(BMP_type="FS",-999,IF(Selection!G344<0,0,Selection!G344)+T129) -> 8 | P129: 0.9155584878 | Q129: 3.66368641 | R129: 8 | S129: 0 | T129: 8
A130: 129 | B130: 0 | C130: 0 | D130: 0 | E130: 0 | F130: 9.4 | G130: 16.74 | H130: =HLOOKUP(station,$B$1:$G$4032,A130+1,FALSE)*0.00328084 -> 0 | I130: =(1+0.85*loading)*H130 -> 0 | J130: =IF(Selection!F177*Selection!$F$450>T130,T130,Selection!F177*Selection!$F$450) -> 1.145231413 | K130: =IF(Selection!G177*Selection!$G$450>T130,T130,Selection!G177*Selection!$G$450) -> 4.152112021 | L130: =IF(BMP_type= "FS",-1,IF(BMP_type= "PS",GWL+IF(Geometry = "H",12, IF(Geometry = "L",4,1)),VLOOKUP(BMP_type,Geometry!$S$5:$T$9,2,FALSE)+GWL)) -> 9 | M130: 0 | N130: =IF(BMP_type="FS",-999,IF(Selection!F345<0,0,Selection!F345)+T130) -> 8 | O130: =IF(BMP_type="FS",-999,IF(Selection!G345<0,0,Selection!G345)+T130) -> 8 | P130: =J130 -> 1.145231413 | Q130: =K130-J130 -> 3.006880608 | R130: 8 | S130: 0 | T130: =IF(BMP_type = "PS",L130-1,IF(BMP_type = "FS",GWL+IF(Geometry="H",9.7,1.8),GWL)) -> 8
A131: 130 | B131: 16.01 | C131: 0 | D131: 0 | E131: 1.27 | F131: 0.76 | G131: 17.77 | H131: 0.0525262484 | I131: 0.9454724712 | J131: =IF(Selection!F178*Selection!$F$450>T131,T131,Selection!F178*Selection!$F$450) -> 1.216283852 | K131: =IF(Selection!G178*Selection!$G$450>T131,T131,Selection!G178*Selection!$G$450) -> 3.814155227 | L131: =IF(BMP_type= "FS",-1,IF(BMP_type= "PS",GWL+IF(Geometry = "H",12, IF(Geometry = "L",4,1)),VLOOKUP(BMP_type,Geometry!$S$5:$T$9,2,FALSE)+GWL)) -> 9 | M131: 0 | N131: =IF(BMP_type="FS",-999,IF(Selection!F346<0,0,Selection!F346)+T131) -> 8 | O131: =IF(BMP_type="FS",-999,IF(Selection!G346<0,0,Selection!G346)+T131) -> 8 | P131: 1.216283852 | Q131: 2.597871375 | R131: =N131 -> 8 | S131: =O131-N131 -> 0 | T131: 8
A132: 131 | B132: 5.82 | C132: 0 | D132: 0 | E132: 0 | F132: 0 | G132: 5.34 | H132: 0.0190944888 | I132: 0.3437007984 | J132: =IF(Selection!F179*Selection!$F$450>T132,T132,Selection!F179*Selection!$F$450) -> 1.193306253 | K132: =IF(Selection!G179*Selection!$G$450>T132,T132,Selection!G179*Selection!$G$450) -> 4.756845745 | L132: =IF(BMP_type= "FS",-1,IF(BMP_type= "PS",GWL+IF(Geometry = "H",12, IF(Geometry = "L",4,1)),VLOOKUP(BMP_type,Geometry!$S$5:$T$9,2,FALSE)+GWL)) -> 9 | M132: 0 | N132: =IF(BMP_type="FS",-999,IF(Selection!F347<0,0,Selection!F347)+T132) -> 8 | O132: =IF(BMP_type="FS",-999,IF(Selection!G347<0,0,Selection!G347)+T132) -> 8 | P132: 1.193306253 | Q132: 3.563539492 | R132: 8 | S132: 0 | T132: 8
A133: 132 | B133: 0 | C133: 0 | D133: 0 | E133: 0 | F133: 0 | G133: 24.38 | H133: 0 | I133: 0 | J133: =IF(Selection!F180*Selection!$F$450>T133,T133,Selection!F180*Selection!$F$450) -> 1.540417889 | K133: =IF(Selection!G180*Selection!$G$450>T133,T133,Selection!G180*Selection!$G$450) -> 4.586097243 | L133: =IF(BMP_type= "FS",-1,IF(BMP_type= "PS",GWL+IF(Geometry = "H",12, IF(Geometry = "L",4,1)),VLOOKUP(BMP_type,Geometry!$S$5:$T$9,2,FALSE)+GWL)) -> 9 | M133: 0 | N133: =IF(BMP_type="FS",-999,IF(Selection!F348<0,0,Selection!F348)+T133) -> 8 | O133: =IF(BMP_type="FS",-999,IF(Selection!G348<0,0,Selection!G348)+T133) -> 8 | P133: 1.540417889 | Q133: 3.045679354 | R133: 8 | S133: 0 | T133: 8
A134: 133 | B134: 0 | C134: 0 | D134: 0 | E134: 5.08 | F134: 0 | G134: 4.82 | H134: 0 | I134: 0 | J134: =IF(Selection!F181*Selection!$F$450>T134,T134,Selection!F181*Selection!$F$450) -> 1.507199525 | K134: =IF(Selection!G181*Selection!$G$450>T134,T134,Selection!G181*Selection!$G$450) -> 4.149490822 | L134: =IF(BMP_type= "FS",-1,IF(BMP_type= "PS",GWL+IF(Geometry = "H",12, IF(Geometry = "L",4,1)),VLOOKUP(BMP_type,Geometry!$S$5:$T$9,2,FALSE)+GWL)) -> 9 | M134: 0 | N134: =IF(BMP_type="FS",-999,IF(Selection!F349<0,0,Selection!F349)+T134) -> 8 | O134: =IF(BMP_type="FS",-999,IF(Selection!G349<0,0,Selection!G349)+T134) -> 8 | P134: 1.507199525 | Q134: 2.642291297 | R134: 8 | S134: 0 | T134: 8
A135: 134 | B135: 0 | C135: 0 | D135: 0 | E135: 11.17 | F135: 0 | G135: 0 | H135: 0 | I135: 0 | J135: =IF(Selection!F182*Selection!$F$450>T135,T135,Selection!F182*Selection!$F$450) -> 1.398929138 | K135: =IF(Selection!G182*Selection!$G$450>T135,T135,Selection!G182*Selection!$G$450) -> 3.863661157 | L135: =IF(BMP_type= "FS",-1,IF(BMP_type= "PS",GWL+IF(Geometry = "H",12, IF(Geometry = "L",4,1)),VLOOKUP(BMP_type,Geometry!$S$5:$T$9,2,FALSE)+GWL)) -> 9 | M135: 0 | N135: =IF(BMP_type="FS",-999,IF(Selection!F350<0,0,Selection!F350)+T135) -> 8 | O135: =IF(BMP_type="FS",-999,IF(Selection!G350<0,0,Selection!G350)+T135) -> 8 | P135: 1.398929138 | Q135: 2.46473202 | R135: 8 | S135: 0 | T135: 8
A136: 135 | B136: 0 | C136: 0 | D136: 0 | E136: 1.02 | F136: 0 | G136: 3.05 | H136: 0 | I136: 0 | J136: =IF(Selection!F183*Selection!$F$450>T136,T136,Selection!F183*Selection!$F$450) -> 1.289664121 | K136: =IF(Selection!G183*Selection!$G$450>T136,T136,Selection!G183*Selection!$G$450) -> 3.643304425 | L136: =IF(BMP_type= "FS",-1,IF(BMP_type= "PS",GWL+IF(Geometry = "H",12, IF(Geometry = "L",4,1)),VLOOKUP(BMP_type,Geometry!$S$5:$T$9,2,FALSE)+GWL)) -> 9 | M136: 0 | N136: =IF(BMP_type="FS",-999,IF(Selection!F351<0,0,Selection!F351)+T136) -> 8 | O136: =IF(BMP_type="FS",-999,IF(Selection!G351<0,0,Selection!G351)+T136) -> 8 | P136: 1.289664121 | Q136: 2.353640304 | R136: 8 | S136: 0 | T136: 8
A137: 136 | B137: 19.55 | C137: 0 | D137: 0 | E137: 0 | F137: 0 | G137: 21.1 | H137: 0.064140422 | I137: 1.154527596 | J137: =IF(Selection!F184*Selection!$F$450>T137,T137,Selection!F184*Selection!$F$450) -> 1.189159475 | K137: =IF(Selection!G184*Selection!$G$450>T137,T137,Selection!G184*Selection!$G$450) -> 3.461058203 | L137: =IF(BMP_type= "FS",-1,IF(BMP_type= "PS",GWL+IF(Geometry = "H",12, IF(Geometry = "L",4,1)),VLOOKUP(BMP_type,Geometry!$S$5:$T$9,2,FALSE)+GWL)) -> 9 | M137: 0 | N137: =IF(BMP_type="FS",-999,IF(Selection!F352<0,0,Selection!F352)+T137) -> 8 | O137: =IF(BMP_type="FS",-999,IF(Selection!G352<0,0,Selection!G352)+T137) -> 8 | P137: 1.189159475 | Q137: 2.271898728 | R137: 8 | S137: 0 | T137: 8
A138: 137 | B138: 0 | C138: 0 | D138: 0 | E138: 0 | F138: 0.25 | G138: 2.29 | H138: 0 | I138: 0 | J138: =IF(Selection!F185*Selection!$F$450>T138,T138,Selection!F185*Selection!$F$450) -> 1.119730421 | K138: =IF(Selection!G185*Selection!$G$450>T138,T138,Selection!G185*Selection!$G$450) -> 4.509792368 | L138: =IF(BMP_type= "FS",-1,IF(BMP_type= "PS",GWL+IF(Geometry = "H",12, IF(Geometry = "L",4,1)),VLOOKUP(BMP_type,Geometry!$S$5:$T$9,2,FALSE)+GWL)) -> 9 | M138: 0 | N138: =IF(BMP_type="FS",-999,IF(Selection!F353<0,0,Selection!F353)+T138) -> 8 | O138: =IF(BMP_type="FS",-999,IF(Selection!G353<0,0,Selection!G353)+T138) -> 8 | P138: 1.119730421 | Q138: 3.390061947 | R138: 8 | S138: 0 | T138: 8
A139: 138 | B139: 0 | C139: 0 | D139: 0 | E139: 0 | F139: 0 | G139: 0.25 | H139: 0 | I139: 0 | J139: =IF(Selection!F186*Selection!$F$450>T139,T139,Selection!F186*Selection!$F$450) -> 1.27453217 | K139: =IF(Selection!G186*Selection!$G$450>T139,T139,Selection!G186*Selection!$G$450) -> 4.174148197 | L139: =IF(BMP_type= "FS",-1,IF(BMP_type= "PS",GWL+IF(Geometry = "H",12, IF(Geometry = "L",4,1)),VLOOKUP(BMP_type,Geometry!$S$5:$T$9,2,FALSE)+GWL)) -> 9 | M139: 0 | N139: =IF(BMP_type="FS",-999,IF(Selection!F354<0,0,Selection!F354)+T139) -> 8 | O139: =IF(BMP_type="FS",-999,IF(Selection!G354<0,0,Selection!G354)+T139) -> 8 | P139: 1.27453217 | Q139: 2.899616027 | R139: 8 | S139: 0 | T139: 8
A140: 139 | B140: 13.71 | C140: 0 | D140: 0 | E140: 0 | F140: 0 | G140: 3.04 | H140: 0.0449803164 | I140: 0.8096456952 | J140: =IF(Selection!F187*Selection!$F$450>T140,T140,Selection!F187*Selection!$F$450) -> 1.299757693 | K140: =IF(Selection!G187*Selection!$G$450>T140,T140,Selection!G187*Selection!$G$450) -> 3.843862138 | L140: =IF(BMP_type= "FS",-1,IF(BMP_type= "PS",GWL+IF(Geometry = "H",12, IF(Geometry = "L",4,1)),VLOOKUP(BMP_type,Geometry!$S$5:$T$9,2,FALSE)+GWL)) -> 9 | M140: 0 | N140: =IF(BMP_type="FS",-999,IF(Selection!F355<0,0,Selection!F355)+T140) -> 8 | O140: =IF(BMP_type="FS",-999,IF(Selection!G355<0,0,Selection!G355)+T140) -> 8 | P140: 1.299757693 | Q140: 2.544104445 | R140: 8 | S140: 0 | T140: 8
A141: 140 | B141: 6.59 | C141: 0 | D141: 0 | E141: 0 | F141: 0 | G141: 0.5 | H141: 0.0216207356 | I141: 0.3891732408 | J141: =IF(Selection!F188*Selection!$F$450>T141,T141,Selection!F188*Selection!$F$450) -> 1.316178673 | K141: =IF(Selection!G188*Selection!$G$450>T141,T141,Selection!G188*Selection!$G$450) -> 4.92609666 | L141: =IF(BMP_type= "FS",-1,IF(BMP_type= "PS",GWL+IF(Geometry = "H",12, IF(Geometry = "L",4,1)),VLOOKUP(BMP_type,Geometry!$S$5:$T$9,2,FALSE)+GWL)) -> 9 | M141: 0 | N141: =IF(BMP_type="FS",-999,IF(Selection!F356<0,0,Selection!F356)+T141) -> 8 | O141: =IF(BMP_type="FS",-999,IF(Selection!G356<0,0,Selection!G356)+T141) -> 8 | P141: 1.316178673 | Q141: 3.609917987 | R141: 8 | S141: 0 | T141: 8
A142: 141 | B142: 0 | C142: 0 | D142: 0 | E142: 0 | F142: 0 | G142: 0 | H142: 0 | I142: 0 | J142: =IF(Selection!F189*Selection!$F$450>T142,T142,Selection!F189*Selection!$F$450) -> 1.577978595 | K142: =IF(Selection!G189*Selection!$G$450>T142,T142,Selection!G189*Selection!$G$450) -> 4.543359803 | L142: =IF(BMP_type= "FS",-1,IF(BMP_type= "PS",GWL+IF(Geometry = "H",12, IF(Geometry = "L",4,1)),VLOOKUP(BMP_type,Geometry!$S$5:$T$9,2,FALSE)+GWL)) -> 9 | M142: 0 | N142: =IF(BMP_type="FS",-999,IF(Selection!F357<0,0,Selection!F357)+T142) -> 8 | O142: =IF(BMP_type="FS",-999,IF(Selection!G357<0,0,Selection!G357)+T142) -> 8 | P142: 1.577978595 | Q142: 2.965381209 | R142: 8 | S142: 0 | T142: 8
A143: 142 | B143: 0 | C143: 0 | D143: 0 | E143: 0 | F143: 0 | G143: 0 | H143: 0 | I143: 0 | J143: =IF(Selection!F190*Selection!$F$450>T143,T143,Selection!F190*Selection!$F$450) -> 1.515360597 | K143: =IF(Selection!G190*Selection!$G$450>T143,T143,Selection!G190*Selection!$G$450) -> 4.113543681 | L143: =IF(BMP_type= "FS",-1,IF(BMP_type= "PS",GWL+IF(Geometry = "H",12, IF(Geometry = "L",4,1)),VLOOKUP(BMP_type,Geometry!$S$5:$T$9,2,FALSE)+GWL)) -> 9 | M143: 0 | N143: =IF(BMP_type="FS",-999,IF(Selection!F358<0,0,Selection!F358)+T143) -> 8 | O143: =IF(BMP_type="FS",-999,IF(Selection!G358<0,0,Selection!G358)+T143) -> 8 | P143: 1.515360597 | Q143: 2.598183084 | R143: 8 | S143: 0 | T143: 8
A144: 143 | B144: 16.26 | C144: 0 | D144: 0 | E144: 1.02 | F144: 0 | G144: 0 | H144: 0.0533464584 | I144: 0.9602362512 | J144: =IF(Selection!F191*Selection!$F$450>T144,T144,Selection!F191*Selection!$F$450) -> 1.395619289 | K144: =IF(Selection!G191*Selection!$G$450>T144,T144,Selection!G191*Selection!$G$450) -> 3.830776271 | L144: =IF(BMP_type= "FS",-1,IF(BMP_type= "PS",GWL+IF(Geometry = "H",12, IF(Geometry = "L",4,1)),VLOOKUP(BMP_type,Geometry!$S$5:$T$9,2,FALSE)+GWL)) -> 9 | M144: 0 | N144: =IF(BMP_type="FS",-999,IF(Selection!F359<0,0,Selection!F359)+T144) -> 8 | O144: =IF(BMP_type="FS",-999,IF(Selection!G359<0,0,Selection!G359)+T144) -> 8 | P144: 1.395619289 | Q144: 2.435156982 | R144: 8 | S144: 0 | T144: 8
A145: 144 | B145: 13.97 | C145: 0 | D145: 1.02 | E145: 0 | F145: 0.75 | G145: 1.51 | H145: 0.0458333348 | I145: 0.8250000264 | J145: =IF(Selection!F192*Selection!$F$450>T145,T145,Selection!F192*Selection!$F$450) -> 1.549962623 | K145: =IF(Selection!G192*Selection!$G$450>T145,T145,Selection!G192*Selection!$G$450) -> 5.103278252 | L145: =IF(BMP_type= "FS",-1,IF(BMP_type= "PS",GWL+IF(Geometry = "H",12, IF(Geometry = "L",4,1)),VLOOKUP(BMP_type,Geometry!$S$5:$T$9,2,FALSE)+GWL)) -> 9 | M145: 0 | N145: =IF(BMP_type="FS",-999,IF(Selection!F360<0,0,Selection!F360)+T145) -> 8 | O145: =IF(BMP_type="FS",-999,IF(Selection!G360<0,0,Selection!G360)+T145) -> 8.360204132 | P145: 1.549962623 | Q145: 3.553315629 | R145: 8 | S145: 0.360204132 | T145: 8
A146: 145 | B146: 0 | C146: 5.08 | D146: 0 | E146: 0.25 | F146: 0 | G146: 11.93 | H146: 0 | I146: 0 | J146: =IF(Selection!F193*Selection!$F$450>T146,T146,Selection!F193*Selection!$F$450) -> 1.974075598 | K146: =IF(Selection!G193*Selection!$G$450>T146,T146,Selection!G193*Selection!$G$450) -> 5.035823065 | L146: =IF(BMP_type= "FS",-1,IF(BMP_type= "PS",GWL+IF(Geometry = "H",12, IF(Geometry = "L",4,1)),VLOOKUP(BMP_type,Geometry!$S$5:$T$9,2,FALSE)+GWL)) -> 9 | M146: 0 | N146: =IF(BMP_type="FS",-999,IF(Selection!F361<0,0,Selection!F361)+T146) -> 8 | O146: =IF(BMP_type="FS",-999,IF(Selection!G361<0,0,Selection!G361)+T146) -> 8 | P146: 1.974075598 | Q146: 3.061747467 | R146: 8 | S146: 0 | T146: 8
A147: 146 | B147: 0 | C147: 0 | D147: 0 | E147: 1.27 | F147: 0 | G147: 0 | H147: 0 | I147: 0 | J147: =IF(Selection!F194*Selection!$F$450>T147,T147,Selection!F194*Selection!$F$450) -> 1.786110156 | K147: =IF(Selection!G194*Selection!$G$450>T147,T147,Selection!G194*Selection!$G$450) -> 4.440866428 | L147: =IF(BMP_type= "FS",-1,IF(BMP_type= "PS",GWL+IF(Geometry = "H",12, IF(Geometry = "L",4,1)),VLOOKUP(BMP_type,Geometry!$S$5:$T$9,2,FALSE)+GWL)) -> 9 | M147: 0 | N147: =IF(BMP_type="FS",-999,IF(Selection!F362<0,0,Selection!F362)+T147) -> 8 | O147: =IF(BMP_type="FS",-999,IF(Selection!G362<0,0,Selection!G362)+T147) -> 8 | P147: 1.786110156 | Q147: 2.654756272 | R147: 8 | S147: 0 | T147: 8
A148: 147 | B148: 0.25 | C148: 0 | D148: 0 | E148: 6.1 | F148: 0 | G148: 0 | H148: 0.00082021 | I148: 0.01476378 | J148: =IF(Selection!F195*Selection!$F$450>T148,T148,Selection!F195*Selection!$F$450) -> 1.601544981 | K148: =IF(Selection!G195*Selection!$G$450>T148,T148,Selection!G195*Selection!$G$450) -> 4.094697216 | L148: =IF(BMP_type= "FS",-1,IF(BMP_type= "PS",GWL+IF(Geometry = "H",12, IF(Geometry = "L",4,1)),VLOOKUP(BMP_type,Geometry!$S$5:$T$9,2,FALSE)+GWL)) -> 9 | M148: 0 | N148: =IF(BMP_type="FS",-999,IF(Selection!F363<0,0,Selection!F363)+T148) -> 8 | O148: =IF(BMP_type="FS",-999,IF(Selection!G363<0,0,Selection!G363)+T148) -> 8 | P148: 1.601544981 | Q148: 2.493152235 | R148: 8 | S148: 0 | T148: 8
A149: 148 | B149: 8.63 | C149: 0 | D149: 0 | E149: 18.03 | F149: 0 | G149: 8.39 | H149: 0.0283136492 | I149: 0.5096456856 | J149: =IF(Selection!F196*Selection!$F$450>T149,T149,Selection!F196*Selection!$F$450) -> 1.445622427 | K149: =IF(Selection!G196*Selection!$G$450>T149,T149,Selection!G196*Selection!$G$450) -> 3.840871996 | L149: =IF(BMP_type= "FS",-1,IF(BMP_type= "PS",GWL+IF(Geometry = "H",12, IF(Geometry = "L",4,1)),VLOOKUP(BMP_type,Geometry!$S$5:$T$9,2,FALSE)+GWL)) -> 9 | M149: 0 | N149: =IF(BMP_type="FS",-999,IF(Selection!F364<0,0,Selection!F364)+T149) -> 8 | O149: =IF(BMP_type="FS",-999,IF(Selection!G364<0,0,Selection!G364)+T149) -> 8 | P149: 1.445622427 | Q149: 2.395249569 | R149: 8 | S149: 0 | T149: 8
A150: 149 | B150: 27.43 | C150: 0 | D150: 0 | E150: 38.87 | F150: 0 | G150: 3.55 | H150: 0.0899934412 | I150: 1.619881942 | J150: =IF(Selection!F197*Selection!$F$450>T150,T150,Selection!F197*Selection!$F$450) -> 1.318334069 | K150: =IF(Selection!G197*Selection!$G$450>T150,T150,Selection!G197*Selection!$G$450) -> 4.460355199 | L150: =IF(BMP_type= "FS",-1,IF(BMP_type= "PS",GWL+IF(Geometry = "H",12, IF(Geometry = "L",4,1)),VLOOKUP(BMP_type,Geometry!$S$5:$T$9,2,FALSE)+GWL)) -> 9 | M150: 0 | N150: =IF(BMP_type="FS",-999,IF(Selection!F365<0,0,Selection!F365)+T150) -> 8 | O150: =IF(BMP_type="FS",-999,IF(Selection!G365<0,0,Selection!G365)+T150) -> 8 | P150: 1.318334069 | Q150: 3.14202113 | R150: 8 | S150: 0 | T150: 8
A151: 150 | B151: 8.38 | C151: 0 | D151: 3.05 | E151: 0.25 | F151: 0 | G151: 0 | H151: 0.0274934392 | I151: 0.4948819056 | J151: =IF(Selection!F198*Selection!$F$450>T151,T151,Selection!F198*Selection!$F$450) -> 2.110347234 | K151: =IF(Selection!G198*Selection!$G$450>T151,T151,Selection!G198*Selection!$G$450) -> 5.820123118 | L151: =IF(BMP_type= "FS",-1,IF(BMP_type= "PS",GWL+IF(Geometry = "H",12, IF(Geometry = "L",4,1)),VLOOKUP(BMP_type,Geometry!$S$5:$T$9,2,FALSE)+GWL)) -> 9 | M151: 0 | N151: =IF(BMP_type="FS",-999,IF(Selection!F366<0,0,Selection!F366)+T151) -> 8 | O151: =IF(BMP_type="FS",-999,IF(Selection!G366<0,0,Selection!G366)+T151) -> 8.4216481 | P151: 2.110347234 | Q151: 3.709775884 | R151: 8 | S151: 0.4216481 | T151: 8
A152: 151 | B152: 0 | C152: 0 | D152: 0.25 | E152: 0 | F152: 0 | G152: 0 | H152: 0 | I152: 0 | J152: =IF(Selection!F199*Selection!$F$450>T152,T152,Selection!F199*Selection!$F$450) -> 2.313213312 | K152: =IF(Selection!G199*Selection!$G$450>T152,T152,Selection!G199*Selection!$G$450) -> 5.351800703 | L152: =IF(BMP_type= "FS",-1,IF(BMP_type= "PS",GWL+IF(Geometry = "H",12, IF(Geometry = "L",4,1)),VLOOKUP(BMP_type,Geometry!$S$5:$T$9,2,FALSE)+GWL)) -> 9 | M152: 0 | N152: =IF(BMP_type="FS",-999,IF(Selection!F367<0,0,Selection!F367)+T152) -> 8 | O152: =IF(BMP_type="FS",-999,IF(Selection!G367<0,0,Selection!G367)+T152) -> 8 | P152: 2.313213312 | Q152: 3.038587391 | R152: 8 | S152: 0 | T152: 8
A153: 152 | B153: 0 | C153: 0 | D153: 0 | E153: 0 | F153: 0 | G153: 12.94 | H153: 0 | I153: 0 | J153: =IF(Selection!F200*Selection!$F$450>T153,T153,Selection!F200*Selection!$F$450) -> 2.000638513 | K153: =IF(Selection!G200*Selection!$G$450>T153,T153,Selection!G200*Selection!$G$450) -> 4.688822049 | L153: =IF(BMP_type= "FS",-1,IF(BMP_type= "PS",GWL+IF(Geometry = "H",12, IF(Geometry = "L",4,1)),VLOOKUP(BMP_type,Geometry!$S$5:$T$9,2,FALSE)+GWL)) -> 9 | M153: 0 | N153: =IF(BMP_type="FS",-999,IF(Selection!F368<0,0,Selection!F368)+T153) -> 8 | O153: =IF(BMP_type="FS",-999,IF(Selection!G368<0,0,Selection!G368)+T153) -> 8 | P153: 2.000638513 | Q153: 2.688183536 | R153: 8 | S153: 0 | T153: 8
A154: 153 | B154: 0 | C154: 0 | D154: 0 | E154: 1 | F154: 1.77 | G154: 0 | H154: 0 | I154: 0 | J154: =IF(Selection!F201*Selection!$F$450>T154,T154,Selection!F201*Selection!$F$450) -> 1.764997764 | K154: =IF(Selection!G201*Selection!$G$450>T154,T154,Selection!G201*Selection!$G$450) -> 4.310494107 | L154: =IF(BMP_type= "FS",-1,IF(BMP_type= "PS",GWL+IF(Geometry = "H",12, IF(Geometry = "L",4,1)),VLOOKUP(BMP_type,Geometry!$S$5:$T$9,2,FALSE)+GWL)) -> 9 | M154: 0 | N154: =IF(BMP_type="FS",-999,IF(Selection!F369<0,0,Selection!F369)+T154) -> 8 | O154: =IF(BMP_type="FS",-999,IF(Selection!G369<0,0,Selection!G369)+T154) -> 8 | P154: 1.764997764 | Q154: 2.545496343 | R154: 8 | S154: 0 | T154: 8
A155: 154 | B155: 0 | C155: 0 | D155: 0 | E155: 0.25 | F155: 0 | G155: 0 | H155: 0 | I155: 0 | J155: =IF(Selection!F202*Selection!$F$450>T155,T155,Selection!F202*Selection!$F$450) -> 1.577667374 | K155: =IF(Selection!G202*Selection!$G$450>T155,T155,Selection!G202*Selection!$G$450) -> 4.033805928 | L155: =IF(BMP_type= "FS",-1,IF(BMP_type= "PS",GWL+IF(Geometry = "H",12, IF(Geometry = "L",4,1)),VLOOKUP(BMP_type,Geometry!$S$5:$T$9,2,FALSE)+GWL)) -> 9 | M155: 0 | N155: =IF(BMP_type="FS",-999,IF(Selection!F370<0,0,Selection!F370)+T155) -> 8 | O155: =IF(BMP_type="FS",-999,IF(Selection!G370<0,0,Selection!G370)+T155) -> 8 | P155: 1.577667374 | Q155: 2.456138554 | R155: 8 | S155: 0 | T155: 8
A156: 155 | B156: 17.77 | C156: 0 | D156: 0 | E156: 3.04 | F156: 51.55 | G156: 0 | H156: 0.0583005268 | I156: 1.049409482 | J156: =IF(Selection!F203*Selection!$F$450>T156,T156,Selection!F203*Selection!$F$450) -> 1.42363526 | K156: =IF(Selection!G203*Selection!$G$450>T156,T156,Selection!G203*Selection!$G$450) -> 3.828991913 | L156: =IF(BMP_type= "FS",-1,IF(BMP_type= "PS",GWL+IF(Geometry = "H",12, IF(Geometry = "L",4,1)),VLOOKUP(BMP_type,Geometry!$S$5:$T$9,2,FALSE)+GWL)) -> 9 | M156: 0 | N156: =IF(BMP_type="FS",-999,IF(Selection!F371<0,0,Selection!F371)+T156) -> 8 | O156: =IF(BMP_type="FS",-999,IF(Selection!G371<0,0,Selection!G371)+T156) -> 8 | P156: 1.42363526 | Q156: 2.405356653 | R156: 8 | S156: 0 | T156: 8
A157: 156 | B157: 34.8 | C157: 2.54 | D157: 0 | E157: 0.76 | F157: 0 | G157: 0 | H157: 0.114173232 | I157: 2.055118176 | J157: =IF(Selection!F204*Selection!$F$450>T157,T157,Selection!F204*Selection!$F$450) -> 2.073867379 | K157: =IF(Selection!G204*Selection!$G$450>T157,T157,Selection!G204*Selection!$G$450) -> 5.666549081 | L157: =IF(BMP_type= "FS",-1,IF(BMP_type= "PS",GWL+IF(Geometry = "H",12, IF(Geometry = "L",4,1)),VLOOKUP(BMP_type,Geometry!$S$5:$T$9,2,FALSE)+GWL)) -> 9 | M157: 0 | N157: =IF(BMP_type="FS",-999,IF(Selection!F372<0,0,Selection!F372)+T157) -> 8.207712832 | O157: =IF(BMP_type="FS",-999,IF(Selection!G372<0,0,Selection!G372)+T157) -> 8.724362032 | P157: 2.073867379 | Q157: 3.592681702 | R157: 8.207712832 | S157: 0.5166492 | T157: 8
A158: 157 | B158: 0 | C158: 0 | D158: 0 | E158: 5.08 | F158: 0 | G158: 0 | H158: 0 | I158: 0 | J158: =IF(Selection!F205*Selection!$F$450>T158,T158,Selection!F205*Selection!$F$450) -> 2.716583995 | K158: =IF(Selection!G205*Selection!$G$450>T158,T158,Selection!G205*Selection!$G$450) -> 5.815717557 | L158: =IF(BMP_type= "FS",-1,IF(BMP_type= "PS",GWL+IF(Geometry = "H",12, IF(Geometry = "L",4,1)),VLOOKUP(BMP_type,Geometry!$S$5:$T$9,2,FALSE)+GWL)) -> 9 | M158: 0 | N158: =IF(BMP_type="FS",-999,IF(Selection!F373<0,0,Selection!F373)+T158) -> 8 | O158: =IF(BMP_type="FS",-999,IF(Selection!G373<0,0,Selection!G373)+T158) -> 8 | P158: 2.716583995 | Q158: 3.099133561 | R158: 8 | S158: 0 | T158: 8
A159: 158 | B159: 17.53 | C159: 0 | D159: 0 | E159: 0.25 | F159: 42.93 | G159: 0 | H159: 0.0575131252 | I159: 1.035236254 | J159: =IF(Selection!F206*Selection!$F$450>T159,T159,Selection!F206*Selection!$F$450) -> 2.27769445 | K159: =IF(Selection!G206*Selection!$G$450>T159,T159,Selection!G206*Selection!$G$450) -> 5.016684797 | L159: =IF(BMP_type= "FS",-1,IF(BMP_type= "PS",GWL+IF(Geometry = "H",12, IF(Geometry = "L",4,1)),VLOOKUP(BMP_type,Geometry!$S$5:$T$9,2,FALSE)+GWL)) -> 9 | M159: 0 | N159: =IF(BMP_type="FS",-999,IF(Selection!F374<0,0,Selection!F374)+T159) -> 8 | O159: =IF(BMP_type="FS",-999,IF(Selection!G374<0,0,Selection!G374)+T159) -> 8 | P159: 2.27769445 | Q159: 2.738990346 | R159: 8 | S159: 0 | T159: 8
A160: 159 | B160: 20.57 | C160: 15.24 | D160: 0 | E160: 0 | F160: 10.91 | G160: 0 | H160: 0.0674868788 | I160: 1.214763818 | J160: =IF(Selection!F207*Selection!$F$450>T160,T160,Selection!F207*Selection!$F$450) -> 2.969186149 | K160: =IF(Selection!G207*Selection!$G$450>T160,T160,Selection!G207*Selection!$G$450) -> 6.344508649 | L160: =IF(BMP_type= "FS",-1,IF(BMP_type= "PS",GWL+IF(Geometry = "H",12, IF(Geometry = "L",4,1)),VLOOKUP(BMP_type,Geometry!$S$5:$T$9,2,FALSE)+GWL)) -> 9 | M160: 0 | N160: =IF(BMP_type="FS",-999,IF(Selection!F375<0,0,Selection!F375)+T160) -> 8.082753032 | O160: =IF(BMP_type="FS",-999,IF(Selection!G375<0,0,Selection!G375)+T160) -> 8.768939968 | P160: 2.969186149 | Q160: 3.375322499 | R160: 8.082753032 | S160: 0.686186936 | T160: 8
A161: 160 | B161: 0 | C161: 15.24 | D161: 0 | E161: 4.32 | F161: 0 | G161: 0 | H161: 0 | I161: 0 | J161: =IF(Selection!F208*Selection!$F$450>T161,T161,Selection!F208*Selection!$F$450) -> 2.985905733 | K161: =IF(Selection!G208*Selection!$G$450>T161,T161,Selection!G208*Selection!$G$450) -> 6.159522156 | L161: =IF(BMP_type= "FS",-1,IF(BMP_type= "PS",GWL+IF(Geometry = "H",12, IF(Geometry = "L",4,1)),VLOOKUP(BMP_type,Geometry!$S$5:$T$9,2,FALSE)+GWL)) -> 9 | M161: 0 | N161: =IF(BMP_type="FS",-999,IF(Selection!F376<0,0,Selection!F376)+T161) -> 8 | O161: =IF(BMP_type="FS",-999,IF(Selection!G376<0,0,Selection!G376)+T161) -> 8 | P161: 2.985905733 | Q161: 3.173616423 | R161: 8 | S161: 0 | T161: 8
A162: 161 | B162: 0 | C162: 0 | D162: 0 | E162: 11.93 | F162: 0.75 | G162: 0 | H162: =HLOOKUP(station,$B$1:$G$4032,A162+1,FALSE)*0.00328084 -> 0 | I162: =(1+0.85*loading)*H162 -> 0 | J162: =IF(Selection!F209*Selection!$F$450>T162,T162,Selection!F209*Selection!$F$450) -> 2.479214722 | K162: =IF(Selection!G209*Selection!$G$450>T162,T162,Selection!G209*Selection!$G$450) -> 5.330556086 | L162: =IF(BMP_type= "FS",-1,IF(BMP_type= "PS",GWL+IF(Geometry = "H",12, IF(Geometry = "L",4,1)),VLOOKUP(BMP_type,Geometry!$S$5:$T$9,2,FALSE)+GWL)) -> 9 | M162: 0 | N162: =IF(BMP_type="FS",-999,IF(Selection!F377<0,0,Selection!F377)+T162) -> 8 | O162: =IF(BMP_type="FS",-999,IF(Selection!G377<0,0,Selection!G377)+T162) -> 8 | P162: =J162 -> 2.479214722 | Q162: =K162-J162 -> 2.851341364 | R162: 8 | S162: 0 | T162: =IF(BMP_type = "PS",L162-1,IF(BMP_type = "FS",GWL+IF(Geometry="H",9.7,1.8),GWL)) -> 8
A163: 162 | B163: 0 | C163: 0 | D163: 1.27 | E163: 0 | F163: 0.51 | G163: 2.01 | H163: 0 | I163: 0 | J163: =IF(Selection!F210*Selection!$F$450>T163,T163,Selection!F210*Selection!$F$450) -> 2.13509751 | K163: =IF(Selection!G210*Selection!$G$450>T163,T163,Selection!G210*Selection!$G$450) -> 4.843192672 | L163: =IF(BMP_type= "FS",-1,IF(BMP_type= "PS",GWL+IF(Geometry = "H",12, IF(Geometry = "L",4,1)),VLOOKUP(BMP_type,Geometry!$S$5:$T$9,2,FALSE)+GWL)) -> 9 | M163: 0 | N163: =IF(BMP_type="FS",-999,IF(Selection!F378<0,0,Selection!F378)+T163) -> 8 | O163: =IF(BMP_type="FS",-999,IF(Selection!G378<0,0,Selection!G378)+T163) -> 8 | P163: 2.13509751 | Q163: 2.708095162 | R163: 8 | S163: 0 | T163: 8
A164: 163 | B164: 0 | C164: 2.54 | D164: 0 | E164: 0.5 | F164: 0 | G164: 0 | H164: 0 | I164: 0 | J164: =IF(Selection!F211*Selection!$F$450>T164,T164,Selection!F211*Selection!$F$450) -> 1.876596925 | K164: =IF(Selection!G211*Selection!$G$450>T164,T164,Selection!G211*Selection!$G$450) -> 4.505717184 | L164: =IF(BMP_type= "FS",-1,IF(BMP_type= "PS",GWL+IF(Geometry = "H",12, IF(Geometry = "L",4,1)),VLOOKUP(BMP_type,Geometry!$S$5:$T$9,2,FALSE)+GWL)) -> 9 | M164: 0 | N164: =IF(BMP_type="FS",-999,IF(Selection!F379<0,0,Selection!F379)+T164) -> 8 | O164: =IF(BMP_type="FS",-999,IF(Selection!G379<0,0,Selection!G379)+T164) -> 8 | P164: 1.876596925 | Q164: 2.629120259 | R164: 8 | S164: 0 | T164: 8
A165: 164 | B165: 0.25 | C165: 0 | D165: 0 | E165: 1.77 | F165: 1.27 | G165: 0 | H165: 0.00082021 | I165: 0.01476378 | J165: =IF(Selection!F212*Selection!$F$450>T165,T165,Selection!F212*Selection!$F$450) -> 1.674000008 | K165: =IF(Selection!G212*Selection!$G$450>T165,T165,Selection!G212*Selection!$G$450) -> 4.242410033 | L165: =IF(BMP_type= "FS",-1,IF(BMP_type= "PS",GWL+IF(Geometry = "H",12, IF(Geometry = "L",4,1)),VLOOKUP(BMP_type,Geometry!$S$5:$T$9,2,FALSE)+GWL)) -> 9 | M165: 0 | N165: =IF(BMP_type="FS",-999,IF(Selection!F380<0,0,Selection!F380)+T165) -> 8 | O165: =IF(BMP_type="FS",-999,IF(Selection!G380<0,0,Selection!G380)+T165) -> 8 | P165: 1.674000008 | Q165: 2.568410025 | R165: 8 | S165: 0 | T165: 8
A166: 165 | B166: 0 | C166: 0 | D166: 0 | E166: 0.25 | F166: 0 | G166: 0 | H166: 0 | I166: 0 | J166: =IF(Selection!F213*Selection!$F$450>T166,T166,Selection!F213*Selection!$F$450) -> 1.508505381 | K166: =IF(Selection!G213*Selection!$G$450>T166,T166,Selection!G213*Selection!$G$450) -> 4.023051135 | L166: =IF(BMP_type= "FS",-1,IF(BMP_type= "PS",GWL+IF(Geometry = "H",12, IF(Geometry = "L",4,1)),VLOOKUP(BMP_type,Geometry!$S$5:$T$9,2,FALSE)+GWL)) -> 9 | M166: 0 | N166: =IF(BMP_type="FS",-999,IF(Selection!F381<0,0,Selection!F381)+T166) -> 8 | O166: =IF(BMP_type="FS",-999,IF(Selection!G381<0,0,Selection!G381)+T166) -> 8 | P166: 1.508505381 | Q166: 2.514545754 | R166: 8 | S166: 0 | T166: 8
A167: 166 | B167: 0.51 | C167: 0 | D167: 0 | E167: 0.51 | F167: 0 | G167: 0 | H167: 0.0016732284 | I167: 0.0301181112 | J167: =IF(Selection!F214*Selection!$F$450>T167,T167,Selection!F214*Selection!$F$450) -> 1.368351923 | K167: =IF(Selection!G214*Selection!$G$450>T167,T167,Selection!G214*Selection!$G$450) -> 3.835149968 | L167: =IF(BMP_type= "FS",-1,IF(BMP_type= "PS",GWL+IF(Geometry = "H",12, IF(Geometry = "L",4,1)),VLOOKUP(BMP_type,Geometry!$S$5:$T$9,2,FALSE)+GWL)) -> 9 | M167: 0 | N167: =IF(BMP_type="FS",-999,IF(Selection!F382<0,0,Selection!F382)+T167) -> 8 | O167: =IF(BMP_type="FS",-999,IF(Selection!G382<0,0,Selection!G382)+T167) -> 8 | P167: 1.368351923 | Q167: 2.466798045 | R167: 8 | S167: 0 | T167: 8
A168: 167 | B168: 0 | C168: 0 | D168: 0 | E168: 0 | F168: 0 | G168: 0 | H168: 0 | I168: 0 | J168: =IF(Selection!F215*Selection!$F$450>T168,T168,Selection!F215*Selection!$F$450) -> 1.249828152 | K168: =IF(Selection!G215*Selection!$G$450>T168,T168,Selection!G215*Selection!$G$450) -> 3.669477836 | L168: =IF(BMP_type= "FS",-1,IF(BMP_type= "PS",GWL+IF(Geometry = "H",12, IF(Geometry = "L",4,1)),VLOOKUP(BMP_type,Geometry!$S$5:$T$9,2,FALSE)+GWL)) -> 9 | M168: 0 | N168: =IF(BMP_type="FS",-999,IF(Selection!F383<0,0,Selection!F383)+T168) -> 8 | O168: =IF(BMP_type="FS",-999,IF(Selection!G383<0,0,Selection!G383)+T168) -> 8 | P168: 1.249828152 | Q168: 2.419649684 | R168: 8 | S168: 0 | T168: 8
A169: 168 | B169: 0 | C169: 0 | D169: 0 | E169: 0 | F169: 0 | G169: 0 | H169: 0 | I169: 0 | J169: =IF(Selection!F216*Selection!$F$450>T169,T169,Selection!F216*Selection!$F$450) -> 1.14688213 | K169: =IF(Selection!G216*Selection!$G$450>T169,T169,Selection!G216*Selection!$G$450) -> 3.520757123 | L169: =IF(BMP_type= "FS",-1,IF(BMP_type= "PS",GWL+IF(Geometry = "H",12, IF(Geometry = "L",4,1)),VLOOKUP(BMP_type,Geometry!$S$5:$T$9,2,FALSE)+GWL)) -> 9 | M169: 0 | N169: =IF(BMP_type="FS",-999,IF(Selection!F384<0,0,Selection!F384)+T169) -> 8 | O169: =IF(BMP_type="FS",-999,IF(Selection!G384<0,0,Selection!G384)+T169) -> 8 | P169: 1.14688213 | Q169: 2.373874993 | R169: 8 | S169: 0 | T169: 8

Sheet Raw_model_output (hidden)
B1: 01_Meta | C1: 01_Meta | D1: 01_Meta | E1: 01_Meta | F1: 01_Meta | G1: 01_Meta | H1: 01_Meta | I1: 01_Meta | J1: 01_Meta | K1: 02_Ponding | L1: 02_Ponding | M1: 02_Ponding | N1: 02_Ponding | O1: 02_Ponding | P1: 03_Roadway Saturation | Q1: 03_Roadway Saturation | R1: 03_Roadway Saturation | S1: 03_Roadway Saturation | T1: 03_Roadway Saturation | U1: 03_Roadway Saturation | V1: 03_Roadway Saturation | W1: 03_Roadway Saturation | X1: 03_Roadway Saturation | Y1: 03_Roadway Saturation | Z1: 03_Roadway Saturation | AA1: 03_Roadway Saturation | AB1: 04_GW Mounding | AC1: 04_GW Mounding | AD1: 04_GW Mounding | AE1: 04_GW Mounding | AF1: 04_GW Mounding | AG1: 04_GW Mounding | AH1: 04_GW Mounding | AI1: 04_GW Mounding | AJ1: 04_GW Mounding | AK1: 04_GW Mounding | AL1: 04_GW Mounding | AM1: 04_GW Mounding | AN1: 04_GW Mounding | AO1: 04_GW Mounding | AP1: 04_GW Mounding | AQ1: 04_GW Mounding | AR1: 04_GW Mounding | AS1: 04_GW Mounding | AT1: 04_GW Mounding | AU1: 04_GW Mounding | AV1: 04_GW Mounding | AW1: 04_GW Mounding | AX1: 04_GW Mounding | AY1: 04_GW Mounding | AZ1: 04_GW Mounding | BA1: 04_GW Mounding | BB1: 04_GW Mounding | BC1: 04_GW Mounding | BD1: 04_GW Mounding | BE1: 04_GW Mounding | BF1: 04_GW Mounding | BG1: 04_GW Mounding | BH1: 04_GW Mounding | BI1: 04_GW Mounding | BJ1: 04_GW Mounding | BK1: 04_GW Mounding | BL1: 04_GW Mounding | BM1: 04_GW Mounding | BN1: 04_GW Mounding | BO1: 04_GW Mounding | BP1: 04_GW Mounding | BQ1: 04_GW Mounding | BR1: 04_GW Mounding | BS1: 04_GW Mounding | BT1: 04_GW Mounding | BU1: 04_GW Mounding | BV1: 04_GW Mounding | BW1: 04_GW Mounding | BX1: 04_GW Mounding | BY1: 04_GW Mounding | BZ1: 04_GW Mounding | CA1: 04_GW Mounding | CB1: 04_GW Mounding | CC1: 04_GW Mounding | CD1: 04_GW Mounding | CE1: 04_GW Mounding | CF1: 04_GW Mounding | CG1: 04_GW Mounding | CH1: 04_GW Mounding | CI1: 04_GW Mounding | CJ1: 04_GW Mounding | CK1: 04_GW Mounding | CL1: 04_GW Mounding | CM1: 04_GW Mounding | CN1: 04_GW Mounding | CO1: 04_GW Mounding | CP1: 04_GW Mounding | CQ1: 04_GW Mounding | CR1: 04_GW Mounding | CS1: 04_GW Mounding | CT1: 04_GW Mounding | CU1: 04_GW Mounding | CV1: 04_GW Mounding | CW1: 04_GW Mounding | CX1: 04_GW Mounding | CY1: 04_GW Mounding | CZ1: 04_GW Mounding | DA1: 04_GW Mounding | DB1: 04_GW Mounding | DC1: 04_GW Mounding | DD1: 04_GW Mounding | DE1: 04_GW Mounding | DF1: 04_GW Mounding | DG1: 04_GW Mounding | DH1: 04_GW Mounding | DI1: 04_GW Mounding | DJ1: 04_GW Mounding | DK1: 04_GW Mounding | DL1: 04_GW Mounding | DM1: 04_GW Mounding | DN1: 04_GW Mounding | DO1: 04_GW Mounding | DP1: 04_GW Mounding | DQ1: 04_GW Mounding | DR1: 04_GW Mounding | DS1: 04_GW Mounding | DT1: 04_GW Mounding | DU1: 04_GW Mounding | DV1: 04_GW Mounding | DW1: 04_GW Mounding | DX1: 04_GW Mounding | DY1: 04_GW Mounding | DZ1: 04_GW Mounding | EA1: 04_GW Mounding | EB1: 04_GW Mounding | EC1: 04_GW Mounding | ED1: 04_GW Mounding | EE1: 04_GW Mounding | EF1: 04_GW Mounding | EG1: 04_GW Mounding | EH1: 04_GW Mounding | EI1: 04_GW Mounding | EJ1: 04_GW Mounding | EK1: 04_GW Mounding | EL1: 04_GW Mounding | EM1: 04_GW Mounding | EN1: 04_GW Mounding | EO1: 04_GW Mounding | EP1: 04_GW Mounding | EQ1: 04_GW Mounding | ER1: 04_GW Mounding | ES1: 04_GW Mounding | ET1: 04_GW Mounding | EU1: 04_GW Mounding | EV1: 04_GW Mounding | EW1: 04_GW Mounding | EX1: 04_GW Mounding | EY1: 04_GW Mounding | EZ1: 04_GW Mounding | FA1: 04_GW Mounding | FB1: 04_GW Mounding | FC1: 04_GW Mounding | FD1: 04_GW Mounding | FE1: 04_GW Mounding | FF1: 04_GW Mounding | FG1: 04_GW Mounding | FH1: 04_GW Mounding | FI1: 04_GW Mounding | FJ1: 04_GW Mounding | FK1: 04_GW Mounding | FL1: 04_GW Mounding | FM1: 04_GW Mounding | FN1: 04_GW Mounding | FO1: 04_GW Mounding | FP1: 04_GW Mounding | FQ1: 04_GW Mounding | FR1: 04_GW Mounding | FS1: 04_GW Mounding | FT1: 04_GW Mounding | FU1: 04_GW Mounding | FV1: 04_GW Mounding | FW1: 04_GW Mounding | FX1: 04_GW Mounding | FY1: 04_GW Mounding | FZ1: 04_GW Mounding | GA1: 04_GW Mounding | GB1: 04_GW Mounding | GC1: 04_GW Mounding | GD1: 04_GW Mounding | GE1: 04_GW Mounding | GF1: 04_GW Mounding | GG1: 04_GW Mounding | GH1: 04_GW Mounding | GI1: 04_GW Mounding | GJ1: 04_GW Mounding | GK1: 04_GW Mounding | GL1: 04_GW Mounding | GM1: 04_GW Mounding | GN1: 04_GW Mounding | GO1: 04_GW Mounding | GP1: 04_GW Mounding | GQ1: 04_GW Mounding | GR1: 04_GW Mounding | GS1: 04_GW Mounding | GT1: 04_GW Mounding | GU1: 04_GW Mounding | GV1: 04_GW Mounding | GW1: 04_GW Mounding | GX1: 04_GW Mounding | GY1: 04_GW Mounding | GZ1: 04_GW Mounding | HA1: 04_GW Mounding | HB1: 04_GW Mounding | HC1: 04_GW Mounding | HD1: 04_GW Mounding | HE1: 04_GW Mounding | HF1: 04_GW Mounding | HG1: 04_GW Mounding | HH1: 04_GW Mounding | HI1: 04_GW Mounding | HJ1: 04_GW Mounding | HK1: 04_GW Mounding | HL1: 04_GW Mounding | HM1: 04_GW Mounding | HN1: 04_GW Mounding | HO1: 04_GW Mounding | HP1: 04_GW Mounding | HQ1: 04_GW Mounding | HR1: 04_GW Mounding | HS1: 04_GW Mounding | HT1: 04_GW Mounding | HU1: 04_GW Mounding | HV1: 04_GW Mounding | HW1: 04_GW Mounding | HX1: 04_GW Mounding | HY1: 04_GW Mounding | HZ1: 04_GW Mounding | IA1: 04_GW Mounding | IB1: 04_GW Mounding | IC1: 04_GW Mounding | ID1: 04_GW Mounding | IE1: 04_GW Mounding | IF1: 04_GW Mounding | IG1: 04_GW Mounding | IH1: 04_GW Mounding | II1: 04_GW Mounding | IJ1: 04_GW Mounding | IK1: 04_GW Mounding | IL1: 04_GW Mounding | IM1: 04_GW Mounding | IN1: 04_GW Mounding | IO1: 04_GW Mounding | IP1: 04_GW Mounding | IQ1: 04_GW Mounding | IR1: 04_GW Mounding | IS1: 04_GW Mounding | IT1: 04_GW Mounding | IU1: 04_GW Mounding | IV1: 04_GW Mounding | IW1: 04_GW Mounding | IX1: 04_GW Mounding | IY1: 04_GW Mounding | IZ1: 04_GW Mounding | JA1: 04_GW Mounding | JB1: 04_GW Mounding | JC1: 04_GW Mounding | JD1: 04_GW Mounding | JE1: 04_GW Mounding | JF1: 04_GW Mounding | JG1: 04_GW Mounding | JH1: 04_GW Mounding | JI1: 04_GW Mounding | JJ1: 04_GW Mounding | JK1: 04_GW Mounding | JL1: 04_GW Mounding | JM1: 04_GW Mounding | JN1: 04_GW Mounding | JO1: 04_GW Mounding | JP1: 04_GW Mounding | JQ1: 04_GW Mounding | JR1: 04_GW Mounding | JS1: 04_GW Mounding | JT1: 04_GW Mounding | JU1: 04_GW Mounding | JV1: 04_GW Mounding | JW1: 04_GW Mounding | JX1: 04_GW Mounding | JY1: 04_GW Mounding | JZ1: 04_GW Mounding | KA1: 04_GW Mounding | KB1: 04_GW Mounding | KC1: 04_GW Mounding | KD1: 04_GW Mounding | KE1: 04_GW Mounding | KF1: 04_GW Mounding | KG1: 04_GW Mounding | KH1: 04_GW Mounding | KI1: 04_GW Mounding | KJ1: 04_GW Mounding | KK1: 04_GW Mounding | KL1: 04_GW Mounding | KM1: 04_GW Mounding | KN1: 04_GW Mounding | KO1: 04_GW Mounding | KP1: 04_GW Mounding | KQ1: 04_GW Mounding | KR1: 04_GW Mounding | KS1: 04_GW Mounding | KT1: 04_GW Mounding | KU1: 04_GW Mounding | KV1: 04_GW Mounding | KW1: 04_GW Mounding | KX1: 04_GW Mounding | KY1: 04_GW Mounding | KZ1: 04_GW Mounding | LA1: 04_GW Mounding | LB1: 04_GW Mounding | LC1: 04_GW Mounding | LD1: 04_GW Mounding | LE1: 04_GW Mounding | LF1: 04_GW Mounding | LG1: 04_GW Mounding | LH1: 04_GW Mounding | LI1: 04_GW Mounding | LJ1: 04_GW Mounding | LK1: 04_GW Mounding | LL1: 04_GW Mounding | LM1: 04_GW Mounding | LN1: 04_GW Mounding | LO1: 04_GW Mounding | LP1: 04_GW Mounding | LQ1: 04_GW Mounding | LR1: 04_GW Mounding | LS1: 04_GW Mounding | LT1: 04_GW Mounding | LU1: 04_GW Mounding | LV1: 04_GW Mounding | LW1: 04_GW Mounding | LX1: 04_GW Mounding | LY1: 04_GW Mounding | LZ1: 04_GW Mounding | MA1: 04_GW Mounding | MB1: 04_GW Mounding | MC1: 04_GW Mounding | MD1: 04_GW Mounding | ME1: 04_GW Mounding | MF1: 04_GW Mounding | MG1: 04_GW Mounding | MH1: 04_GW Mounding | MI1: 04_GW Mounding | MJ1: 04_GW Mounding | MK1: 04_GW Mounding | ML1: 04_GW Mounding | MM1: 04_GW Mounding | MN1: 04_GW Mounding | MO1: 04_GW Mounding | MP1: 04_GW Mounding | MQ1: 04_GW Mounding | MR1: 04_GW Mounding | MS1: 04_GW Mounding | MT1: 04_GW Mounding | MU1: 04_GW Mounding | MV1: 04_GW Mounding | MW1: 04_GW Mounding | MX1: 04_GW Mounding | MY1: 04_GW Mounding | MZ1: 04_GW Mounding | NA1: 04_GW Mounding | NB1: 04_GW Mounding | NC1: 04_GW Mounding | ND1: 04_GW Mounding | NE1: 04_GW Mounding | NF1: 04_GW Mounding | NG1: 04_GW Mounding | NH1: 04_GW Mounding | NI1: 04_GW Mounding | NJ1: 04_GW Mounding | NK1: 04_GW Mounding | NL1: 04_GW Mounding | NM1: 04_GW Mounding | NN1: 04_GW Mounding | NO1: 04_GW Mounding | NP1: 04_GW Mounding | NQ1: 04_GW Mounding | NR1: 04_GW Mounding | NS1: 04_GW Mounding | NT1: 04_GW Mounding | NU1: 04_GW Mounding | NV1: 04_GW Mounding | NW1: 04_GW Mounding | NX1: 04_GW Mounding | NY1: 04_GW Mounding | NZ1: 04_GW Mounding | OA1: 04_GW Mounding | OB1: 05_BMP Saturation | OC1: 05_BMP Saturation | OD1: 05_BMP Saturation | OE1: 05_BMP Saturation | OF1: 05_BMP Saturation | OG1: 05_BMP Saturation | OH1: 05_BMP Saturation | OI1: 05_BMP Saturation | OJ1: 05_BMP Saturation | OK1: 05_BMP Saturation | OL1: 05_BMP Saturation | OM1: 05_BMP Saturation | ON1: 05_BMP Saturation | OO1: 05_BMP Saturation | OP1: 05_BMP Saturation | OQ1: 05_BMP Saturation | OR1: 05_BMP Saturation | OS1: 05_BMP Saturation | OT1: 05_BMP Saturation | OU1: 05_BMP Saturation | OV1: 05_BMP Saturation | OW1: 05_BMP Saturation | OX1: 05_BMP Saturation | OY1: 05_BMP Saturation | OZ1: 05_BMP Saturation | PA1: 05_BMP Saturation | PB1: 05_BMP Saturation | PC1: 05_BMP Saturation | PD1: 05_BMP Saturation | PE1: 05_BMP Saturation | PF1: 05_BMP Saturation | PG1: 05_BMP Saturation | PH1: 05_BMP Saturation | PI1: 05_BMP Saturation | PJ1: 05_BMP Saturation | PK1: 05_BMP Saturation | PL1: 06_Cumulative Flow | PM1: 06_Cumulative Flow | PN1: 06_Cumulative Flow | PO1: 06_Cumulative Flow | PP1: 06_Cumulative Flow | PQ1: 07_Cumulative Flux | PR1: 07_Cumulative Flux | PS1: 08_Water Balance_001 | PT1: 08_Water Balance_001 | PU1: 09_Infiltration_rate | PV1: 09_Infiltration_rate | PW1: 09_Infiltration_rate | PX1: Calculated | PY1: Calculated | PZ1: Calculated | QA1: Calculated | QB1: Calculated | QC1: Calculated | QD1: Calculated | QE1: Calculated | QF1: Infil Reduction | QG1: Infil Reduction | QH1: Roadway Sat | QI1: Roadway Sat | QJ1: Roadway Sat | QK1: Roadway Sat
B2: 002_Run_Params | C2: 002_Run_Params | D2: 002_Run_Params | E2: 002_Run_Params | F2: 002_Run_Params | G2: 002_Run_Params | H2: 002_Run_Params | I2: 002_Run_Params | J2: 002_Run_Params | K2: 001_Fraction Duration | L2: 002_Maximum Duration | M2: 003_Maximim Depth | N2: 004_Fraction Duration Bypass | O2: 005_Mean Daily | P2: 001_Max_Saturation | Q2: 001_Max_Saturation | R2: 001_Max_Saturation | S2: 001_Max_Saturation | T2: 002_Time_GE_50pct_Sat | U2: 002_Time_GE_50pct_Sat | V2: 002_Time_GE_50pct_Sat | W2: 002_Time_GE_50pct_Sat | X2: 003_Time_GE_90pct_Sat | Y2: 003_Time_GE_90pct_Sat | Z2: 003_Time_GE_90pct_Sat | AA2: 003_Time_GE_90pct_Sat | AB2: 001_Max_Head | AC2: 001_Max_Head | AD2: 001_Max_Head | AE2: 001_Max_Head | AF2: 001_Max_Head | AG2: 001_Max_Head | AH2: 001_Max_Head | AI2: 001_Max_Head | AJ2: 001_Max_Head | AK2: 001_Max_Head | AL2: 001_Max_Head | AM2: 001_Max_Head | AN2: 001_Max_Head | AO2: 001_Max_Head | AP2: 002_Peak_Snapshot | AQ2: 002_Peak_Snapshot | AR2: 002_Peak_Snapshot | AS2: 002_Peak_Snapshot | AT2: 002_Peak_Snapshot | AU2: 002_Peak_Snapshot | AV2: 002_Peak_Snapshot | AW2: 002_Peak_Snapshot | AX2: 002_Peak_Snapshot | AY2: 002_Peak_Snapshot | AZ2: 002_Peak_Snapshot | BA2: 002_Peak_Snapshot | BB2: 002_Peak_Snapshot | BC2: 002_Peak_Snapshot | BD2: 003_MeanDaily_Head_Day001 | BE2: 003_MeanDaily_Head_Day002 | BF2: 003_MeanDaily_Head_Day003 | BG2: 003_MeanDaily_Head_Day004 | BH2: 003_MeanDaily_Head_Day005 | BI2: 003_MeanDaily_Head_Day006 | BJ2: 003_MeanDaily_Head_Day007 | BK2: 003_MeanDaily_Head_Day008 | BL2: 003_MeanDaily_Head_Day009 | BM2: 003_MeanDaily_Head_Day010 | BN2: 003_MeanDaily_Head_Day011 | BO2: 003_MeanDaily_Head_Day012 | BP2: 003_MeanDaily_Head_Day013 | BQ2: 003_MeanDaily_Head_Day014 | BR2: 003_MeanDaily_Head_Day015 | BS2: 003_MeanDaily_Head_Day016 | BT2: 003_MeanDaily_Head_Day017 | BU2: 003_MeanDaily_Head_Day018 | BV2: 003_MeanDaily_Head_Day019 | BW2: 003_MeanDaily_Head_Day020 | BX2: 003_MeanDaily_Head_Day021 | BY2: 003_MeanDaily_Head_Day022 | BZ2: 003_MeanDaily_Head_Day023 | CA2: 003_MeanDaily_Head_Day024 | CB2: 003_MeanDaily_Head_Day025 | CC2: 003_MeanDaily_Head_Day026 | CD2: 003_MeanDaily_Head_Day027 | CE2: 003_MeanDaily_Head_Day028 | CF2: 003_MeanDaily_Head_Day029 | CG2: 003_MeanDaily_Head_Day030 | CH2: 003_MeanDaily_Head_Day031 | CI2: 003_MeanDaily_Head_Day032 | CJ2: 003_MeanDaily_Head_Day033 | CK2: 003_MeanDaily_Head_Day034 | CL2: 003_MeanDaily_Head_Day035 | CM2: 003_MeanDaily_Head_Day036 | CN2: 003_MeanDaily_Head_Day037 | CO2: 003_MeanDaily_Head_Day038 | CP2: 003_MeanDaily_Head_Day039 | CQ2: 003_MeanDaily_Head_Day040 | CR2: 003_MeanDaily_Head_Day041 | CS2: 003_MeanDaily_Head_Day042 | CT2: 003_MeanDaily_Head_Day043 | CU2: 003_MeanDaily_Head_Day044 | CV2: 003_MeanDaily_Head_Day045 | CW2: 003_MeanDaily_Head_Day046 | CX2: 003_MeanDaily_Head_Day047 | CY2: 003_MeanDaily_Head_Day048 | CZ2: 003_MeanDaily_Head_Day049 | DA2: 003_MeanDaily_Head_Day050 | DB2: 003_MeanDaily_Head_Day051 | DC2: 003_MeanDaily_Head_Day052 | DD2: 003_MeanDaily_Head_Day053 | DE2: 003_MeanDaily_Head_Day054 | DF2: 003_MeanDaily_Head_Day055 | DG2: 003_MeanDaily_Head_Day056 | DH2: 003_MeanDaily_Head_Day057 | DI2: 003_MeanDaily_Head_Day058 | DJ2: 003_MeanDaily_Head_Day059 | DK2: 003_MeanDaily_Head_Day060 | DL2: 003_MeanDaily_Head_Day061 | DM2: 003_MeanDaily_Head_Day062 | DN2: 003_MeanDaily_Head_Day063 | DO2: 003_MeanDaily_Head_Day064 | DP2: 003_MeanDaily_Head_Day065 | DQ2: 003_MeanDaily_Head_Day066 | DR2: 003_MeanDaily_Head_Day067 | DS2: 003_MeanDaily_Head_Day068 | DT2: 003_MeanDaily_Head_Day069 | DU2: 003_MeanDaily_Head_Day070 | DV2: 003_MeanDaily_Head_Day071 | DW2: 003_MeanDaily_Head_Day072 | DX2: 003_MeanDaily_Head_Day073 | DY2: 003_MeanDaily_Head_Day074 | DZ2: 003_MeanDaily_Head_Day075 | EA2: 003_MeanDaily_Head_Day076 | EB2: 003_MeanDaily_Head_Day077 | EC2: 003_MeanDaily_Head_Day078 | ED2: 003_MeanDaily_Head_Day079 | EE2: 003_MeanDaily_Head_Day080 | EF2: 003_MeanDaily_Head_Day081 | EG2: 003_MeanDaily_Head_Day082 | EH2: 003_MeanDaily_Head_Day083 | EI2: 003_MeanDaily_Head_Day084 | EJ2: 003_MeanDaily_Head_Day085 | EK2: 003_MeanDaily_Head_Day086 | EL2: 003_MeanDaily_Head_Day087 | EM2: 003_MeanDaily_Head_Day088 | EN2: 003_MeanDaily_Head_Day089 | EO2: 003_MeanDaily_Head_Day090 | EP2: 003_MeanDaily_Head_Day091 | EQ2: 003_MeanDaily_Head_Day092 | ER2: 003_MeanDaily_Head_Day093 | ES2: 003_MeanDaily_Head_Day094 | ET2: 003_MeanDaily_Head_Day095 | EU2: 003_MeanDaily_Head_Day096 | EV2: 003_MeanDaily_Head_Day097 | EW2: 003_MeanDaily_Head_Day098 | EX2: 003_MeanDaily_Head_Day099 | EY2: 003_MeanDaily_Head_Day100 | EZ2: 003_MeanDaily_Head_Day101 | FA2: 003_MeanDaily_Head_Day102 | FB2: 003_MeanDaily_Head_Day103 | FC2: 003_MeanDaily_Head_Day104 | FD2: 003_MeanDaily_Head_Day105 | FE2: 003_MeanDaily_Head_Day106 | FF2: 003_MeanDaily_Head_Day107 | FG2: 003_MeanDaily_Head_Day108 | FH2: 003_MeanDaily_Head_Day109 | FI2: 003_MeanDaily_Head_Day110 | FJ2: 003_MeanDaily_Head_Day111 | FK2: 003_MeanDaily_Head_Day112 | FL2: 003_MeanDaily_Head_Day113 | FM2: 003_MeanDaily_Head_Day114 | FN2: 003_MeanDaily_Head_Day115 | FO2: 003_MeanDaily_Head_Day116 | FP2: 003_MeanDaily_Head_Day117 | FQ2: 003_MeanDaily_Head_Day118 | FR2: 003_MeanDaily_Head_Day119 | FS2: 003_MeanDaily_Head_Day120 | FT2: 003_MeanDaily_Head_Day121 | FU2: 003_MeanDaily_Head_Day122 | FV2: 003_MeanDaily_Head_Day123 | FW2: 003_MeanDaily_Head_Day124 | FX2: 003_MeanDaily_Head_Day125 | FY2: 003_MeanDaily_Head_Day126 | FZ2: 003_MeanDaily_Head_Day127 | GA2: 003_MeanDaily_Head_Day128 | GB2: 003_MeanDaily_Head_Day129 | GC2: 003_MeanDaily_Head_Day130 | GD2: 003_MeanDaily_Head_Day131 | GE2: 003_MeanDaily_Head_Day132 | GF2: 003_MeanDaily_Head_Day133 | GG2: 003_MeanDaily_Head_Day134 | GH2: 003_MeanDaily_Head_Day135 | GI2: 003_MeanDaily_Head_Day136 | GJ2: 003_MeanDaily_Head_Day137 | GK2: 003_MeanDaily_Head_Day138 | GL2: 003_MeanDaily_Head_Day139 | GM2: 003_MeanDaily_Head_Day140 | GN2: 003_MeanDaily_Head_Day141 | GO2: 003_MeanDaily_Head_Day142 | GP2: 003_MeanDaily_Head_Day143 | GQ2: 003_MeanDaily_Head_Day144 | GR2: 003_MeanDaily_Head_Day145 | GS2: 003_MeanDaily_Head_Day146 | GT2: 003_MeanDaily_Head_Day147 | GU2: 003_MeanDaily_Head_Day148 | GV2: 003_MeanDaily_Head_Day149 | GW2: 003_MeanDaily_Head_Day150 | GX2: 003_MeanDaily_Head_Day151 | GY2: 003_MeanDaily_Head_Day152 | GZ2: 003_MeanDaily_Head_Day153 | HA2: 003_MeanDaily_Head_Day154 | HB2: 003_MeanDaily_Head_Day155 | HC2: 003_MeanDaily_Head_Day156 | HD2: 003_MeanDaily_Head_Day157 | HE2: 003_MeanDaily_Head_Day158 | HF2: 003_MeanDaily_Head_Day159 | HG2: 003_MeanDaily_Head_Day160 | HH2: 003_MeanDaily_Head_Day161 | HI2: 003_MeanDaily_Head_Day162 | HJ2: 003_MeanDaily_Head_Day163 | HK2: 003_MeanDaily_Head_Day164 | HL2: 003_MeanDaily_Head_Day165 | HM2: 003_MeanDaily_Head_Day166 | HN2: 003_MeanDaily_Head_Day167 | HO2: 003_MeanDaily_Head_Day168 | HP2: 004_MeanDaily_PondingDepth001 | HQ2: 004_MeanDaily_PondingDepth002 | HR2: 004_MeanDaily_PondingDepth003 | HS2: 004_MeanDaily_PondingDepth004 | HT2: 004_MeanDaily_PondingDepth005 | HU2: 004_MeanDaily_PondingDepth006 | HV2: 004_MeanDaily_PondingDepth007 | HW2: 004_MeanDaily_PondingDepth008 | HX2: 004_MeanDaily_PondingDepth009 | HY2: 004_MeanDaily_PondingDepth010 | HZ2: 004_MeanDaily_PondingDepth011 | IA2: 004_MeanDaily_PondingDepth012 | IB2: 004_MeanDaily_PondingDepth013 | IC2: 004_MeanDaily_PondingDepth014 | ID2: 004_MeanDaily_PondingDepth015 | IE2: 004_MeanDaily_PondingDepth016 | IF2: 004_MeanDaily_PondingDepth017 | IG2: 004_MeanDaily_PondingDepth018 | IH2: 004_MeanDaily_PondingDepth019 | II2: 004_MeanDaily_PondingDepth020 | IJ2: 004_MeanDaily_PondingDepth021 | IK2: 004_MeanDaily_PondingDepth022 | IL2: 004_MeanDaily_PondingDepth023 | IM2: 004_MeanDaily_PondingDepth024 | IN2: 004_MeanDaily_PondingDepth025 | IO2: 004_MeanDaily_PondingDepth026 | IP2: 004_MeanDaily_PondingDepth027 | IQ2: 004_MeanDaily_PondingDepth028 | IR2: 004_MeanDaily_PondingDepth029 | IS2: 004_MeanDaily_PondingDepth030 | IT2: 004_MeanDaily_PondingDepth031 | IU2: 004_MeanDaily_PondingDepth032 | IV2: 004_MeanDaily_PondingDepth033 | IW2: 004_MeanDaily_PondingDepth034 | IX2: 004_MeanDaily_PondingDepth035 | IY2: 004_MeanDaily_PondingDepth036 | IZ2: 004_MeanDaily_PondingDepth037 | JA2: 004_MeanDaily_PondingDepth038 | JB2: 004_MeanDaily_PondingDepth039 | JC2: 004_MeanDaily_PondingDepth040 | JD2: 004_MeanDaily_PondingDepth041 | JE2: 004_MeanDaily_PondingDepth042 | JF2: 004_MeanDaily_PondingDepth043 | JG2: 004_MeanDaily_PondingDepth044 | JH2: 004_MeanDaily_PondingDepth045 | JI2: 004_MeanDaily_PondingDepth046 | JJ2: 004_MeanDaily_PondingDepth047 | JK2: 004_MeanDaily_PondingDepth048 | JL2: 004_MeanDaily_PondingDepth049 | JM2: 004_MeanDaily_PondingDepth050 | JN2: 004_MeanDaily_PondingDepth051 | JO2: 004_MeanDaily_PondingDepth052 | JP2: 004_MeanDaily_PondingDepth053 | JQ2: 004_MeanDaily_PondingDepth054 | JR2: 004_MeanDaily_PondingDepth055 | JS2: 004_MeanDaily_PondingDepth056 | JT2: 004_MeanDaily_PondingDepth057 | JU2: 004_MeanDaily_PondingDepth058 | JV2: 004_MeanDaily_PondingDepth059 | JW2: 004_MeanDaily_PondingDepth060 | JX2: 004_MeanDaily_PondingDepth061 | JY2: 004_MeanDaily_PondingDepth062 | JZ2: 004_MeanDaily_PondingDepth063 | KA2: 004_MeanDaily_PondingDepth064 | KB2: 004_MeanDaily_PondingDepth065 | KC2: 004_MeanDaily_PondingDepth066 | KD2: 004_MeanDaily_PondingDepth067 | KE2: 004_MeanDaily_PondingDepth068 | KF2: 004_MeanDaily_PondingDepth069 | KG2: 004_MeanDaily_PondingDepth070 | KH2: 004_MeanDaily_PondingDepth071 | KI2: 004_MeanDaily_PondingDepth072 | KJ2: 004_MeanDaily_PondingDepth073 | KK2: 004_MeanDaily_PondingDepth074 | KL2: 004_MeanDaily_PondingDepth075 | KM2: 004_MeanDaily_PondingDepth076 | KN2: 004_MeanDaily_PondingDepth077 | KO2: 004_MeanDaily_PondingDepth078 | KP2: 004_MeanDaily_PondingDepth079 | KQ2: 004_MeanDaily_PondingDepth080 | KR2: 004_MeanDaily_PondingDepth081 | KS2: 004_MeanDaily_PondingDepth082 | KT2: 004_MeanDaily_PondingDepth083 | KU2: 004_MeanDaily_PondingDepth084 | KV2: 004_MeanDaily_PondingDepth085 | KW2: 004_MeanDaily_PondingDepth086 | KX2: 004_MeanDaily_PondingDepth087 | KY2: 004_MeanDaily_PondingDepth088 | KZ2: 004_MeanDaily_PondingDepth089 | LA2: 004_MeanDaily_PondingDepth090 | LB2: 004_MeanDaily_PondingDepth091 | LC2: 004_MeanDaily_PondingDepth092 | LD2: 004_MeanDaily_PondingDepth093 | LE2: 004_MeanDaily_PondingDepth094 | LF2: 004_MeanDaily_PondingDepth095 | LG2: 004_MeanDaily_PondingDepth096 | LH2: 004_MeanDaily_PondingDepth097 | LI2: 004_MeanDaily_PondingDepth098 | LJ2: 004_MeanDaily_PondingDepth099 | LK2: 004_MeanDaily_PondingDepth100 | LL2: 004_MeanDaily_PondingDepth101 | LM2: 004_MeanDaily_PondingDepth102 | LN2: 004_MeanDaily_PondingDepth103 | LO2: 004_MeanDaily_PondingDepth104 | LP2: 004_MeanDaily_PondingDepth105 | LQ2: 004_MeanDaily_PondingDepth106 | LR2: 004_MeanDaily_PondingDepth107 | LS2: 004_MeanDaily_PondingDepth108 | LT2: 004_MeanDaily_PondingDepth109 | LU2: 004_MeanDaily_PondingDepth110 | LV2: 004_MeanDaily_PondingDepth111 | LW2: 004_MeanDaily_PondingDepth112 | LX2: 004_MeanDaily_PondingDepth113 | LY2: 004_MeanDaily_PondingDepth114 | LZ2: 004_MeanDaily_PondingDepth115 | MA2: 004_MeanDaily_PondingDepth116 | MB2: 004_MeanDaily_PondingDepth117 | MC2: 004_MeanDaily_PondingDepth118 | MD2: 004_MeanDaily_PondingDepth119 | ME2: 004_MeanDaily_PondingDepth120 | MF2: 004_MeanDaily_PondingDepth121 | MG2: 004_MeanDaily_PondingDepth122 | MH2: 004_MeanDaily_PondingDepth123 | MI2: 004_MeanDaily_PondingDepth124 | MJ2: 004_MeanDaily_PondingDepth125 | MK2: 004_MeanDaily_PondingDepth126 | ML2: 004_MeanDaily_PondingDepth127 | MM2: 004_MeanDaily_PondingDepth128 | MN2: 004_MeanDaily_PondingDepth129 | MO2: 004_MeanDaily_PondingDepth130 | MP2: 004_MeanDaily_PondingDepth131 | MQ2: 004_MeanDaily_PondingDepth132 | MR2: 004_MeanDaily_PondingDepth133 | MS2: 004_MeanDaily_PondingDepth134 | MT2: 004_MeanDaily_PondingDepth135 | MU2: 004_MeanDaily_PondingDepth136 | MV2: 004_MeanDaily_PondingDepth137 | MW2: 004_MeanDaily_PondingDepth138 | MX2: 004_MeanDaily_PondingDepth139 | MY2: 004_MeanDaily_PondingDepth140 | MZ2: 004_MeanDaily_PondingDepth141 | NA2: 004_MeanDaily_PondingDepth142 | NB2: 004_MeanDaily_PondingDepth143 | NC2: 004_MeanDaily_PondingDepth144 | ND2: 004_MeanDaily_PondingDepth145 | NE2: 004_MeanDaily_PondingDepth146 | NF2: 004_MeanDaily_PondingDepth147 | NG2: 004_MeanDaily_PondingDepth148 | NH2: 004_MeanDaily_PondingDepth149 | NI2: 004_MeanDaily_PondingDepth150 | NJ2: 004_MeanDaily_PondingDepth151 | NK2: 004_MeanDaily_PondingDepth152 | NL2: 004_MeanDaily_PondingDepth153 | NM2: 004_MeanDaily_PondingDepth154 | NN2: 004_MeanDaily_PondingDepth155 | NO2: 004_MeanDaily_PondingDepth156 | NP2: 004_MeanDaily_PondingDepth157 | NQ2: 004_MeanDaily_PondingDepth158 | NR2: 004_MeanDaily_PondingDepth159 | NS2: 004_MeanDaily_PondingDepth160 | NT2: 004_MeanDaily_PondingDepth161 | NU2: 004_MeanDaily_PondingDepth162 | NV2: 004_MeanDaily_PondingDepth163 | NW2: 004_MeanDaily_PondingDepth164 | NX2: 004_MeanDaily_PondingDepth165 | NY2: 004_MeanDaily_PondingDepth166 | NZ2: 004_MeanDaily_PondingDepth167 | OA2: 004_MeanDaily_PondingDepth168 | OB2: 001_Max_Head | OC2: 001_Max_Head | OD2: 001_Max_Head | OE2: 001_Max_Head | OF2: 001_Max_Head | OG2: 001_Max_Head | OH2: 001_Max_Head | OI2: 001_Max_Head | OJ2: 001_Max_Head | OK2: 001_Max_Head | OL2: 001_Max_Head | OM2: 001_Max_Head | ON2: 002_Fraction_Ponded | OO2: 002_Fraction_Ponded | OP2: 002_Fraction_Ponded | OQ2: 002_Fraction_Ponded | OR2: 002_Fraction_Ponded | OS2: 002_Fraction_Ponded | OT2: 002_Fraction_Ponded | OU2: 002_Fraction_Ponded | OV2: 002_Fraction_Ponded | OW2: 002_Fraction_Ponded | OX2: 002_Fraction_Ponded | OY2: 002_Fraction_Ponded | OZ2: 003_Time_GE_90pct_Sat | PA2: 003_Time_GE_90pct_Sat | PB2: 003_Time_GE_90pct_Sat | PC2: 003_Time_GE_90pct_Sat | PD2: 003_Time_GE_90pct_Sat | PE2: 003_Time_GE_90pct_Sat | PF2: 003_Time_GE_90pct_Sat | PG2: 003_Time_GE_90pct_Sat | PH2: 003_Time_GE_90pct_Sat | PI2: 003_Time_GE_90pct_Sat | PJ2: 003_Time_GE_90pct_Sat | PK2: 003_Time_GE_90pct_Sat | PL2: 001_Final_Value | PM2: 001_Final_Value | PN2: 001_Final_Value | PO2: 001_Final_Value | PP2: 001_Final_Value | PQ2: 001_Final_Value | PR2: 001_Final_Value | PS2: 001_Region_2_Value | PT2: 001_Region_2_Value | PU2: 001_mean | PV2: 001_median | PW2: 001_std | PX2: WB | PY2: WB | PZ2: WB | QA2: WB | QB2: WB | QC2: RealMax | QD2: RealMax | QE2: RealMax | QF2: Coded K | QG2: Reduction Ratio | QH2: Saturated | QI2: Saturated | QJ2: %Time 90pct Sat | QK2: %Time 90pct Sat
A3: Lookup_name | B3: Anisotropy | C3: BMP | D3: Geometry | E3: Inital GW Depth | F3: Loading | G3: Soil | H3: Station | I3: runmod | J3: runtype | K3: 1 | L3: 1 | M3: 1 | N3: 1 | O3: 1 | P3: 2 | Q3: 3 | R3: 4 | S3: 5 | T3: 2 | U3: 3 | V3: 4 | W3: 5 | X3: 2 | Y3: 3 | Z3: 4 | AA3: 5 | AB3: 5 | AC3: 6 | AD3: 7 | AE3: 8 | AF3: 9 | AG3: 10 | AH3: 11 | AI3: 12 | AJ3: 13 | AK3: 14 | AL3: 15 | AM3: 16 | AN3: 17 | AO3: 18 | AP3: 5 | AQ3: 6 | AR3: 7 | AS3: 8 | AT3: 9 | AU3: 10 | AV3: 11 | AW3: 12 | AX3: 13 | AY3: 14 | AZ3: 15 | BA3: 16 | BB3: 17 | BC3: 18 | BD3: Critical Node | BE3: Critical Node | BF3: Critical Node | BG3: Critical Node | BH3: Critical Node | BI3: Critical Node | BJ3: Critical Node | BK3: Critical Node | BL3: Critical Node | BM3: Critical Node | BN3: Critical Node | BO3: Critical Node | BP3: Critical Node | BQ3: Critical Node | BR3: Critical Node | BS3: Critical Node | BT3: Critical Node | BU3: Critical Node | BV3: Critical Node | BW3: Critical Node | BX3: Critical Node | BY3: Critical Node | BZ3: Critical Node | CA3: Critical Node | CB3: Critical Node | CC3: Critical Node | CD3: Critical Node | CE3: Critical Node | CF3: Critical Node | CG3: Critical Node | CH3: Critical Node | CI3: Critical Node | CJ3: Critical Node | CK3: Critical Node | CL3: Critical Node | CM3: Critical Node | CN3: Critical Node | CO3: Critical Node | CP3: Critical Node | CQ3: Critical Node | CR3: Critical Node | CS3: Critical Node | CT3: Critical Node | CU3: Critical Node | CV3: Critical Node | CW3: Critical Node | CX3: Critical Node | CY3: Critical Node | CZ3: Critical Node | DA3: Critical Node | DB3: Critical Node | DC3: Critical Node | DD3: Critical Node | DE3: Critical Node | DF3: Critical Node | DG3: Critical Node | DH3: Critical Node | DI3: Critical Node | DJ3: Critical Node | DK3: Critical Node | DL3: Critical Node | DM3: Critical Node | DN3: Critical Node | DO3: Critical Node | DP3: Critical Node | DQ3: Critical Node | DR3: Critical Node | DS3: Critical Node | DT3: Critical Node | DU3: Critical Node | DV3: Critical Node | DW3: Critical Node | DX3: Critical Node | DY3: Critical Node | DZ3: Critical Node | EA3: Critical Node | EB3: Critical Node | EC3: Critical Node | ED3: Critical Node | EE3: Critical Node | EF3: Critical Node | EG3: Critical Node | EH3: Critical Node | EI3: Critical Node | EJ3: Critical Node | EK3: Critical Node | EL3: Critical Node | EM3: Critical Node | EN3: Critical Node | EO3: Critical Node | EP3: Critical Node | EQ3: Critical Node | ER3: Critical Node | ES3: Critical Node | ET3: Critical Node | EU3: Critical Node | EV3: Critical Node | EW3: Critical Node | EX3: Critical Node | EY3: Critical Node | EZ3: Critical Node | FA3: Critical Node | FB3: Critical Node | FC3: Critical Node | FD3: Critical Node | FE3: Critical Node | FF3: Critical Node | FG3: Critical Node | FH3: Critical Node | FI3: Critical Node | FJ3: Critical Node | FK3: Critical Node | FL3: Critical Node | FM3: Critical Node | FN3: Critical Node | FO3: Critical Node | FP3: Critical Node | FQ3: Critical Node | FR3: Critical Node | FS3: Critical Node | FT3: Critical Node | FU3: Critical Node | FV3: Critical Node | FW3: Critical Node | FX3: Critical Node | FY3: Critical Node | FZ3: Critical Node | GA3: Critical Node | GB3: Critical Node | GC3: Critical Node | GD3: Critical Node | GE3: Critical Node | GF3: Critical Node | GG3: Critical Node | GH3: Critical Node | GI3: Critical Node | GJ3: Critical Node | GK3: Critical Node | GL3: Critical Node | GM3: Critical Node | GN3: Critical Node | GO3: Critical Node | GP3: Critical Node | GQ3: Critical Node | GR3: Critical Node | GS3: Critical Node | GT3: Critical Node | GU3: Critical Node | GV3: Critical Node | GW3: Critical Node | GX3: Critical Node | GY3: Critical Node | GZ3: Critical Node | HA3: Critical Node | HB3: Critical Node | HC3: Critical Node | HD3: Critical Node | HE3: Critical Node | HF3: Critical Node | HG3: Critical Node | HH3: Critical Node | HI3: Critical Node | HJ3: Critical Node | HK3: Critical Node | HL3: Critical Node | HM3: Critical Node | HN3: Critical Node | HO3: Critical Node | HP3: 1 | HQ3: 1 | HR3: 1 | HS3: 1 | HT3: 1 | HU3: 1 | HV3: 1 | HW3: 1 | HX3: 1 | HY3: 1 | HZ3: 1 | IA3: 1 | IB3: 1 | IC3: 1 | ID3: 1 | IE3: 1 | IF3: 1 | IG3: 1 | IH3: 1 | II3: 1 | IJ3: 1 | IK3: 1 | IL3: 1 | IM3: 1 | IN3: 1 | IO3: 1 | IP3: 1 | IQ3: 1 | IR3: 1 | IS3: 1 | IT3: 1 | IU3: 1 | IV3: 1 | IW3: 1 | IX3: 1 | IY3: 1 | IZ3: 1 | JA3: 1 | JB3: 1 | JC3: 1 | JD3: 1 | JE3: 1 | JF3: 1 | JG3: 1 | JH3: 1 | JI3: 1 | JJ3: 1 | JK3: 1 | JL3: 1 | JM3: 1 | JN3: 1 | JO3: 1 | JP3: 1 | JQ3: 1 | JR3: 1 | JS3: 1 | JT3: 1 | JU3: 1 | JV3: 1 | JW3: 1 | JX3: 1 | JY3: 1 | JZ3: 1 | KA3: 1 | KB3: 1 | KC3: 1 | KD3: 1 | KE3: 1 | KF3: 1 | KG3: 1 | KH3: 1 | KI3: 1 | KJ3: 1 | KK3: 1 | KL3: 1 | KM3: 1 | KN3: 1 | KO3: 1 | KP3: 1 | KQ3: 1 | KR3: 1 | KS3: 1 | KT3: 1 | KU3: 1 | KV3: 1 | KW3: 1 | KX3: 1 | KY3: 1 | KZ3: 1 | LA3: 1 | LB3: 1 | LC3: 1 | LD3: 1 | LE3: 1 | LF3: 1 | LG3: 1 | LH3: 1 | LI3: 1 | LJ3: 1 | LK3: 1 | LL3: 1 | LM3: 1 | LN3: 1 | LO3: 1 | LP3: 1 | LQ3: 1 | LR3: 1 | LS3: 1 | LT3: 1 | LU3: 1 | LV3: 1 | LW3: 1 | LX3: 1 | LY3: 1 | LZ3: 1 | MA3: 1 | MB3: 1 | MC3: 1 | MD3: 1 | ME3: 1 | MF3: 1 | MG3: 1 | MH3: 1 | MI3: 1 | MJ3: 1 | MK3: 1 | ML3: 1 | MM3: 1 | MN3: 1 | MO3: 1 | MP3: 1 | MQ3: 1 | MR3: 1 | MS3: 1 | MT3: 1 | MU3: 1 | MV3: 1 | MW3: 1 | MX3: 1 | MY3: 1 | MZ3: 1 | NA3: 1 | NB3: 1 | NC3: 1 | ND3: 1 | NE3: 1 | NF3: 1 | NG3: 1 | NH3: 1 | NI3: 1 | NJ3: 1 | NK3: 1 | NL3: 1 | NM3: 1 | NN3: 1 | NO3: 1 | NP3: 1 | NQ3: 1 | NR3: 1 | NS3: 1 | NT3: 1 | NU3: 1 | NV3: 1 | NW3: 1 | NX3: 1 | NY3: 1 | NZ3: 1 | OA3: 1 | OB3: 19 | OC3: 20 | OD3: 21 | OE3: 22 | OF3: 23 | OG3: 24 | OH3: 25 | OI3: 26 | OJ3: 27 | OK3: 28 | OL3: 29 | OM3: 30 | ON3: 19 | OO3: 20 | OP3: 21 | OQ3: 22 | OR3: 23 | OS3: 24 | OT3: 25 | OU3: 26 | OV3: 27 | OW3: 28 | OX3: 29 | OY3: 30 | OZ3: 19 | PA3: 20 | PB3: 21 | PC3: 22 | PD3: 23 | PE3: 24 | PF3: 25 | PG3: 26 | PH3: 27 | PI3: 28 | PJ3: 29 | PK3: 30 | PL3: CumQ3_[V] | PM3: CumQ7_[V] | PN3: CumQA_[V] | PO3: CumQR_[V] | PP3: CumQS_[V] | PQ3: CumFlux(1) | PR3: CumFlux(2) | PS3: 0 | PT3: 4031 | PU3: inches per hour | PV3: inches per hour | PW3: inches per hour | PX3: Loading | PY3: Runoff | PZ3: Infil | QA3: ET | QB3: Bypass/UD | QC3: Col1 | QD3: Col2 | QE3: Col3 | QG3: 1 | QH3: 2 | QI3: 4 | QJ3: 2 | QK3: 4
A4: Lookup_name | B4: Anisotropy | C4: BMP | D4: Geometry | E4: Inital GW Depth | F4: Loading | G4: Soil | H4: Station | I4: runmod | J4: runtype | K4: 02_Ponding_001_Fraction Duration_1 | L4: 02_Ponding_002_Maximum Duration_1 | M4: 02_Ponding_003_Maximim Depth_1 | N4: 02_Ponding_004_Fraction Duration Bypass_1 | O4: 02_Ponding_005_Mean Daily_1 | P4: 03_Roadway Saturation_001_Max_Saturation_2 | Q4: 03_Roadway Saturation_001_Max_Saturation_3 | R4: 03_Roadway Saturation_001_Max_Saturation_4 | S4: 03_Roadway Saturation_001_Max_Saturation_5 | T4: 03_Roadway Saturation_002_Time_GE_50pct_Sat_2 | U4: 03_Roadway Saturation_002_Time_GE_50pct_Sat_3 | V4: 03_Roadway Saturation_002_Time_GE_50pct_Sat_4 | W4: 03_Roadway Saturation_002_Time_GE_50pct_Sat_5 | X4: 03_Roadway Saturation_003_Time_GE_90pct_Sat_2 | Y4: 03_Roadway Saturation_003_Time_GE_90pct_Sat_3 | Z4: 03_Roadway Saturation_003_Time_GE_90pct_Sat_4 | AA4: 03_Roadway Saturation_003_Time_GE_90pct_Sat_5 | AB4: 04_GW Mounding_001_Max_Head_5 | AC4: 04_GW Mounding_001_Max_Head_6 | AD4: 04_GW Mounding_001_Max_Head_7 | AE4: 04_GW Mounding_001_Max_Head_8 | AF4: 04_GW Mounding_001_Max_Head_9 | AG4: 04_GW Mounding_001_Max_Head_10 | AH4: 04_GW Mounding_001_Max_Head_11 | AI4: 04_GW Mounding_001_Max_Head_12 | AJ4: 04_GW Mounding_001_Max_Head_13 | AK4: 04_GW Mounding_001_Max_Head_14 | AL4: 04_GW Mounding_001_Max_Head_15 | AM4: 04_GW Mounding_001_Max_Head_16 | AN4: 04_GW Mounding_001_Max_Head_17 | AO4: 04_GW Mounding_001_Max_Head_18 | AP4: 04_GW Mounding_002_Peak_Snapshot_5 | AQ4: 04_GW Mounding_002_Peak_Snapshot_6 | AR4: 04_GW Mounding_002_Peak_Snapshot_7 | AS4: 04_GW Mounding_002_Peak_Snapshot_8 | AT4: 04_GW Mounding_002_Peak_Snapshot_9 | AU4: 04_GW Mounding_002_Peak_Snapshot_10 | AV4: 04_GW Mounding_002_Peak_Snapshot_11 | AW4: 04_GW Mounding_002_Peak_Snapshot_12 | AX4: 04_GW Mounding_002_Peak_Snapshot_13 | AY4: 04_GW Mounding_002_Peak_Snapshot_14 | AZ4: 04_GW Mounding_002_Peak_Snapshot_15 | BA4: 04_GW Mounding_002_Peak_Snapshot_16 | BB4: 04_GW Mounding_002_Peak_Snapshot_17 | BC4: 04_GW Mounding_002_Peak_Snapshot_18 | BD4: 04_GW Mounding_003_MeanDaily_Head_Day001_Critical Node | BE4: 04_GW Mounding_003_MeanDaily_Head_Day002_Critical Node | BF4: 04_GW Mounding_003_MeanDaily_Head_Day003_Critical Node | BG4: 04_GW Mounding_003_MeanDaily_Head_Day004_Critical Node | BH4: 04_GW Mounding_003_MeanDaily_Head_Day005_Critical Node | BI4: 04_GW Mounding_003_MeanDaily_Head_Day006_Critical Node | BJ4: 04_GW Mounding_003_MeanDaily_Head_Day007_Critical Node | BK4: 04_GW Mounding_003_MeanDaily_Head_Day008_Critical Node | BL4: 04_GW Mounding_003_MeanDaily_Head_Day009_Critical Node | BM4: 04_GW Mounding_003_MeanDaily_Head_Day010_Critical Node | BN4: 04_GW Mounding_003_MeanDaily_Head_Day011_Critical Node | BO4: 04_GW Mounding_003_MeanDaily_Head_Day012_Critical Node | BP4: 04_GW Mounding_003_MeanDaily_Head_Day013_Critical Node | BQ4: 04_GW Mounding_003_MeanDaily_Head_Day014_Critical Node | BR4: 04_GW Mounding_003_MeanDaily_Head_Day015_Critical Node | BS4: 04_GW Mounding_003_MeanDaily_Head_Day016_Critical Node | BT4: 04_GW Mounding_003_MeanDaily_Head_Day017_Critical Node | BU4: 04_GW Mounding_003_MeanDaily_Head_Day018_Critical Node | BV4: 04_GW Mounding_003_MeanDaily_Head_Day019_Critical Node | BW4: 04_GW Mounding_003_MeanDaily_Head_Day020_Critical Node | BX4: 04_GW Mounding_003_MeanDaily_Head_Day021_Critical Node | BY4: 04_GW Mounding_003_MeanDaily_Head_Day022_Critical Node | BZ4: 04_GW Mounding_003_MeanDaily_Head_Day023_Critical Node | CA4: 04_GW Mounding_003_MeanDaily_Head_Day024_Critical Node | CB4: 04_GW Mounding_003_MeanDaily_Head_Day025_Critical Node | CC4: 04_GW Mounding_003_MeanDaily_Head_Day026_Critical Node | CD4: 04_GW Mounding_003_MeanDaily_Head_Day027_Critical Node | CE4: 04_GW Mounding_003_MeanDaily_Head_Day028_Critical Node | CF4: 04_GW Mounding_003_MeanDaily_Head_Day029_Critical Node | CG4: 04_GW Mounding_003_MeanDaily_Head_Day030_Critical Node | CH4: 04_GW Mounding_003_MeanDaily_Head_Day031_Critical Node | CI4: 04_GW Mounding_003_MeanDaily_Head_Day032_Critical Node | CJ4: 04_GW Mounding_003_MeanDaily_Head_Day033_Critical Node | CK4: 04_GW Mounding_003_MeanDaily_Head_Day034_Critical Node | CL4: 04_GW Mounding_003_MeanDaily_Head_Day035_Critical Node | CM4: 04_GW Mounding_003_MeanDaily_Head_Day036_Critical Node | CN4: 04_GW Mounding_003_MeanDaily_Head_Day037_Critical Node | CO4: 04_GW Mounding_003_MeanDaily_Head_Day038_Critical Node | CP4: 04_GW Mounding_003_MeanDaily_Head_Day039_Critical Node | CQ4: 04_GW Mounding_003_MeanDaily_Head_Day040_Critical Node | CR4: 04_GW Mounding_003_MeanDaily_Head_Day041_Critical Node | CS4: 04_GW Mounding_003_MeanDaily_Head_Day042_Critical Node | CT4: 04_GW Mounding_003_MeanDaily_Head_Day043_Critical Node | CU4: 04_GW Mounding_003_MeanDaily_Head_Day044_Critical Node | CV4: 04_GW Mounding_003_MeanDaily_Head_Day045_Critical Node | CW4: 04_GW Mounding_003_MeanDaily_Head_Day046_Critical Node | CX4: 04_GW Mounding_003_MeanDaily_Head_Day047_Critical Node | CY4: 04_GW Mounding_003_MeanDaily_Head_Day048_Critical Node | CZ4: 04_GW Mounding_003_MeanDaily_Head_Day049_Critical Node | DA4: 04_GW Mounding_003_MeanDaily_Head_Day050_Critical Node | DB4: 04_GW Mounding_003_MeanDaily_Head_Day051_Critical Node | DC4: 04_GW Mounding_003_MeanDaily_Head_Day052_Critical Node | DD4: 04_GW Mounding_003_MeanDaily_Head_Day053_Critical Node | DE4: 04_GW Mounding_003_MeanDaily_Head_Day054_Critical Node | DF4: 04_GW Mounding_003_MeanDaily_Head_Day055_Critical Node | DG4: 04_GW Mounding_003_MeanDaily_Head_Day056_Critical Node | DH4: 04_GW Mounding_003_MeanDaily_Head_Day057_Critical Node | DI4: 04_GW Mounding_003_MeanDaily_Head_Day058_Critical Node | DJ4: 04_GW Mounding_003_MeanDaily_Head_Day059_Critical Node | DK4: 04_GW Mounding_003_MeanDaily_Head_Day060_Critical Node | DL4: 04_GW Mounding_003_MeanDaily_Head_Day061_Critical Node | DM4: 04_GW Mounding_003_MeanDaily_Head_Day062_Critical Node | DN4: 04_GW Mounding_003_MeanDaily_Head_Day063_Critical Node | DO4: 04_GW Mounding_003_MeanDaily_Head_Day064_Critical Node | DP4: 04_GW Mounding_003_MeanDaily_Head_Day065_Critical Node | DQ4: 04_GW Mounding_003_MeanDaily_Head_Day066_Critical Node | DR4: 04_GW Mounding_003_MeanDaily_Head_Day067_Critical Node | DS4: 04_GW Mounding_003_MeanDaily_Head_Day068_Critical Node | DT4: 04_GW Mounding_003_MeanDaily_Head_Day069_Critical Node | DU4: 04_GW Mounding_003_MeanDaily_Head_Day070_Critical Node | DV4: 04_GW Mounding_003_MeanDaily_Head_Day071_Critical Node | DW4: 04_GW Mounding_003_MeanDaily_Head_Day072_Critical Node | DX4: 04_GW Mounding_003_MeanDaily_Head_Day073_Critical Node | DY4: 04_GW Mounding_003_MeanDaily_Head_Day074_Critical Node | DZ4: 04_GW Mounding_003_MeanDaily_Head_Day075_Critical Node | EA4: 04_GW Mounding_003_MeanDaily_Head_Day076_Critical Node | EB4: 04_GW Mounding_003_MeanDaily_Head_Day077_Critical Node | EC4: 04_GW Mounding_003_MeanDaily_Head_Day078_Critical Node | ED4: 04_GW Mounding_003_MeanDaily_Head_Day079_Critical Node | EE4: 04_GW Mounding_003_MeanDaily_Head_Day080_Critical Node | EF4: 04_GW Mounding_003_MeanDaily_Head_Day081_Critical Node | EG4: 04_GW Mounding_003_MeanDaily_Head_Day082_Critical Node | EH4: 04_GW Mounding_003_MeanDaily_Head_Day083_Critical Node | EI4: 04_GW Mounding_003_MeanDaily_Head_Day084_Critical Node | EJ4: 04_GW Mounding_003_MeanDaily_Head_Day085_Critical Node | EK4: 04_GW Mounding_003_MeanDaily_Head_Day086_Critical Node | EL4: 04_GW Mounding_003_MeanDaily_Head_Day087_Critical Node | EM4: 04_GW Mounding_003_MeanDaily_Head_Day088_Critical Node | EN4: 04_GW Mounding_003_MeanDaily_Head_Day089_Critical Node | EO4: 04_GW Mounding_003_MeanDaily_Head_Day090_Critical Node | EP4: 04_GW Mounding_003_MeanDaily_Head_Day091_Critical Node | EQ4: 04_GW Mounding_003_MeanDaily_Head_Day092_Critical Node | ER4: 04_GW Mounding_003_MeanDaily_Head_Day093_Critical Node | ES4: 04_GW Mounding_003_MeanDaily_Head_Day094_Critical Node | ET4: 04_GW Mounding_003_MeanDaily_Head_Day095_Critical Node | EU4: 04_GW Mounding_003_MeanDaily_Head_Day096_Critical Node | EV4: 04_GW Mounding_003_MeanDaily_Head_Day097_Critical Node | EW4: 04_GW Mounding_003_MeanDaily_Head_Day098_Critical Node | EX4: 04_GW Mounding_003_MeanDaily_Head_Day099_Critical Node | EY4: 04_GW Mounding_003_MeanDaily_Head_Day100_Critical Node | EZ4: 04_GW Mounding_003_MeanDaily_Head_Day101_Critical Node | FA4: 04_GW Mounding_003_MeanDaily_Head_Day102_Critical Node | FB4: 04_GW Mounding_003_MeanDaily_Head_Day103_Critical Node | FC4: 04_GW Mounding_003_MeanDaily_Head_Day104_Critical Node | FD4: 04_GW Mounding_003_MeanDaily_Head_Day105_Critical Node | FE4: 04_GW Mounding_003_MeanDaily_Head_Day106_Critical Node | FF4: 04_GW Mounding_003_MeanDaily_Head_Day107_Critical Node | FG4: 04_GW Mounding_003_MeanDaily_Head_Day108_Critical Node | FH4: 04_GW Mounding_003_MeanDaily_Head_Day109_Critical Node | FI4: 04_GW Mounding_003_MeanDaily_Head_Day110_Critical Node | FJ4: 04_GW Mounding_003_MeanDaily_Head_Day111_Critical Node | FK4: 04_GW Mounding_003_MeanDaily_Head_Day112_Critical Node | FL4: 04_GW Mounding_003_MeanDaily_Head_Day113_Critical Node | FM4: 04_GW Mounding_003_MeanDaily_Head_Day114_Critical Node | FN4: 04_GW Mounding_003_MeanDaily_Head_Day115_Critical Node | FO4: 04_GW Mounding_003_MeanDaily_Head_Day116_Critical Node | FP4: 04_GW Mounding_003_MeanDaily_Head_Day117_Critical Node | FQ4: 04_GW Mounding_003_MeanDaily_Head_Day118_Critical Node | FR4: 04_GW Mounding_003_MeanDaily_Head_Day119_Critical Node | FS4: 04_GW Mounding_003_MeanDaily_Head_Day120_Critical Node | FT4: 04_GW Mounding_003_MeanDaily_Head_Day121_Critical Node | FU4: 04_GW Mounding_003_MeanDaily_Head_Day122_Critical Node | FV4: 04_GW Mounding_003_MeanDaily_Head_Day123_Critical Node | FW4: 04_GW Mounding_003_MeanDaily_Head_Day124_Critical Node | FX4: 04_GW Mounding_003_MeanDaily_Head_Day125_Critical Node | FY4: 04_GW Mounding_003_MeanDaily_Head_Day126_Critical Node | FZ4: 04_GW Mounding_003_MeanDaily_Head_Day127_Critical Node | GA4: 04_GW Mounding_003_MeanDaily_Head_Day128_Critical Node | GB4: 04_GW Mounding_003_MeanDaily_Head_Day129_Critical Node | GC4: 04_GW Mounding_003_MeanDaily_Head_Day130_Critical Node | GD4: 04_GW Mounding_003_MeanDaily_Head_Day131_Critical Node | GE4: 04_GW Mounding_003_MeanDaily_Head_Day132_Critical Node | GF4: 04_GW Mounding_003_MeanDaily_Head_Day133_Critical Node | GG4: 04_GW Mounding_003_MeanDaily_Head_Day134_Critical Node | GH4: 04_GW Mounding_003_MeanDaily_Head_Day135_Critical Node | GI4: 04_GW Mounding_003_MeanDaily_Head_Day136_Critical Node | GJ4: 04_GW Mounding_003_MeanDaily_Head_Day137_Critical Node | GK4: 04_GW Mounding_003_MeanDaily_Head_Day138_Critical Node | GL4: 04_GW Mounding_003_MeanDaily_Head_Day139_Critical Node | GM4: 04_GW Mounding_003_MeanDaily_Head_Day140_Critical Node | GN4: 04_GW Mounding_003_MeanDaily_Head_Day141_Critical Node | GO4: 04_GW Mounding_003_MeanDaily_Head_Day142_Critical Node | GP4: 04_GW Mounding_003_MeanDaily_Head_Day143_Critical Node | GQ4: 04_GW Mounding_003_MeanDaily_Head_Day144_Critical Node | GR4: 04_GW Mounding_003_MeanDaily_Head_Day145_Critical Node | GS4: 04_GW Mounding_003_MeanDaily_Head_Day146_Critical Node | GT4: 04_GW Mounding_003_MeanDaily_Head_Day147_Critical Node | GU4: 04_GW Mounding_003_MeanDaily_Head_Day148_Critical Node | GV4: 04_GW Mounding_003_MeanDaily_Head_Day149_Critical Node | GW4: 04_GW Mounding_003_MeanDaily_Head_Day150_Critical Node | GX4: 04_GW Mounding_003_MeanDaily_Head_Day151_Critical Node | GY4: 04_GW Mounding_003_MeanDaily_Head_Day152_Critical Node | GZ4: 04_GW Mounding_003_MeanDaily_Head_Day153_Critical Node | HA4: 04_GW Mounding_003_MeanDaily_Head_Day154_Critical Node | HB4: 04_GW Mounding_003_MeanDaily_Head_Day155_Critical Node | HC4: 04_GW Mounding_003_MeanDaily_Head_Day156_Critical Node | HD4: 04_GW Mounding_003_MeanDaily_Head_Day157_Critical Node | HE4: 04_GW Mounding_003_MeanDaily_Head_Day158_Critical Node | HF4: 04_GW Mounding_003_MeanDaily_Head_Day159_Critical Node | HG4: 04_GW Mounding_003_MeanDaily_Head_Day160_Critical Node | HH4: 04_GW Mounding_003_MeanDaily_Head_Day161_Critical Node | HI4: 04_GW Mounding_003_MeanDaily_Head_Day162_Critical Node | HJ4: 04_GW Mounding_003_MeanDaily_Head_Day163_Critical Node | HK4: 04_GW Mounding_003_MeanDaily_Head_Day164_Critical Node | HL4: 04_GW Mounding_003_MeanDaily_Head_Day165_Critical Node | HM4: 04_GW Mounding_003_MeanDaily_Head_Day166_Critical Node | HN4: 04_GW Mounding_003_MeanDaily_Head_Day167_Critical Node | HO4: 04_GW Mounding_003_MeanDaily_Head_Day168_Critical Node | HP4: 04_GW Mounding_004_MeanDaily_PondingDepth001_1 | HQ4: 04_GW Mounding_004_MeanDaily_PondingDepth002_1 | HR4: 04_GW Mounding_004_MeanDaily_PondingDepth003_1 | HS4: 04_GW Mounding_004_MeanDaily_PondingDepth004_1 | HT4: 04_GW Mounding_004_MeanDaily_PondingDepth005_1 | HU4: 04_GW Mounding_004_MeanDaily_PondingDepth006_1 | HV4: 04_GW Mounding_004_MeanDaily_PondingDepth007_1 | HW4: 04_GW Mounding_004_MeanDaily_PondingDepth008_1 | HX4: 04_GW Mounding_004_MeanDaily_PondingDepth009_1 | HY4: 04_GW Mounding_004_MeanDaily_PondingDepth010_1 | HZ4: 04_GW Mounding_004_MeanDaily_PondingDepth011_1 | IA4: 04_GW Mounding_004_MeanDaily_PondingDepth012_1 | IB4: 04_GW Mounding_004_MeanDaily_PondingDepth013_1 | IC4: 04_GW Mounding_004_MeanDaily_PondingDepth014_1 | ID4: 04_GW Mounding_004_MeanDaily_PondingDepth015_1 | IE4: 04_GW Mounding_004_MeanDaily_PondingDepth016_1 | IF4: 04_GW Mounding_004_MeanDaily_PondingDepth017_1 | IG4: 04_GW Mounding_004_MeanDaily_PondingDepth018_1 | IH4: 04_GW Mounding_004_MeanDaily_PondingDepth019_1 | II4: 04_GW Mounding_004_MeanDaily_PondingDepth020_1 | IJ4: 04_GW Mounding_004_MeanDaily_PondingDepth021_1 | IK4: 04_GW Mounding_004_MeanDaily_PondingDepth022_1 | IL4: 04_GW Mounding_004_MeanDaily_PondingDepth023_1 | IM4: 04_GW Mounding_004_MeanDaily_PondingDepth024_1 | IN4: 04_GW Mounding_004_MeanDaily_PondingDepth025_1 | IO4: 04_GW Mounding_004_MeanDaily_PondingDepth026_1 | IP4: 04_GW Mounding_004_MeanDaily_PondingDepth027_1 | IQ4: 04_GW Mounding_004_MeanDaily_PondingDepth028_1 | IR4: 04_GW Mounding_004_MeanDaily_PondingDepth029_1 | IS4: 04_GW Mounding_004_MeanDaily_PondingDepth030_1 | IT4: 04_GW Mounding_004_MeanDaily_PondingDepth031_1 | IU4: 04_GW Mounding_004_MeanDaily_PondingDepth032_1 | IV4: 04_GW Mounding_004_MeanDaily_PondingDepth033_1 | IW4: 04_GW Mounding_004_MeanDaily_PondingDepth034_1 | IX4: 04_GW Mounding_004_MeanDaily_PondingDepth035_1 | IY4: 04_GW Mounding_004_MeanDaily_PondingDepth036_1 | IZ4: 04_GW Mounding_004_MeanDaily_PondingDepth037_1 | JA4: 04_GW Mounding_004_MeanDaily_PondingDepth038_1 | JB4: 04_GW Mounding_004_MeanDaily_PondingDepth039_1 | JC4: 04_GW Mounding_004_MeanDaily_PondingDepth040_1 | JD4: 04_GW Mounding_004_MeanDaily_PondingDepth041_1 | JE4: 04_GW Mounding_004_MeanDaily_PondingDepth042_1 | JF4: 04_GW Mounding_004_MeanDaily_PondingDepth043_1 | JG4: 04_GW Mounding_004_MeanDaily_PondingDepth044_1 | JH4: 04_GW Mounding_004_MeanDaily_PondingDepth045_1 | JI4: 04_GW Mounding_004_MeanDaily_PondingDepth046_1 | JJ4: 04_GW Mounding_004_MeanDaily_PondingDepth047_1 | JK4: 04_GW Mounding_004_MeanDaily_PondingDepth048_1 | JL4: 04_GW Mounding_004_MeanDaily_PondingDepth049_1 | JM4: 04_GW Mounding_004_MeanDaily_PondingDepth050_1 | JN4: 04_GW Mounding_004_MeanDaily_PondingDepth051_1 | JO4: 04_GW Mounding_004_MeanDaily_PondingDepth052_1 | JP4: 04_GW Mounding_004_MeanDaily_PondingDepth053_1 | JQ4: 04_GW Mounding_004_MeanDaily_PondingDepth054_1 | JR4: 04_GW Mounding_004_MeanDaily_PondingDepth055_1 | JS4: 04_GW Mounding_004_MeanDaily_PondingDepth056_1 | JT4: 04_GW Mounding_004_MeanDaily_PondingDepth057_1 | JU4: 04_GW Mounding_004_MeanDaily_PondingDepth058_1 | JV4: 04_GW Mounding_004_MeanDaily_PondingDepth059_1 | JW4: 04_GW Mounding_004_MeanDaily_PondingDepth060_1 | JX4: 04_GW Mounding_004_MeanDaily_PondingDepth061_1 | JY4: 04_GW Mounding_004_MeanDaily_PondingDepth062_1 | JZ4: 04_GW Mounding_004_MeanDaily_PondingDepth063_1 | KA4: 04_GW Mounding_004_MeanDaily_PondingDepth064_1 | KB4: 04_GW Mounding_004_MeanDaily_PondingDepth065_1 | KC4: 04_GW Mounding_004_MeanDaily_PondingDepth066_1 | KD4: 04_GW Mounding_004_MeanDaily_PondingDepth067_1 | KE4: 04_GW Mounding_004_MeanDaily_PondingDepth068_1 | KF4: 04_GW Mounding_004_MeanDaily_PondingDepth069_1 | KG4: 04_GW Mounding_004_MeanDaily_PondingDepth070_1 | KH4: 04_GW Mounding_004_MeanDaily_PondingDepth071_1 | KI4: 04_GW Mounding_004_MeanDaily_PondingDepth072_1 | KJ4: 04_GW Mounding_004_MeanDaily_PondingDepth073_1 | KK4: 04_GW Mounding_004_MeanDaily_PondingDepth074_1 | KL4: 04_GW Mounding_004_MeanDaily_PondingDepth075_1 | KM4: 04_GW Mounding_004_MeanDaily_PondingDepth076_1 | KN4: 04_GW Mounding_004_MeanDaily_PondingDepth077_1 | KO4: 04_GW Mounding_004_MeanDaily_PondingDepth078_1 | KP4: 04_GW Mounding_004_MeanDaily_PondingDepth079_1 | KQ4: 04_GW Mounding_004_MeanDaily_PondingDepth080_1 | KR4: 04_GW Mounding_004_MeanDaily_PondingDepth081_1 | KS4: 04_GW Mounding_004_MeanDaily_PondingDepth082_1 | KT4: 04_GW Mounding_004_MeanDaily_PondingDepth083_1 | KU4: 04_GW Mounding_004_MeanDaily_PondingDepth084_1 | KV4: 04_GW Mounding_004_MeanDaily_PondingDepth085_1 | KW4: 04_GW Mounding_004_MeanDaily_PondingDepth086_1 | KX4: 04_GW Mounding_004_MeanDaily_PondingDepth087_1 | KY4: 04_GW Mounding_004_MeanDaily_PondingDepth088_1 | KZ4: 04_GW Mounding_004_MeanDaily_PondingDepth089_1 | LA4: 04_GW Mounding_004_MeanDaily_PondingDepth090_1 | LB4: 04_GW Mounding_004_MeanDaily_PondingDepth091_1 | LC4: 04_GW Mounding_004_MeanDaily_PondingDepth092_1 | LD4: 04_GW Mounding_004_MeanDaily_PondingDepth093_1 | LE4: 04_GW Mounding_004_MeanDaily_PondingDepth094_1 | LF4: 04_GW Mounding_004_MeanDaily_PondingDepth095_1 | LG4: 04_GW Mounding_004_MeanDaily_PondingDepth096_1 | LH4: 04_GW Mounding_004_MeanDaily_PondingDepth097_1 | LI4: 04_GW Mounding_004_MeanDaily_PondingDepth098_1 | LJ4: 04_GW Mounding_004_MeanDaily_PondingDepth099_1 | LK4: 04_GW Mounding_004_MeanDaily_PondingDepth100_1 | LL4: 04_GW Mounding_004_MeanDaily_PondingDepth101_1 | LM4: 04_GW Mounding_004_MeanDaily_PondingDepth102_1 | LN4: 04_GW Mounding_004_MeanDaily_PondingDepth103_1 | LO4: 04_GW Mounding_004_MeanDaily_PondingDepth104_1 | LP4: 04_GW Mounding_004_MeanDaily_PondingDepth105_1 | LQ4: 04_GW Mounding_004_MeanDaily_PondingDepth106_1 | LR4: 04_GW Mounding_004_MeanDaily_PondingDepth107_1 | LS4: 04_GW Mounding_004_MeanDaily_PondingDepth108_1 | LT4: 04_GW Mounding_004_MeanDaily_PondingDepth109_1 | LU4: 04_GW Mounding_004_MeanDaily_PondingDepth110_1 | LV4: 04_GW Mounding_004_MeanDaily_PondingDepth111_1 | LW4: 04_GW Mounding_004_MeanDaily_PondingDepth112_1 | LX4: 04_GW Mounding_004_MeanDaily_PondingDepth113_1 | LY4: 04_GW Mounding_004_MeanDaily_PondingDepth114_1 | LZ4: 04_GW Mounding_004_MeanDaily_PondingDepth115_1 | MA4: 04_GW Mounding_004_MeanDaily_PondingDepth116_1 | MB4: 04_GW Mounding_004_MeanDaily_PondingDepth117_1 | MC4: 04_GW Mounding_004_MeanDaily_PondingDepth118_1 | MD4: 04_GW Mounding_004_MeanDaily_PondingDepth119_1 | ME4: 04_GW Mounding_004_MeanDaily_PondingDepth120_1 | MF4: 04_GW Mounding_004_MeanDaily_PondingDepth121_1 | MG4: 04_GW Mounding_004_MeanDaily_PondingDepth122_1 | MH4: 04_GW Mounding_004_MeanDaily_PondingDepth123_1 | MI4: 04_GW Mounding_004_MeanDaily_PondingDepth124_1 | MJ4: 04_GW Mounding_004_MeanDaily_PondingDepth125_1 | MK4: 04_GW Mounding_004_MeanDaily_PondingDepth126_1 | ML4: 04_GW Mounding_004_MeanDaily_PondingDepth127_1 | MM4: 04_GW Mounding_004_MeanDaily_PondingDepth128_1 | MN4: 04_GW Mounding_004_MeanDaily_PondingDepth129_1 | MO4: 04_GW Mounding_004_MeanDaily_PondingDepth130_1 | MP4: 04_GW Mounding_004_MeanDaily_PondingDepth131_1 | MQ4: 04_GW Mounding_004_MeanDaily_PondingDepth132_1 | MR4: 04_GW Mounding_004_MeanDaily_PondingDepth133_1 | MS4: 04_GW Mounding_004_MeanDaily_PondingDepth134_1 | MT4: 04_GW Mounding_004_MeanDaily_PondingDepth135_1 | MU4: 04_GW Mounding_004_MeanDaily_PondingDepth136_1 | MV4: 04_GW Mounding_004_MeanDaily_PondingDepth137_1 | MW4: 04_GW Mounding_004_MeanDaily_PondingDepth138_1 | MX4: 04_GW Mounding_004_MeanDaily_PondingDepth139_1 | MY4: 04_GW Mounding_004_MeanDaily_PondingDepth140_1 | MZ4: 04_GW Mounding_004_MeanDaily_PondingDepth141_1 | NA4: 04_GW Mounding_004_MeanDaily_PondingDepth142_1 | NB4: 04_GW Mounding_004_MeanDaily_PondingDepth143_1 | NC4: 04_GW Mounding_004_MeanDaily_PondingDepth144_1 | ND4: 04_GW Mounding_004_MeanDaily_PondingDepth145_1 | NE4: 04_GW Mounding_004_MeanDaily_PondingDepth146_1 | NF4: 04_GW Mounding_004_MeanDaily_PondingDepth147_1 | NG4: 04_GW Mounding_004_MeanDaily_PondingDepth148_1 | NH4: 04_GW Mounding_004_MeanDaily_PondingDepth149_1 | NI4: 04_GW Mounding_004_MeanDaily_PondingDepth150_1 | NJ4: 04_GW Mounding_004_MeanDaily_PondingDepth151_1 | NK4: 04_GW Mounding_004_MeanDaily_PondingDepth152_1 | NL4: 04_GW Mounding_004_MeanDaily_PondingDepth153_1 | NM4: 04_GW Mounding_004_MeanDaily_PondingDepth154_1 | NN4: 04_GW Mounding_004_MeanDaily_PondingDepth155_1 | NO4: 04_GW Mounding_004_MeanDaily_PondingDepth156_1 | NP4: 04_GW Mounding_004_MeanDaily_PondingDepth157_1 | NQ4: 04_GW Mounding_004_MeanDaily_PondingDepth158_1 | NR4: 04_GW Mounding_004_MeanDaily_PondingDepth159_1 | NS4: 04_GW Mounding_004_MeanDaily_PondingDepth160_1 | NT4: 04_GW Mounding_004_MeanDaily_PondingDepth161_1 | NU4: 04_GW Mounding_004_MeanDaily_PondingDepth162_1 | NV4: 04_GW Mounding_004_MeanDaily_PondingDepth163_1 | NW4: 04_GW Mounding_004_MeanDaily_PondingDepth164_1 | NX4: 04_GW Mounding_004_MeanDaily_PondingDepth165_1 | NY4: 04_GW Mounding_004_MeanDaily_PondingDepth166_1 | NZ4: 04_GW Mounding_004_MeanDaily_PondingDepth167_1 | OA4: 04_GW Mounding_004_MeanDaily_PondingDepth168_1 | OB4: 05_BMP Saturation_001_Max_Head_19 | OC4: 05_BMP Saturation_001_Max_Head_20 | OD4: 05_BMP Saturation_001_Max_Head_21 | OE4: 05_BMP Saturation_001_Max_Head_22 | OF4: 05_BMP Saturation_001_Max_Head_23 | OG4: 05_BMP Saturation_001_Max_Head_24 | OH4: 05_BMP Saturation_001_Max_Head_25 | OI4: 05_BMP Saturation_001_Max_Head_26 | OJ4: 05_BMP Saturation_001_Max_Head_27 | OK4: 05_BMP Saturation_001_Max_Head_28 | OL4: 05_BMP Saturation_001_Max_Head_29 | OM4: 05_BMP Saturation_001_Max_Head_30 | ON4: 05_BMP Saturation_002_Fraction_Ponded_19 | OO4: 05_BMP Saturation_002_Fraction_Ponded_20 | OP4: 05_BMP Saturation_002_Fraction_Ponded_21 | OQ4: 05_BMP Saturation_002_Fraction_Ponded_22 | OR4: 05_BMP Saturation_002_Fraction_Ponded_23 | OS4: 05_BMP Saturation_002_Fraction_Ponded_24 | OT4: 05_BMP Saturation_002_Fraction_Ponded_25 | OU4: 05_BMP Saturation_002_Fraction_Ponded_26 | OV4: 05_BMP Saturation_002_Fraction_Ponded_27 | OW4: 05_BMP Saturation_002_Fraction_Ponded_28 | OX4: 05_BMP Saturation_002_Fraction_Ponded_29 | OY4: 05_BMP Saturation_002_Fraction_Ponded_30 | OZ4: 05_BMP Saturation_003_Time_GE_90pct_Sat_19 | PA4: 05_BMP Saturation_003_Time_GE_90pct_Sat_20 | PB4: 05_BMP Saturation_003_Time_GE_90pct_Sat_21 | PC4: 05_BMP Saturation_003_Time_GE_90pct_Sat_22 | PD4: 05_BMP Saturation_003_Time_GE_90pct_Sat_23 | PE4: 05_BMP Saturation_003_Time_GE_90pct_Sat_24 | PF4: 05_BMP Saturation_003_Time_GE_90pct_Sat_25 | PG4: 05_BMP Saturation_003_Time_GE_90pct_Sat_26 | PH4: 05_BMP Saturation_003_Time_GE_90pct_Sat_27 | PI4: 05_BMP Saturation_003_Time_GE_90pct_Sat_28 | PJ4: 05_BMP Saturation_003_Time_GE_90pct_Sat_29 | PK4: 05_BMP Saturation_003_Time_GE_90pct_Sat_30 | PL4: 06_Cumulative Flow_001_Final_Value_CumQ3_[V] | PM4: 06_Cumulative Flow_001_Final_Value_CumQ7_[V] | PN4: 06_Cumulative Flow_001_Final_Value_CumQA_[V] | PO4: 06_Cumulative Flow_001_Final_Value_CumQR_[V] | PP4: 06_Cumulative Flow_001_Final_Value_CumQS_[V] | PQ4: 07_Cumulative Flux_001_Final_Value_CumFlux(1) | PR4: 07_Cumulative Flux_001_Final_Value_CumFlux(2) | PS4: 08_Water Balance_001_001_Region_2_Value_0 | PT4: 08_Water Balance_001_001_Region_2_Value_4031 | PU4: 09_Infiltration_rate_001_mean_inches per hour | PV4: 09_Infiltration_rate_001_median_inches per hour | PW4: 09_Infiltration_rate_001_std_inches per hour | PX4: Calculated_WB_Loading | PY4: Calculated_WB_Runoff | PZ4: Calculated_WB_Infil | QA4: Calculated_WB_ET | QB4: Calculated_WB_Bypass/UD | QC4: Calculated_RealMax_Col1 | QD4: Calculated_RealMax_Col2 | QE4: Calculated_RealMax_Col3 | QF4: Infil Reduction_Coded K_ | QG4: Infil Reduction_Reduction Ratio_1 | QH4: Roadway Sat_Saturated_2 | QI4: Roadway Sat_Saturated_4 | QJ4: Roadway Sat_%Time 90pct Sat_2 | QK4: Roadway Sat_%Time 90pct Sat_4 | QL4: Max_Mound | QM4: Inf_Surf_Elev | QN4: Mound_Touch | QO4: Max_Mound_Ratio
A5: BB_H_2_BIR_10_CL_--_std_High | B5: High | C5: BB | D5: H | E5: 2 | F5: 10 | G5: CL | H5: BIR | I5: -- | J5: std | K5: 87.71743984 | L5: 2845.89 | M5: 0.928 | N5: 3.586703051 | O5: 21.04696429 | P5: 0.3401 | Q5: 0.354 | R5: 0.3265 | S5: 0.32 | T5: 100 | U5: 100 | V5: 100 | W5: 100 | X5: 0 | Y5: 0 | Z5: 0 | AA5: 0 | AB5: -2.624 | AC5: 0.68552 | AD5: 1.28904 | AE5: 1.85976 | AF5: 2.42064 | AG5: 2.98152 | AH5: 3.51944 | AI5: 4.02456 | AJ5: 4.56248 | AK5: 4.8708 | AL5: 4.4444 | AM5: 3.65392 | AN5: 2.92576 | AO5: 2.22712 | AP5: -3.07664 | AQ5: 0.64944 | AR5: 1.22672 | AS5: 1.77448 | AT5: 2.31896 | AU5: 2.87328 | AV5: 3.43416 | AW5: 3.99504 | AX5: 4.56248 | AY5: 4.8708 | AZ5: 4.4444 | BA5: 3.65392 | BB5: 2.91592 | BC5: 2.20744 | BD5: -0.004783332 | BE5: -0.015033332 | BF5: -0.02378 | BG5: -0.03116 | BH5: -0.03679832 | BI5: -0.041 | BJ5: -0.04469 | BK5: -0.047833332 | BL5: -0.050703332 | BM5: -0.0533 | BN5: -0.05576 | BO5: -0.05904 | BP5: -0.061363332 | BQ5: 0.135846668 | BR5: 3.37077564 | BS5: 3.396274632 | BT5: 3.260221052 | BU5: 3.140965172 | BV5: 3.02522026 | BW5: 2.918487692 | BX5: 2.816426668 | BY5: 2.720900768 | BZ5: 2.62936362 | CA5: 2.5446896 | CB5: 2.465466668 | CC5: 2.392028832 | CD5: 2.321146668 | CE5: 2.467975592 | CF5: 2.502030468 | CG5: 2.42931232 | CH5: 2.356075932 | CI5: 2.29108 | CJ5: 2.221938968 | CK5: 2.207725632 | CL5: 2.442960948 | CM5: 2.38889452 | CN5: 2.322198452 | CO5: 2.260750112 | CP5: 2.204607448 | CQ5: 2.1396752 | CR5: 2.082683288 | CS5: 2.028262072 | CT5: 1.957391932 | CU5: 1.759274468 | CV5: 1.695176432 | CW5: 1.565710732 | CX5: 1.458436968 | CY5: 1.365436668 | CZ5: 1.28412 | DA5: 1.764522468 | DB5: 2.924048932 | DC5: 4.1198563 | DD5: 4.0162616 | DE5: 3.886362668 | DF5: 3.766574332 | DG5: 3.654970968 | DH5: 3.544145232 | DI5: 3.443472468 | DJ5: 3.347786668 | DK5: 3.250341968 | DL5: 3.162258932 | DM5: 3.0746761 | DN5: 2.998634768 | DO5: 3.206000468 | DP5: 3.76544 | DQ5: 3.6785569 | DR5: 3.582554032 | DS5: 4.0469378 | DT5: 4.580793332 | DU5: 4.729188732 | DV5: 4.782103332 | DW5: 4.740368068 | DX5: 4.619841732 | DY5: 4.596523668 | DZ5: 4.811750432 | EA5: 4.834053068 | EB5: 4.769204732 | EC5: 4.660737868 | ED5: 4.553736068 | EE5: 4.448543732 | EF5: 4.518473332 | EG5: 4.479203532 | EH5: 4.438546568 | EI5: 4.732647768 | EJ5: 4.618386232 | EK5: 4.507795568 | EL5: 4.212919468 | EM5: 4.273205868 | EN5: 4.1716024 | EO5: 4.089072132 | EP5: 4.021055868 | EQ5: 3.924090868 | ER5: 3.8325652 | ES5: 4.1762723 | ET5: 4.585563 | EU5: 4.665314832 | EV5: 4.631485732 | EW5: 4.526815468 | EX5: 4.418242 | EY5: 4.3153935 | EZ5: 4.2154314 | FA5: 4.113171932 | FB5: 4.673673368 | FC5: 4.681569968 | FD5: 4.5691384 | FE5: 4.461539368 | FF5: 4.6725773 | FG5: 4.717323332 | FH5: 4.6055464 | FI5: 4.4990161 | FJ5: 4.393743132 | FK5: 4.5201147 | FL5: 4.82201 | FM5: 4.8359377 | FN5: 4.752914068 | FO5: 4.6491253 | FP5: 4.546837132 | FQ5: 4.445444132 | FR5: 4.348171632 | FS5: 4.253505368 | FT5: 4.154499932 | FU5: 4.062811632 | FV5: 3.970662768 | FW5: 3.882563332 | FX5: 3.805289268 | FY5: 3.9145488 | FZ5: 4.0940181 | GA5: 4.455016268 | GB5: 4.349608 | GC5: 4.339121568 | GD5: 4.544194 | GE5: 4.660431732 | GF5: 4.550082968 | GG5: 4.443245168 | GH5: 4.341470868 | GI5: 4.3381485 | GJ5: 4.7305677 | GK5: 4.617704268 | GL5: 4.569547032 | GM5: 4.80069 | GN5: 4.6955824 | GO5: 4.586847668 | GP5: 4.4986389 | GQ5: 4.802443432 | GR5: 4.6970502 | GS5: 4.589676668 | GT5: 4.493753068 | GU5: 4.415407532 | GV5: 4.736371932 | GW5: 4.801679468 | GX5: 4.696823332 | GY5: 4.590775468 | GZ5: 4.4887415 | HA5: 4.38823 | HB5: 4.3985784 | HC5: 4.8189719 | HD5: 4.727686768 | HE5: 4.6505152 | HF5: 4.8201773 | HG5: 4.725981168 | HH5: 4.622435668 | HI5: 4.52189 | HJ5: 4.421450932 | HK5: 4.327355932 | HL5: 4.240050532 | HM5: 4.142804 | HN5: 4.066653332 | HO5: 3.975616932 | HP5: -1.629032772 | HQ5: -1.770174452 | HR5: -1.310815372 | HS5: -1.12016346 | HT5: -1.148171652 | HU5: -1.189675952 | HV5: -1.22831982 | HW5: -1.271136668 | HX5: -1.32758 | HY5: -1.401106668 | HZ5: -1.49281 | IA5: -1.584059052 | IB5: -1.670356128 | IC5: -1.400160112 | ID5: 1.66112976 | IE5: 1.615234632 | IF5: 1.445424388 | IG5: 1.30502426 | IH5: 1.173724768 | II5: 1.05551138 | IJ5: 0.94341 | IK5: 0.840085352 | IL5: 0.741206472 | IM5: 0.6512194 | IN5: 0.565936668 | IO5: 0.48726614 | IP5: 0.412970312 | IQ5: 0.572548052 | IR5: 0.6052707 | IS5: 0.52662696 | IT5: 0.44862774 | IU5: 0.379523332 | IV5: 0.306681912 | IW5: 0.293462968 | IX5: 0.545405508 | IY5: 0.48401484 | IZ5: 0.412691788 | JA5: 0.346801232 | JB5: 0.27161926 | JC5: 0.203167848 | JD5: 0.143571612 | JE5: 0.086870252 | JF5: 0.011612568 | JG5: -0.102043532 | JH5: -0.248794832 | JI5: -0.383393732 | JJ5: -0.491292068 | JK5: -0.581653332 | JL5: -0.659826668 | JM5: -0.129233368 | JN5: 1.0856226 | JO5: 2.339897332 | JP5: 2.2057016 | JQ5: 2.056286668 | JR5: 1.923351 | JS5: 1.801770968 | JT5: 1.6825375 | JU5: 1.574829132 | JV5: 1.4731095 | JW5: 1.369952132 | JX5: 1.2772156 | JY5: 1.185550532 | JZ5: 1.106195032 | KA5: 1.3290724 | KB5: 1.922626668 | KC5: 1.823447668 | KD5: 1.719057568 | KE5: 2.215227268 | KF5: 2.7722273 | KG5: 2.920829068 | KH5: 2.968812732 | KI5: 2.919694732 | KJ5: 2.789526568 | KK5: 2.764507 | KL5: 2.989606568 | KM5: 3.0076247 | KN5: 2.935246032 | KO5: 2.820794532 | KP5: 2.707776668 | KQ5: 2.597299432 | KR5: 2.673746668 | KS5: 2.6203387 | KT5: 2.574015532 | KU5: 2.884254332 | KV5: 2.761389632 | KW5: 2.644863532 | KX5: 2.425804632 | KY5: 2.414402532 | KZ5: 2.308425732 | LA5: 2.223145732 | LB5: 2.1527788 | LC5: 2.051366668 | LD5: 1.956541868 | LE5: 2.325193368 | LF5: 2.755000468 | LG5: 2.8347031 | LH5: 2.795553568 | LI5: 2.6831876 | LJ5: 2.568035 | LK5: 2.460006832 | LL5: 2.354922468 | LM5: 2.2485015 | LN5: 2.845106168 | LO5: 2.8472163 | LP5: 2.7266148 | LQ5: 2.61211 | LR5: 2.8379257 | LS5: 2.881428068 | LT5: 2.762044268 | LU5: 2.6495061 | LV5: 2.539504468 | LW5: 2.675657268 | LX5: 2.992043332 | LY5: 3.002144368 | LZ5: 2.9114674 | MA5: 2.801938632 | MB5: 2.694453032 | MC5: 2.5886908 | MD5: 2.48747 | ME5: 2.388825368 | MF5: 2.2862666 | MG5: 2.1913065 | MH5: 2.095861232 | MI5: 2.004729168 | MJ5: 1.919920668 | MK5: 2.027797132 | ML5: 2.219007468 | MM5: 2.600837732 | MN5: 2.483540832 | MO5: 2.4737965 | MP5: 2.792469 | MQ5: 2.823672732 | MR5: 2.705082968 | MS5: 2.591861468 | MT5: 2.4846 | MU5: 2.483855168 | MV5: 2.8987697 | MW5: 2.7758476 | MX5: 2.724865468 | MY5: 2.968425968 | MZ5: 2.85483 | NA5: 2.739934332 | NB5: 2.647215568 | NC5: 2.969606768 | ND5: 2.854693332 | NE5: 2.74126 | NF5: 2.640292032 | NG5: 2.559299268 | NH5: 2.900719932 | NI5: 2.9661573 | NJ5: 2.8536 | NK5: 2.741385732 | NL5: 2.634460468 | NM5: 2.529563332 | NN5: 2.543522468 | NO5: 2.9870837 | NP5: 2.88681 | NQ5: 2.804782668 | NR5: 2.9832133 | NS5: 2.881801168 | NT5: 2.772361232 | NU5: 2.667290532 | NV5: 2.5622376 | NW5: 2.464589268 | NX5: 2.373960132 | NY5: 2.273049568 | NZ5: 2.194969168 | OA5: 2.100293332 | OB5: 0 | OC5: 0 | OD5: 0 | OE5: 0 | OF5: 0 | OG5: 0 | OH5: 0 | OI5: 0 | OJ5: 0 | OK5: 0 | OL5: 0 | OM5: 0 | ON5: 0 | OO5: 0 | OP5: 0 | OQ5: 0 | OR5: 0 | OS5: 0 | OT5: 0 | OU5: 0 | OV5: 0 | OW5: 0 | OX5: 0 | OY5: 0 | OZ5: 0 | PA5: 0 | PB5: 0 | PC5: 0 | PD5: 0 | PE5: 0 | PF5: 0 | PG5: 0 | PH5: 0 | PI5: 0 | PJ5: 0 | PK5: 0 | PL5: -117.22 | PM5: -2.2526 | PN5: -13.438 | PO5: 2.1806 | PP5: 59.332 | PQ5: -53.62 | PR5: -3.57 | PS5: 0.64002 | PT5: 7.203 | PU5: 0.055786169 | PV5: 0.039370079 | PW5: 0.091290802 | PX5: 110.65702 | PY5: 55.762 | PZ5: 54.74041 | QA5: 0.15461 | QB5: 0 | QC5: 0 | QD5: 0 | QE5: 0 | QF5: =IF(G5="CL",0.1,IF(G5="SI",0.3,IF(G5="SL",1,IF(G5="LS",3,5)))) -> 0.1 | QG5: =1 - PU5/QF5 -> 0.44213831 | QH5: =IF(P5>=0.43,"Yes","No") -> No | QI5: =IF(R5>=0.43,"Yes","No") -> No | QJ5: =X5 -> 0 | QK5: =Z5 -> 0 | QL5: 4.8708 | QM5: 2 | QN5: =IF(QL5>QM5,1,0) -> 1 | QO5: 1
